Workbook

Sheet Anexo12_Saúde
B1: Tabela 12.2 - Demonstrativo das Despesas com Saúde - Municípios
B3: PREFEITURA DO MUNICÍPIO DE SÃO PAULO
B4: RELATÓRIO RESUMIDO DA EXECUÇÃO ORÇAMENTÁRIA
B5: DEMONSTRATIVO DAS RECEITAS E DESPESAS COM AÇÕES E SERVIÇOS PÚBLICOS DE SAÚDE
B6: ORÇAMENTOS FISCAL E DA SEGURIDADE SOCIAL
B7: 1º BIMESTRE (01/01/2025 A 28/02/2025)
B9: RREO – ANEXO XII (LC n° 141/2012 art.35) | P9: R$ 1.00
B10: RECEITAS RESULTANTES DE IMPOSTOS E TRANSFERÊNCIAS CONSTITUCIONAIS E LEGAIS | H10: PREVISÃO INICIAL | J10: PREVISÃO ATUALIZADA (a) | L10: RECEITAS REALIZADAS
L11: Até o Bimestre (b) | O11: % (b/a) x 100
B12: RECEITA DE IMPOSTOS (I) | H12: =VLOOKUP($B12,Receita_Consolidada!$B:$F,2,0) -> 65,077,314,081.00 | J12: =VLOOKUP($B12,Receita_Consolidada!$B:$F,3,0) -> 65,077,314,081.00 | L12: =VLOOKUP($B12,Receita_Consolidada!$B:$F,4,0) -> 12,765,858,295.39 | O12: =IFERROR(L12/J12*100,0) -> 19.62
B13: Receita Resultante do Imposto Predial e Territorial Urbano - IPTU | H13: =VLOOKUP($B13,Receita_Consolidada!$B:$F,2,0) -> 17,596,243,214.00 | J13: =VLOOKUP($B13,Receita_Consolidada!$B:$F,3,0) -> 17,596,243,214.00 | L13: =VLOOKUP($B13,Receita_Consolidada!$B:$F,4,0) -> 4,700,816,340.28 | O13: 26.71
B14: IPTU | H14: =VLOOKUP($B14,Receita_Consolidada!$B:$F,2,0) -> 15,697,308,008.00 | J14: =VLOOKUP($B14,Receita_Consolidada!$B:$F,3,0) -> 15,697,308,008.00 | L14: =VLOOKUP($B14,Receita_Consolidada!$B:$F,4,0) -> 4,358,517,098.89 | O14: 27.77
B15: Multas, Juros de Mora, Divida Ativa e Outros Encargos do IPTU | H15: =VLOOKUP($B15,Receita_Consolidada!$B:$F,2,0) -> 1,898,935,206.00 | J15: =VLOOKUP($B15,Receita_Consolidada!$B:$F,3,0) -> 1,898,935,206.00 | L15: =VLOOKUP($B15,Receita_Consolidada!$B:$F,4,0) -> 342,299,241.39 | O15: 18.03
B16: Receita Resultante do Imposto sobre Serviços de Qualquer Natureza - ITBI | H16: =VLOOKUP($B16,Receita_Consolidada!$B:$F,2,0) -> 4,399,222,246.00 | J16: =VLOOKUP($B16,Receita_Consolidada!$B:$F,3,0) -> 4,399,222,246.00 | L16: =VLOOKUP($B16,Receita_Consolidada!$B:$F,4,0) -> 648,747,482.31 | O16: 14.75
B17: ITBI | H17: =VLOOKUP($B17,Receita_Consolidada!$B:$F,2,0) -> 4,334,222,428.00 | J17: =VLOOKUP($B17,Receita_Consolidada!$B:$F,3,0) -> 4,334,222,428.00 | L17: =VLOOKUP($B17,Receita_Consolidada!$B:$F,4,0) -> 621,019,661.43 | O17: 14.33
B18: Multas, Juros de Mora, Dívida Ativa e Outros Encargos do ITBI | H18: =VLOOKUP($B18,Receita_Consolidada!$B:$F,2,0) -> 64,999,818.00 | J18: =VLOOKUP($B18,Receita_Consolidada!$B:$F,3,0) -> 64,999,818.00 | L18: =VLOOKUP($B18,Receita_Consolidada!$B:$F,4,0) -> 27,727,820.88 | O18: 42.66
B19: Receita Resultante do Imposto sobre Serviços de Qualquer Natureza - ISS | H19: =VLOOKUP($B19,Receita_Consolidada!$B:$F,2,0) -> 37,559,875,557.00 | J19: =VLOOKUP($B19,Receita_Consolidada!$B:$F,3,0) -> 37,559,875,557.00 | L19: =VLOOKUP($B19,Receita_Consolidada!$B:$F,4,0) -> 6,728,798,338.85 | O19: 17.91
B20: ISS | H20: =VLOOKUP($B20,Receita_Consolidada!$B:$F,2,0) -> 36,466,235,277.00 | J20: =VLOOKUP($B20,Receita_Consolidada!$B:$F,3,0) -> 36,466,235,277.00 | L20: =VLOOKUP($B20,Receita_Consolidada!$B:$F,4,0) -> 6,352,395,638.87 | O20: 17.42
B21: Multas, Juros de Mora, Dívida Ativa e Outros Encargos do ISS | H21: =VLOOKUP($B21,Receita_Consolidada!$B:$F,2,0) -> 1,093,640,280.00 | J21: =VLOOKUP($B21,Receita_Consolidada!$B:$F,3,0) -> 1,093,640,280.00 | L21: =VLOOKUP($B21,Receita_Consolidada!$B:$F,4,0) -> 376,402,699.98 | O21: 34.42
B22: Receita Resultante do Imposto sobre a Renda e Proventos de Qualquer Natureza Retido na Fonte – IRRF | H22: =VLOOKUP($B22,Receita_Consolidada!$B:$F,2,0) -> 5,521,973,064.00 | J22: =VLOOKUP($B22,Receita_Consolidada!$B:$F,3,0) -> 5,521,973,064.00 | L22: =VLOOKUP($B22,Receita_Consolidada!$B:$F,4,0) -> 687,496,133.95 | O22: 12.45
B23: RECEITA DE TRANSFERÊNCIAS CONSTITUCIONAIS E LEGAIS (II) | H23: =VLOOKUP($B23,Receita_Consolidada!$B:$F,2,0) -> 15,436,606,033.00 | J23: =VLOOKUP($B23,Receita_Consolidada!$B:$F,3,0) -> 15,436,606,033.00 | L23: =VLOOKUP($B23,Receita_Consolidada!$B:$F,4,0) -> 4,085,312,572.79 | O23: 26.47
B24: Cota-Parte FPM | H24: =VLOOKUP($B24,Receita_Consolidada!$B:$F,2,0) -> 600,006,885.00 | J24: =VLOOKUP($B24,Receita_Consolidada!$B:$F,3,0) -> 600,006,885.00 | L24: =VLOOKUP($B24,Receita_Consolidada!$B:$F,4,0) -> 126,015,876.99 | O24: 21.00
B25: Cota-Parte ITR | H25: =VLOOKUP($B25,Receita_Consolidada!$B:$F,2,0) -> 19,439,666.00 | J25: =VLOOKUP($B25,Receita_Consolidada!$B:$F,3,0) -> 19,439,666.00 | L25: =VLOOKUP($B25,Receita_Consolidada!$B:$F,4,0) -> 1,270,563.38 | O25: 6.54
B26: Cota-Parte IPVA | H26: =VLOOKUP($B26,Receita_Consolidada!$B:$F,2,0) -> 4,553,894,634.00 | J26: =VLOOKUP($B26,Receita_Consolidada!$B:$F,3,0) -> 4,553,894,634.00 | L26: =VLOOKUP($B26,Receita_Consolidada!$B:$F,4,0) -> 2,434,180,228.22 | O26: 53.45
B27: Cota-Parte ICMS | H27: =VLOOKUP($B27,Receita_Consolidada!$B:$F,2,0) -> 10,203,805,236.00 | J27: =VLOOKUP($B27,Receita_Consolidada!$B:$F,3,0) -> 10,203,805,236.00 | L27: =VLOOKUP($B27,Receita_Consolidada!$B:$F,4,0) -> 1,513,851,306.36 | O27: 14.84
B28: Cota-Parte IPI-Exportação | H28: =VLOOKUP($B28,Receita_Consolidada!$B:$F,2,0) -> 59,459,612.00 | J28: =VLOOKUP($B28,Receita_Consolidada!$B:$F,3,0) -> 59,459,612.00 | L28: =VLOOKUP($B28,Receita_Consolidada!$B:$F,4,0) -> 9,994,597.84 | O28: 16.81
B29: Outras Transferências ou Compensações Financeiras Provenientes de Impostos e Transferências Constitucionais | H29: =VLOOKUP($B29,Receita_Consolidada!$B:$F,2,0) -> 0 | J29: =VLOOKUP($B29,Receita_Consolidada!$B:$F,3,0) -> 0 | L29: =VLOOKUP($B29,Receita_Consolidada!$B:$F,4,0) -> 0 | O29: 0
B30: TOTAL DAS RECEITAS RESULTANTES DE IMPOSTOS E TRANFERÊNCIAS CONSTITUCIONAIS E LEGAIS - (III) = (I) + (II) | H30: =H12+H23 -> 80,513,920,114.00 | J30: =J12+J23 -> 80,513,920,114.00 | L30: =L12+L23 -> 16,851,170,868.18 | O30: =L30/J30*100 -> 20.93
B32: DESPESAS COM AÇÕES E SERVIÇOS PÚBLICOS DE SAÚDE (ASPS) – POR SUBFUNÇÃO E CATEGORIA ECONÔMICA | H32: DOTAÇÃO INICIAL | I32: DOTAÇÃO ATUALIZADA (c) | J32: DESPESAS EMPENHADAS | L32: DESPESAS LIQUIDADAS | N32: DESPESAS PAGAS | P32: Inscritas em Restos a Pagar Não Processados (g)
J33: Até o bimestre (d) | K33: % (d/c) x 100 | L33: Até o bimestre (e) | M33: % (e/c) x 100 | N33: Até o bimestre (f) | O33: % (f/c) x 100
A34: 301 | B34: ATENÇÃO BÁSICA (IV) | H34: =VLOOKUP($A34,Despesas_ASPS!$N$5:$T$25,3,FALSE) -> 7,953,763,446.00 | I34: =VLOOKUP($A34,Despesas_ASPS!$N$5:$T$25,4,FALSE) -> 7,951,072,058.59 | J34: =VLOOKUP($A34,Despesas_ASPS!$N$5:$T$25,5,FALSE) -> 2,301,495,364.43 | K34: =IFERROR(J34/I34*100,0) -> 28.95 | L34: =VLOOKUP($A34,Despesas_ASPS!$N$5:$T$25,6,FALSE) -> 1,212,880,143.33 | M34: =IFERROR(L34/I34*100,0) -> 15.25 | N34: =VLOOKUP($A34,Despesas_ASPS!$N$5:$T$25,7,FALSE) -> 1,148,716,823.48 | O34: =IFERROR($N34/$I34*100,0) -> 14.45 | P34: =J34-L34 -> 1,088,615,221.10
A35: 301.3 | B35: Despesas Correntes | H35: =VLOOKUP($A35,Despesas_ASPS!$N$5:$T$25,3,FALSE) -> 7,888,278,428.00 | I35: =VLOOKUP($A35,Despesas_ASPS!$N$5:$T$25,4,FALSE) -> 7,886,136,369.63 | J35: =VLOOKUP($A35,Despesas_ASPS!$N$5:$T$25,5,FALSE) -> 2,301,340,683.03 | K35: =IFERROR(J35/I35*100,0) -> 29.18 | L35: =VLOOKUP($A35,Despesas_ASPS!$N$5:$T$25,6,FALSE) -> 1,212,880,143.33 | M35: =IFERROR(L35/I35*100,0) -> 15.38 | N35: =VLOOKUP($A35,Despesas_ASPS!$N$5:$T$25,7,FALSE) -> 1,148,716,823.48 | O35: =IFERROR($N35/$I35*100,0) -> 14.57 | P35: 1,088,460,539.70
A36: 301.4 | B36: Despesas de Capital | H36: =VLOOKUP($A36,Despesas_ASPS!$N$5:$T$25,3,FALSE) -> 65,485,018.00 | I36: =VLOOKUP($A36,Despesas_ASPS!$N$5:$T$25,4,FALSE) -> 64,935,688.96 | J36: =VLOOKUP($A36,Despesas_ASPS!$N$5:$T$25,5,FALSE) -> 154,681.40 | K36: 0.24 | L36: =VLOOKUP($A36,Despesas_ASPS!$N$5:$T$25,6,FALSE) -> 0 | M36: 0 | N36: =VLOOKUP($A36,Despesas_ASPS!$N$5:$T$25,7,FALSE) -> 0 | O36: 0 | P36: =J36-L36 -> 154,681.40
A37: 302 | B37: ASSISTÊNCIA HOSPITALAR E AMBULATORIAL (V) | H37: =VLOOKUP($A37,Despesas_ASPS!$N$5:$T$25,3,FALSE) -> 6,137,512,971.00 | I37: =VLOOKUP($A37,Despesas_ASPS!$N$5:$T$25,4,FALSE) -> 6,139,657,029.37 | J37: =VLOOKUP($A37,Despesas_ASPS!$N$5:$T$25,5,FALSE) -> 3,229,988,312.54 | K37: 52.61 | L37: =VLOOKUP($A37,Despesas_ASPS!$N$5:$T$25,6,FALSE) -> 991,079,694.01 | M37: 16.14 | N37: =VLOOKUP($A37,Despesas_ASPS!$N$5:$T$25,7,FALSE) -> 977,509,897.39 | O37: 15.92 | P37: =J37-L37 -> 2,238,908,618.53
A38: 302.3 | B38: Despesas Correntes | H38: =VLOOKUP($A38,Despesas_ASPS!$N$5:$T$25,3,FALSE) -> 6,129,055,780.00 | I38: =VLOOKUP($A38,Despesas_ASPS!$N$5:$T$25,4,FALSE) -> 6,131,197,838.37 | J38: =VLOOKUP($A38,Despesas_ASPS!$N$5:$T$25,5,FALSE) -> 3,227,133,482.09 | K38: 52.63 | L38: =VLOOKUP($A38,Despesas_ASPS!$N$5:$T$25,6,FALSE) -> 988,485,293.83 | M38: 16.12 | N38: =VLOOKUP($A38,Despesas_ASPS!$N$5:$T$25,7,FALSE) -> 974,915,497.21 | O38: 15.90 | P38: 2,238,648,188.26
A39: 302.4 | B39: Despesas de Capital | H39: =VLOOKUP($A39,Despesas_ASPS!$N$5:$T$25,3,FALSE) -> 8,457,191.00 | I39: =VLOOKUP($A39,Despesas_ASPS!$N$5:$T$25,4,FALSE) -> 8,459,191.00 | J39: =VLOOKUP($A39,Despesas_ASPS!$N$5:$T$25,5,FALSE) -> 2,854,830.45 | K39: 33.75 | L39: =VLOOKUP($A39,Despesas_ASPS!$N$5:$T$25,6,FALSE) -> 2,594,400.18 | M39: 30.67 | N39: =VLOOKUP($A39,Despesas_ASPS!$N$5:$T$25,7,FALSE) -> 2,594,400.18 | O39: 30.67 | P39: 260,430.27
A40: 303 | B40: SUPORTE PROFILÁTICO E TERAPÊUTICO (VI) | H40: =VLOOKUP($A40,Despesas_ASPS!$N$5:$T$25,3,FALSE) -> 453,390,546.00 | I40: =VLOOKUP($A40,Despesas_ASPS!$N$5:$T$25,4,FALSE) -> 453,390,546.00 | J40: =VLOOKUP($A40,Despesas_ASPS!$N$5:$T$25,5,FALSE) -> 169,689,992.49 | K40: 37.43 | L40: =VLOOKUP($A40,Despesas_ASPS!$N$5:$T$25,6,FALSE) -> 15,302,957.06 | M40: 3.38 | N40: =VLOOKUP($A40,Despesas_ASPS!$N$5:$T$25,7,FALSE) -> 795,179.46 | O40: 0.18 | P40: 154,387,035.43
A41: 303.3 | B41: Despesas Correntes | H41: =VLOOKUP($A41,Despesas_ASPS!$N$5:$T$25,3,FALSE) -> 453,390,546.00 | I41: =VLOOKUP($A41,Despesas_ASPS!$N$5:$T$25,4,FALSE) -> 453,390,546.00 | J41: =VLOOKUP($A41,Despesas_ASPS!$N$5:$T$25,5,FALSE) -> 169,689,992.49 | K41: 37.43 | L41: =VLOOKUP($A41,Despesas_ASPS!$N$5:$T$25,6,FALSE) -> 15,302,957.06 | M41: 3.38 | N41: =VLOOKUP($A41,Despesas_ASPS!$N$5:$T$25,7,FALSE) -> 795,179.46 | O41: 0.18 | P41: 154,387,035.43
A42: 303.4 | B42: Despesas de Capital | H42: =VLOOKUP($A42,Despesas_ASPS!$N$5:$T$25,3,FALSE) -> 0 | I42: =VLOOKUP($A42,Despesas_ASPS!$N$5:$T$25,4,FALSE) -> 0 | J42: =VLOOKUP($A42,Despesas_ASPS!$N$5:$T$25,5,FALSE) -> 0 | K42: 0 | L42: =VLOOKUP($A42,Despesas_ASPS!$N$5:$T$25,6,FALSE) -> 0 | M42: 0 | N42: =VLOOKUP($A42,Despesas_ASPS!$N$5:$T$25,7,FALSE) -> 0 | O42: 0 | P42: 0
A43: 304 | B43: VIGILÂNCIA SANITÁRIA (VII) | H43: =VLOOKUP($A43,Despesas_ASPS!$N$5:$T$25,3,FALSE) -> 108,512,728.00 | I43: =VLOOKUP($A43,Despesas_ASPS!$N$5:$T$25,4,FALSE) -> 108,512,728.00 | J43: =VLOOKUP($A43,Despesas_ASPS!$N$5:$T$25,5,FALSE) -> 51,731,428.82 | K43: 47.67 | L43: =VLOOKUP($A43,Despesas_ASPS!$N$5:$T$25,6,FALSE) -> 416,327.00 | M43: 0.38 | N43: =VLOOKUP($A43,Despesas_ASPS!$N$5:$T$25,7,FALSE) -> 130,047.43 | O43: 0.12 | P43: 51,315,101.82
A44: 304.3 | B44: Despesas Correntes | H44: =VLOOKUP($A44,Despesas_ASPS!$N$5:$T$25,3,FALSE) -> 107,154,317.00 | I44: =VLOOKUP($A44,Despesas_ASPS!$N$5:$T$25,4,FALSE) -> 107,154,317.00 | J44: =VLOOKUP($A44,Despesas_ASPS!$N$5:$T$25,5,FALSE) -> 51,731,428.82 | K44: 48.28 | L44: =VLOOKUP($A44,Despesas_ASPS!$N$5:$T$25,6,FALSE) -> 416,327.00 | M44: 0.39 | N44: =VLOOKUP($A44,Despesas_ASPS!$N$5:$T$25,7,FALSE) -> 130,047.43 | O44: 0.12 | P44: 51,315,101.82
A45: 304.4 | B45: Despesas de Capital | H45: =VLOOKUP($A45,Despesas_ASPS!$N$5:$T$25,3,FALSE) -> 1,358,411.00 | I45: =VLOOKUP($A45,Despesas_ASPS!$N$5:$T$25,4,FALSE) -> 1,358,411.00 | J45: =VLOOKUP($A45,Despesas_ASPS!$N$5:$T$25,5,FALSE) -> 0 | K45: 0 | L45: =VLOOKUP($A45,Despesas_ASPS!$N$5:$T$25,6,FALSE) -> 0 | M45: 0 | N45: =VLOOKUP($A45,Despesas_ASPS!$N$5:$T$25,7,FALSE) -> 0 | O45: 0 | P45: 0
A46: 305 | B46: VIGILÂNCIA EPIDEMIOLÓGICA (VIII) | H46: =VLOOKUP($A46,Despesas_ASPS!$N$5:$T$25,3,FALSE) -> 0 | I46: =VLOOKUP($A46,Despesas_ASPS!$N$5:$T$25,4,FALSE) -> 0 | J46: =VLOOKUP($A46,Despesas_ASPS!$N$5:$T$25,5,FALSE) -> 0 | K46: 0 | L46: =VLOOKUP($A46,Despesas_ASPS!$N$5:$T$25,6,FALSE) -> 0 | M46: 0 | N46: =VLOOKUP($A46,Despesas_ASPS!$N$5:$T$25,7,FALSE) -> 0 | O46: 0 | P46: 0
A47: 305.3 | B47: Despesas Correntes | H47: =VLOOKUP($A47,Despesas_ASPS!$N$5:$T$25,3,FALSE) -> 0 | I47: =VLOOKUP($A47,Despesas_ASPS!$N$5:$T$25,4,FALSE) -> 0 | J47: =VLOOKUP($A47,Despesas_ASPS!$N$5:$T$25,5,FALSE) -> 0 | K47: 0 | L47: =VLOOKUP($A47,Despesas_ASPS!$N$5:$T$25,6,FALSE) -> 0 | M47: 0 | N47: =VLOOKUP($A47,Despesas_ASPS!$N$5:$T$25,7,FALSE) -> 0 | O47: 0 | P47: 0
A48: 305.4 | B48: Despesas de Capital | H48: =VLOOKUP($A48,Despesas_ASPS!$N$5:$T$25,3,FALSE) -> 0 | I48: =VLOOKUP($A48,Despesas_ASPS!$N$5:$T$25,4,FALSE) -> 0 | J48: =VLOOKUP($A48,Despesas_ASPS!$N$5:$T$25,5,FALSE) -> 0 | K48: 0 | L48: =VLOOKUP($A48,Despesas_ASPS!$N$5:$T$25,6,FALSE) -> 0 | M48: 0 | N48: =VLOOKUP($A48,Despesas_ASPS!$N$5:$T$25,7,FALSE) -> 0 | O48: 0 | P48: 0
A49: 306 | B49: ALIMENTAÇÃO E NUTRIÇÃO (IX) | H49: =VLOOKUP($A49,Despesas_ASPS!$N$5:$T$25,3,FALSE) -> 0 | I49: =VLOOKUP($A49,Despesas_ASPS!$N$5:$T$25,4,FALSE) -> 0 | J49: =VLOOKUP($A49,Despesas_ASPS!$N$5:$T$25,5,FALSE) -> 0 | K49: 0 | L49: =VLOOKUP($A49,Despesas_ASPS!$N$5:$T$25,6,FALSE) -> 0 | M49: 0 | N49: =VLOOKUP($A49,Despesas_ASPS!$N$5:$T$25,7,FALSE) -> 0 | O49: 0 | P49: 0
A50: 306.3 | B50: Despesas Correntes | H50: =VLOOKUP($A50,Despesas_ASPS!$N$5:$T$25,3,FALSE) -> 0 | I50: =VLOOKUP($A50,Despesas_ASPS!$N$5:$T$25,4,FALSE) -> 0 | J50: =VLOOKUP($A50,Despesas_ASPS!$N$5:$T$25,5,FALSE) -> 0 | K50: 0 | L50: =VLOOKUP($A50,Despesas_ASPS!$N$5:$T$25,6,FALSE) -> 0 | M50: 0 | N50: =VLOOKUP($A50,Despesas_ASPS!$N$5:$T$25,7,FALSE) -> 0 | O50: 0 | P50: 0
A51: 306.4 | B51: Despesas de Capital | H51: =VLOOKUP($A51,Despesas_ASPS!$N$5:$T$25,3,FALSE) -> 0 | I51: =VLOOKUP($A51,Despesas_ASPS!$N$5:$T$25,4,FALSE) -> 0 | J51: =VLOOKUP($A51,Despesas_ASPS!$N$5:$T$25,5,FALSE) -> 0 | K51: 0 | L51: =VLOOKUP($A51,Despesas_ASPS!$N$5:$T$25,6,FALSE) -> 0 | M51: 0 | N51: =VLOOKUP($A51,Despesas_ASPS!$N$5:$T$25,7,FALSE) -> 0 | O51: 0 | P51: 0
A52: Outras | B52: OUTRAS SUBFUNÇÕES (X) | H52: =VLOOKUP($A52,Despesas_ASPS!$N$5:$T$25,3,FALSE) -> 3,714,476,217.00 | I52: =VLOOKUP($A52,Despesas_ASPS!$N$5:$T$25,4,FALSE) -> 3,714,474,217.00 | J52: =VLOOKUP($A52,Despesas_ASPS!$N$5:$T$25,5,FALSE) -> 1,560,628,338.20 | K52: 42.01 | L52: =VLOOKUP($A52,Despesas_ASPS!$N$5:$T$25,6,FALSE) -> 497,261,357.98 | M52: 13.39 | N52: =VLOOKUP($A52,Despesas_ASPS!$N$5:$T$25,7,FALSE) -> 470,732,087.08 | O52: 12.67 | P52: 1,063,366,980.22
A53: Outras.3 | B53: Despesas Correntes | H53: =VLOOKUP($A53,Despesas_ASPS!$N$5:$T$25,3,FALSE) -> 3,704,933,694.00 | I53: =VLOOKUP($A53,Despesas_ASPS!$N$5:$T$25,4,FALSE) -> 3,704,966,568.00 | J53: =VLOOKUP($A53,Despesas_ASPS!$N$5:$T$25,5,FALSE) -> 1,560,561,103.28 | K53: 42.12 | L53: =VLOOKUP($A53,Despesas_ASPS!$N$5:$T$25,6,FALSE) -> 497,261,357.98 | M53: 13.42 | N53: =VLOOKUP($A53,Despesas_ASPS!$N$5:$T$25,7,FALSE) -> 470,732,087.08 | O53: 12.71 | P53: 1,063,299,745.30
A54: Outras.4 | B54: Despesas de Capital | H54: =VLOOKUP($A54,Despesas_ASPS!$N$5:$T$25,3,FALSE) -> 9,542,523.00 | I54: =VLOOKUP($A54,Despesas_ASPS!$N$5:$T$25,4,FALSE) -> 9,507,649.00 | J54: =VLOOKUP($A54,Despesas_ASPS!$N$5:$T$25,5,FALSE) -> 67,234.92 | K54: 0.71 | L54: =VLOOKUP($A54,Despesas_ASPS!$N$5:$T$25,6,FALSE) -> 0 | M54: 0 | N54: =VLOOKUP($A54,Despesas_ASPS!$N$5:$T$25,7,FALSE) -> 0 | O54: 0 | P54: 67,234.92
B55: TOTAL (XI) = (IV + V + VI + VII + VIII + IX + X) | H55: =SUM(H34,H37,H40,H43,H46,H49,H52) -> 18,367,655,908.00 | I55: =SUM(I34,I37,I40,I43,I46,I49,I52) -> 18,367,106,578.96 | J55: =SUM(J34,J37,J40,J43,J46,J49,J52) -> 7,313,533,436.48 | K55: =IFERROR(J55/I55*100,0) -> 39.82 | L55: =SUM(L34,L37,L40,L43,L46,L49,L52) -> 2,716,940,479.38 | M55: =IFERROR(L55/I55*100,0) -> 14.79 | N55: =SUM(N34,N37,N40,N43,N46,N49,N52) -> 2,597,884,034.84 | O55: 14.14 | P55: =SUM(P34,P37,P40,P43,P46,P49,P52) -> 4,596,592,957.10
B58: APURAÇÃO DO CUMPRIMENTO DO LIMITE MÍNIMO PARA APLICAÇÃO EM ASPS | K58: DESPESAS EMPENHADAS (d) | M58: DESPESAS LIQUIDADAS (e) | O58: DESPESAS PAGAS (f)
B59: Total das Despesas com ASPS (XII) = (XI) | K59: =J55 -> 7,313,533,436.48 | M59: =L55 -> 2,716,940,479.38 | O59: =N55 -> 2,597,884,034.84
B60: (-) Restos a Pagar Não Processados Inscritos Indevidamente no Exercício sem Disponibilidade Financeira (XIII) | K60: =$O88 -> 0 | M60: =$O88 -> 0 | O60: =$O88 -> 0
B61: (-) Despesas Custeadas com Recursos Vinculados à Parcela do Percentual Mínimo que não foi Aplicada em ASPS em Exercícios Anteriores (XIV) | K61: =K93 -> 0 | M61: =M93 -> 0 | O61: =O93 -> 0
B62: (-) Despesas Custeadas com Disponibilidade de Caixa Vinculada aos Restos a Pagar Cancelados (XV) | I62: , | K62: =K94 -> 0 | M62: =M94 -> 0 | O62: =O94 -> 0
B63: (=) VALOR APLICADO EM ASPS (XVI) = (XII - XIII - XIV - XV) | K63: =K59-K60-K61-K62 -> 7,313,533,436.48 | M63: =M59-M60-M61-M62 -> 2,716,940,479.38 | O63: =O59-O60-O61-O62 -> 2,597,884,034.84
B64: Despesa Mínima a ser Aplicada em ASPS (XVII) = (III) x 15% (LC 141/2012) | K64: 0 | M64: =L30*15% -> 2,527,675,630.23 | O64: 0
B65: Despesa Mínima a ser Aplicada em ASPS (XVII) = (III) x % (Lei Orgânica Municipal) | O65: 0
B66: Diferença entre o Valor Aplicado e a Despesa Mínima a ser Aplicada (XVIII) = (XVI (h ou i ) - XVII)1 | K66: 0 | M66: =M63-M64 -> 189,264,849.15 | O66: 0
B67: Limite não Cumprido (XIX) = (XVIII) (Quando valor for inferior a zero) | M67: =IF(M66<0,M66,0) -> 0 | O67: 0
B68: PERCENTUAL DA RECEITA DE IMPOSTOS E TRANSFERÊNCIAS CONSTITUCIONAIS E LEGAIS APLICADO EM ASPS1 (XVI / III)*100 (mínimo de 15%conforme LC nº 141/2012 ou % da Lei Orgânica Municipal) | M68: =M63/L30 -> 16.12%
B70: CONTROLE DO VALOR REFERENTE AO PERCENTUAL MÍNIMO NÃO CUMPRIDO EM EXERCÍCIOS ANTERIORES PARA FINS DE APLICAÇÃO DOS RECURSOS VINCULADOS CONFORME ARTIGOS 25 E 26 DA LC 141/2012 | J70: LIMITE NÃO CUMPRIDO
J71: Saldo Inicial (no exercicio atual) (h) | L71: Despesas Custeadas no Exercício de Referência | O71: Saldo Final (não aplicado)¹ (l = h - (i ou j))
L72: Empenhadas (i) | M72: Liquidadas (j) | N72: Pagas (k)
B73: Diferença de limite não cumprido em 2023 (saldo final = XIXd) | J73: 0 | L73: 0 | M73: 0 | N73: 0 | O73: 0
B74: Diferença de limite não cumprido em 2022 (saldo inicial igual ao saldo final do demonstrativo do exercício anterior) | J74: 0 | L74: 0 | M74: 0 | N74: 0 | O74: 0
B75: Diferença de limite não cumprido em Exercícios Anteriores (saldo inicial igual ao saldo final do demonstrativo do exercício anterior) | J75: 0 | L75: 0 | M75: 0 | N75: 0 | O75: 0
B76: TOTAL DA DIFERENÇA DE LIMITE NÃO CUMPRIDO EM EXERCÍCIOS ANTERIORES (XX) | J76: =SUM(J73:J75) -> 0 | L76: =SUM(L73:L75) -> 0 | M76: =SUM(M73:M75) -> 0 | N76: =SUM(N73:N75) -> 0 | O76: 0
B78: EXECUÇÃO DE RESTOS A PAGAR
A79: MDF 14ª ed.: Os valores devem ser demonstrados por exercício de inscrição em restos a pagar até o quarto exercício anterior ao de referência e os valores correspondentes a períodos anteriores (do quinto exercício anterior ao de referência para trás) devem ser demonstrados na linha de somatório de exercícios anteriores. | B79: EXERCÍCIO DO EMPENHO2 | C79: Valor Mínimo para aplicação em ASPS (m) | E79: Valor aplicado em ASPS no exercício (n) | F79: Valor aplicado além do limite mínimo (o) = (n - m), se < 0, então (o) = 0 | G79: Total inscrito em RP no exercício (p) | H79: RPNP Inscritos Indevidamente no Exercício sem Disponibilidade Financeira q = (XIIId) | I79: Valor inscrito em RP considerado no Limite (r) = (p - (o + q)) se < 0, então (r) = (0) | J79: Total de RP pagos (s) | K79: Total de RP a pagar (t) | M79: Total de RP cancelados ou prescritos (u) | O79: Diferença entre o valor aplicado além do limite e o total de RP cancelados (v) = ((o + q) - u))
A80: Acompanhamento de Restos a Pagar - SOF (Execução Orç) | B80: Empenhos de 2024 | C80: 11,542,872,922.33 | E80: 18,550,376,342.94 | F80: =IF(E80-C80<0, 0, E80-C80) -> 7,007,503,420.61 | G80: =RP_Consolidado!B36 -> 534,794,020.96 | H80: 0 | I80: =IF(G80-(F80+H80)<0, 0, G80-(F80+H80)) -> 0 | J80: =RP_Consolidado!C36 -> 364,905,916.24 | K80: =RP_Consolidado!D36 -> 33,362,902.99 | M80: =RP_Consolidado!E36 -> 136,525,201.73 | O80: =(F80+H80)-M80 -> 6,870,978,218.88
B81: Empenhos de 2023 | C81: 9,827,611,826.72 | E81: 16,771,704,548.55 | F81: 6,944,092,721.83 | G81: =RP_Consolidado!B37 -> 60,482.44 | H81: 0 | I81: =IF(G81-(F81+H81)<0, 0, G81-(F81+H81)) -> 0 | J81: =RP_Consolidado!C37 -> 0 | K81: =RP_Consolidado!D37 -> 60,482.44 | M81: =RP_Consolidado!E37 -> 0 | O81: =(F81+H81)-M81 -> 6,944,092,721.83
B82: Empenhos de 2022 | C82: 9,169,549,735.47 | E82: 14,550,500,211.74 | F82: 5,380,950,476.27 | G82: =RP_Consolidado!B38 -> 32,479.42 | H82: 0 | I82: 0 | J82: =RP_Consolidado!C38 -> 0 | K82: =RP_Consolidado!D38 -> 32,479.42 | M82: =RP_Consolidado!E38 -> 0 | O82: =(F82+H82)-M82 -> 5,380,950,476.27
B83: Empenhos de 2021 | C83: 8,382,243,341.24 | E83: 11,899,121,093.14 | F83: 3,516,877,751.90 | G83: =RP_Consolidado!B39 -> 283,546.52 | H83: 0 | I83: 0 | J83: =RP_Consolidado!C39 -> 0 | K83: =RP_Consolidado!D39 -> 283,546.52 | M83: =RP_Consolidado!E39 -> 0 | O83: =(F83+H83)-M83 -> 3,516,877,751.90
B84: Empenhos de 2020 e anteriores | C84: 6,810,051,380.06 | E84: 9,891,504,285.11 | F84: 3,081,452,905.06 | G84: =RP_Consolidado!B40 -> 200,223.94 | H84: 0 | I84: 0 | J84: =RP_Consolidado!C40 -> 0 | K84: =RP_Consolidado!D40 -> 200,223.94 | M84: =RP_Consolidado!E40 -> 0 | O84: =(F84+H84)-M84 -> 3,081,452,905.06
B86: TOTAL DOS RESTOS A PAGAR CANCELADOS OU PRESCRITOS ATÉ O FINAL DO EXERCÍCIO ATUAL QUE AFETARAM O CUMPRIMENTO DO LIMITE (XXI) (soma dos saldos negativos da coluna "v") | O86: =SUMIF(O80:Q84, "<0", O80:Q84) -> 0
B87: TOTAL DOS RESTOS A PAGAR CANCELADOS OU PRESCRITOS ATÉ O FINAL DO EXERCÍCIO ANTERIOR QUE AFETARAM O CUMPRIMENTO DO LIMITE (XXII) (valor informado no demonstrativo do exercício anterior) | O87: 0
B88: TOTAL DOS RESTOS A PAGAR CANCELADOS OU PRESCRITOS NO EXERCÍCIO ATUAL QUE AFETARAM O CUMPRIMENTO DO LIMITE (XXIII) = (XXI - XXII) (Artigo 24 § 1º e 2º da LC 141/2012) | O88: =O86-O87 -> 0
B90: CONTROLE DE RESTOS A PAGAR CANCELADOS OU PRESCRITOS CONSIDERADOS PARA FINS DE APLICAÇÃO DA DISPONIBILIDADE DE CAIXA CONFORME ARTIGO 24§ 1º e 2º DA LC 141/2012 | J90: RESTOS A PAGAR CANCELADOS OU PRESCRITOS
J91: Saldo Inicial (w) | L91: Despesas Custeadas no Exercício de Referência | O91: Saldo Final (não aplicado)1 (aa) = (w - (x ou y))
L92: Empenhadas (x) | M92: Liquidadas (y) | N92: Pagas (z)
B93: Restos a pagar cancelados ou prescritos em 2023 a serem compensados (XXIV) (saldo inicial = XXIII) | J93: =O88 -> 0 | L93: 0 | M93: 0 | N93: 0 | O93: =J93-M93 -> 0
B94: Restos a pagar cancelados ou prescritos em 2022 a serem compensados (XXV) (saldo inicial igual ao saldo final do demonstrativo do exercício anterior) | J94: 0 | L94: 0 | M94: 0 | N94: 0 | O94: =J94-M94 -> 0
B95: Restos a pagar cancelados ou prescritos em exercícios anteriores a serem compensados (XXVI) (saldo inicial igual ao saldo final do demonstrativo do exercício anterior) | J95: 0 | L95: 0 | M95: 0 | N95: 0 | O95: =J95-M95 -> 0
B96: TOTAL DE RESTOS A PAGAR CANCELADOS OU PRESCRITOS A COMPENSAR (XXVII) | J96: 0 | L96: 0 | M96: 0 | N96: 0 | O96: =J96-M96 -> 0
B98: RECEITAS ADICIONAIS PARA O FINANCIAMENTO DA SAÚDE NÃO COMPUTADAS NO CÁLCULO DO MÍNIMO | H98: PREVISÃO INICIAL | J98: PREVISÃO ATUALIZADA (a) | L98: RECEITAS REALIZADAS
L99: Até o Bimestre (b) | O99: % (b/a)x100
B100: RECEITAS DE TRANSFERÊNCIAS PARA A SAÚDE (XXVIII) | H100: =VLOOKUP($B100,Receita_Consolidada!$B:$F,2,0) -> 3,756,047,789.00 | J100: =VLOOKUP($B100,Receita_Consolidada!$B:$F,3,0) -> 3,756,046,589.00 | L100: =VLOOKUP($B100,Receita_Consolidada!$B:$F,4,0) -> 638,554,767.69 | O100: =L100/J100*100 -> 17.00
B101: Proveniente da União | H101: =VLOOKUP($B101,Receita_Consolidada!$B:$F,2,0) -> 3,393,012,989.00 | J101: =VLOOKUP($B101,Receita_Consolidada!$B:$F,3,0) -> 3,393,012,989.00 | L101: =VLOOKUP($B101,Receita_Consolidada!$B:$F,4,0) -> 559,695,901.49 | O101: =L101/J101*100 -> 16.50
B102: Proveniente dos Estados | H102: =VLOOKUP($B102,Receita_Consolidada!$B:$F,2,0) -> 363,034,800.00 | J102: =VLOOKUP($B102,Receita_Consolidada!$B:$F,3,0) -> 363,033,600.00 | L102: =VLOOKUP($B102,Receita_Consolidada!$B:$F,4,0) -> 78,858,866.20 | O102: =IFERROR(L102/J102*100,0) -> 21.72
B103: Proveniente de outros Municípios | H103: =VLOOKUP($B103,Receita_Consolidada!$B:$F,2,0) -> 0 | J103: =VLOOKUP($B103,Receita_Consolidada!$B:$F,3,0) -> 0 | L103: =VLOOKUP($B103,Receita_Consolidada!$B:$F,4,0) -> 0 | O103: =IFERROR(L103/J103*100,0) -> 0
B104: RECEITA DE OPERAÇÕES DE CRÉDITO INTERNAS E EXTERNAS VINCULADAS A SAÚDE (XXIX) | H104: =VLOOKUP($B104,Receita_Consolidada!$B:$F,2,0) -> 0 | J104: =VLOOKUP($B104,Receita_Consolidada!$B:$F,3,0) -> 0 | L104: =VLOOKUP($B104,Receita_Consolidada!$B:$F,4,0) -> 17,473.29 | O104: =IFERROR(L104/J104*100,0) -> 0
B105: OUTRAS RECEITAS (XXX) | H105: =VLOOKUP($B105,Receita_Consolidada!$B:$F,2,0) -> 23,840,033.00 | J105: =VLOOKUP($B105,Receita_Consolidada!$B:$F,3,0) -> 23,840,033.00 | L105: =VLOOKUP($B105,Receita_Consolidada!$B:$F,4,0) -> 7,330,982.99 | O105: =IFERROR(L105/J105*100,0) -> 30.75
B106: TOTAL DE RECEITAS ADICIONAIS PARA FINANCIAMENTO DA SAÚDE (XXXI) = (XXVIII + XXIX + XXX) | H106: =H100+H104+H105 -> 3,779,887,822.00 | J106: =H106 -> 3,779,887,822.00 | L106: =L100+L104+L105 -> 645,903,223.97 | O106: =L106/J106*100 -> 17.09
B108: DESPESAS COM SAÚDE NÃO COMPUTADAS NO CÁLCULO DO MÍNIMO
B109: DESPESAS COM SAUDE POR SUBFUNÇÕES E CATEGORIA ECONÔMICA NÃO COMPUTADAS NO CÁLCULO DO MÍNIMO | H109: DOTAÇÃO INICIAL | I109: DOTAÇÃO ATUALIZADA (c) | J109: DESPESAS EMPENHADAS | L109: DESPESAS LIQUIDADAS | N109: DESPESAS PAGAS | P109: Inscritas em Restos a Pagar Não Processados (g)
J110: Até o bimestre (d) | K110: % (d/c) x 100 | L110: Até o bimestre (e) | M110: % (e/c) x 100 | N110: Até o bimestre (f) | O110: % (f/c) x 100
A111: 301 | B111: ATENÇÃO BÁSICA (XXXII) | H111: =VLOOKUP($A111,OutrasDespesas!$N:$T,3,FALSE) -> 1,608,755,340.00 | I111: =VLOOKUP($A111,OutrasDespesas!$N:$T,4,FALSE) -> 1,562,197,766.66 | J111: =VLOOKUP($A111,OutrasDespesas!$N:$T,5,FALSE) -> 252,995,557.66 | K111: =J111/I111*100 -> 16.19 | L111: =VLOOKUP($A111,OutrasDespesas!$N:$T,6,FALSE) -> 162,624,179.43 | M111: =IFERROR(L111/I111*100,0) -> 10.41 | N111: =VLOOKUP($A111,OutrasDespesas!$N:$T,7,FALSE) -> 160,482,947.59 | O111: =IFERROR(N111/I111*100,0) -> 10.27 | P111: =J111-L111 -> 90,371,378.23
A112: 301.3 | B112: Despesas Correntes | H112: =VLOOKUP($A112,OutrasDespesas!$N:$T,3,FALSE) -> 1,371,704,400.00 | I112: =VLOOKUP($A112,OutrasDespesas!$N:$T,4,FALSE) -> 1,422,728,558.26 | J112: =VLOOKUP($A112,OutrasDespesas!$N:$T,5,FALSE) -> 252,995,557.66 | K112: =J112/I112*100 -> 17.78 | L112: =VLOOKUP($A112,OutrasDespesas!$N:$T,6,FALSE) -> 162,624,179.43 | M112: =IFERROR(L112/I112*100,0) -> 11.43 | N112: =VLOOKUP($A112,OutrasDespesas!$N:$T,7,FALSE) -> 160,482,947.59 | O112: =IFERROR(N112/I112*100,0) -> 11.28 | P112: =J112-L112 -> 90,371,378.23
A113: 301.4 | B113: Despesas de Capital | H113: =VLOOKUP($A113,OutrasDespesas!$N:$T,3,FALSE) -> 237,050,940.00 | I113: =VLOOKUP($A113,OutrasDespesas!$N:$T,4,FALSE) -> 139,469,208.40 | J113: =VLOOKUP($A113,OutrasDespesas!$N:$T,5,FALSE) -> 0 | K113: 0 | L113: =VLOOKUP($A113,OutrasDespesas!$N:$T,6,FALSE) -> 0 | M113: 0 | N113: =VLOOKUP($A113,OutrasDespesas!$N:$T,7,FALSE) -> 0 | O113: 0 | P113: =J113-L113 -> 0
A114: 302 | B114: ASSISTÊNCIA HOSPITALAR E AMBULATORIAL (XXXIII) | H114: =VLOOKUP($A114,OutrasDespesas!$N:$T,3,FALSE) -> 2,250,408,867.00 | I114: =VLOOKUP($A114,OutrasDespesas!$N:$T,4,FALSE) -> 2,482,317,727.28 | J114: =VLOOKUP($A114,OutrasDespesas!$N:$T,5,FALSE) -> 1,211,202,700.94 | K114: 48.79 | L114: =VLOOKUP($A114,OutrasDespesas!$N:$T,6,FALSE) -> 245,489,469.16 | M114: 9.89 | N114: =VLOOKUP($A114,OutrasDespesas!$N:$T,7,FALSE) -> 233,440,023.97 | O114: 9.40 | P114: 965,713,231.78
A115: 302.3 | B115: Despesas Correntes | H115: =VLOOKUP($A115,OutrasDespesas!$N:$T,3,FALSE) -> 2,198,935,187.00 | I115: =VLOOKUP($A115,OutrasDespesas!$N:$T,4,FALSE) -> 2,314,901,486.31 | J115: =VLOOKUP($A115,OutrasDespesas!$N:$T,5,FALSE) -> 1,210,840,218.94 | K115: 52.31 | L115: =VLOOKUP($A115,OutrasDespesas!$N:$T,6,FALSE) -> 245,489,469.16 | M115: 10.60 | N115: =VLOOKUP($A115,OutrasDespesas!$N:$T,7,FALSE) -> 233,440,023.97 | O115: 10.08 | P115: 965,350,749.78
A116: 302.4 | B116: Despesas de Capital | H116: =VLOOKUP($A116,OutrasDespesas!$N:$T,3,FALSE) -> 51,473,680.00 | I116: =VLOOKUP($A116,OutrasDespesas!$N:$T,4,FALSE) -> 167,416,240.97 | J116: =VLOOKUP($A116,OutrasDespesas!$N:$T,5,FALSE) -> 362,482.00 | K116: 0.22 | L116: =VLOOKUP($A116,OutrasDespesas!$N:$T,6,FALSE) -> 0 | M116: 0 | N116: =VLOOKUP($A116,OutrasDespesas!$N:$T,7,FALSE) -> 0 | O116: 0 | P116: 362,482.00
A117: 303 | B117: SUPORTE PROFILÁTICO E TERAPÊUTICO (XXXIV) | H117: =VLOOKUP($A117,OutrasDespesas!$N:$T,3,FALSE) -> 159,906,600.00 | I117: =VLOOKUP($A117,OutrasDespesas!$N:$T,4,FALSE) -> 171,708,107.36 | J117: =VLOOKUP($A117,OutrasDespesas!$N:$T,5,FALSE) -> 59,965,720.92 | K117: 34.92 | L117: =VLOOKUP($A117,OutrasDespesas!$N:$T,6,FALSE) -> 6,506,783.78 | M117: 3.79 | N117: =VLOOKUP($A117,OutrasDespesas!$N:$T,7,FALSE) -> 1,640,541.58 | O117: 0.96 | P117: 53,458,937.14
A118: 303.3 | B118: Despesas Correntes | H118: =VLOOKUP($A118,OutrasDespesas!$N:$T,3,FALSE) -> 159,906,600.00 | I118: =VLOOKUP($A118,OutrasDespesas!$N:$T,4,FALSE) -> 171,708,107.36 | J118: =VLOOKUP($A118,OutrasDespesas!$N:$T,5,FALSE) -> 59,965,720.92 | K118: 34.92 | L118: =VLOOKUP($A118,OutrasDespesas!$N:$T,6,FALSE) -> 6,506,783.78 | M118: 3.79 | N118: =VLOOKUP($A118,OutrasDespesas!$N:$T,7,FALSE) -> 1,640,541.58 | O118: 0.96 | P118: 53,458,937.14
A119: 303.4 | B119: Despesas de Capital | H119: =VLOOKUP($A119,OutrasDespesas!$N:$T,3,FALSE) -> 0 | I119: =VLOOKUP($A119,OutrasDespesas!$N:$T,4,FALSE) -> 0 | J119: =VLOOKUP($A119,OutrasDespesas!$N:$T,5,FALSE) -> 0 | K119: =IFERROR(J119/I119*100,0) -> 0 | L119: =VLOOKUP($A119,OutrasDespesas!$N:$T,6,FALSE) -> 0 | M119: 0 | N119: =VLOOKUP($A119,OutrasDespesas!$N:$T,7,FALSE) -> 0 | O119: 0 | P119: 0
A120: 304 | B120: VIGILÂNCIA SANITÁRIA (XXXV) | H120: =VLOOKUP($A120,OutrasDespesas!$N:$T,3,FALSE) -> 194,560,792.00 | I120: =VLOOKUP($A120,OutrasDespesas!$N:$T,4,FALSE) -> 273,318,060.14 | J120: =VLOOKUP($A120,OutrasDespesas!$N:$T,5,FALSE) -> 63,162,637.80 | K120: 23.11 | L120: =VLOOKUP($A120,OutrasDespesas!$N:$T,6,FALSE) -> 18,144,352.03 | M120: 6.64 | N120: =VLOOKUP($A120,OutrasDespesas!$N:$T,7,FALSE) -> 16,981,171.28 | O120: 6.21 | P120: 45,018,285.77
A121: 304.3 | B121: Despesas Correntes | H121: =VLOOKUP($A121,OutrasDespesas!$N:$T,3,FALSE) -> 185,068,592.00 | I121: =VLOOKUP($A121,OutrasDespesas!$N:$T,4,FALSE) -> 263,276,531.10 | J121: =VLOOKUP($A121,OutrasDespesas!$N:$T,5,FALSE) -> 63,087,620.90 | K121: 23.96 | L121: =VLOOKUP($A121,OutrasDespesas!$N:$T,6,FALSE) -> 18,144,352.03 | M121: 6.89 | N121: =VLOOKUP($A121,OutrasDespesas!$N:$T,7,FALSE) -> 16,981,171.28 | O121: 6.45 | P121: 44,943,268.87
A122: 304.4 | B122: Despesas de Capital | H122: =VLOOKUP($A122,OutrasDespesas!$N:$T,3,FALSE) -> 9,492,200.00 | I122: =VLOOKUP($A122,OutrasDespesas!$N:$T,4,FALSE) -> 10,041,529.04 | J122: =VLOOKUP($A122,OutrasDespesas!$N:$T,5,FALSE) -> 75,016.90 | K122: 0.75 | L122: =VLOOKUP($A122,OutrasDespesas!$N:$T,6,FALSE) -> 0 | M122: 0 | N122: =VLOOKUP($A122,OutrasDespesas!$N:$T,7,FALSE) -> 0 | O122: 0 | P122: 75,016.90
A123: 305 | B123: VIGILÂNCIA EPIDEMIOLÓGICA (XXXVI) | H123: =VLOOKUP($A123,OutrasDespesas!$N:$T,3,FALSE) -> 0 | I123: =VLOOKUP($A123,OutrasDespesas!$N:$T,4,FALSE) -> 0 | J123: =VLOOKUP($A123,OutrasDespesas!$N:$T,5,FALSE) -> 0 | K123: =IFERROR(J123/I123*100,0) -> 0 | L123: =VLOOKUP($A123,OutrasDespesas!$N:$T,6,FALSE) -> 0 | M123: 0 | N123: =VLOOKUP($A123,OutrasDespesas!$N:$T,7,FALSE) -> 0 | O123: 0 | P123: 0
A124: 305.3 | B124: Despesas Correntes | H124: =VLOOKUP($A124,OutrasDespesas!$N:$T,3,FALSE) -> 0 | I124: =VLOOKUP($A124,OutrasDespesas!$N:$T,4,FALSE) -> 0 | J124: =VLOOKUP($A124,OutrasDespesas!$N:$T,5,FALSE) -> 0 | K124: 0 | L124: =VLOOKUP($A124,OutrasDespesas!$N:$T,6,FALSE) -> 0 | M124: 0 | N124: =VLOOKUP($A124,OutrasDespesas!$N:$T,7,FALSE) -> 0 | O124: 0 | P124: 0
A125: 305.4 | B125: Despesas de Capital | H125: =VLOOKUP($A125,OutrasDespesas!$N:$T,3,FALSE) -> 0 | I125: =VLOOKUP($A125,OutrasDespesas!$N:$T,4,FALSE) -> 0 | J125: =VLOOKUP($A125,OutrasDespesas!$N:$T,5,FALSE) -> 0 | K125: 0 | L125: =VLOOKUP($A125,OutrasDespesas!$N:$T,6,FALSE) -> 0 | M125: 0 | N125: =VLOOKUP($A125,OutrasDespesas!$N:$T,7,FALSE) -> 0 | O125: 0 | P125: 0
A126: 306 | B126: ALIMENTAÇÃO E NUTRIÇÃO (XXXVII) | H126: =VLOOKUP($A126,OutrasDespesas!$N:$T,3,FALSE) -> 0 | I126: =VLOOKUP($A126,OutrasDespesas!$N:$T,4,FALSE) -> 0 | J126: =VLOOKUP($A126,OutrasDespesas!$N:$T,5,FALSE) -> 0 | K126: 0 | L126: =VLOOKUP($A126,OutrasDespesas!$N:$T,6,FALSE) -> 0 | M126: 0 | N126: =VLOOKUP($A126,OutrasDespesas!$N:$T,7,FALSE) -> 0 | O126: 0 | P126: 0
A127: 306.3 | B127: Despesas Correntes | H127: =VLOOKUP($A127,OutrasDespesas!$N:$T,3,FALSE) -> 0 | I127: =VLOOKUP($A127,OutrasDespesas!$N:$T,4,FALSE) -> 0 | J127: =VLOOKUP($A127,OutrasDespesas!$N:$T,5,FALSE) -> 0 | K127: 0 | L127: =VLOOKUP($A127,OutrasDespesas!$N:$T,6,FALSE) -> 0 | M127: 0 | N127: =VLOOKUP($A127,OutrasDespesas!$N:$T,7,FALSE) -> 0 | O127: 0 | P127: 0
A128: 306.4 | B128: Despesas de Capital | H128: =VLOOKUP($A128,OutrasDespesas!$N:$T,3,FALSE) -> 0 | I128: =VLOOKUP($A128,OutrasDespesas!$N:$T,4,FALSE) -> 0 | J128: =VLOOKUP($A128,OutrasDespesas!$N:$T,5,FALSE) -> 0 | K128: 0 | L128: =VLOOKUP($A128,OutrasDespesas!$N:$T,6,FALSE) -> 0 | M128: 0 | N128: =VLOOKUP($A128,OutrasDespesas!$N:$T,7,FALSE) -> 0 | O128: 0 | P128: 0
A129: Outras | B129: OUTRAS SUBFUNÇÕES (XXXVIII) | H129: =VLOOKUP($A129,OutrasDespesas!$N:$T,3,FALSE) -> 371,161,914.00 | I129: =VLOOKUP($A129,OutrasDespesas!$N:$T,4,FALSE) -> 403,684,841.36 | J129: =VLOOKUP($A129,OutrasDespesas!$N:$T,5,FALSE) -> 77,174,289.13 | K129: 19.12 | L129: =VLOOKUP($A129,OutrasDespesas!$N:$T,6,FALSE) -> 48,858,441.19 | M129: 12.10 | N129: =VLOOKUP($A129,OutrasDespesas!$N:$T,7,FALSE) -> 48,222,306.50 | O129: 11.95 | P129: 28,315,847.94
A130: Outras.3 | B130: Despesas Correntes | H130: =VLOOKUP($A130,OutrasDespesas!$N:$T,3,FALSE) -> 366,660,914.00 | I130: =VLOOKUP($A130,OutrasDespesas!$N:$T,4,FALSE) -> 385,424,666.34 | J130: =VLOOKUP($A130,OutrasDespesas!$N:$T,5,FALSE) -> 75,058,592.01 | K130: 19.47 | L130: =VLOOKUP($A130,OutrasDespesas!$N:$T,6,FALSE) -> 48,680,709.68 | M130: 12.63 | N130: =VLOOKUP($A130,OutrasDespesas!$N:$T,7,FALSE) -> 48,209,207.87 | O130: 12.51 | P130: 26,377,882.33
A131: Outras.4 | B131: Despesas de Capital | H131: =VLOOKUP($A131,OutrasDespesas!$N:$T,3,FALSE) -> 4,501,000.00 | I131: =VLOOKUP($A131,OutrasDespesas!$N:$T,4,FALSE) -> 18,260,175.02 | J131: =VLOOKUP($A131,OutrasDespesas!$N:$T,5,FALSE) -> 2,115,697.12 | K131: 11.59 | L131: =VLOOKUP($A131,OutrasDespesas!$N:$T,6,FALSE) -> 177,731.51 | M131: 0.97 | N131: =VLOOKUP($A131,OutrasDespesas!$N:$T,7,FALSE) -> 13,098.63 | O131: 0.07 | P131: 1,937,965.61
B132: TOTAL DAS DESPESAS NÃO COMPUTADAS NO CÁLCULO DO MÍNIMO (XXXIX) = (XXXII + XXXIII + XXXIV + XXXV + XXXVI + XXXVII + XXXVIII) | H132: =SUM(H111,H114,H117,H120,H123,H126,H129) -> 4,584,793,513.00 | I132: =SUM(I111,I114,I117,I120,I123,I126,I129) -> 4,893,226,502.80 | J132: =SUM(J111,J114,J117,J120,J123,J126,J129) -> 1,664,500,906.45 | K132: =J132/I132*100 -> 34.02 | L132: =SUM(L111,L114,L117,L120,L123,L126,L129) -> 481,623,225.59 | M132: =L132/I132*100 -> 9.84 | N132: =SUM(N111,N114,N117,N120,N123,N126,N129) -> 460,766,990.92 | O132: =N132/I132*100 -> 9.42 | P132: =SUM(P111,P114,P117,P120,P123,P126,P129) -> 1,182,877,680.86
B134: DESPESAS TOTAIS COM SAÚDE | H134: DOTAÇÃO INICIAL | I134: DOTAÇÃO ATUALIZADA (c) | J134: DESPESAS EMPENHADAS | L134: DESPESAS LIQUIDADAS | N134: DESPESAS PAGAS | P134: Inscritas em Restos a Pagar Não Processados (g)
B135: (Computadas e não computadas no cálculo do limite mínimo) | J135: Até o bimestre (d) | K135: % (d/c) x 100 | L135: Até o bimestre (e) | M135: % (e/c) x 100 | N135: Até o bimestre (f) | O135: % (f/c) x 100
A136: 301 | B136: ATENÇÃO BÁSICA (XL) = (IV + XXXII) | H136: =VLOOKUP($A136,$A$34:$O$54,8,FALSE)+VLOOKUP($A136,$A$111:$O$131,8,FALSE) -> 9,562,518,786.00 | I136: =VLOOKUP($A136,$A$34:$O$54,9,FALSE)+VLOOKUP($A136,$A$111:$O$131,9,FALSE) -> 9,513,269,825.25 | J136: =VLOOKUP($A136,$A$34:$O$54,10,FALSE)+VLOOKUP($A136,$A$111:$O$131,10,FALSE) -> 2,554,490,922.09 | K136: =J136/I136*100 -> 26.85 | L136: =VLOOKUP($A136,$A$34:$O$54,12,FALSE)+VLOOKUP($A136,$A$111:$O$131,12,FALSE) -> 1,375,504,322.76 | M136: =L136/I136*100 -> 14.46 | N136: =VLOOKUP($A136,$A$34:$O$54,14,FALSE)+VLOOKUP($A136,$A$111:$O$131,14,FALSE) -> 1,309,199,771.07 | O136: =N136/I136*100 -> 13.76 | P136: =J136-L136 -> 1,178,986,599.33
A137: 302 | B137: ASSISTÊNCIA HOSPITALAR E AMBULATORIAL (XLI) = (V + XXXIII) | H137: 8,387,921,838.00 | I137: 8,621,974,756.65 | J137: 4,441,191,013.48 | K137: =J137/I137*100 -> 51.51 | L137: 1,236,569,163.17 | M137: =L137/I137*100 -> 14.34 | N137: 1,210,949,921.36 | O137: =N137/I137*100 -> 14.04 | P137: =J137-L137 -> 3,204,621,850.31
A138: 303 | B138: SUPORTE PROFILÁTICO E TERAPÊUTICO (XLII) = (VI + XXXIV) | H138: 613,297,146.00 | I138: 625,098,653.36 | J138: 229,655,713.41 | K138: =J138/I138*100 -> 36.74 | L138: 21,809,740.84 | M138: =L138/I138*100 -> 3.49 | N138: 2,435,721.04 | O138: =N138/I138*100 -> 0.39 | P138: 207,845,972.57
A139: 304 | B139: VIGILÂNCIA SANITÁRIA (XLIII) = (VII + XXXV) | H139: 303,073,520.00 | I139: 381,830,788.14 | J139: 114,894,066.62 | K139: =J139/I139*100 -> 30.09 | L139: 18,560,679.03 | M139: =L139/I139*100 -> 4.86 | N139: 17,111,218.71 | O139: =N139/I139*100 -> 4.48 | P139: 96,333,387.59
A140: 305 | B140: VIGILÂNCIA EPIDEMIOLÓGICA (XLIV) = (VIII + XXXVI) | H140: 0 | I140: 0 | J140: 0 | K140: =IFERROR(J140/I140*100,0) -> 0 | L140: 0 | M140: =IFERROR(L140/I140*100,0) -> 0 | N140: 0 | O140: =IFERROR(N140/I140*100,0) -> 0 | P140: 0
A141: 306 | B141: ALIMENTAÇÃO E NUTRIÇÃO (XLV) = (IX + XXXVII) | H141: 0 | I141: 0 | J141: 0 | K141: =IFERROR(J141/I141*100,0) -> 0 | L141: 0 | M141: =IFERROR(L141/I141*100,0) -> 0 | N141: 0 | O141: =IFERROR(N141/I141*100,0) -> 0 | P141: 0
A142: Outras | B142: OUTRAS SUBFUNÇÕES (XLVI) = (X + XXXVIII) | H142: 4,085,638,131.00 | I142: 4,118,159,058.36 | J142: 1,637,802,627.33 | K142: =IFERROR(J142/I142*100,0) -> 39.77 | L142: 546,119,799.17 | M142: =IFERROR(L142/I142*100,0) -> 13.26 | N142: 518,954,393.58 | O142: =IFERROR(N142/I142*100,0) -> 12.60 | P142: 1,091,682,828.16
B143: TOTAL DAS DESPESAS COM SAÚDE (XLVII) = (XI + XXXIX) | H143: =SUM(H136:H142) -> 22,952,449,421.00 | I143: =SUM(I136:I142) -> 23,260,333,081.76 | J143: 8,978,034,342.93 | K143: =IFERROR(J143/I143*100,0) -> 38.60 | L143: 3,198,563,704.97 | M143: =L143/I143*100 -> 13.75 | N143: 3,058,651,025.76 | O143: =IFERROR(N143/I143*100,0) -> 13.15 | P143: =SUM(P136:P142) -> 5,779,470,637.96
B144: FONTE: Sistema SOF, Secretaria Municipal da Fazenda. Data da emissão: 20/03/2025. Os dados da despesa são extraídos do Cubo do SOF. Os Dados da Receita são extraídos do SOF: Boletim da Receita por Fonte e Órgão PMSP - [SOR051R].
B146: Notas:
B147: 1 Nos cinco primeiros bimestres do exercício, o acompanhamento será feito com base na despesa liquidada. No último bimestre do exercício, o valor deverá corresponder ao total da despesa empenhada.
B148: 2 Até o exercício de 2018, o controle da execução dos restos a pagar considerava apenas os valores dos restos a pagar não processados (regra antiga). A partir do exercício de 2019, o controle da execução dos restos a pagar considera os restos a pagar processados e não processados.
B150: MONICA MIYUKI OBARA Assessora IV CRC 1SP354288 | I150: SAMUEL RALIZE DE GODOY Coordenador do Processo Orçamentário Municipal | O150: EDSON APARECIDO DOS SANTOS Secretário de Governo Municipal
B156: Variação 1 | H156: =H143=SUM(H132,H55) -> TRUE | I156: =I143=SUM(I132,I55) -> TRUE | J156: =J143=SUM(J132,J55) -> TRUE | L156: =L143=SUM(L132,L55) -> TRUE | N156: =N143=SUM(N132,N55) -> TRUE
B157: Variação 1a | H157: =H143-SUM(H132,H55) -> 0 | I157: =I143-SUM(I132,I55) -> 0 | J157: =J143-SUM(J132,J55) -> 0 | L157: =L143-SUM(L132,L55) -> 0 | N157: =N143-SUM(N132,N55) -> 0

Sheet BD_Receita_PMSP_1BIM
A1: COD_ORIG_RCTA_F | B1: TXT_COD_RCTA_RESU | C1: COD_FONT_REC | D1: TXT_FONT_REC | E1: COD_ORG_EMP | F1: TXT_ORG_EMP | G1: COD_UNID_ORCM_SOF | H1: TXT_UNID_ORCM | I1: COD_TIP_CTA_RCTA | J1: VAL_PRVI_RCTA_ATUL | K1: VAL_REAZ_MENS | L1: PERC_VAL_REAZ_MENS | M1: VAL_REAZ_ATE_MES | N1: PERC_VAL_REAZ_ATE_MES | O1: VAL_PRVI_RCTA_INI | P1: FONTE_PADRONIZADO | Q1: RECEITA_5 | R1: RECEITA_6 | S1: FONTE_PMSP
A2: 1.0.0.0.00.0.0.00.00.000.000.00.00.000 | B2: RECEITAS CORRENTES | I2: Sintética | J2: 9.832191035e+10 | K2: 1.062608363e+10 | L2: 10.81 | M2: 1.954232377e+10 | N2: 19.88 | O2: 98320660094 | P2: =MID(Receita_PMSP_Tabela5[[#This Row],[COD_FONT_REC]], 6, 3) ->  | Q2: =LEFT(Receita_PMSP_Tabela5[[#This Row],[COD_ORIG_RCTA_F]], 10) -> 1.0.0.0.00 | R2: =LEFT(Receita_PMSP_Tabela5[[#This Row],[COD_ORIG_RCTA_F]], 12) -> 1.0.0.0.00.0 | S2: =LEFT(Receita_PMSP_Tabela5[[#This Row],[COD_FONT_REC]], 2) -> 
A3: 1.1.0.0.00.0.0.00.00.000.000.00.00.000 | B3: IMPOSTOS, TAXAS E CONTRIBUIÇÕES DE MELHORIA | I3: Sintética | J3: 65647186855 | K3: 7785576733 | L3: 11.86 | M3: 1.282024507e+10 | N3: 19.53 | O3: 65647186855 | P3: =MID(Receita_PMSP_Tabela5[[#This Row],[COD_FONT_REC]], 6, 3) ->  | Q3: =LEFT(Receita_PMSP_Tabela5[[#This Row],[COD_ORIG_RCTA_F]], 10) -> 1.1.0.0.00 | R3: =LEFT(Receita_PMSP_Tabela5[[#This Row],[COD_ORIG_RCTA_F]], 12) -> 1.1.0.0.00.0 | S3: =LEFT(Receita_PMSP_Tabela5[[#This Row],[COD_FONT_REC]], 2) -> 
A4: 1.1.1.0.00.0.0.00.00.000.000.00.00.000 | B4: IMPOSTOS | I4: Sintética | J4: 65081890808 | K4: 7762834025 | L4: 11.93 | M4: 1.276685269e+10 | N4: 19.62 | O4: 65081890808 | P4: =MID(Receita_PMSP_Tabela5[[#This Row],[COD_FONT_REC]], 6, 3) ->  | Q4: =LEFT(Receita_PMSP_Tabela5[[#This Row],[COD_ORIG_RCTA_F]], 10) -> 1.1.1.0.00 | R4: =LEFT(Receita_PMSP_Tabela5[[#This Row],[COD_ORIG_RCTA_F]], 12) -> 1.1.1.0.00.0 | S4: =LEFT(Receita_PMSP_Tabela5[[#This Row],[COD_FONT_REC]], 2) -> 
A5: 1.1.1.2.00.0.0.00.00.000.000.00.00.000 | B5: IMPOSTOS SOBRE O PATRIMÔNIO | I5: Sintética | J5: 21995465460 | K5: 4334387783 | L5: 19.71 | M5: 5349563823 | N5: 24.32 | O5: 21995465460 | P5: =MID(Receita_PMSP_Tabela5[[#This Row],[COD_FONT_REC]], 6, 3) ->  | Q5: =LEFT(Receita_PMSP_Tabela5[[#This Row],[COD_ORIG_RCTA_F]], 10) -> 1.1.1.2.00 | R5: =LEFT(Receita_PMSP_Tabela5[[#This Row],[COD_ORIG_RCTA_F]], 12) -> 1.1.1.2.00.0 | S5: =LEFT(Receita_PMSP_Tabela5[[#This Row],[COD_FONT_REC]], 2) -> 
A6: 1.1.1.2.50.0.0.00.00.000.000.00.00.000 | B6: IMPOSTO SOBRE A PROPRIEDADE PREDIAL E TERRITORIAL URBANA | I6: Sintética | J6: 17596243214 | K6: 3983867179 | L6: 22.64 | M6: 4700816340 | N6: 26.71 | O6: 17596243214 | P6: =MID(Receita_PMSP_Tabela5[[#This Row],[COD_FONT_REC]], 6, 3) ->  | Q6: =LEFT(Receita_PMSP_Tabela5[[#This Row],[COD_ORIG_RCTA_F]], 10) -> 1.1.1.2.50 | R6: =LEFT(Receita_PMSP_Tabela5[[#This Row],[COD_ORIG_RCTA_F]], 12) -> 1.1.1.2.50.0 | S6: =LEFT(Receita_PMSP_Tabela5[[#This Row],[COD_FONT_REC]], 2) -> 
A7: 1.1.1.2.50.0.1.00.00.000.000.00.00.000 | B7: IMPOSTO SOBRE A PROPRIEDADE PREDIAL E TERRITORIAL URBANA - PRINCIPAL | I7: Sintética | J7: 15697308008 | K7: 3811394039 | L7: 24.28 | M7: 4358517099 | N7: 27.77 | O7: 15697308008 | P7: =MID(Receita_PMSP_Tabela5[[#This Row],[COD_FONT_REC]], 6, 3) ->  | Q7: =LEFT(Receita_PMSP_Tabela5[[#This Row],[COD_ORIG_RCTA_F]], 10) -> 1.1.1.2.50 | R7: =LEFT(Receita_PMSP_Tabela5[[#This Row],[COD_ORIG_RCTA_F]], 12) -> 1.1.1.2.50.0 | S7: =LEFT(Receita_PMSP_Tabela5[[#This Row],[COD_FONT_REC]], 2) -> 
A8: 1.1.1.2.50.0.1.01.00.000.000.00.00.000 | B8: IMPOSTO SOBRE A PROPRIEDADE PREDIAL E TERRITORIAL URBANA | I8: Sintética | J8: 15697308008 | K8: 3811394039 | L8: 24.28 | M8: 4358517099 | N8: 27.77 | O8: 15697308008 | P8: =MID(Receita_PMSP_Tabela5[[#This Row],[COD_FONT_REC]], 6, 3) ->  | Q8: =LEFT(Receita_PMSP_Tabela5[[#This Row],[COD_ORIG_RCTA_F]], 10) -> 1.1.1.2.50 | R8: =LEFT(Receita_PMSP_Tabela5[[#This Row],[COD_ORIG_RCTA_F]], 12) -> 1.1.1.2.50.0 | S8: =LEFT(Receita_PMSP_Tabela5[[#This Row],[COD_FONT_REC]], 2) -> 
A9: 1.1.1.2.50.0.1.01.00.000.000.11.00.000 | B9: IMPOSTO SOBRE A PROPRIEDADE PREDIAL E TERRITORIAL URBANA | I9: Sintética | J9: 15563353863 | K9: 3795796730 | L9: 24.39 | M9: 4328985278 | N9: 27.82 | O9: 15563353863 | P9: =MID(Receita_PMSP_Tabela5[[#This Row],[COD_FONT_REC]], 6, 3) ->  | Q9: =LEFT(Receita_PMSP_Tabela5[[#This Row],[COD_ORIG_RCTA_F]], 10) -> 1.1.1.2.50 | R9: =LEFT(Receita_PMSP_Tabela5[[#This Row],[COD_ORIG_RCTA_F]], 12) -> 1.1.1.2.50.0 | S9: =LEFT(Receita_PMSP_Tabela5[[#This Row],[COD_FONT_REC]], 2) -> 
A10: 1.1.1.2.50.0.1.01.00.000.000.11.01.000 | B10: Imposto sobre a Propriedade Predial e Territorial Urbana | C10: 00.1.500.9001 | D10: Recursos não vinculados de Impostos | I10: Analítica | J10: 15733742456 | K10: 3808168396 | L10: 24.2 | M10: 4354084706 | N10: 27.67 | O10: 15733742456 | P10: =MID(Receita_PMSP_Tabela5[[#This Row],[COD_FONT_REC]], 6, 3) -> 500 | Q10: =LEFT(Receita_PMSP_Tabela5[[#This Row],[COD_ORIG_RCTA_F]], 10) -> 1.1.1.2.50 | R10: =LEFT(Receita_PMSP_Tabela5[[#This Row],[COD_ORIG_RCTA_F]], 12) -> 1.1.1.2.50.0 | S10: =LEFT(Receita_PMSP_Tabela5[[#This Row],[COD_FONT_REC]], 2) -> 00
A11: 1.1.1.2.50.0.1.01.00.000.000.11.09.000 | B11: TOTAL DE DEDUÇÕES DO IMPOSTO SOBRE A PROPRIEDADE PREDIAL E TERRITORIAL | I11: Sintética | J11: -170388593 | K11: -12371666.02 | L11: 7.26 | M11: -25099428.04 | N11: 14.73 | O11: -170388593 | P11: =MID(Receita_PMSP_Tabela5[[#This Row],[COD_FONT_REC]], 6, 3) ->  | Q11: =LEFT(Receita_PMSP_Tabela5[[#This Row],[COD_ORIG_RCTA_F]], 10) -> 1.1.1.2.50 | R11: =LEFT(Receita_PMSP_Tabela5[[#This Row],[COD_ORIG_RCTA_F]], 12) -> 1.1.1.2.50.0 | S11: =LEFT(Receita_PMSP_Tabela5[[#This Row],[COD_FONT_REC]], 2) -> 
A12: 1.1.1.2.50.0.1.01.00.000.000.11.09.001 | B12: Deduções do Imposto sobre a Propriedade Predial e Territorial Urbana | C12: 00.1.500.9001 | D12: Recursos não vinculados de Impostos | I12: Analítica | J12: -170388593 | K12: -12371666.02 | L12: 7.26 | M12: -25099428.04 | N12: 14.73 | O12: -170388593 | P12: =MID(Receita_PMSP_Tabela5[[#This Row],[COD_FONT_REC]], 6, 3) -> 500 | Q12: =LEFT(Receita_PMSP_Tabela5[[#This Row],[COD_ORIG_RCTA_F]], 10) -> 1.1.1.2.50 | R12: =LEFT(Receita_PMSP_Tabela5[[#This Row],[COD_ORIG_RCTA_F]], 12) -> 1.1.1.2.50.0 | S12: =LEFT(Receita_PMSP_Tabela5[[#This Row],[COD_FONT_REC]], 2) -> 00
A13: 1.1.1.2.50.0.1.01.00.000.000.12.00.000 | B13: TOTAL PARCELAMENTO IMPOSTO SOBRE A PROPRIEDADE PREDIAL E TERRITORIAL U | I13: Sintética | J13: 133954145 | K13: 15597308.55 | L13: 11.64 | M13: 29531821.14 | N13: 22.05 | O13: 133954145 | P13: =MID(Receita_PMSP_Tabela5[[#This Row],[COD_FONT_REC]], 6, 3) ->  | Q13: =LEFT(Receita_PMSP_Tabela5[[#This Row],[COD_ORIG_RCTA_F]], 10) -> 1.1.1.2.50 | R13: =LEFT(Receita_PMSP_Tabela5[[#This Row],[COD_ORIG_RCTA_F]], 12) -> 1.1.1.2.50.0 | S13: =LEFT(Receita_PMSP_Tabela5[[#This Row],[COD_FONT_REC]], 2) -> 
A14: 1.1.1.2.50.0.1.01.00.000.000.12.01.000 | B14: PARCELAMENTO IMPOSTO SOBRE A PROPRIEDADE PREDIAL E TERRITORIAL URBANA | I14: Sintética | J14: 133954145 | K14: 15597308.55 | L14: 11.64 | M14: 29531821.14 | N14: 22.05 | O14: 133954145 | P14: =MID(Receita_PMSP_Tabela5[[#This Row],[COD_FONT_REC]], 6, 3) ->  | Q14: =LEFT(Receita_PMSP_Tabela5[[#This Row],[COD_ORIG_RCTA_F]], 10) -> 1.1.1.2.50 | R14: =LEFT(Receita_PMSP_Tabela5[[#This Row],[COD_ORIG_RCTA_F]], 12) -> 1.1.1.2.50.0 | S14: =LEFT(Receita_PMSP_Tabela5[[#This Row],[COD_FONT_REC]], 2) -> 
A15: 1.1.1.2.50.0.1.01.00.000.000.12.01.001 | B15: PPI - Imposto sobre a Propriedade Predial e Territorial Urbana | C15: 00.1.500.9001 | D15: Recursos não vinculados de Impostos | I15: Analítica | J15: 124294948 | K15: 13837082.48 | L15: 11.13 | M15: 26084813.69 | N15: 20.99 | O15: 124294948 | P15: =MID(Receita_PMSP_Tabela5[[#This Row],[COD_FONT_REC]], 6, 3) -> 500 | Q15: =LEFT(Receita_PMSP_Tabela5[[#This Row],[COD_ORIG_RCTA_F]], 10) -> 1.1.1.2.50 | R15: =LEFT(Receita_PMSP_Tabela5[[#This Row],[COD_ORIG_RCTA_F]], 12) -> 1.1.1.2.50.0 | S15: =LEFT(Receita_PMSP_Tabela5[[#This Row],[COD_FONT_REC]], 2) -> 00
A16: 1.1.1.2.50.0.1.01.00.000.000.12.01.002 | B16: PAT - Imposto sobre a Propriedade Predial e Territorial Urbana | C16: 00.1.500.9001 | D16: Recursos não vinculados de Impostos | I16: Analítica | J16: 9659197 | K16: 1760226.07 | L16: 18.22 | M16: 3447007.45 | N16: 35.69 | O16: 9659197 | P16: =MID(Receita_PMSP_Tabela5[[#This Row],[COD_FONT_REC]], 6, 3) -> 500 | Q16: =LEFT(Receita_PMSP_Tabela5[[#This Row],[COD_ORIG_RCTA_F]], 10) -> 1.1.1.2.50 | R16: =LEFT(Receita_PMSP_Tabela5[[#This Row],[COD_ORIG_RCTA_F]], 12) -> 1.1.1.2.50.0 | S16: =LEFT(Receita_PMSP_Tabela5[[#This Row],[COD_FONT_REC]], 2) -> 00
A17: 1.1.1.2.50.0.2.00.00.000.000.00.00.000 | B17: IMPOSTO SOBRE A PROPRIEDADE PREDIAL E TERRITORIAL URBANA - MULTAS E JU | I17: Sintética | J17: 124573261 | K17: 10838326.54 | L17: 8.7 | M17: 22254742.69 | N17: 17.86 | O17: 124573261 | P17: =MID(Receita_PMSP_Tabela5[[#This Row],[COD_FONT_REC]], 6, 3) ->  | Q17: =LEFT(Receita_PMSP_Tabela5[[#This Row],[COD_ORIG_RCTA_F]], 10) -> 1.1.1.2.50 | R17: =LEFT(Receita_PMSP_Tabela5[[#This Row],[COD_ORIG_RCTA_F]], 12) -> 1.1.1.2.50.0 | S17: =LEFT(Receita_PMSP_Tabela5[[#This Row],[COD_FONT_REC]], 2) -> 
A18: 1.1.1.2.50.0.2.01.00.000.000.00.00.000 | B18: IMPOSTO SOBRE A PROPRIEDADE PREDIAL E TERRITORIAL URBANA - MULTAS E JU | I18: Sintética | J18: 124573261 | K18: 10838326.54 | L18: 8.7 | M18: 22254742.69 | N18: 17.86 | O18: 124573261 | P18: =MID(Receita_PMSP_Tabela5[[#This Row],[COD_FONT_REC]], 6, 3) ->  | Q18: =LEFT(Receita_PMSP_Tabela5[[#This Row],[COD_ORIG_RCTA_F]], 10) -> 1.1.1.2.50 | R18: =LEFT(Receita_PMSP_Tabela5[[#This Row],[COD_ORIG_RCTA_F]], 12) -> 1.1.1.2.50.0 | S18: =LEFT(Receita_PMSP_Tabela5[[#This Row],[COD_FONT_REC]], 2) -> 
A19: 1.1.1.2.50.0.2.01.00.000.000.11.00.000 | B19: IMPOSTO SOBRE A PROPRIEDADE PREDIAL E TERRITORIAL URBANA - MULTAS E JU | I19: Sintética | J19: 102995058 | K19: 9287830.98 | L19: 9.02 | M19: 19450691.76 | N19: 18.89 | O19: 102995058 | P19: =MID(Receita_PMSP_Tabela5[[#This Row],[COD_FONT_REC]], 6, 3) ->  | Q19: =LEFT(Receita_PMSP_Tabela5[[#This Row],[COD_ORIG_RCTA_F]], 10) -> 1.1.1.2.50 | R19: =LEFT(Receita_PMSP_Tabela5[[#This Row],[COD_ORIG_RCTA_F]], 12) -> 1.1.1.2.50.0 | S19: =LEFT(Receita_PMSP_Tabela5[[#This Row],[COD_FONT_REC]], 2) -> 
A20: 1.1.1.2.50.0.2.01.00.000.000.11.01.000 | B20: Imposto sobre a Propriedade Predial e Territorial Urbana - Multas e Ju | C20: 00.1.500.9001 | D20: Recursos não vinculados de Impostos | I20: Analítica | J20: 102995058 | K20: 9287830.98 | L20: 9.02 | M20: 19450691.76 | N20: 18.89 | O20: 102995058 | P20: =MID(Receita_PMSP_Tabela5[[#This Row],[COD_FONT_REC]], 6, 3) -> 500 | Q20: =LEFT(Receita_PMSP_Tabela5[[#This Row],[COD_ORIG_RCTA_F]], 10) -> 1.1.1.2.50 | R20: =LEFT(Receita_PMSP_Tabela5[[#This Row],[COD_ORIG_RCTA_F]], 12) -> 1.1.1.2.50.0 | S20: =LEFT(Receita_PMSP_Tabela5[[#This Row],[COD_FONT_REC]], 2) -> 00
A21: 1.1.1.2.50.0.2.01.00.000.000.12.00.000 | B21: PARCELAMENTO IMPOSTO SOBRE A PROPRIEDADE PREDIAL E TERRITORIAL URBANA | I21: Sintética | J21: 21578203 | K21: 1550495.56 | L21: 7.19 | M21: 2804050.93 | N21: 12.99 | O21: 21578203 | P21: =MID(Receita_PMSP_Tabela5[[#This Row],[COD_FONT_REC]], 6, 3) ->  | Q21: =LEFT(Receita_PMSP_Tabela5[[#This Row],[COD_ORIG_RCTA_F]], 10) -> 1.1.1.2.50 | R21: =LEFT(Receita_PMSP_Tabela5[[#This Row],[COD_ORIG_RCTA_F]], 12) -> 1.1.1.2.50.0 | S21: =LEFT(Receita_PMSP_Tabela5[[#This Row],[COD_FONT_REC]], 2) -> 
A22: 1.1.1.2.50.0.2.01.00.000.000.12.01.000 | B22: TOTAL PARCELAMENTO IMPOSTO SOBRE A PROPRIEDADE PREDIAL E TERRITORIAL U | I22: Sintética | J22: 21578203 | K22: 1550495.56 | L22: 7.19 | M22: 2804050.93 | N22: 12.99 | O22: 21578203 | P22: =MID(Receita_PMSP_Tabela5[[#This Row],[COD_FONT_REC]], 6, 3) ->  | Q22: =LEFT(Receita_PMSP_Tabela5[[#This Row],[COD_ORIG_RCTA_F]], 10) -> 1.1.1.2.50 | R22: =LEFT(Receita_PMSP_Tabela5[[#This Row],[COD_ORIG_RCTA_F]], 12) -> 1.1.1.2.50.0 | S22: =LEFT(Receita_PMSP_Tabela5[[#This Row],[COD_FONT_REC]], 2) -> 
A23: 1.1.1.2.50.0.2.01.00.000.000.12.01.001 | B23: PPI - Imposto sobre a Propriedade Predial e Territorial Urbana - Multa | C23: 00.1.500.9001 | D23: Recursos não vinculados de Impostos | I23: Analítica | J23: 19715385 | K23: 1393634.37 | L23: 7.07 | M23: 2502940.1 | N23: 12.7 | O23: 19715385 | P23: =MID(Receita_PMSP_Tabela5[[#This Row],[COD_FONT_REC]], 6, 3) -> 500 | Q23: =LEFT(Receita_PMSP_Tabela5[[#This Row],[COD_ORIG_RCTA_F]], 10) -> 1.1.1.2.50 | R23: =LEFT(Receita_PMSP_Tabela5[[#This Row],[COD_ORIG_RCTA_F]], 12) -> 1.1.1.2.50.0 | S23: =LEFT(Receita_PMSP_Tabela5[[#This Row],[COD_FONT_REC]], 2) -> 00
A24: 1.1.1.2.50.0.2.01.00.000.000.12.01.002 | B24: PAT - Imposto sobre a Propriedade Predial e Territorial Urbana - Multa | C24: 00.1.500.9001 | D24: Recursos não vinculados de Impostos | I24: Analítica | J24: 1862818 | K24: 156861.19 | L24: 8.42 | M24: 301110.83 | N24: 16.16 | O24: 1862818 | P24: =MID(Receita_PMSP_Tabela5[[#This Row],[COD_FONT_REC]], 6, 3) -> 500 | Q24: =LEFT(Receita_PMSP_Tabela5[[#This Row],[COD_ORIG_RCTA_F]], 10) -> 1.1.1.2.50 | R24: =LEFT(Receita_PMSP_Tabela5[[#This Row],[COD_ORIG_RCTA_F]], 12) -> 1.1.1.2.50.0 | S24: =LEFT(Receita_PMSP_Tabela5[[#This Row],[COD_FONT_REC]], 2) -> 00
A25: 1.1.1.2.50.0.3.00.00.000.000.00.00.000 | B25: IMPOSTO SOBRE A PROPRIEDADE PREDIAL E TERRITORIAL URBANA - DÍVIDA ATIV | I25: Sintética | J25: 1307317200 | K25: 133246701.6 | L25: 10.19 | M25: 263588853.7 | N25: 20.16 | O25: 1307317200 | P25: =MID(Receita_PMSP_Tabela5[[#This Row],[COD_FONT_REC]], 6, 3) ->  | Q25: =LEFT(Receita_PMSP_Tabela5[[#This Row],[COD_ORIG_RCTA_F]], 10) -> 1.1.1.2.50 | R25: =LEFT(Receita_PMSP_Tabela5[[#This Row],[COD_ORIG_RCTA_F]], 12) -> 1.1.1.2.50.0 | S25: =LEFT(Receita_PMSP_Tabela5[[#This Row],[COD_FONT_REC]], 2) -> 
A26: 1.1.1.2.50.0.3.01.00.000.000.00.00.000 | B26: IMPOSTO SOBRE A PROPRIEDADE PREDIAL E TERRITORIAL URBANA - DÍVIDA ATIV | I26: Sintética | J26: 1307317200 | K26: 133246701.6 | L26: 10.19 | M26: 263588853.7 | N26: 20.16 | O26: 1307317200 | P26: =MID(Receita_PMSP_Tabela5[[#This Row],[COD_FONT_REC]], 6, 3) ->  | Q26: =LEFT(Receita_PMSP_Tabela5[[#This Row],[COD_ORIG_RCTA_F]], 10) -> 1.1.1.2.50 | R26: =LEFT(Receita_PMSP_Tabela5[[#This Row],[COD_ORIG_RCTA_F]], 12) -> 1.1.1.2.50.0 | S26: =LEFT(Receita_PMSP_Tabela5[[#This Row],[COD_FONT_REC]], 2) -> 
A27: 1.1.1.2.50.0.3.01.00.000.000.11.00.000 | B27: IMPOSTO SOBRE A PROPRIEDADE PREDIAL E TERRITORIAL URBANA - DÍVIDA ATIV | I27: Sintética | J27: 481043695 | K27: 37866201.43 | L27: 7.87 | M27: 68451720.7 | N27: 14.23 | O27: 481043695 | P27: =MID(Receita_PMSP_Tabela5[[#This Row],[COD_FONT_REC]], 6, 3) ->  | Q27: =LEFT(Receita_PMSP_Tabela5[[#This Row],[COD_ORIG_RCTA_F]], 10) -> 1.1.1.2.50 | R27: =LEFT(Receita_PMSP_Tabela5[[#This Row],[COD_ORIG_RCTA_F]], 12) -> 1.1.1.2.50.0 | S27: =LEFT(Receita_PMSP_Tabela5[[#This Row],[COD_FONT_REC]], 2) -> 
A28: 1.1.1.2.50.0.3.01.00.000.000.11.01.000 | B28: Imposto sobre a Propriedade Predial e Territorial Urbana - Dívida Ativ | C28: 00.1.500.9001 | D28: Recursos não vinculados de Impostos | I28: Analítica | J28: 481043695 | K28: 42303632.15 | L28: 8.79 | M28: 72928997.64 | N28: 15.16 | O28: 481043695 | P28: =MID(Receita_PMSP_Tabela5[[#This Row],[COD_FONT_REC]], 6, 3) -> 500 | Q28: =LEFT(Receita_PMSP_Tabela5[[#This Row],[COD_ORIG_RCTA_F]], 10) -> 1.1.1.2.50 | R28: =LEFT(Receita_PMSP_Tabela5[[#This Row],[COD_ORIG_RCTA_F]], 12) -> 1.1.1.2.50.0 | S28: =LEFT(Receita_PMSP_Tabela5[[#This Row],[COD_FONT_REC]], 2) -> 00
A29: 1.1.1.2.50.0.3.01.00.000.000.11.09.000 | B29: TOTAL DEDUÇÕES IMPOSTO SOBRE A PROPRIEDADE PREDIAL E TERRITORIAL URBAN | I29: Sintética | J29: 0 | K29: -4437430.72 | L29: 0 | M29: -4477276.94 | N29: 0 | O29: 0 | P29: =MID(Receita_PMSP_Tabela5[[#This Row],[COD_FONT_REC]], 6, 3) ->  | Q29: =LEFT(Receita_PMSP_Tabela5[[#This Row],[COD_ORIG_RCTA_F]], 10) -> 1.1.1.2.50 | R29: =LEFT(Receita_PMSP_Tabela5[[#This Row],[COD_ORIG_RCTA_F]], 12) -> 1.1.1.2.50.0 | S29: =LEFT(Receita_PMSP_Tabela5[[#This Row],[COD_FONT_REC]], 2) -> 
A30: 1.1.1.2.50.0.3.01.00.000.000.11.09.001 | B30: Deduções Imposto sobre a Propriedade Predial e Territorial Urbana - Dí | C30: 00.1.500.9001 | D30: Recursos não vinculados de Impostos | I30: Analítica | J30: 0 | K30: -4437430.72 | L30: 0 | M30: -4477276.94 | N30: 0 | O30: 0 | P30: =MID(Receita_PMSP_Tabela5[[#This Row],[COD_FONT_REC]], 6, 3) -> 500 | Q30: =LEFT(Receita_PMSP_Tabela5[[#This Row],[COD_ORIG_RCTA_F]], 10) -> 1.1.1.2.50 | R30: =LEFT(Receita_PMSP_Tabela5[[#This Row],[COD_ORIG_RCTA_F]], 12) -> 1.1.1.2.50.0 | S30: =LEFT(Receita_PMSP_Tabela5[[#This Row],[COD_FONT_REC]], 2) -> 00
A31: 1.1.1.2.50.0.3.01.00.000.000.12.00.000 | B31: PARCELAMENTO IMPOSTO SOBRE A PROPRIEDADE PREDIAL E TERRITORIAL URBANA | I31: Sintética | J31: 826273505 | K31: 95380500.19 | L31: 11.54 | M31: 195137133 | N31: 23.62 | O31: 826273505 | P31: =MID(Receita_PMSP_Tabela5[[#This Row],[COD_FONT_REC]], 6, 3) ->  | Q31: =LEFT(Receita_PMSP_Tabela5[[#This Row],[COD_ORIG_RCTA_F]], 10) -> 1.1.1.2.50 | R31: =LEFT(Receita_PMSP_Tabela5[[#This Row],[COD_ORIG_RCTA_F]], 12) -> 1.1.1.2.50.0 | S31: =LEFT(Receita_PMSP_Tabela5[[#This Row],[COD_FONT_REC]], 2) -> 
A32: 1.1.1.2.50.0.3.01.00.000.000.12.01.000 | B32: TOTAL PARCELAMENTO IMPOSTO SOBRE A PROPRIEDADE PREDIAL E TERRITORIAL U | I32: Sintética | J32: 826273505 | K32: 95380500.19 | L32: 11.54 | M32: 195306136.4 | N32: 23.64 | O32: 826273505 | P32: =MID(Receita_PMSP_Tabela5[[#This Row],[COD_FONT_REC]], 6, 3) ->  | Q32: =LEFT(Receita_PMSP_Tabela5[[#This Row],[COD_ORIG_RCTA_F]], 10) -> 1.1.1.2.50 | R32: =LEFT(Receita_PMSP_Tabela5[[#This Row],[COD_ORIG_RCTA_F]], 12) -> 1.1.1.2.50.0 | S32: =LEFT(Receita_PMSP_Tabela5[[#This Row],[COD_FONT_REC]], 2) -> 
A33: 1.1.1.2.50.0.3.01.00.000.000.12.01.001 | B33: PPI - Imposto sobre a Propriedade Predial e Territorial Urbana - Dívid | C33: 00.1.500.9001 | D33: Recursos não vinculados de Impostos | I33: Analítica | J33: 818913941 | K33: 95103523.91 | L33: 11.61 | M33: 194689611.8 | N33: 23.77 | O33: 818913941 | P33: =MID(Receita_PMSP_Tabela5[[#This Row],[COD_FONT_REC]], 6, 3) -> 500 | Q33: =LEFT(Receita_PMSP_Tabela5[[#This Row],[COD_ORIG_RCTA_F]], 10) -> 1.1.1.2.50 | R33: =LEFT(Receita_PMSP_Tabela5[[#This Row],[COD_ORIG_RCTA_F]], 12) -> 1.1.1.2.50.0 | S33: =LEFT(Receita_PMSP_Tabela5[[#This Row],[COD_FONT_REC]], 2) -> 00
A34: 1.1.1.2.50.0.3.01.00.000.000.12.01.002 | B34: PAT - Imposto sobre a Propriedade Predial e Territorial Urbana - Dívid | C34: 00.1.500.9001 | D34: Recursos não vinculados de Impostos | I34: Analítica | J34: 0 | K34: 311.5 | L34: 0 | M34: 619.87 | N34: 0 | O34: 0 | P34: =MID(Receita_PMSP_Tabela5[[#This Row],[COD_FONT_REC]], 6, 3) -> 500 | Q34: =LEFT(Receita_PMSP_Tabela5[[#This Row],[COD_ORIG_RCTA_F]], 10) -> 1.1.1.2.50 | R34: =LEFT(Receita_PMSP_Tabela5[[#This Row],[COD_ORIG_RCTA_F]], 12) -> 1.1.1.2.50.0 | S34: =LEFT(Receita_PMSP_Tabela5[[#This Row],[COD_FONT_REC]], 2) -> 00
A35: 1.1.1.2.50.0.3.01.00.000.000.12.01.006 | B35: PEQ - Imposto sobre a Propriedade Predial e Territorial Urbana - Dívid | C35: 00.1.500.9001 | D35: Recursos não vinculados de Impostos | I35: Analítica | J35: 173052 | K35: 0 | L35: 0 | M35: 0 | N35: 0 | O35: 173052 | P35: =MID(Receita_PMSP_Tabela5[[#This Row],[COD_FONT_REC]], 6, 3) -> 500 | Q35: =LEFT(Receita_PMSP_Tabela5[[#This Row],[COD_ORIG_RCTA_F]], 10) -> 1.1.1.2.50 | R35: =LEFT(Receita_PMSP_Tabela5[[#This Row],[COD_ORIG_RCTA_F]], 12) -> 1.1.1.2.50.0 | S35: =LEFT(Receita_PMSP_Tabela5[[#This Row],[COD_FONT_REC]], 2) -> 00
A36: 1.1.1.2.50.0.3.01.00.000.000.12.01.008 | B36: TDM - Imposto sobre Propriedade Predial e Territorial Urb - Dív Ativa | C36: 00.1.500.9001 | D36: Recursos não vinculados de Impostos | I36: Analítica | J36: 7186512 | K36: 276664.78 | L36: 3.85 | M36: 615904.75 | N36: 8.57 | O36: 7186512 | P36: =MID(Receita_PMSP_Tabela5[[#This Row],[COD_FONT_REC]], 6, 3) -> 500 | Q36: =LEFT(Receita_PMSP_Tabela5[[#This Row],[COD_ORIG_RCTA_F]], 10) -> 1.1.1.2.50 | R36: =LEFT(Receita_PMSP_Tabela5[[#This Row],[COD_ORIG_RCTA_F]], 12) -> 1.1.1.2.50.0 | S36: =LEFT(Receita_PMSP_Tabela5[[#This Row],[COD_FONT_REC]], 2) -> 00
A37: 1.1.1.2.50.0.3.01.00.000.000.12.09.000 | B37: TOTAL DEDUÇÕES PARCELAMENTO IMPOSTO SOBRE A PROPRIEDADE PREDIAL E TERR | I37: Sintética | J37: 0 | K37: 0 | L37: 0 | M37: -169003.47 | N37: 0 | O37: 0 | P37: =MID(Receita_PMSP_Tabela5[[#This Row],[COD_FONT_REC]], 6, 3) ->  | Q37: =LEFT(Receita_PMSP_Tabela5[[#This Row],[COD_ORIG_RCTA_F]], 10) -> 1.1.1.2.50 | R37: =LEFT(Receita_PMSP_Tabela5[[#This Row],[COD_ORIG_RCTA_F]], 12) -> 1.1.1.2.50.0 | S37: =LEFT(Receita_PMSP_Tabela5[[#This Row],[COD_FONT_REC]], 2) -> 
A38: 1.1.1.2.50.0.3.01.00.000.000.12.09.001 | B38: Deduções PPI - Imposto sobre a Propriedade Predial e Territorial Urban | C38: 00.1.500.9001 | D38: Recursos não vinculados de Impostos | I38: Analítica | J38: 0 | K38: 0 | L38: 0 | M38: -169003.47 | N38: 0 | O38: 0 | P38: =MID(Receita_PMSP_Tabela5[[#This Row],[COD_FONT_REC]], 6, 3) -> 500 | Q38: =LEFT(Receita_PMSP_Tabela5[[#This Row],[COD_ORIG_RCTA_F]], 10) -> 1.1.1.2.50 | R38: =LEFT(Receita_PMSP_Tabela5[[#This Row],[COD_ORIG_RCTA_F]], 12) -> 1.1.1.2.50.0 | S38: =LEFT(Receita_PMSP_Tabela5[[#This Row],[COD_FONT_REC]], 2) -> 00
A39: 1.1.1.2.50.0.4.00.00.000.000.00.00.000 | B39: IMPOSTO SOBRE A PROPRIEDADE PREDIAL E TERRITORIAL URBANA - DÍVIDA ATIV | I39: Sintética | J39: 467044745 | K39: 28388111.96 | L39: 6.08 | M39: 56455645.02 | N39: 12.09 | O39: 467044745 | P39: =MID(Receita_PMSP_Tabela5[[#This Row],[COD_FONT_REC]], 6, 3) ->  | Q39: =LEFT(Receita_PMSP_Tabela5[[#This Row],[COD_ORIG_RCTA_F]], 10) -> 1.1.1.2.50 | R39: =LEFT(Receita_PMSP_Tabela5[[#This Row],[COD_ORIG_RCTA_F]], 12) -> 1.1.1.2.50.0 | S39: =LEFT(Receita_PMSP_Tabela5[[#This Row],[COD_FONT_REC]], 2) -> 
A40: 1.1.1.2.50.0.4.01.00.000.000.00.00.000 | B40: IMPOSTO SOBRE A PROPRIEDADE PREDIAL E TERRITORIAL URBANA - DÍVIDA ATIV | I40: Sintética | J40: 467044745 | K40: 28388111.96 | L40: 6.08 | M40: 56455645.02 | N40: 12.09 | O40: 467044745 | P40: =MID(Receita_PMSP_Tabela5[[#This Row],[COD_FONT_REC]], 6, 3) ->  | Q40: =LEFT(Receita_PMSP_Tabela5[[#This Row],[COD_ORIG_RCTA_F]], 10) -> 1.1.1.2.50 | R40: =LEFT(Receita_PMSP_Tabela5[[#This Row],[COD_ORIG_RCTA_F]], 12) -> 1.1.1.2.50.0 | S40: =LEFT(Receita_PMSP_Tabela5[[#This Row],[COD_FONT_REC]], 2) -> 
A41: 1.1.1.2.50.0.4.01.00.000.000.11.00.000 | B41: IMPOSTO SOBRE A PROPRIEDADE PREDIAL E TERRITORIAL URBANA - DÍVIDA ATIV | I41: Sintética | J41: 131721238 | K41: 8114302.44 | L41: 6.16 | M41: 15304631.52 | N41: 11.62 | O41: 131721238 | P41: =MID(Receita_PMSP_Tabela5[[#This Row],[COD_FONT_REC]], 6, 3) ->  | Q41: =LEFT(Receita_PMSP_Tabela5[[#This Row],[COD_ORIG_RCTA_F]], 10) -> 1.1.1.2.50 | R41: =LEFT(Receita_PMSP_Tabela5[[#This Row],[COD_ORIG_RCTA_F]], 12) -> 1.1.1.2.50.0 | S41: =LEFT(Receita_PMSP_Tabela5[[#This Row],[COD_FONT_REC]], 2) -> 
A42: 1.1.1.2.50.0.4.01.00.000.000.11.01.000 | B42: Imposto sobre a Propriedade Predial e Territorial Urbana - Dívida Ativ | C42: 00.1.500.9001 | D42: Recursos não vinculados de Impostos | I42: Analítica | J42: 131721238 | K42: 8114302.44 | L42: 6.16 | M42: 15304631.52 | N42: 11.62 | O42: 131721238 | P42: =MID(Receita_PMSP_Tabela5[[#This Row],[COD_FONT_REC]], 6, 3) -> 500 | Q42: =LEFT(Receita_PMSP_Tabela5[[#This Row],[COD_ORIG_RCTA_F]], 10) -> 1.1.1.2.50 | R42: =LEFT(Receita_PMSP_Tabela5[[#This Row],[COD_ORIG_RCTA_F]], 12) -> 1.1.1.2.50.0 | S42: =LEFT(Receita_PMSP_Tabela5[[#This Row],[COD_FONT_REC]], 2) -> 00
A43: 1.1.1.2.50.0.4.01.00.000.000.12.00.000 | B43: PARCELAMENTO IMPOSTO SOBRE A PROPRIEDADE PREDIAL E TERRITORIAL URBANA | I43: Sintética | J43: 335323507 | K43: 20273809.52 | L43: 6.05 | M43: 41151013.5 | N43: 12.27 | O43: 335323507 | P43: =MID(Receita_PMSP_Tabela5[[#This Row],[COD_FONT_REC]], 6, 3) ->  | Q43: =LEFT(Receita_PMSP_Tabela5[[#This Row],[COD_ORIG_RCTA_F]], 10) -> 1.1.1.2.50 | R43: =LEFT(Receita_PMSP_Tabela5[[#This Row],[COD_ORIG_RCTA_F]], 12) -> 1.1.1.2.50.0 | S43: =LEFT(Receita_PMSP_Tabela5[[#This Row],[COD_FONT_REC]], 2) -> 
A44: 1.1.1.2.50.0.4.01.00.000.000.12.01.000 | B44: TOTAL PARCELAMENTO IMPOSTO SOBRE A PROPRIEDADE PREDIAL E TERRITORIAL U | I44: Sintética | J44: 335323507 | K44: 20273809.52 | L44: 6.05 | M44: 41234661.28 | N44: 12.3 | O44: 335323507 | P44: =MID(Receita_PMSP_Tabela5[[#This Row],[COD_FONT_REC]], 6, 3) ->  | Q44: =LEFT(Receita_PMSP_Tabela5[[#This Row],[COD_ORIG_RCTA_F]], 10) -> 1.1.1.2.50 | R44: =LEFT(Receita_PMSP_Tabela5[[#This Row],[COD_ORIG_RCTA_F]], 12) -> 1.1.1.2.50.0 | S44: =LEFT(Receita_PMSP_Tabela5[[#This Row],[COD_FONT_REC]], 2) -> 
A45: 1.1.1.2.50.0.4.01.00.000.000.12.01.001 | B45: PPI - Imposto sobre a Propriedade Predial e Territorial Urbana - Dívid | C45: 00.1.500.9001 | D45: Recursos não vinculados de Impostos | I45: Analítica | J45: 334339591 | K45: 20235016.57 | L45: 6.05 | M45: 41154372.81 | N45: 12.31 | O45: 334339591 | P45: =MID(Receita_PMSP_Tabela5[[#This Row],[COD_FONT_REC]], 6, 3) -> 500 | Q45: =LEFT(Receita_PMSP_Tabela5[[#This Row],[COD_ORIG_RCTA_F]], 10) -> 1.1.1.2.50 | R45: =LEFT(Receita_PMSP_Tabela5[[#This Row],[COD_ORIG_RCTA_F]], 12) -> 1.1.1.2.50.0 | S45: =LEFT(Receita_PMSP_Tabela5[[#This Row],[COD_FONT_REC]], 2) -> 00
A46: 1.1.1.2.50.0.4.01.00.000.000.12.01.002 | B46: PAT - Imposto sobre a Propriedade Predial e Territorial Urbana - Dívid | C46: 00.1.500.9001 | D46: Recursos não vinculados de Impostos | I46: Analítica | J46: 0 | K46: 118.37 | L46: 0 | M46: 235.55 | N46: 0 | O46: 0 | P46: =MID(Receita_PMSP_Tabela5[[#This Row],[COD_FONT_REC]], 6, 3) -> 500 | Q46: =LEFT(Receita_PMSP_Tabela5[[#This Row],[COD_ORIG_RCTA_F]], 10) -> 1.1.1.2.50 | R46: =LEFT(Receita_PMSP_Tabela5[[#This Row],[COD_ORIG_RCTA_F]], 12) -> 1.1.1.2.50.0 | S46: =LEFT(Receita_PMSP_Tabela5[[#This Row],[COD_FONT_REC]], 2) -> 00
A47: 1.1.1.2.50.0.4.01.00.000.000.12.01.006 | B47: PEQ - Imposto sobre a Propriedade Predial e Territorial Urbana - Dívid | C47: 00.1.500.9001 | D47: Recursos não vinculados de Impostos | I47: Analítica | J47: 173052 | K47: 0 | L47: 0 | M47: 0 | N47: 0 | O47: 173052 | P47: =MID(Receita_PMSP_Tabela5[[#This Row],[COD_FONT_REC]], 6, 3) -> 500 | Q47: =LEFT(Receita_PMSP_Tabela5[[#This Row],[COD_ORIG_RCTA_F]], 10) -> 1.1.1.2.50 | R47: =LEFT(Receita_PMSP_Tabela5[[#This Row],[COD_ORIG_RCTA_F]], 12) -> 1.1.1.2.50.0 | S47: =LEFT(Receita_PMSP_Tabela5[[#This Row],[COD_FONT_REC]], 2) -> 00
A48: 1.1.1.2.50.0.4.01.00.000.000.12.01.008 | B48: TDM - IPTU - Dívida Ativa - Multas e Juros | C48: 00.1.500.9001 | D48: Recursos não vinculados de Impostos | I48: Analítica | J48: 810864 | K48: 38674.58 | L48: 4.77 | M48: 80052.92 | N48: 9.87 | O48: 810864 | P48: =MID(Receita_PMSP_Tabela5[[#This Row],[COD_FONT_REC]], 6, 3) -> 500 | Q48: =LEFT(Receita_PMSP_Tabela5[[#This Row],[COD_ORIG_RCTA_F]], 10) -> 1.1.1.2.50 | R48: =LEFT(Receita_PMSP_Tabela5[[#This Row],[COD_ORIG_RCTA_F]], 12) -> 1.1.1.2.50.0 | S48: =LEFT(Receita_PMSP_Tabela5[[#This Row],[COD_FONT_REC]], 2) -> 00
A49: 1.1.1.2.50.0.4.01.00.000.000.12.09.000 | B49: TOTAL DEDUÇÕES PARCELAMENTO IMPOSTO SOBRE A PROPRIEDADE PREDIAL E TERR | I49: Sintética | J49: 0 | K49: 0 | L49: 0 | M49: -83647.78 | N49: 0 | O49: 0 | P49: =MID(Receita_PMSP_Tabela5[[#This Row],[COD_FONT_REC]], 6, 3) ->  | Q49: =LEFT(Receita_PMSP_Tabela5[[#This Row],[COD_ORIG_RCTA_F]], 10) -> 1.1.1.2.50 | R49: =LEFT(Receita_PMSP_Tabela5[[#This Row],[COD_ORIG_RCTA_F]], 12) -> 1.1.1.2.50.0 | S49: =LEFT(Receita_PMSP_Tabela5[[#This Row],[COD_FONT_REC]], 2) -> 
A50: 1.1.1.2.50.0.4.01.00.000.000.12.09.001 | B50: Deduções PPI - Imposto sobre a Propriedade Predial e Territorial Urban | C50: 00.1.500.9001 | D50: Recursos não vinculados de Impostos | I50: Analítica | J50: 0 | K50: 0 | L50: 0 | M50: -83647.78 | N50: 0 | O50: 0 | P50: =MID(Receita_PMSP_Tabela5[[#This Row],[COD_FONT_REC]], 6, 3) -> 500 | Q50: =LEFT(Receita_PMSP_Tabela5[[#This Row],[COD_ORIG_RCTA_F]], 10) -> 1.1.1.2.50 | R50: =LEFT(Receita_PMSP_Tabela5[[#This Row],[COD_ORIG_RCTA_F]], 12) -> 1.1.1.2.50.0 | S50: =LEFT(Receita_PMSP_Tabela5[[#This Row],[COD_FONT_REC]], 2) -> 00
A51: 1.1.1.2.53.0.0.00.00.000.000.00.00.000 | B51: IMPOSTO SOBRE TRANSMISSÃO INTER VIVOS DE BENS IMÓVEIS E DE DIREITOS R" | I51: Sintética | J51: 4399222246 | K51: 350520604.2 | L51: 7.97 | M51: 648747482.3 | N51: 14.75 | O51: 4399222246 | P51: =MID(Receita_PMSP_Tabela5[[#This Row],[COD_FONT_REC]], 6, 3) ->  | Q51: =LEFT(Receita_PMSP_Tabela5[[#This Row],[COD_ORIG_RCTA_F]], 10) -> 1.1.1.2.53 | R51: =LEFT(Receita_PMSP_Tabela5[[#This Row],[COD_ORIG_RCTA_F]], 12) -> 1.1.1.2.53.0 | S51: =LEFT(Receita_PMSP_Tabela5[[#This Row],[COD_FONT_REC]], 2) -> 
A52: 1.1.1.2.53.0.1.00.00.000.000.00.00.000 | B52: IMPOSTO SOBRE TRANSMISSÃO INTER VIVOS DE BENS IMÓVEIS E DE DIREITOS RE | I52: Sintética | J52: 4334222428 | K52: 333174164.2 | L52: 7.69 | M52: 621019661.4 | N52: 14.33 | O52: 4334222428 | P52: =MID(Receita_PMSP_Tabela5[[#This Row],[COD_FONT_REC]], 6, 3) ->  | Q52: =LEFT(Receita_PMSP_Tabela5[[#This Row],[COD_ORIG_RCTA_F]], 10) -> 1.1.1.2.53 | R52: =LEFT(Receita_PMSP_Tabela5[[#This Row],[COD_ORIG_RCTA_F]], 12) -> 1.1.1.2.53.0 | S52: =LEFT(Receita_PMSP_Tabela5[[#This Row],[COD_FONT_REC]], 2) -> 
A53: 1.1.1.2.53.0.1.01.00.000.000.00.00.000 | B53: IMPOSTO SOBRE TRANSMISSÃO INTER VIVOS DE BENS IMÓVEIS E DE DIREITOS RE | I53: Sintética | J53: 4334222428 | K53: 333174164.2 | L53: 7.69 | M53: 621019661.4 | N53: 14.33 | O53: 4334222428 | P53: =MID(Receita_PMSP_Tabela5[[#This Row],[COD_FONT_REC]], 6, 3) ->  | Q53: =LEFT(Receita_PMSP_Tabela5[[#This Row],[COD_ORIG_RCTA_F]], 10) -> 1.1.1.2.53 | R53: =LEFT(Receita_PMSP_Tabela5[[#This Row],[COD_ORIG_RCTA_F]], 12) -> 1.1.1.2.53.0 | S53: =LEFT(Receita_PMSP_Tabela5[[#This Row],[COD_FONT_REC]], 2) -> 
A54: 1.1.1.2.53.0.1.01.00.000.000.11.00.000 | B54: IMPOSTO SOBRE TRANSMISSÃO INTER VIVOS DE BENS IMÓVEIS E DE DIREITOS RE | I54: Sintética | J54: 4331033809 | K54: 330335854.7 | L54: 7.63 | M54: 613663737.5 | N54: 14.17 | O54: 4331033809 | P54: =MID(Receita_PMSP_Tabela5[[#This Row],[COD_FONT_REC]], 6, 3) ->  | Q54: =LEFT(Receita_PMSP_Tabela5[[#This Row],[COD_ORIG_RCTA_F]], 10) -> 1.1.1.2.53 | R54: =LEFT(Receita_PMSP_Tabela5[[#This Row],[COD_ORIG_RCTA_F]], 12) -> 1.1.1.2.53.0 | S54: =LEFT(Receita_PMSP_Tabela5[[#This Row],[COD_FONT_REC]], 2) -> 
A55: 1.1.1.2.53.0.1.01.00.000.000.11.01.000 | B55: Imposto sobre Transmissão Inter Vivos de Bens Imóveis e de Direitos Re | C55: 00.1.500.9001 | D55: Recursos não vinculados de Impostos | I55: Analítica | J55: 4331033809 | K55: 330684661.8 | L55: 7.64 | M55: 614784893.7 | N55: 14.19 | O55: 4331033809 | P55: =MID(Receita_PMSP_Tabela5[[#This Row],[COD_FONT_REC]], 6, 3) -> 500 | Q55: =LEFT(Receita_PMSP_Tabela5[[#This Row],[COD_ORIG_RCTA_F]], 10) -> 1.1.1.2.53 | R55: =LEFT(Receita_PMSP_Tabela5[[#This Row],[COD_ORIG_RCTA_F]], 12) -> 1.1.1.2.53.0 | S55: =LEFT(Receita_PMSP_Tabela5[[#This Row],[COD_FONT_REC]], 2) -> 00
A56: 1.1.1.2.53.0.1.01.00.000.000.11.09.000 | B56: TOTAL DEDUÇÕES IMPOSTO SOBRE TRANSMISSÃO INTER VIVOS DE BENS IMÓVEIS E | I56: Sintética | J56: 0 | K56: -348807.09 | L56: 0 | M56: -1121156.25 | N56: 0 | O56: 0 | P56: =MID(Receita_PMSP_Tabela5[[#This Row],[COD_FONT_REC]], 6, 3) ->  | Q56: =LEFT(Receita_PMSP_Tabela5[[#This Row],[COD_ORIG_RCTA_F]], 10) -> 1.1.1.2.53 | R56: =LEFT(Receita_PMSP_Tabela5[[#This Row],[COD_ORIG_RCTA_F]], 12) -> 1.1.1.2.53.0 | S56: =LEFT(Receita_PMSP_Tabela5[[#This Row],[COD_FONT_REC]], 2) -> 
A57: 1.1.1.2.53.0.1.01.00.000.000.11.09.001 | B57: Deduções Imposto sobre Transmissão Inter Vivos de Bens Imóveis e de Di | C57: 00.1.500.9001 | D57: Recursos não vinculados de Impostos | I57: Analítica | J57: 0 | K57: -348807.09 | L57: 0 | M57: -1121156.25 | N57: 0 | O57: 0 | P57: =MID(Receita_PMSP_Tabela5[[#This Row],[COD_FONT_REC]], 6, 3) -> 500 | Q57: =LEFT(Receita_PMSP_Tabela5[[#This Row],[COD_ORIG_RCTA_F]], 10) -> 1.1.1.2.53 | R57: =LEFT(Receita_PMSP_Tabela5[[#This Row],[COD_ORIG_RCTA_F]], 12) -> 1.1.1.2.53.0 | S57: =LEFT(Receita_PMSP_Tabela5[[#This Row],[COD_FONT_REC]], 2) -> 00
A58: 1.1.1.2.53.0.1.01.00.000.000.12.00.000 | B58: PARCELAMENTO IMPOSTO SOBRE TRANSMISSÃO INTER VIVOS DE BENS IMÓVEIS E D | I58: Sintética | J58: 3188619 | K58: 2838309.56 | L58: 89.01 | M58: 7355923.97 | N58: 230.69 | O58: 3188619 | P58: =MID(Receita_PMSP_Tabela5[[#This Row],[COD_FONT_REC]], 6, 3) ->  | Q58: =LEFT(Receita_PMSP_Tabela5[[#This Row],[COD_ORIG_RCTA_F]], 10) -> 1.1.1.2.53 | R58: =LEFT(Receita_PMSP_Tabela5[[#This Row],[COD_ORIG_RCTA_F]], 12) -> 1.1.1.2.53.0 | S58: =LEFT(Receita_PMSP_Tabela5[[#This Row],[COD_FONT_REC]], 2) -> 
A59: 1.1.1.2.53.0.1.01.00.000.000.12.01.000 | B59: TOTAL PARCELAMENTO IMPOSTO SOBRE TRANSMISSÃO INTER VIVOS DE BENS IMÓVE | I59: Sintética | J59: 3188619 | K59: 2838309.56 | L59: 89.01 | M59: 7355923.97 | N59: 230.69 | O59: 3188619 | P59: =MID(Receita_PMSP_Tabela5[[#This Row],[COD_FONT_REC]], 6, 3) ->  | Q59: =LEFT(Receita_PMSP_Tabela5[[#This Row],[COD_ORIG_RCTA_F]], 10) -> 1.1.1.2.53 | R59: =LEFT(Receita_PMSP_Tabela5[[#This Row],[COD_ORIG_RCTA_F]], 12) -> 1.1.1.2.53.0 | S59: =LEFT(Receita_PMSP_Tabela5[[#This Row],[COD_FONT_REC]], 2) -> 
A60: 1.1.1.2.53.0.1.01.00.000.000.12.01.001 | B60: PPI - Imposto sobre Transmissão Inter Vivos de Bens Imóveis e de Direi | C60: 00.1.500.9001 | D60: Recursos não vinculados de Impostos | I60: Analítica | J60: 2211506 | K60: 2805893.85 | L60: 126.88 | M60: 7290491.62 | N60: 329.66 | O60: 2211506 | P60: =MID(Receita_PMSP_Tabela5[[#This Row],[COD_FONT_REC]], 6, 3) -> 500 | Q60: =LEFT(Receita_PMSP_Tabela5[[#This Row],[COD_ORIG_RCTA_F]], 10) -> 1.1.1.2.53 | R60: =LEFT(Receita_PMSP_Tabela5[[#This Row],[COD_ORIG_RCTA_F]], 12) -> 1.1.1.2.53.0 | S60: =LEFT(Receita_PMSP_Tabela5[[#This Row],[COD_FONT_REC]], 2) -> 00
A61: 1.1.1.2.53.0.1.01.00.000.000.12.01.002 | B61: PAT - Imposto sobre Transmissão Inter Vivos de Bens Imóveis e de Direi | C61: 00.1.500.9001 | D61: Recursos não vinculados de Impostos | I61: Analítica | J61: 977113 | K61: 32415.71 | L61: 3.32 | M61: 65432.35 | N61: 6.7 | O61: 977113 | P61: =MID(Receita_PMSP_Tabela5[[#This Row],[COD_FONT_REC]], 6, 3) -> 500 | Q61: =LEFT(Receita_PMSP_Tabela5[[#This Row],[COD_ORIG_RCTA_F]], 10) -> 1.1.1.2.53 | R61: =LEFT(Receita_PMSP_Tabela5[[#This Row],[COD_ORIG_RCTA_F]], 12) -> 1.1.1.2.53.0 | S61: =LEFT(Receita_PMSP_Tabela5[[#This Row],[COD_FONT_REC]], 2) -> 00
A62: 1.1.1.2.53.0.2.00.00.000.000.00.00.000 | B62: IMPOSTO SOBRE TRANSMISSÃO INTER VIVOS DE BENS IMÓVEIS E DE DIREITOS RE | I62: Sintética | J62: 35682966 | K62: 2803601.54 | L62: 7.86 | M62: 5671532.56 | N62: 15.89 | O62: 35682966 | P62: =MID(Receita_PMSP_Tabela5[[#This Row],[COD_FONT_REC]], 6, 3) ->  | Q62: =LEFT(Receita_PMSP_Tabela5[[#This Row],[COD_ORIG_RCTA_F]], 10) -> 1.1.1.2.53 | R62: =LEFT(Receita_PMSP_Tabela5[[#This Row],[COD_ORIG_RCTA_F]], 12) -> 1.1.1.2.53.0 | S62: =LEFT(Receita_PMSP_Tabela5[[#This Row],[COD_FONT_REC]], 2) -> 
A63: 1.1.1.2.53.0.2.01.00.000.000.00.00.000 | B63: IMPOSTO SOBRE TRANSMISSÃO INTER VIVOS DE BENS IMÓVEIS E DE DIREITOS RE | I63: Sintética | J63: 35682966 | K63: 2803601.54 | L63: 7.86 | M63: 5671532.56 | N63: 15.89 | O63: 35682966 | P63: =MID(Receita_PMSP_Tabela5[[#This Row],[COD_FONT_REC]], 6, 3) ->  | Q63: =LEFT(Receita_PMSP_Tabela5[[#This Row],[COD_ORIG_RCTA_F]], 10) -> 1.1.1.2.53 | R63: =LEFT(Receita_PMSP_Tabela5[[#This Row],[COD_ORIG_RCTA_F]], 12) -> 1.1.1.2.53.0 | S63: =LEFT(Receita_PMSP_Tabela5[[#This Row],[COD_FONT_REC]], 2) -> 
A64: 1.1.1.2.53.0.2.01.00.000.000.11.00.000 | B64: IMPOSTO SOBRE TRANSMISSÃO INTER VIVOS DE BENS IMÓVEIS E DE DIREITOS RE | I64: Sintética | J64: 33357971 | K64: 2468674.77 | L64: 7.4 | M64: 4849459.92 | N64: 14.54 | O64: 33357971 | P64: =MID(Receita_PMSP_Tabela5[[#This Row],[COD_FONT_REC]], 6, 3) ->  | Q64: =LEFT(Receita_PMSP_Tabela5[[#This Row],[COD_ORIG_RCTA_F]], 10) -> 1.1.1.2.53 | R64: =LEFT(Receita_PMSP_Tabela5[[#This Row],[COD_ORIG_RCTA_F]], 12) -> 1.1.1.2.53.0 | S64: =LEFT(Receita_PMSP_Tabela5[[#This Row],[COD_FONT_REC]], 2) -> 
A65: 1.1.1.2.53.0.2.01.00.000.000.11.01.000 | B65: Imposto s/ Transmissão Inter Vivos de Bens Imov. e Dir. Multas e juros | C65: 00.1.500.9001 | D65: Recursos não vinculados de Impostos | I65: Analítica | J65: 33357971 | K65: 2468674.77 | L65: 7.4 | M65: 4849459.92 | N65: 14.54 | O65: 33357971 | P65: =MID(Receita_PMSP_Tabela5[[#This Row],[COD_FONT_REC]], 6, 3) -> 500 | Q65: =LEFT(Receita_PMSP_Tabela5[[#This Row],[COD_ORIG_RCTA_F]], 10) -> 1.1.1.2.53 | R65: =LEFT(Receita_PMSP_Tabela5[[#This Row],[COD_ORIG_RCTA_F]], 12) -> 1.1.1.2.53.0 | S65: =LEFT(Receita_PMSP_Tabela5[[#This Row],[COD_FONT_REC]], 2) -> 00
A66: 1.1.1.2.53.0.2.01.00.000.000.12.00.000 | B66: PARCELAMENTO IMPOSTO SOBRE TRANSMISSÃO INTER VIVOS DE BENS IMÓVEIS E D | I66: Sintética | J66: 2324995 | K66: 334926.77 | L66: 14.41 | M66: 822072.64 | N66: 35.36 | O66: 2324995 | P66: =MID(Receita_PMSP_Tabela5[[#This Row],[COD_FONT_REC]], 6, 3) ->  | Q66: =LEFT(Receita_PMSP_Tabela5[[#This Row],[COD_ORIG_RCTA_F]], 10) -> 1.1.1.2.53 | R66: =LEFT(Receita_PMSP_Tabela5[[#This Row],[COD_ORIG_RCTA_F]], 12) -> 1.1.1.2.53.0 | S66: =LEFT(Receita_PMSP_Tabela5[[#This Row],[COD_FONT_REC]], 2) -> 
A67: 1.1.1.2.53.0.2.01.00.000.000.12.01.000 | B67: TOTAL PARCELAMENTO IMPOSTO SOBRE TRANSMISSÃO INTER VIVOS DE BENS IMÓVE | I67: Sintética | J67: 2324995 | K67: 334926.77 | L67: 14.41 | M67: 822072.64 | N67: 35.36 | O67: 2324995 | P67: =MID(Receita_PMSP_Tabela5[[#This Row],[COD_FONT_REC]], 6, 3) ->  | Q67: =LEFT(Receita_PMSP_Tabela5[[#This Row],[COD_ORIG_RCTA_F]], 10) -> 1.1.1.2.53 | R67: =LEFT(Receita_PMSP_Tabela5[[#This Row],[COD_ORIG_RCTA_F]], 12) -> 1.1.1.2.53.0 | S67: =LEFT(Receita_PMSP_Tabela5[[#This Row],[COD_FONT_REC]], 2) -> 
A68: 1.1.1.2.53.0.2.01.00.000.000.12.01.001 | B68: PPI - Imposto sobre Transmissão Inter Vivos de Bens Imóveis e de Direi | C68: 00.1.500.9001 | D68: Recursos não vinculados de Impostos | I68: Analítica | J68: 1099125 | K68: 296216.31 | L68: 26.95 | M68: 743654.76 | N68: 67.66 | O68: 1099125 | P68: =MID(Receita_PMSP_Tabela5[[#This Row],[COD_FONT_REC]], 6, 3) -> 500 | Q68: =LEFT(Receita_PMSP_Tabela5[[#This Row],[COD_ORIG_RCTA_F]], 10) -> 1.1.1.2.53 | R68: =LEFT(Receita_PMSP_Tabela5[[#This Row],[COD_ORIG_RCTA_F]], 12) -> 1.1.1.2.53.0 | S68: =LEFT(Receita_PMSP_Tabela5[[#This Row],[COD_FONT_REC]], 2) -> 00
A69: 1.1.1.2.53.0.2.01.00.000.000.12.01.002 | B69: PAT - Imposto sobre Transmissão Inter Vivos de Bens Imóveis e de Direi | C69: 00.1.500.9001 | D69: Recursos não vinculados de Impostos | I69: Analítica | J69: 1225870 | K69: 38710.46 | L69: 3.16 | M69: 78417.88 | N69: 6.4 | O69: 1225870 | P69: =MID(Receita_PMSP_Tabela5[[#This Row],[COD_FONT_REC]], 6, 3) -> 500 | Q69: =LEFT(Receita_PMSP_Tabela5[[#This Row],[COD_ORIG_RCTA_F]], 10) -> 1.1.1.2.53 | R69: =LEFT(Receita_PMSP_Tabela5[[#This Row],[COD_ORIG_RCTA_F]], 12) -> 1.1.1.2.53.0 | S69: =LEFT(Receita_PMSP_Tabela5[[#This Row],[COD_FONT_REC]], 2) -> 00
A70: 1.1.1.2.53.0.3.00.00.000.000.00.00.000 | B70: IMPOSTO SOBRE TRANSMISSÃO INTER VIVOS DE BENS IMÓVEIS E DE DIREITOS RE | I70: Sintética | J70: 17740817 | K70: 12464695.83 | L70: 70.26 | M70: 18909473 | N70: 106.59 | O70: 17740817 | P70: =MID(Receita_PMSP_Tabela5[[#This Row],[COD_FONT_REC]], 6, 3) ->  | Q70: =LEFT(Receita_PMSP_Tabela5[[#This Row],[COD_ORIG_RCTA_F]], 10) -> 1.1.1.2.53 | R70: =LEFT(Receita_PMSP_Tabela5[[#This Row],[COD_ORIG_RCTA_F]], 12) -> 1.1.1.2.53.0 | S70: =LEFT(Receita_PMSP_Tabela5[[#This Row],[COD_FONT_REC]], 2) -> 
A71: 1.1.1.2.53.0.3.01.00.000.000.00.00.000 | B71: IMPOSTO SOBRE TRANSMISSÃO INTER VIVOS DE BENS IMÓVEIS E DE DIREITOS RE | I71: Sintética | J71: 17740817 | K71: 12464695.83 | L71: 70.26 | M71: 18909473 | N71: 106.59 | O71: 17740817 | P71: =MID(Receita_PMSP_Tabela5[[#This Row],[COD_FONT_REC]], 6, 3) ->  | Q71: =LEFT(Receita_PMSP_Tabela5[[#This Row],[COD_ORIG_RCTA_F]], 10) -> 1.1.1.2.53 | R71: =LEFT(Receita_PMSP_Tabela5[[#This Row],[COD_ORIG_RCTA_F]], 12) -> 1.1.1.2.53.0 | S71: =LEFT(Receita_PMSP_Tabela5[[#This Row],[COD_FONT_REC]], 2) -> 
A72: 1.1.1.2.53.0.3.01.00.000.000.11.00.000 | B72: IMPOSTO SOBRE TRANSMISSÃO INTER VIVOS DE BENS IMÓVEIS E DE DIREITOS RE | I72: Sintética | J72: 9742155 | K72: 101011.64 | L72: 1.04 | M72: 261637.61 | N72: 2.69 | O72: 9742155 | P72: =MID(Receita_PMSP_Tabela5[[#This Row],[COD_FONT_REC]], 6, 3) ->  | Q72: =LEFT(Receita_PMSP_Tabela5[[#This Row],[COD_ORIG_RCTA_F]], 10) -> 1.1.1.2.53 | R72: =LEFT(Receita_PMSP_Tabela5[[#This Row],[COD_ORIG_RCTA_F]], 12) -> 1.1.1.2.53.0 | S72: =LEFT(Receita_PMSP_Tabela5[[#This Row],[COD_FONT_REC]], 2) -> 
A73: 1.1.1.2.53.0.3.01.00.000.000.11.01.000 | B73: Imposto sobre Transmissão Inter Vivos de Bens Imóveis e de Direitos Re | C73: 00.1.500.9001 | D73: Recursos não vinculados de Impostos | I73: Analítica | J73: 9742155 | K73: 101011.64 | L73: 1.04 | M73: 261637.61 | N73: 2.69 | O73: 9742155 | P73: =MID(Receita_PMSP_Tabela5[[#This Row],[COD_FONT_REC]], 6, 3) -> 500 | Q73: =LEFT(Receita_PMSP_Tabela5[[#This Row],[COD_ORIG_RCTA_F]], 10) -> 1.1.1.2.53 | R73: =LEFT(Receita_PMSP_Tabela5[[#This Row],[COD_ORIG_RCTA_F]], 12) -> 1.1.1.2.53.0 | S73: =LEFT(Receita_PMSP_Tabela5[[#This Row],[COD_FONT_REC]], 2) -> 00
A74: 1.1.1.2.53.0.3.01.00.000.000.12.00.000 | B74: PARCELAMENTO IMPOSTO SOBRE TRANSMISSÃO INTER VIVOS DE BENS IMÓVEIS E D | I74: Sintética | J74: 7998662 | K74: 12363684.19 | L74: 154.57 | M74: 18647835.39 | N74: 233.14 | O74: 7998662 | P74: =MID(Receita_PMSP_Tabela5[[#This Row],[COD_FONT_REC]], 6, 3) ->  | Q74: =LEFT(Receita_PMSP_Tabela5[[#This Row],[COD_ORIG_RCTA_F]], 10) -> 1.1.1.2.53 | R74: =LEFT(Receita_PMSP_Tabela5[[#This Row],[COD_ORIG_RCTA_F]], 12) -> 1.1.1.2.53.0 | S74: =LEFT(Receita_PMSP_Tabela5[[#This Row],[COD_FONT_REC]], 2) -> 
A75: 1.1.1.2.53.0.3.01.00.000.000.12.01.000 | B75: TOTAL PARCELAMENTO IMPOSTO SOBRE TRANSMISSÃO INTER VIVOS DE BENS IMÓVE | I75: Sintética | J75: 7998662 | K75: 12363684.19 | L75: 154.57 | M75: 18647835.39 | N75: 233.14 | O75: 7998662 | P75: =MID(Receita_PMSP_Tabela5[[#This Row],[COD_FONT_REC]], 6, 3) ->  | Q75: =LEFT(Receita_PMSP_Tabela5[[#This Row],[COD_ORIG_RCTA_F]], 10) -> 1.1.1.2.53 | R75: =LEFT(Receita_PMSP_Tabela5[[#This Row],[COD_ORIG_RCTA_F]], 12) -> 1.1.1.2.53.0 | S75: =LEFT(Receita_PMSP_Tabela5[[#This Row],[COD_FONT_REC]], 2) -> 
A76: 1.1.1.2.53.0.3.01.00.000.000.12.01.001 | B76: PPI - Imposto sobre Transmissão Inter Vivos de Bens Imóveis e de Direi | C76: 00.1.500.9001 | D76: Recursos não vinculados de Impostos | I76: Analítica | J76: 7998662 | K76: 12363684.19 | L76: 154.57 | M76: 18647835.39 | N76: 233.14 | O76: 7998662 | P76: =MID(Receita_PMSP_Tabela5[[#This Row],[COD_FONT_REC]], 6, 3) -> 500 | Q76: =LEFT(Receita_PMSP_Tabela5[[#This Row],[COD_ORIG_RCTA_F]], 10) -> 1.1.1.2.53 | R76: =LEFT(Receita_PMSP_Tabela5[[#This Row],[COD_ORIG_RCTA_F]], 12) -> 1.1.1.2.53.0 | S76: =LEFT(Receita_PMSP_Tabela5[[#This Row],[COD_FONT_REC]], 2) -> 00
A77: 1.1.1.2.53.0.4.00.00.000.000.00.00.000 | B77: IMPOSTO SOBRE TRANSMISSÃO INTER VIVOS DE BENS IMÓVEIS E DE DIREITOS RE | I77: Sintética | J77: 11576035 | K77: 2078142.6 | L77: 17.95 | M77: 3146815.32 | N77: 27.18 | O77: 11576035 | P77: =MID(Receita_PMSP_Tabela5[[#This Row],[COD_FONT_REC]], 6, 3) ->  | Q77: =LEFT(Receita_PMSP_Tabela5[[#This Row],[COD_ORIG_RCTA_F]], 10) -> 1.1.1.2.53 | R77: =LEFT(Receita_PMSP_Tabela5[[#This Row],[COD_ORIG_RCTA_F]], 12) -> 1.1.1.2.53.0 | S77: =LEFT(Receita_PMSP_Tabela5[[#This Row],[COD_FONT_REC]], 2) -> 
A78: 1.1.1.2.53.0.4.01.00.000.000.00.00.000 | B78: IMPOSTO SOBRE TRANSMISSÃO INTER VIVOS DE BENS IMÓVEIS E DE DIREITOS RE | I78: Sintética | J78: 11576035 | K78: 2078142.6 | L78: 17.95 | M78: 3146815.32 | N78: 27.18 | O78: 11576035 | P78: =MID(Receita_PMSP_Tabela5[[#This Row],[COD_FONT_REC]], 6, 3) ->  | Q78: =LEFT(Receita_PMSP_Tabela5[[#This Row],[COD_ORIG_RCTA_F]], 10) -> 1.1.1.2.53 | R78: =LEFT(Receita_PMSP_Tabela5[[#This Row],[COD_ORIG_RCTA_F]], 12) -> 1.1.1.2.53.0 | S78: =LEFT(Receita_PMSP_Tabela5[[#This Row],[COD_FONT_REC]], 2) -> 
A79: 1.1.1.2.53.0.4.01.00.000.000.11.00.000 | B79: IMPOSTO SOBRE TRANSMISSÃO INTER VIVOS DE BENS IMÓVEIS E DE DIREITOS RE | I79: Sintética | J79: 4540602 | K79: 68247.67 | L79: 1.5 | M79: 205279.27 | N79: 4.52 | O79: 4540602 | P79: =MID(Receita_PMSP_Tabela5[[#This Row],[COD_FONT_REC]], 6, 3) ->  | Q79: =LEFT(Receita_PMSP_Tabela5[[#This Row],[COD_ORIG_RCTA_F]], 10) -> 1.1.1.2.53 | R79: =LEFT(Receita_PMSP_Tabela5[[#This Row],[COD_ORIG_RCTA_F]], 12) -> 1.1.1.2.53.0 | S79: =LEFT(Receita_PMSP_Tabela5[[#This Row],[COD_FONT_REC]], 2) -> 
A80: 1.1.1.2.53.0.4.01.00.000.000.11.01.000 | B80: Imposto s/ Transmissão Inter Vivos de Bens Imov. e Dir. Multas e juros | C80: 00.1.500.9001 | D80: Recursos não vinculados de Impostos | I80: Analítica | J80: 4540602 | K80: 68247.67 | L80: 1.5 | M80: 205279.27 | N80: 4.52 | O80: 4540602 | P80: =MID(Receita_PMSP_Tabela5[[#This Row],[COD_FONT_REC]], 6, 3) -> 500 | Q80: =LEFT(Receita_PMSP_Tabela5[[#This Row],[COD_ORIG_RCTA_F]], 10) -> 1.1.1.2.53 | R80: =LEFT(Receita_PMSP_Tabela5[[#This Row],[COD_ORIG_RCTA_F]], 12) -> 1.1.1.2.53.0 | S80: =LEFT(Receita_PMSP_Tabela5[[#This Row],[COD_FONT_REC]], 2) -> 00
A81: 1.1.1.2.53.0.4.01.00.000.000.12.00.000 | B81: PARCELAMENTO IMPOSTO SOBRE TRANSMISSÃO INTER VIVOS DE BENS IMÓVEIS E D | I81: Sintética | J81: 7035433 | K81: 2009894.93 | L81: 28.57 | M81: 2941536.05 | N81: 41.81 | O81: 7035433 | P81: =MID(Receita_PMSP_Tabela5[[#This Row],[COD_FONT_REC]], 6, 3) ->  | Q81: =LEFT(Receita_PMSP_Tabela5[[#This Row],[COD_ORIG_RCTA_F]], 10) -> 1.1.1.2.53 | R81: =LEFT(Receita_PMSP_Tabela5[[#This Row],[COD_ORIG_RCTA_F]], 12) -> 1.1.1.2.53.0 | S81: =LEFT(Receita_PMSP_Tabela5[[#This Row],[COD_FONT_REC]], 2) -> 
A82: 1.1.1.2.53.0.4.01.00.000.000.12.01.000 | B82: TOTAL PARCELAMENTO IMPOSTO SOBRE TRANSMISSÃO INTER VIVOS DE BENS IMÓVE | I82: Sintética | J82: 7035433 | K82: 2009894.93 | L82: 28.57 | M82: 2941536.05 | N82: 41.81 | O82: 7035433 | P82: =MID(Receita_PMSP_Tabela5[[#This Row],[COD_FONT_REC]], 6, 3) ->  | Q82: =LEFT(Receita_PMSP_Tabela5[[#This Row],[COD_ORIG_RCTA_F]], 10) -> 1.1.1.2.53 | R82: =LEFT(Receita_PMSP_Tabela5[[#This Row],[COD_ORIG_RCTA_F]], 12) -> 1.1.1.2.53.0 | S82: =LEFT(Receita_PMSP_Tabela5[[#This Row],[COD_FONT_REC]], 2) -> 
A83: 1.1.1.2.53.0.4.01.00.000.000.12.01.001 | B83: PPI - Imposto sobre Transmissão Inter Vivos de Bens Imóveis e de Direi | C83: 00.1.500.9001 | D83: Recursos não vinculados de Impostos | I83: Analítica | J83: 7035433 | K83: 2009894.93 | L83: 28.57 | M83: 2941536.05 | N83: 41.81 | O83: 7035433 | P83: =MID(Receita_PMSP_Tabela5[[#This Row],[COD_FONT_REC]], 6, 3) -> 500 | Q83: =LEFT(Receita_PMSP_Tabela5[[#This Row],[COD_ORIG_RCTA_F]], 10) -> 1.1.1.2.53 | R83: =LEFT(Receita_PMSP_Tabela5[[#This Row],[COD_ORIG_RCTA_F]], 12) -> 1.1.1.2.53.0 | S83: =LEFT(Receita_PMSP_Tabela5[[#This Row],[COD_FONT_REC]], 2) -> 00
A84: 1.1.1.3.00.0.0.00.00.000.000.00.00.000 | B84: IMPOSTOS SOBRE A RENDA E PROVENTOS DE QUALQUER NATUREZA | I84: Sintética | J84: 5521973064 | K84: 356257924.4 | L84: 6.45 | M84: 687496134 | N84: 12.45 | O84: 5521973064 | P84: =MID(Receita_PMSP_Tabela5[[#This Row],[COD_FONT_REC]], 6, 3) ->  | Q84: =LEFT(Receita_PMSP_Tabela5[[#This Row],[COD_ORIG_RCTA_F]], 10) -> 1.1.1.3.00 | R84: =LEFT(Receita_PMSP_Tabela5[[#This Row],[COD_ORIG_RCTA_F]], 12) -> 1.1.1.3.00.0 | S84: =LEFT(Receita_PMSP_Tabela5[[#This Row],[COD_FONT_REC]], 2) -> 
A85: 1.1.1.3.03.0.0.00.00.000.000.00.00.000 | B85: IMPOSTO SOBRE A RENDA - RETIDO NA FONTE | I85: Sintética | J85: 5521973064 | K85: 356257924.4 | L85: 6.45 | M85: 687496134 | N85: 12.45 | O85: 5521973064 | P85: =MID(Receita_PMSP_Tabela5[[#This Row],[COD_FONT_REC]], 6, 3) ->  | Q85: =LEFT(Receita_PMSP_Tabela5[[#This Row],[COD_ORIG_RCTA_F]], 10) -> 1.1.1.3.03 | R85: =LEFT(Receita_PMSP_Tabela5[[#This Row],[COD_ORIG_RCTA_F]], 12) -> 1.1.1.3.03.0 | S85: =LEFT(Receita_PMSP_Tabela5[[#This Row],[COD_FONT_REC]], 2) -> 
A86: 1.1.1.3.03.1.0.00.00.000.000.00.00.000 | B86: IMPOSTO SOBRE A RENDA - RETIDO NA FONTE - TRABALHO | I86: Sintética | J86: 4690446932 | K86: 298362455.1 | L86: 6.36 | M86: 586782322.8 | N86: 12.51 | O86: 4690446932 | P86: =MID(Receita_PMSP_Tabela5[[#This Row],[COD_FONT_REC]], 6, 3) ->  | Q86: =LEFT(Receita_PMSP_Tabela5[[#This Row],[COD_ORIG_RCTA_F]], 10) -> 1.1.1.3.03 | R86: =LEFT(Receita_PMSP_Tabela5[[#This Row],[COD_ORIG_RCTA_F]], 12) -> 1.1.1.3.03.1 | S86: =LEFT(Receita_PMSP_Tabela5[[#This Row],[COD_FONT_REC]], 2) -> 
A87: 1.1.1.3.03.1.1.00.00.000.000.00.00.000 | B87: IMPOSTO SOBRE A RENDA - RETIDO NA FONTE - TRABALHO - PRINCIPAL | I87: Sintética | J87: 4690446932 | K87: 298362455.1 | L87: 6.36 | M87: 586782322.8 | N87: 12.51 | O87: 4690446932 | P87: =MID(Receita_PMSP_Tabela5[[#This Row],[COD_FONT_REC]], 6, 3) ->  | Q87: =LEFT(Receita_PMSP_Tabela5[[#This Row],[COD_ORIG_RCTA_F]], 10) -> 1.1.1.3.03 | R87: =LEFT(Receita_PMSP_Tabela5[[#This Row],[COD_ORIG_RCTA_F]], 12) -> 1.1.1.3.03.1 | S87: =LEFT(Receita_PMSP_Tabela5[[#This Row],[COD_FONT_REC]], 2) -> 
A88: 1.1.1.3.03.1.1.01.00.000.000.00.00.000 | B88: IMPOSTO SOBRE A RENDA - RETIDO NA FONTE - TRABALHO - PRINCIPAL - PF | I88: Sintética | J88: 146107774 | K88: -128293801.9 | L88: -87.81 | M88: 12783556.36 | N88: 8.75 | O88: 146107774 | P88: =MID(Receita_PMSP_Tabela5[[#This Row],[COD_FONT_REC]], 6, 3) ->  | Q88: =LEFT(Receita_PMSP_Tabela5[[#This Row],[COD_ORIG_RCTA_F]], 10) -> 1.1.1.3.03 | R88: =LEFT(Receita_PMSP_Tabela5[[#This Row],[COD_ORIG_RCTA_F]], 12) -> 1.1.1.3.03.1 | S88: =LEFT(Receita_PMSP_Tabela5[[#This Row],[COD_FONT_REC]], 2) -> 
A89: 1.1.1.3.03.1.1.01.00.000.000.11.00.000 | B89: IMPOSTO SOBRE A RENDA - RETIDO NA FONTE - TRABALHO - PF | I89: Sintética | J89: 146107774 | K89: -128293801.9 | L89: -87.81 | M89: 12783556.36 | N89: 8.75 | O89: 146107774 | P89: =MID(Receita_PMSP_Tabela5[[#This Row],[COD_FONT_REC]], 6, 3) ->  | Q89: =LEFT(Receita_PMSP_Tabela5[[#This Row],[COD_ORIG_RCTA_F]], 10) -> 1.1.1.3.03 | R89: =LEFT(Receita_PMSP_Tabela5[[#This Row],[COD_ORIG_RCTA_F]], 12) -> 1.1.1.3.03.1 | S89: =LEFT(Receita_PMSP_Tabela5[[#This Row],[COD_FONT_REC]], 2) -> 
A90: 1.1.1.3.03.1.1.01.00.000.000.11.01.000 | B90: Imposto sobre a Renda - Retido na Fonte - Trabalho - PF | C90: 00.1.500.9003 | D90: Recursos de Imposto de Renda Retido na Fonte - IRRF | I90: Analítica | J90: 146107774 | K90: -128293801.9 | L90: -87.81 | M90: 12783556.36 | N90: 8.75 | O90: 146107774 | P90: =MID(Receita_PMSP_Tabela5[[#This Row],[COD_FONT_REC]], 6, 3) -> 500 | Q90: =LEFT(Receita_PMSP_Tabela5[[#This Row],[COD_ORIG_RCTA_F]], 10) -> 1.1.1.3.03 | R90: =LEFT(Receita_PMSP_Tabela5[[#This Row],[COD_ORIG_RCTA_F]], 12) -> 1.1.1.3.03.1 | S90: =LEFT(Receita_PMSP_Tabela5[[#This Row],[COD_FONT_REC]], 2) -> 00
A91: 1.1.1.3.03.1.1.02.00.000.000.00.00.000 | B91: IRRF - TRABALHO - PF - FOLHA DE PAGAMENTO | I91: Sintética | J91: 4544339158 | K91: 426656257 | L91: 9.39 | M91: 573998766.4 | N91: 12.63 | O91: 4544339158 | P91: =MID(Receita_PMSP_Tabela5[[#This Row],[COD_FONT_REC]], 6, 3) ->  | Q91: =LEFT(Receita_PMSP_Tabela5[[#This Row],[COD_ORIG_RCTA_F]], 10) -> 1.1.1.3.03 | R91: =LEFT(Receita_PMSP_Tabela5[[#This Row],[COD_ORIG_RCTA_F]], 12) -> 1.1.1.3.03.1 | S91: =LEFT(Receita_PMSP_Tabela5[[#This Row],[COD_FONT_REC]], 2) -> 
A92: 1.1.1.3.03.1.1.02.00.000.000.11.00.000 | B92: IRRF - TRABALHO - PF - FOLHA DE PAGAMENTO | I92: Sintética | J92: 4544339158 | K92: 426656257 | L92: 9.39 | M92: 573998766.4 | N92: 12.63 | O92: 4544339158 | P92: =MID(Receita_PMSP_Tabela5[[#This Row],[COD_FONT_REC]], 6, 3) ->  | Q92: =LEFT(Receita_PMSP_Tabela5[[#This Row],[COD_ORIG_RCTA_F]], 10) -> 1.1.1.3.03 | R92: =LEFT(Receita_PMSP_Tabela5[[#This Row],[COD_ORIG_RCTA_F]], 12) -> 1.1.1.3.03.1 | S92: =LEFT(Receita_PMSP_Tabela5[[#This Row],[COD_FONT_REC]], 2) -> 
A93: 1.1.1.3.03.1.1.02.00.000.000.11.01.000 | B93: IRRF - Trabalho - PF - Folha de Pagamento | C93: 00.1.500.9003 | D93: Recursos de Imposto de Renda Retido na Fonte - IRRF | I93: Analítica | J93: 4544339158 | K93: 426656257 | L93: 9.39 | M93: 573998766.4 | N93: 12.63 | O93: 4544339158 | P93: =MID(Receita_PMSP_Tabela5[[#This Row],[COD_FONT_REC]], 6, 3) -> 500 | Q93: =LEFT(Receita_PMSP_Tabela5[[#This Row],[COD_ORIG_RCTA_F]], 10) -> 1.1.1.3.03 | R93: =LEFT(Receita_PMSP_Tabela5[[#This Row],[COD_ORIG_RCTA_F]], 12) -> 1.1.1.3.03.1 | S93: =LEFT(Receita_PMSP_Tabela5[[#This Row],[COD_FONT_REC]], 2) -> 00
A94: 1.1.1.3.03.2.0.00.00.000.000.00.00.000 | B94: IMPOSTO SOBRE A RENDA - RETIDO NA FONTE - CAPITAL | I94: Sintética | J94: 8206016 | K94: 412346.22 | L94: 5.02 | M94: 928664.78 | N94: 11.32 | O94: 8206016 | P94: =MID(Receita_PMSP_Tabela5[[#This Row],[COD_FONT_REC]], 6, 3) ->  | Q94: =LEFT(Receita_PMSP_Tabela5[[#This Row],[COD_ORIG_RCTA_F]], 10) -> 1.1.1.3.03 | R94: =LEFT(Receita_PMSP_Tabela5[[#This Row],[COD_ORIG_RCTA_F]], 12) -> 1.1.1.3.03.2 | S94: =LEFT(Receita_PMSP_Tabela5[[#This Row],[COD_FONT_REC]], 2) -> 
A95: 1.1.1.3.03.2.1.00.00.000.000.00.00.000 | B95: IMPOSTO SOBRE A RENDA - RETIDO NA FONTE - CAPITAL - PRINCIPAL | I95: Sintética | J95: 8206016 | K95: 412346.22 | L95: 5.02 | M95: 928664.78 | N95: 11.32 | O95: 8206016 | P95: =MID(Receita_PMSP_Tabela5[[#This Row],[COD_FONT_REC]], 6, 3) ->  | Q95: =LEFT(Receita_PMSP_Tabela5[[#This Row],[COD_ORIG_RCTA_F]], 10) -> 1.1.1.3.03 | R95: =LEFT(Receita_PMSP_Tabela5[[#This Row],[COD_ORIG_RCTA_F]], 12) -> 1.1.1.3.03.2 | S95: =LEFT(Receita_PMSP_Tabela5[[#This Row],[COD_FONT_REC]], 2) -> 
A96: 1.1.1.3.03.2.1.01.00.000.000.00.00.000 | B96: IMPOSTO SOBRE A RENDA - RETIDO NA FONTE - CAPITAL - PRINCIPAL - PF | I96: Sintética | J96: 8206016 | K96: 412346.22 | L96: 5.02 | M96: 928664.78 | N96: 11.32 | O96: 8206016 | P96: =MID(Receita_PMSP_Tabela5[[#This Row],[COD_FONT_REC]], 6, 3) ->  | Q96: =LEFT(Receita_PMSP_Tabela5[[#This Row],[COD_ORIG_RCTA_F]], 10) -> 1.1.1.3.03 | R96: =LEFT(Receita_PMSP_Tabela5[[#This Row],[COD_ORIG_RCTA_F]], 12) -> 1.1.1.3.03.2 | S96: =LEFT(Receita_PMSP_Tabela5[[#This Row],[COD_FONT_REC]], 2) -> 
A97: 1.1.1.3.03.2.1.01.00.000.000.11.00.000 | B97: IMPOSTO SOBRE A RENDA - RETIDO NA FONTE - CAPITAL - PRINCIPAL - PF | I97: Sintética | J97: 8206016 | K97: 412346.22 | L97: 5.02 | M97: 928664.78 | N97: 11.32 | O97: 8206016 | P97: =MID(Receita_PMSP_Tabela5[[#This Row],[COD_FONT_REC]], 6, 3) ->  | Q97: =LEFT(Receita_PMSP_Tabela5[[#This Row],[COD_ORIG_RCTA_F]], 10) -> 1.1.1.3.03 | R97: =LEFT(Receita_PMSP_Tabela5[[#This Row],[COD_ORIG_RCTA_F]], 12) -> 1.1.1.3.03.2 | S97: =LEFT(Receita_PMSP_Tabela5[[#This Row],[COD_FONT_REC]], 2) -> 
A98: 1.1.1.3.03.2.1.01.00.000.000.11.01.000 | B98: Imposto sobre a Renda - Retido na Fonte - Capital - PF | C98: 00.1.500.9003 | D98: Recursos de Imposto de Renda Retido na Fonte - IRRF | I98: Analítica | J98: 8206016 | K98: 412346.22 | L98: 5.02 | M98: 928664.78 | N98: 11.32 | O98: 8206016 | P98: =MID(Receita_PMSP_Tabela5[[#This Row],[COD_FONT_REC]], 6, 3) -> 500 | Q98: =LEFT(Receita_PMSP_Tabela5[[#This Row],[COD_ORIG_RCTA_F]], 10) -> 1.1.1.3.03 | R98: =LEFT(Receita_PMSP_Tabela5[[#This Row],[COD_ORIG_RCTA_F]], 12) -> 1.1.1.3.03.2 | S98: =LEFT(Receita_PMSP_Tabela5[[#This Row],[COD_FONT_REC]], 2) -> 00
A99: 1.1.1.3.03.3.0.00.00.000.000.00.00.000 | B99: IMPOSTO SOBRE A RENDA - RETIDO NA FONTE - REMESSA AO EXTERIOR | I99: Sintética | J99: 27798587 | K99: 0 | L99: 0 | M99: 0 | N99: 0 | O99: 27798587 | P99: =MID(Receita_PMSP_Tabela5[[#This Row],[COD_FONT_REC]], 6, 3) ->  | Q99: =LEFT(Receita_PMSP_Tabela5[[#This Row],[COD_ORIG_RCTA_F]], 10) -> 1.1.1.3.03 | R99: =LEFT(Receita_PMSP_Tabela5[[#This Row],[COD_ORIG_RCTA_F]], 12) -> 1.1.1.3.03.3 | S99: =LEFT(Receita_PMSP_Tabela5[[#This Row],[COD_FONT_REC]], 2) -> 
A100: 1.1.1.3.03.3.1.00.00.000.000.00.00.000 | B100: IRRF - REMESSA AO EXTERIOR - PRINCIPAL | I100: Sintética | J100: 27798587 | K100: 0 | L100: 0 | M100: 0 | N100: 0 | O100: 27798587 | P100: =MID(Receita_PMSP_Tabela5[[#This Row],[COD_FONT_REC]], 6, 3) ->  | Q100: =LEFT(Receita_PMSP_Tabela5[[#This Row],[COD_ORIG_RCTA_F]], 10) -> 1.1.1.3.03 | R100: =LEFT(Receita_PMSP_Tabela5[[#This Row],[COD_ORIG_RCTA_F]], 12) -> 1.1.1.3.03.3 | S100: =LEFT(Receita_PMSP_Tabela5[[#This Row],[COD_FONT_REC]], 2) -> 
A101: 1.1.1.3.03.3.1.01.00.000.000.00.00.000 | B101: IRRF - REMESSA AO EXTERIOR - PRINCIPAL - PF | I101: Sintética | J101: 160136 | K101: 0 | L101: 0 | M101: 0 | N101: 0 | O101: 160136 | P101: =MID(Receita_PMSP_Tabela5[[#This Row],[COD_FONT_REC]], 6, 3) ->  | Q101: =LEFT(Receita_PMSP_Tabela5[[#This Row],[COD_ORIG_RCTA_F]], 10) -> 1.1.1.3.03 | R101: =LEFT(Receita_PMSP_Tabela5[[#This Row],[COD_ORIG_RCTA_F]], 12) -> 1.1.1.3.03.3 | S101: =LEFT(Receita_PMSP_Tabela5[[#This Row],[COD_FONT_REC]], 2) -> 
A102: 1.1.1.3.03.3.1.01.00.000.000.11.00.000 | B102: IMPOSTO SOBRE A RENDA - RETIDO NA FONTE - REMESSA AO EXTERIOR - PF | I102: Sintética | J102: 160136 | K102: 0 | L102: 0 | M102: 0 | N102: 0 | O102: 160136 | P102: =MID(Receita_PMSP_Tabela5[[#This Row],[COD_FONT_REC]], 6, 3) ->  | Q102: =LEFT(Receita_PMSP_Tabela5[[#This Row],[COD_ORIG_RCTA_F]], 10) -> 1.1.1.3.03 | R102: =LEFT(Receita_PMSP_Tabela5[[#This Row],[COD_ORIG_RCTA_F]], 12) -> 1.1.1.3.03.3 | S102: =LEFT(Receita_PMSP_Tabela5[[#This Row],[COD_FONT_REC]], 2) -> 
A103: 1.1.1.3.03.3.1.01.00.000.000.11.01.000 | B103: Imposto sobre a Renda - Retido na Fonte - Remessa ao Exterior - PF | C103: 00.1.500.9003 | D103: Recursos de Imposto de Renda Retido na Fonte - IRRF | I103: Analítica | J103: 160136 | K103: 0 | L103: 0 | M103: 0 | N103: 0 | O103: 160136 | P103: =MID(Receita_PMSP_Tabela5[[#This Row],[COD_FONT_REC]], 6, 3) -> 500 | Q103: =LEFT(Receita_PMSP_Tabela5[[#This Row],[COD_ORIG_RCTA_F]], 10) -> 1.1.1.3.03 | R103: =LEFT(Receita_PMSP_Tabela5[[#This Row],[COD_ORIG_RCTA_F]], 12) -> 1.1.1.3.03.3 | S103: =LEFT(Receita_PMSP_Tabela5[[#This Row],[COD_FONT_REC]], 2) -> 00
A104: 1.1.1.3.03.3.1.02.00.000.000.00.00.000 | B104: IRRF - REMESSA AO EXTERIOR - PRINCIPAL - PJ | I104: Sintética | J104: 27638451 | K104: 0 | L104: 0 | M104: 0 | N104: 0 | O104: 27638451 | P104: =MID(Receita_PMSP_Tabela5[[#This Row],[COD_FONT_REC]], 6, 3) ->  | Q104: =LEFT(Receita_PMSP_Tabela5[[#This Row],[COD_ORIG_RCTA_F]], 10) -> 1.1.1.3.03 | R104: =LEFT(Receita_PMSP_Tabela5[[#This Row],[COD_ORIG_RCTA_F]], 12) -> 1.1.1.3.03.3 | S104: =LEFT(Receita_PMSP_Tabela5[[#This Row],[COD_FONT_REC]], 2) -> 
A105: 1.1.1.3.03.3.1.02.00.000.000.11.00.000 | B105: IMPOSTO SOBRE A RENDA - RETIDO NA FONTE - REMESSA AO EXTERIOR - PJ | I105: Sintética | J105: 27638451 | K105: 0 | L105: 0 | M105: 0 | N105: 0 | O105: 27638451 | P105: =MID(Receita_PMSP_Tabela5[[#This Row],[COD_FONT_REC]], 6, 3) ->  | Q105: =LEFT(Receita_PMSP_Tabela5[[#This Row],[COD_ORIG_RCTA_F]], 10) -> 1.1.1.3.03 | R105: =LEFT(Receita_PMSP_Tabela5[[#This Row],[COD_ORIG_RCTA_F]], 12) -> 1.1.1.3.03.3 | S105: =LEFT(Receita_PMSP_Tabela5[[#This Row],[COD_FONT_REC]], 2) -> 
A106: 1.1.1.3.03.3.1.02.00.000.000.11.01.000 | B106: Imposto sobre a Renda - Retido na Fonte - Remessa ao Exterior - PJ | C106: 00.1.500.9003 | D106: Recursos de Imposto de Renda Retido na Fonte - IRRF | I106: Analítica | J106: 27638451 | K106: 0 | L106: 0 | M106: 0 | N106: 0 | O106: 27638451 | P106: =MID(Receita_PMSP_Tabela5[[#This Row],[COD_FONT_REC]], 6, 3) -> 500 | Q106: =LEFT(Receita_PMSP_Tabela5[[#This Row],[COD_ORIG_RCTA_F]], 10) -> 1.1.1.3.03 | R106: =LEFT(Receita_PMSP_Tabela5[[#This Row],[COD_ORIG_RCTA_F]], 12) -> 1.1.1.3.03.3 | S106: =LEFT(Receita_PMSP_Tabela5[[#This Row],[COD_FONT_REC]], 2) -> 00
A107: 1.1.1.3.03.4.0.00.00.000.000.00.00.000 | B107: IMPOSTO SOBRE A RENDA - RETIDO NA FONTE - OUTROS RENDIMENTOS | I107: Sintética | J107: 795521529 | K107: 57483123.08 | L107: 7.23 | M107: 99785146.38 | N107: 12.54 | O107: 795521529 | P107: =MID(Receita_PMSP_Tabela5[[#This Row],[COD_FONT_REC]], 6, 3) ->  | Q107: =LEFT(Receita_PMSP_Tabela5[[#This Row],[COD_ORIG_RCTA_F]], 10) -> 1.1.1.3.03 | R107: =LEFT(Receita_PMSP_Tabela5[[#This Row],[COD_ORIG_RCTA_F]], 12) -> 1.1.1.3.03.4 | S107: =LEFT(Receita_PMSP_Tabela5[[#This Row],[COD_FONT_REC]], 2) -> 
A108: 1.1.1.3.03.4.1.00.00.000.000.00.00.000 | B108: IRRF - OUTROS RENDIMENTOS - PRINCIPAL | I108: Sintética | J108: 795521529 | K108: 57483123.08 | L108: 7.23 | M108: 99785146.38 | N108: 12.54 | O108: 795521529 | P108: =MID(Receita_PMSP_Tabela5[[#This Row],[COD_FONT_REC]], 6, 3) ->  | Q108: =LEFT(Receita_PMSP_Tabela5[[#This Row],[COD_ORIG_RCTA_F]], 10) -> 1.1.1.3.03 | R108: =LEFT(Receita_PMSP_Tabela5[[#This Row],[COD_ORIG_RCTA_F]], 12) -> 1.1.1.3.03.4 | S108: =LEFT(Receita_PMSP_Tabela5[[#This Row],[COD_FONT_REC]], 2) -> 
A109: 1.1.1.3.03.4.1.01.00.000.000.00.00.000 | B109: IRRF - OUTROS RENDIMENTOS - PRINCIPAL - PF | I109: Sintética | J109: 7409553 | K109: 5399.03 | L109: 0.07 | M109: 10798.06 | N109: 0.15 | O109: 7409553 | P109: =MID(Receita_PMSP_Tabela5[[#This Row],[COD_FONT_REC]], 6, 3) ->  | Q109: =LEFT(Receita_PMSP_Tabela5[[#This Row],[COD_ORIG_RCTA_F]], 10) -> 1.1.1.3.03 | R109: =LEFT(Receita_PMSP_Tabela5[[#This Row],[COD_ORIG_RCTA_F]], 12) -> 1.1.1.3.03.4 | S109: =LEFT(Receita_PMSP_Tabela5[[#This Row],[COD_FONT_REC]], 2) -> 
A110: 1.1.1.3.03.4.1.01.00.000.000.11.00.000 | B110: IMPOSTO SOBRE A RENDA - RETIDO NA FONTE - OUTROS RENDIMENTOS - PF | I110: Sintética | J110: 7409553 | K110: 5399.03 | L110: 0.07 | M110: 10798.06 | N110: 0.15 | O110: 7409553 | P110: =MID(Receita_PMSP_Tabela5[[#This Row],[COD_FONT_REC]], 6, 3) ->  | Q110: =LEFT(Receita_PMSP_Tabela5[[#This Row],[COD_ORIG_RCTA_F]], 10) -> 1.1.1.3.03 | R110: =LEFT(Receita_PMSP_Tabela5[[#This Row],[COD_ORIG_RCTA_F]], 12) -> 1.1.1.3.03.4 | S110: =LEFT(Receita_PMSP_Tabela5[[#This Row],[COD_FONT_REC]], 2) -> 
A111: 1.1.1.3.03.4.1.01.00.000.000.11.01.000 | B111: Imposto sobre a Renda - Retido na Fonte - Outros Rendimentos - PF | C111: 00.1.500.9003 | D111: Recursos de Imposto de Renda Retido na Fonte - IRRF | I111: Analítica | J111: 7409553 | K111: 5399.03 | L111: 0.07 | M111: 10798.06 | N111: 0.15 | O111: 7409553 | P111: =MID(Receita_PMSP_Tabela5[[#This Row],[COD_FONT_REC]], 6, 3) -> 500 | Q111: =LEFT(Receita_PMSP_Tabela5[[#This Row],[COD_ORIG_RCTA_F]], 10) -> 1.1.1.3.03 | R111: =LEFT(Receita_PMSP_Tabela5[[#This Row],[COD_ORIG_RCTA_F]], 12) -> 1.1.1.3.03.4 | S111: =LEFT(Receita_PMSP_Tabela5[[#This Row],[COD_FONT_REC]], 2) -> 00
A112: 1.1.1.3.03.4.1.02.00.000.000.00.00.000 | B112: IRRF - OUTROS RENDIMENTOS - PRINCIPAL - PJ | I112: Sintética | J112: 788111976 | K112: 57477724.05 | L112: 7.29 | M112: 99774348.32 | N112: 12.66 | O112: 788111976 | P112: =MID(Receita_PMSP_Tabela5[[#This Row],[COD_FONT_REC]], 6, 3) ->  | Q112: =LEFT(Receita_PMSP_Tabela5[[#This Row],[COD_ORIG_RCTA_F]], 10) -> 1.1.1.3.03 | R112: =LEFT(Receita_PMSP_Tabela5[[#This Row],[COD_ORIG_RCTA_F]], 12) -> 1.1.1.3.03.4 | S112: =LEFT(Receita_PMSP_Tabela5[[#This Row],[COD_FONT_REC]], 2) -> 
A113: 1.1.1.3.03.4.1.02.00.000.000.11.00.000 | B113: IMPOSTO SOBRE A RENDA - RETIDO NA FONTE - OUTROS RENDIMENTOS - PJ | I113: Sintética | J113: 788111976 | K113: 57477724.05 | L113: 7.29 | M113: 99774348.32 | N113: 12.66 | O113: 788111976 | P113: =MID(Receita_PMSP_Tabela5[[#This Row],[COD_FONT_REC]], 6, 3) ->  | Q113: =LEFT(Receita_PMSP_Tabela5[[#This Row],[COD_ORIG_RCTA_F]], 10) -> 1.1.1.3.03 | R113: =LEFT(Receita_PMSP_Tabela5[[#This Row],[COD_ORIG_RCTA_F]], 12) -> 1.1.1.3.03.4 | S113: =LEFT(Receita_PMSP_Tabela5[[#This Row],[COD_FONT_REC]], 2) -> 
A114: 1.1.1.3.03.4.1.02.00.000.000.11.01.000 | B114: Imposto sobre a Renda - Retido na Fonte - Outros Rendimentos - PJ | C114: 00.1.500.9003 | D114: Recursos de Imposto de Renda Retido na Fonte - IRRF | I114: Analítica | J114: 788111976 | K114: 57541666.62 | L114: 7.3 | M114: 99838554.89 | N114: 12.67 | O114: 788111976 | P114: =MID(Receita_PMSP_Tabela5[[#This Row],[COD_FONT_REC]], 6, 3) -> 500 | Q114: =LEFT(Receita_PMSP_Tabela5[[#This Row],[COD_ORIG_RCTA_F]], 10) -> 1.1.1.3.03 | R114: =LEFT(Receita_PMSP_Tabela5[[#This Row],[COD_ORIG_RCTA_F]], 12) -> 1.1.1.3.03.4 | S114: =LEFT(Receita_PMSP_Tabela5[[#This Row],[COD_FONT_REC]], 2) -> 00
A115: 1.1.1.3.03.4.1.02.00.000.000.11.09.000 | B115: TOTAL DE DEDUÇÕES DO IRRF - OUTROS RENDIMENTOS - PJ | I115: Sintética | J115: 0 | K115: -63942.57 | L115: 0 | M115: -64206.57 | N115: 0 | O115: 0 | P115: =MID(Receita_PMSP_Tabela5[[#This Row],[COD_FONT_REC]], 6, 3) ->  | Q115: =LEFT(Receita_PMSP_Tabela5[[#This Row],[COD_ORIG_RCTA_F]], 10) -> 1.1.1.3.03 | R115: =LEFT(Receita_PMSP_Tabela5[[#This Row],[COD_ORIG_RCTA_F]], 12) -> 1.1.1.3.03.4 | S115: =LEFT(Receita_PMSP_Tabela5[[#This Row],[COD_FONT_REC]], 2) -> 
A116: 1.1.1.3.03.4.1.02.00.000.000.11.09.001 | B116: Deduções do IRRF - Outros Rendimentos - PJ | C116: 00.1.500.9003 | D116: Recursos de Imposto de Renda Retido na Fonte - IRRF | I116: Analítica | J116: 0 | K116: -63942.57 | L116: 0 | M116: -64206.57 | N116: 0 | O116: 0 | P116: =MID(Receita_PMSP_Tabela5[[#This Row],[COD_FONT_REC]], 6, 3) -> 500 | Q116: =LEFT(Receita_PMSP_Tabela5[[#This Row],[COD_ORIG_RCTA_F]], 10) -> 1.1.1.3.03 | R116: =LEFT(Receita_PMSP_Tabela5[[#This Row],[COD_ORIG_RCTA_F]], 12) -> 1.1.1.3.03.4 | S116: =LEFT(Receita_PMSP_Tabela5[[#This Row],[COD_FONT_REC]], 2) -> 00
A117: 1.1.1.4.00.0.0.00.00.000.000.00.00.000 | B117: IMPOSTOS SOBRE A PRODUÇÃO E CIRCULAÇÃO DE MERCADORIAS E SERVIÇOS | I117: Sintética | J117: 37559875557 | K117: 3071680576 | L117: 8.18 | M117: 6728799864 | N117: 17.91 | O117: 37559875557 | P117: =MID(Receita_PMSP_Tabela5[[#This Row],[COD_FONT_REC]], 6, 3) ->  | Q117: =LEFT(Receita_PMSP_Tabela5[[#This Row],[COD_ORIG_RCTA_F]], 10) -> 1.1.1.4.00 | R117: =LEFT(Receita_PMSP_Tabela5[[#This Row],[COD_ORIG_RCTA_F]], 12) -> 1.1.1.4.00.0 | S117: =LEFT(Receita_PMSP_Tabela5[[#This Row],[COD_FONT_REC]], 2) -> 
A118: 1.1.1.4.51.0.0.00.00.000.000.00.00.000 | B118: IMPOSTOS SOBRE SERVIÇOS | I118: Sintética | J118: 37559875557 | K118: 3071679810 | L118: 8.18 | M118: 6728798339 | N118: 17.91 | O118: 37559875557 | P118: =MID(Receita_PMSP_Tabela5[[#This Row],[COD_FONT_REC]], 6, 3) ->  | Q118: =LEFT(Receita_PMSP_Tabela5[[#This Row],[COD_ORIG_RCTA_F]], 10) -> 1.1.1.4.51 | R118: =LEFT(Receita_PMSP_Tabela5[[#This Row],[COD_ORIG_RCTA_F]], 12) -> 1.1.1.4.51.0 | S118: =LEFT(Receita_PMSP_Tabela5[[#This Row],[COD_FONT_REC]], 2) -> 
A119: 1.1.1.4.51.1.0.00.00.000.000.00.00.000 | B119: IMPOSTO SOBRE SERVIÇOS DE QUALQUER NATUREZA | I119: Sintética | J119: 37559875557 | K119: 3071679810 | L119: 8.18 | M119: 6728798339 | N119: 17.91 | O119: 37559875557 | P119: =MID(Receita_PMSP_Tabela5[[#This Row],[COD_FONT_REC]], 6, 3) ->  | Q119: =LEFT(Receita_PMSP_Tabela5[[#This Row],[COD_ORIG_RCTA_F]], 10) -> 1.1.1.4.51 | R119: =LEFT(Receita_PMSP_Tabela5[[#This Row],[COD_ORIG_RCTA_F]], 12) -> 1.1.1.4.51.1 | S119: =LEFT(Receita_PMSP_Tabela5[[#This Row],[COD_FONT_REC]], 2) -> 
A120: 1.1.1.4.51.1.1.00.00.000.000.00.00.000 | B120: IMPOSTO SOBRE SERVIÇOS DE QUALQUER NATUREZA - PRINCIPAL | I120: Sintética | J120: 36466235277 | K120: 2865447399 | L120: 7.86 | M120: 6352395639 | N120: 17.42 | O120: 36466235277 | P120: =MID(Receita_PMSP_Tabela5[[#This Row],[COD_FONT_REC]], 6, 3) ->  | Q120: =LEFT(Receita_PMSP_Tabela5[[#This Row],[COD_ORIG_RCTA_F]], 10) -> 1.1.1.4.51 | R120: =LEFT(Receita_PMSP_Tabela5[[#This Row],[COD_ORIG_RCTA_F]], 12) -> 1.1.1.4.51.1 | S120: =LEFT(Receita_PMSP_Tabela5[[#This Row],[COD_FONT_REC]], 2) -> 
A121: 1.1.1.4.51.1.1.01.00.000.000.00.00.000 | B121: IMPOSTO SOBRE SERVIÇOS DE QUALQUER NATUREZA | I121: Sintética | J121: 32939248614 | K121: 2602466797 | L121: 7.9 | M121: 5758119686 | N121: 17.48 | O121: 32939248614 | P121: =MID(Receita_PMSP_Tabela5[[#This Row],[COD_FONT_REC]], 6, 3) ->  | Q121: =LEFT(Receita_PMSP_Tabela5[[#This Row],[COD_ORIG_RCTA_F]], 10) -> 1.1.1.4.51 | R121: =LEFT(Receita_PMSP_Tabela5[[#This Row],[COD_ORIG_RCTA_F]], 12) -> 1.1.1.4.51.1 | S121: =LEFT(Receita_PMSP_Tabela5[[#This Row],[COD_FONT_REC]], 2) -> 
A122: 1.1.1.4.51.1.1.01.00.000.000.11.00.000 | B122: IMPOSTO SOBRE SERVIÇOS DE QUALQUER NATUREZA | I122: Sintética | J122: 32645445540 | K122: 2553346975 | L122: 7.82 | M122: 5638039512 | N122: 17.27 | O122: 32645445540 | P122: =MID(Receita_PMSP_Tabela5[[#This Row],[COD_FONT_REC]], 6, 3) ->  | Q122: =LEFT(Receita_PMSP_Tabela5[[#This Row],[COD_ORIG_RCTA_F]], 10) -> 1.1.1.4.51 | R122: =LEFT(Receita_PMSP_Tabela5[[#This Row],[COD_ORIG_RCTA_F]], 12) -> 1.1.1.4.51.1 | S122: =LEFT(Receita_PMSP_Tabela5[[#This Row],[COD_FONT_REC]], 2) -> 
A123: 1.1.1.4.51.1.1.01.00.000.000.11.01.000 | B123: Imposto sobre Serviços de Qualquer Natureza | C123: 00.1.500.9001 | D123: Recursos não vinculados de Impostos | I123: Analítica | J123: 32706633433 | K123: 2557967065 | L123: 7.82 | M123: 5646803296 | N123: 17.27 | O123: 32706633433 | P123: =MID(Receita_PMSP_Tabela5[[#This Row],[COD_FONT_REC]], 6, 3) -> 500 | Q123: =LEFT(Receita_PMSP_Tabela5[[#This Row],[COD_ORIG_RCTA_F]], 10) -> 1.1.1.4.51 | R123: =LEFT(Receita_PMSP_Tabela5[[#This Row],[COD_ORIG_RCTA_F]], 12) -> 1.1.1.4.51.1 | S123: =LEFT(Receita_PMSP_Tabela5[[#This Row],[COD_FONT_REC]], 2) -> 00
A124: 1.1.1.4.51.1.1.01.00.000.000.11.09.000 | B124: TOTAL DEDUÇÕES IMPOSTO SOBRE SERVIÇOS DE QUALQUER NATUREZA | I124: Sintética | J124: -61187893 | K124: -4620090.39 | L124: 7.55 | M124: -8763784.25 | N124: 14.32 | O124: -61187893 | P124: =MID(Receita_PMSP_Tabela5[[#This Row],[COD_FONT_REC]], 6, 3) ->  | Q124: =LEFT(Receita_PMSP_Tabela5[[#This Row],[COD_ORIG_RCTA_F]], 10) -> 1.1.1.4.51 | R124: =LEFT(Receita_PMSP_Tabela5[[#This Row],[COD_ORIG_RCTA_F]], 12) -> 1.1.1.4.51.1 | S124: =LEFT(Receita_PMSP_Tabela5[[#This Row],[COD_FONT_REC]], 2) -> 
A125: 1.1.1.4.51.1.1.01.00.000.000.11.09.001 | B125: Deduções Imposto sobre Serviços de Qualquer Natureza | C125: 00.1.500.9001 | D125: Recursos não vinculados de Impostos | I125: Analítica | J125: -61187893 | K125: -4620090.39 | L125: 7.55 | M125: -8763784.25 | N125: 14.32 | O125: -61187893 | P125: =MID(Receita_PMSP_Tabela5[[#This Row],[COD_FONT_REC]], 6, 3) -> 500 | Q125: =LEFT(Receita_PMSP_Tabela5[[#This Row],[COD_ORIG_RCTA_F]], 10) -> 1.1.1.4.51 | R125: =LEFT(Receita_PMSP_Tabela5[[#This Row],[COD_ORIG_RCTA_F]], 12) -> 1.1.1.4.51.1 | S125: =LEFT(Receita_PMSP_Tabela5[[#This Row],[COD_FONT_REC]], 2) -> 00
A126: 1.1.1.4.51.1.1.01.00.000.000.12.00.000 | B126: PARCELAMENTO IMPOSTO SOBRE SERVIÇOS DE QUALQUER NATUREZA | I126: Sintética | J126: 293803074 | K126: 49119822.16 | L126: 16.72 | M126: 120080174.2 | N126: 40.87 | O126: 293803074 | P126: =MID(Receita_PMSP_Tabela5[[#This Row],[COD_FONT_REC]], 6, 3) ->  | Q126: =LEFT(Receita_PMSP_Tabela5[[#This Row],[COD_ORIG_RCTA_F]], 10) -> 1.1.1.4.51 | R126: =LEFT(Receita_PMSP_Tabela5[[#This Row],[COD_ORIG_RCTA_F]], 12) -> 1.1.1.4.51.1 | S126: =LEFT(Receita_PMSP_Tabela5[[#This Row],[COD_FONT_REC]], 2) -> 
A127: 1.1.1.4.51.1.1.01.00.000.000.12.01.000 | B127: TOTAL PARCELAMENTO IMPOSTO SOBRE SERVIÇOS DE QUALQUER NATUREZA | I127: Sintética | J127: 293803074 | K127: 49119822.16 | L127: 16.72 | M127: 120080174.2 | N127: 40.87 | O127: 293803074 | P127: =MID(Receita_PMSP_Tabela5[[#This Row],[COD_FONT_REC]], 6, 3) ->  | Q127: =LEFT(Receita_PMSP_Tabela5[[#This Row],[COD_ORIG_RCTA_F]], 10) -> 1.1.1.4.51 | R127: =LEFT(Receita_PMSP_Tabela5[[#This Row],[COD_ORIG_RCTA_F]], 12) -> 1.1.1.4.51.1 | S127: =LEFT(Receita_PMSP_Tabela5[[#This Row],[COD_FONT_REC]], 2) -> 
A128: 1.1.1.4.51.1.1.01.00.000.000.12.01.001 | B128: PPI - Imposto sobre Serviços de Qualquer Natureza | C128: 00.1.500.9001 | D128: Recursos não vinculados de Impostos | I128: Analítica | J128: 153689468 | K128: 37411220.95 | L128: 24.34 | M128: 95508286.99 | N128: 62.14 | O128: 153689468 | P128: =MID(Receita_PMSP_Tabela5[[#This Row],[COD_FONT_REC]], 6, 3) -> 500 | Q128: =LEFT(Receita_PMSP_Tabela5[[#This Row],[COD_ORIG_RCTA_F]], 10) -> 1.1.1.4.51 | R128: =LEFT(Receita_PMSP_Tabela5[[#This Row],[COD_ORIG_RCTA_F]], 12) -> 1.1.1.4.51.1 | S128: =LEFT(Receita_PMSP_Tabela5[[#This Row],[COD_FONT_REC]], 2) -> 00
A129: 1.1.1.4.51.1.1.01.00.000.000.12.01.002 | B129: PAT - Imposto sobre Serviços de Qualquer Natureza | C129: 00.1.500.9001 | D129: Recursos não vinculados de Impostos | I129: Analítica | J129: 115725077 | K129: 9615985.82 | L129: 8.31 | M129: 20446844.48 | N129: 17.67 | O129: 115725077 | P129: =MID(Receita_PMSP_Tabela5[[#This Row],[COD_FONT_REC]], 6, 3) -> 500 | Q129: =LEFT(Receita_PMSP_Tabela5[[#This Row],[COD_ORIG_RCTA_F]], 10) -> 1.1.1.4.51 | R129: =LEFT(Receita_PMSP_Tabela5[[#This Row],[COD_ORIG_RCTA_F]], 12) -> 1.1.1.4.51.1 | S129: =LEFT(Receita_PMSP_Tabela5[[#This Row],[COD_FONT_REC]], 2) -> 00
A130: 1.1.1.4.51.1.1.01.00.000.000.12.01.004 | B130: PRD - Imposto sobre Serviços de Qualquer Natureza | C130: 00.1.500.9001 | D130: Recursos não vinculados de Impostos | I130: Analítica | J130: 24387529 | K130: 2092547.01 | L130: 8.58 | M130: 4124906.63 | N130: 16.91 | O130: 24387529 | P130: =MID(Receita_PMSP_Tabela5[[#This Row],[COD_FONT_REC]], 6, 3) -> 500 | Q130: =LEFT(Receita_PMSP_Tabela5[[#This Row],[COD_ORIG_RCTA_F]], 10) -> 1.1.1.4.51 | R130: =LEFT(Receita_PMSP_Tabela5[[#This Row],[COD_ORIG_RCTA_F]], 12) -> 1.1.1.4.51.1 | S130: =LEFT(Receita_PMSP_Tabela5[[#This Row],[COD_FONT_REC]], 2) -> 00
A131: 1.1.1.4.51.1.1.01.00.000.000.12.01.007 | B131: PIME - Imposto sobre Serviços de Qualquer Natureza | C131: 00.1.500.9001 | D131: Recursos não vinculados de Impostos | I131: Analítica | J131: 1000 | K131: 68.38 | L131: 6.84 | M131: 136.08 | N131: 13.61 | O131: 1000 | P131: =MID(Receita_PMSP_Tabela5[[#This Row],[COD_FONT_REC]], 6, 3) -> 500 | Q131: =LEFT(Receita_PMSP_Tabela5[[#This Row],[COD_ORIG_RCTA_F]], 10) -> 1.1.1.4.51 | R131: =LEFT(Receita_PMSP_Tabela5[[#This Row],[COD_ORIG_RCTA_F]], 12) -> 1.1.1.4.51.1 | S131: =LEFT(Receita_PMSP_Tabela5[[#This Row],[COD_FONT_REC]], 2) -> 00
A132: 1.1.1.4.51.1.1.03.00.000.000.00.00.000 | B132: ISS - SIMPLES NACIONAL | I132: Sintética | J132: 3526986663 | K132: 262980602 | L132: 7.46 | M132: 594275952.6 | N132: 16.85 | O132: 3526986663 | P132: =MID(Receita_PMSP_Tabela5[[#This Row],[COD_FONT_REC]], 6, 3) ->  | Q132: =LEFT(Receita_PMSP_Tabela5[[#This Row],[COD_ORIG_RCTA_F]], 10) -> 1.1.1.4.51 | R132: =LEFT(Receita_PMSP_Tabela5[[#This Row],[COD_ORIG_RCTA_F]], 12) -> 1.1.1.4.51.1 | S132: =LEFT(Receita_PMSP_Tabela5[[#This Row],[COD_FONT_REC]], 2) -> 
A133: 1.1.1.4.51.1.1.03.00.000.000.11.00.000 | B133: ISS - SIMPLES NACIONAL | I133: Sintética | J133: 3526986663 | K133: 262980602 | L133: 7.46 | M133: 594275952.6 | N133: 16.85 | O133: 3526986663 | P133: =MID(Receita_PMSP_Tabela5[[#This Row],[COD_FONT_REC]], 6, 3) ->  | Q133: =LEFT(Receita_PMSP_Tabela5[[#This Row],[COD_ORIG_RCTA_F]], 10) -> 1.1.1.4.51 | R133: =LEFT(Receita_PMSP_Tabela5[[#This Row],[COD_ORIG_RCTA_F]], 12) -> 1.1.1.4.51.1 | S133: =LEFT(Receita_PMSP_Tabela5[[#This Row],[COD_FONT_REC]], 2) -> 
A134: 1.1.1.4.51.1.1.03.00.000.000.11.01.000 | B134: ISS - Simples Nacional | C134: 00.1.500.9001 | D134: Recursos não vinculados de Impostos | I134: Analítica | J134: 3526986663 | K134: 263000163.2 | L134: 7.46 | M134: 594306346.9 | N134: 16.85 | O134: 3526986663 | P134: =MID(Receita_PMSP_Tabela5[[#This Row],[COD_FONT_REC]], 6, 3) -> 500 | Q134: =LEFT(Receita_PMSP_Tabela5[[#This Row],[COD_ORIG_RCTA_F]], 10) -> 1.1.1.4.51 | R134: =LEFT(Receita_PMSP_Tabela5[[#This Row],[COD_ORIG_RCTA_F]], 12) -> 1.1.1.4.51.1 | S134: =LEFT(Receita_PMSP_Tabela5[[#This Row],[COD_FONT_REC]], 2) -> 00
A135: 1.1.1.4.51.1.1.03.00.000.000.11.09.000 | B135: TOTAL DE DEDUÇÕES ISS - SIMPLES NACIONAL | I135: Sintética | J135: 0 | K135: -19561.15 | L135: 0 | M135: -30394.3 | N135: 0 | O135: 0 | P135: =MID(Receita_PMSP_Tabela5[[#This Row],[COD_FONT_REC]], 6, 3) ->  | Q135: =LEFT(Receita_PMSP_Tabela5[[#This Row],[COD_ORIG_RCTA_F]], 10) -> 1.1.1.4.51 | R135: =LEFT(Receita_PMSP_Tabela5[[#This Row],[COD_ORIG_RCTA_F]], 12) -> 1.1.1.4.51.1 | S135: =LEFT(Receita_PMSP_Tabela5[[#This Row],[COD_FONT_REC]], 2) -> 
A136: 1.1.1.4.51.1.1.03.00.000.000.11.09.001 | B136: Deduções ISS - Simples Nacional | C136: 00.1.500.9001 | D136: Recursos não vinculados de Impostos | I136: Analítica | J136: 0 | K136: -19561.15 | L136: 0 | M136: -30394.3 | N136: 0 | O136: 0 | P136: =MID(Receita_PMSP_Tabela5[[#This Row],[COD_FONT_REC]], 6, 3) -> 500 | Q136: =LEFT(Receita_PMSP_Tabela5[[#This Row],[COD_ORIG_RCTA_F]], 10) -> 1.1.1.4.51 | R136: =LEFT(Receita_PMSP_Tabela5[[#This Row],[COD_ORIG_RCTA_F]], 12) -> 1.1.1.4.51.1 | S136: =LEFT(Receita_PMSP_Tabela5[[#This Row],[COD_FONT_REC]], 2) -> 00
A137: 1.1.1.4.51.1.2.00.00.000.000.00.00.000 | B137: IMPOSTO SOBRE SERVIÇOS DE QUALQUER NATUREZA - MULTAS E JUROS | I137: Sintética | J137: 325813375 | K137: 30087359.88 | L137: 9.23 | M137: 63518567 | N137: 19.5 | O137: 325813375 | P137: =MID(Receita_PMSP_Tabela5[[#This Row],[COD_FONT_REC]], 6, 3) ->  | Q137: =LEFT(Receita_PMSP_Tabela5[[#This Row],[COD_ORIG_RCTA_F]], 10) -> 1.1.1.4.51 | R137: =LEFT(Receita_PMSP_Tabela5[[#This Row],[COD_ORIG_RCTA_F]], 12) -> 1.1.1.4.51.1 | S137: =LEFT(Receita_PMSP_Tabela5[[#This Row],[COD_FONT_REC]], 2) -> 
A138: 1.1.1.4.51.1.2.01.00.000.000.00.00.000 | B138: IMPOSTO SOBRE SERVIÇOS DE QUALQUER NATUREZA - MULTAS E JUROS | I138: Sintética | J138: 251735862 | K138: 24328175.23 | L138: 9.66 | M138: 48890353.05 | N138: 19.42 | O138: 251735862 | P138: =MID(Receita_PMSP_Tabela5[[#This Row],[COD_FONT_REC]], 6, 3) ->  | Q138: =LEFT(Receita_PMSP_Tabela5[[#This Row],[COD_ORIG_RCTA_F]], 10) -> 1.1.1.4.51 | R138: =LEFT(Receita_PMSP_Tabela5[[#This Row],[COD_ORIG_RCTA_F]], 12) -> 1.1.1.4.51.1 | S138: =LEFT(Receita_PMSP_Tabela5[[#This Row],[COD_FONT_REC]], 2) -> 
A139: 1.1.1.4.51.1.2.01.00.000.000.11.00.000 | B139: IMPOSTO SOBRE SERVIÇOS DE QUALQUER NATUREZA - MULTAS E JUROS | I139: Sintética | J139: 128964455 | K139: 10030242.38 | L139: 7.78 | M139: 22715945.92 | N139: 17.61 | O139: 128964455 | P139: =MID(Receita_PMSP_Tabela5[[#This Row],[COD_FONT_REC]], 6, 3) ->  | Q139: =LEFT(Receita_PMSP_Tabela5[[#This Row],[COD_ORIG_RCTA_F]], 10) -> 1.1.1.4.51 | R139: =LEFT(Receita_PMSP_Tabela5[[#This Row],[COD_ORIG_RCTA_F]], 12) -> 1.1.1.4.51.1 | S139: =LEFT(Receita_PMSP_Tabela5[[#This Row],[COD_FONT_REC]], 2) -> 
A140: 1.1.1.4.51.1.2.01.00.000.000.11.01.000 | B140: Imposto sobre Serviços de Qualquer Natureza - Multas e Juros | C140: 00.1.500.9001 | D140: Recursos não vinculados de Impostos | I140: Analítica | J140: 128964455 | K140: 10030242.38 | L140: 7.78 | M140: 22715945.92 | N140: 17.61 | O140: 128964455 | P140: =MID(Receita_PMSP_Tabela5[[#This Row],[COD_FONT_REC]], 6, 3) -> 500 | Q140: =LEFT(Receita_PMSP_Tabela5[[#This Row],[COD_ORIG_RCTA_F]], 10) -> 1.1.1.4.51 | R140: =LEFT(Receita_PMSP_Tabela5[[#This Row],[COD_ORIG_RCTA_F]], 12) -> 1.1.1.4.51.1 | S140: =LEFT(Receita_PMSP_Tabela5[[#This Row],[COD_FONT_REC]], 2) -> 00
A141: 1.1.1.4.51.1.2.01.00.000.000.12.00.000 | B141: PARCELAMENTO IMPOSTO SOBRE SERVIÇOS DE QUALQUER NATUREZA - MULTAS E JU | I141: Sintética | J141: 122771407 | K141: 14297932.85 | L141: 11.65 | M141: 26174407.13 | N141: 21.32 | O141: 122771407 | P141: =MID(Receita_PMSP_Tabela5[[#This Row],[COD_FONT_REC]], 6, 3) ->  | Q141: =LEFT(Receita_PMSP_Tabela5[[#This Row],[COD_ORIG_RCTA_F]], 10) -> 1.1.1.4.51 | R141: =LEFT(Receita_PMSP_Tabela5[[#This Row],[COD_ORIG_RCTA_F]], 12) -> 1.1.1.4.51.1 | S141: =LEFT(Receita_PMSP_Tabela5[[#This Row],[COD_FONT_REC]], 2) -> 
A142: 1.1.1.4.51.1.2.01.00.000.000.12.01.000 | B142: TOTAL PARCELAMENTO IMPOSTO SOBRE SERVIÇOS DE QUALQUER NATUREZA - MULTA | I142: Sintética | J142: 122771407 | K142: 14297932.85 | L142: 11.65 | M142: 26174407.13 | N142: 21.32 | O142: 122771407 | P142: =MID(Receita_PMSP_Tabela5[[#This Row],[COD_FONT_REC]], 6, 3) ->  | Q142: =LEFT(Receita_PMSP_Tabela5[[#This Row],[COD_ORIG_RCTA_F]], 10) -> 1.1.1.4.51 | R142: =LEFT(Receita_PMSP_Tabela5[[#This Row],[COD_ORIG_RCTA_F]], 12) -> 1.1.1.4.51.1 | S142: =LEFT(Receita_PMSP_Tabela5[[#This Row],[COD_FONT_REC]], 2) -> 
A143: 1.1.1.4.51.1.2.01.00.000.000.12.01.001 | B143: PPI - Imposto sobre Serviços de Qualquer Natureza - Multas e Juros | C143: 00.1.500.9001 | D143: Recursos não vinculados de Impostos | I143: Analítica | J143: 66285739 | K143: 10166635.64 | L143: 15.34 | M143: 17426744.98 | N143: 26.29 | O143: 66285739 | P143: =MID(Receita_PMSP_Tabela5[[#This Row],[COD_FONT_REC]], 6, 3) -> 500 | Q143: =LEFT(Receita_PMSP_Tabela5[[#This Row],[COD_ORIG_RCTA_F]], 10) -> 1.1.1.4.51 | R143: =LEFT(Receita_PMSP_Tabela5[[#This Row],[COD_ORIG_RCTA_F]], 12) -> 1.1.1.4.51.1 | S143: =LEFT(Receita_PMSP_Tabela5[[#This Row],[COD_FONT_REC]], 2) -> 00
A144: 1.1.1.4.51.1.2.01.00.000.000.12.01.002 | B144: PAT - Imposto sobre Serviços de Qualquer Natureza - Multas e Juros | C144: 00.1.500.9001 | D144: Recursos não vinculados de Impostos | I144: Analítica | J144: 48104029 | K144: 3311670.8 | L144: 6.88 | M144: 7129278.07 | N144: 14.82 | O144: 48104029 | P144: =MID(Receita_PMSP_Tabela5[[#This Row],[COD_FONT_REC]], 6, 3) -> 500 | Q144: =LEFT(Receita_PMSP_Tabela5[[#This Row],[COD_ORIG_RCTA_F]], 10) -> 1.1.1.4.51 | R144: =LEFT(Receita_PMSP_Tabela5[[#This Row],[COD_ORIG_RCTA_F]], 12) -> 1.1.1.4.51.1 | S144: =LEFT(Receita_PMSP_Tabela5[[#This Row],[COD_FONT_REC]], 2) -> 00
A145: 1.1.1.4.51.1.2.01.00.000.000.12.01.004 | B145: PRD - Imposto sobre Serviços de Qualquer Natureza - Multas e Juros | C145: 00.1.500.9001 | D145: Recursos não vinculados de Impostos | I145: Analítica | J145: 8380639 | K145: 819586.87 | L145: 9.78 | M145: 1618305.4 | N145: 19.31 | O145: 8380639 | P145: =MID(Receita_PMSP_Tabela5[[#This Row],[COD_FONT_REC]], 6, 3) -> 500 | Q145: =LEFT(Receita_PMSP_Tabela5[[#This Row],[COD_ORIG_RCTA_F]], 10) -> 1.1.1.4.51 | R145: =LEFT(Receita_PMSP_Tabela5[[#This Row],[COD_ORIG_RCTA_F]], 12) -> 1.1.1.4.51.1 | S145: =LEFT(Receita_PMSP_Tabela5[[#This Row],[COD_FONT_REC]], 2) -> 00
A146: 1.1.1.4.51.1.2.01.00.000.000.12.01.007 | B146: PIME - Imposto sobre Serviços de Qualquer Natureza - Multas e Juros | C146: 00.1.500.9001 | D146: Recursos não vinculados de Impostos | I146: Analítica | J146: 1000 | K146: 39.54 | L146: 3.95 | M146: 78.68 | N146: 7.87 | O146: 1000 | P146: =MID(Receita_PMSP_Tabela5[[#This Row],[COD_FONT_REC]], 6, 3) -> 500 | Q146: =LEFT(Receita_PMSP_Tabela5[[#This Row],[COD_ORIG_RCTA_F]], 10) -> 1.1.1.4.51 | R146: =LEFT(Receita_PMSP_Tabela5[[#This Row],[COD_ORIG_RCTA_F]], 12) -> 1.1.1.4.51.1 | S146: =LEFT(Receita_PMSP_Tabela5[[#This Row],[COD_FONT_REC]], 2) -> 00
A147: 1.1.1.4.51.1.2.03.00.000.000.00.00.000 | B147: ISS - SIMPLES NACIONAL - MULTAS E JUROS | I147: Sintética | J147: 74077513 | K147: 5759184.65 | L147: 7.77 | M147: 14628213.95 | N147: 19.75 | O147: 74077513 | P147: =MID(Receita_PMSP_Tabela5[[#This Row],[COD_FONT_REC]], 6, 3) ->  | Q147: =LEFT(Receita_PMSP_Tabela5[[#This Row],[COD_ORIG_RCTA_F]], 10) -> 1.1.1.4.51 | R147: =LEFT(Receita_PMSP_Tabela5[[#This Row],[COD_ORIG_RCTA_F]], 12) -> 1.1.1.4.51.1 | S147: =LEFT(Receita_PMSP_Tabela5[[#This Row],[COD_FONT_REC]], 2) -> 
A148: 1.1.1.4.51.1.2.03.00.000.000.11.00.000 | B148: ISS - SIMPLES NACIONAL - MULTAS E JUROS | I148: Sintética | J148: 74077513 | K148: 5759184.65 | L148: 7.77 | M148: 14628213.95 | N148: 19.75 | O148: 74077513 | P148: =MID(Receita_PMSP_Tabela5[[#This Row],[COD_FONT_REC]], 6, 3) ->  | Q148: =LEFT(Receita_PMSP_Tabela5[[#This Row],[COD_ORIG_RCTA_F]], 10) -> 1.1.1.4.51 | R148: =LEFT(Receita_PMSP_Tabela5[[#This Row],[COD_ORIG_RCTA_F]], 12) -> 1.1.1.4.51.1 | S148: =LEFT(Receita_PMSP_Tabela5[[#This Row],[COD_FONT_REC]], 2) -> 
A149: 1.1.1.4.51.1.2.03.00.000.000.11.01.000 | B149: ISS - Simples Nacional - Multas e Juros | C149: 00.1.500.9001 | D149: Recursos não vinculados de Impostos | I149: Analítica | J149: 74077513 | K149: 5759184.65 | L149: 7.77 | M149: 14628213.95 | N149: 19.75 | O149: 74077513 | P149: =MID(Receita_PMSP_Tabela5[[#This Row],[COD_FONT_REC]], 6, 3) -> 500 | Q149: =LEFT(Receita_PMSP_Tabela5[[#This Row],[COD_ORIG_RCTA_F]], 10) -> 1.1.1.4.51 | R149: =LEFT(Receita_PMSP_Tabela5[[#This Row],[COD_ORIG_RCTA_F]], 12) -> 1.1.1.4.51.1 | S149: =LEFT(Receita_PMSP_Tabela5[[#This Row],[COD_FONT_REC]], 2) -> 00
A150: 1.1.1.4.51.1.3.00.00.000.000.00.00.000 | B150: IMPOSTO SOBRE SERVIÇOS DE QUALQUER NATUREZA - DÍVIDA ATIVA | I150: Sintética | J150: 574044649 | K150: 144821581.2 | L150: 25.23 | M150: 254561031.2 | N150: 44.35 | O150: 574044649 | P150: =MID(Receita_PMSP_Tabela5[[#This Row],[COD_FONT_REC]], 6, 3) ->  | Q150: =LEFT(Receita_PMSP_Tabela5[[#This Row],[COD_ORIG_RCTA_F]], 10) -> 1.1.1.4.51 | R150: =LEFT(Receita_PMSP_Tabela5[[#This Row],[COD_ORIG_RCTA_F]], 12) -> 1.1.1.4.51.1 | S150: =LEFT(Receita_PMSP_Tabela5[[#This Row],[COD_FONT_REC]], 2) -> 
A151: 1.1.1.4.51.1.3.01.00.000.000.00.00.000 | B151: IMPOSTO SOBRE SERVIÇOS DE QUALQUER NATUREZA - DÍVIDA ATIVA | I151: Sintética | J151: 504772628 | K151: 137715304.5 | L151: 27.28 | M151: 235595509.1 | N151: 46.67 | O151: 504772628 | P151: =MID(Receita_PMSP_Tabela5[[#This Row],[COD_FONT_REC]], 6, 3) ->  | Q151: =LEFT(Receita_PMSP_Tabela5[[#This Row],[COD_ORIG_RCTA_F]], 10) -> 1.1.1.4.51 | R151: =LEFT(Receita_PMSP_Tabela5[[#This Row],[COD_ORIG_RCTA_F]], 12) -> 1.1.1.4.51.1 | S151: =LEFT(Receita_PMSP_Tabela5[[#This Row],[COD_FONT_REC]], 2) -> 
A152: 1.1.1.4.51.1.3.01.00.000.000.11.00.000 | B152: IMPOSTO SOBRE SERVIÇOS DE QUALQUER NATUREZA - DÍVIDA ATIVA | I152: Sintética | J152: 193786052 | K152: 7586687.12 | L152: 3.91 | M152: 16427749.96 | N152: 8.48 | O152: 193786052 | P152: =MID(Receita_PMSP_Tabela5[[#This Row],[COD_FONT_REC]], 6, 3) ->  | Q152: =LEFT(Receita_PMSP_Tabela5[[#This Row],[COD_ORIG_RCTA_F]], 10) -> 1.1.1.4.51 | R152: =LEFT(Receita_PMSP_Tabela5[[#This Row],[COD_ORIG_RCTA_F]], 12) -> 1.1.1.4.51.1 | S152: =LEFT(Receita_PMSP_Tabela5[[#This Row],[COD_FONT_REC]], 2) -> 
A153: 1.1.1.4.51.1.3.01.00.000.000.11.01.000 | B153: Imposto sobre Serviços de Qualquer Natureza - Dívida Ativa | C153: 00.1.500.9001 | D153: Recursos não vinculados de Impostos | I153: Analítica | J153: 193786052 | K153: 7599959.16 | L153: 3.92 | M153: 16445267.04 | N153: 8.49 | O153: 193786052 | P153: =MID(Receita_PMSP_Tabela5[[#This Row],[COD_FONT_REC]], 6, 3) -> 500 | Q153: =LEFT(Receita_PMSP_Tabela5[[#This Row],[COD_ORIG_RCTA_F]], 10) -> 1.1.1.4.51 | R153: =LEFT(Receita_PMSP_Tabela5[[#This Row],[COD_ORIG_RCTA_F]], 12) -> 1.1.1.4.51.1 | S153: =LEFT(Receita_PMSP_Tabela5[[#This Row],[COD_FONT_REC]], 2) -> 00
A154: 1.1.1.4.51.1.3.01.00.000.000.11.09.000 | B154: TOTAL DEDUÇÕES IMPOSTO SOBRE SERVIÇOS DE QUALQUER NATUREZA - DÍVIDA AT | I154: Sintética | J154: 0 | K154: -13272.04 | L154: 0 | M154: -17517.08 | N154: 0 | O154: 0 | P154: =MID(Receita_PMSP_Tabela5[[#This Row],[COD_FONT_REC]], 6, 3) ->  | Q154: =LEFT(Receita_PMSP_Tabela5[[#This Row],[COD_ORIG_RCTA_F]], 10) -> 1.1.1.4.51 | R154: =LEFT(Receita_PMSP_Tabela5[[#This Row],[COD_ORIG_RCTA_F]], 12) -> 1.1.1.4.51.1 | S154: =LEFT(Receita_PMSP_Tabela5[[#This Row],[COD_FONT_REC]], 2) -> 
A155: 1.1.1.4.51.1.3.01.00.000.000.11.09.001 | B155: Deduções Imposto sobre Serviços de Qualquer Natureza - Dívida Ativa | C155: 00.1.500.9001 | D155: Recursos não vinculados de Impostos | I155: Analítica | J155: 0 | K155: -13272.04 | L155: 0 | M155: -17517.08 | N155: 0 | O155: 0 | P155: =MID(Receita_PMSP_Tabela5[[#This Row],[COD_FONT_REC]], 6, 3) -> 500 | Q155: =LEFT(Receita_PMSP_Tabela5[[#This Row],[COD_ORIG_RCTA_F]], 10) -> 1.1.1.4.51 | R155: =LEFT(Receita_PMSP_Tabela5[[#This Row],[COD_ORIG_RCTA_F]], 12) -> 1.1.1.4.51.1 | S155: =LEFT(Receita_PMSP_Tabela5[[#This Row],[COD_FONT_REC]], 2) -> 00
A156: 1.1.1.4.51.1.3.01.00.000.000.12.00.000 | B156: PARCELAMENTO IMPOSTO SOBRE SERVIÇOS DE QUALQUER NATUREZA - DÍVIDA ATIV | I156: Sintética | J156: 310986576 | K156: 130128617.4 | L156: 41.84 | M156: 219167759.1 | N156: 70.47 | O156: 310986576 | P156: =MID(Receita_PMSP_Tabela5[[#This Row],[COD_FONT_REC]], 6, 3) ->  | Q156: =LEFT(Receita_PMSP_Tabela5[[#This Row],[COD_ORIG_RCTA_F]], 10) -> 1.1.1.4.51 | R156: =LEFT(Receita_PMSP_Tabela5[[#This Row],[COD_ORIG_RCTA_F]], 12) -> 1.1.1.4.51.1 | S156: =LEFT(Receita_PMSP_Tabela5[[#This Row],[COD_FONT_REC]], 2) -> 
A157: 1.1.1.4.51.1.3.01.00.000.000.12.01.000 | B157: TOTAL PARCELAMENTO IMPOSTO SOBRE SERVIÇOS DE QUALQUER NATUREZA - DÍVID | I157: Sintética | J157: 310986576 | K157: 130128617.4 | L157: 41.84 | M157: 219167759.1 | N157: 70.47 | O157: 310986576 | P157: =MID(Receita_PMSP_Tabela5[[#This Row],[COD_FONT_REC]], 6, 3) ->  | Q157: =LEFT(Receita_PMSP_Tabela5[[#This Row],[COD_ORIG_RCTA_F]], 10) -> 1.1.1.4.51 | R157: =LEFT(Receita_PMSP_Tabela5[[#This Row],[COD_ORIG_RCTA_F]], 12) -> 1.1.1.4.51.1 | S157: =LEFT(Receita_PMSP_Tabela5[[#This Row],[COD_FONT_REC]], 2) -> 
A158: 1.1.1.4.51.1.3.01.00.000.000.12.01.001 | B158: PPI - Imposto sobre Serviços de Qualquer Natureza - Dívida Ativa | C158: 00.1.500.9001 | D158: Recursos não vinculados de Impostos | I158: Analítica | J158: 229627237 | K158: 125416891.3 | L158: 54.62 | M158: 208148095.6 | N158: 90.65 | O158: 229627237 | P158: =MID(Receita_PMSP_Tabela5[[#This Row],[COD_FONT_REC]], 6, 3) -> 500 | Q158: =LEFT(Receita_PMSP_Tabela5[[#This Row],[COD_ORIG_RCTA_F]], 10) -> 1.1.1.4.51 | R158: =LEFT(Receita_PMSP_Tabela5[[#This Row],[COD_ORIG_RCTA_F]], 12) -> 1.1.1.4.51.1 | S158: =LEFT(Receita_PMSP_Tabela5[[#This Row],[COD_FONT_REC]], 2) -> 00
A159: 1.1.1.4.51.1.3.01.00.000.000.12.01.002 | B159: PAT - Imposto sobre Serviços de Qualquer Natureza - Dívida Ativa | C159: 00.1.500.9001 | D159: Recursos não vinculados de Impostos | I159: Analítica | J159: 131148 | K159: 1967.44 | L159: 1.5 | M159: 3389.1 | N159: 2.58 | O159: 131148 | P159: =MID(Receita_PMSP_Tabela5[[#This Row],[COD_FONT_REC]], 6, 3) -> 500 | Q159: =LEFT(Receita_PMSP_Tabela5[[#This Row],[COD_ORIG_RCTA_F]], 10) -> 1.1.1.4.51 | R159: =LEFT(Receita_PMSP_Tabela5[[#This Row],[COD_ORIG_RCTA_F]], 12) -> 1.1.1.4.51.1 | S159: =LEFT(Receita_PMSP_Tabela5[[#This Row],[COD_FONT_REC]], 2) -> 00
A160: 1.1.1.4.51.1.3.01.00.000.000.12.01.004 | B160: PRD - Imposto sobre Serviços de Qualquer Natureza - Dívida Ativa | C160: 00.1.500.9001 | D160: Recursos não vinculados de Impostos | I160: Analítica | J160: 12928279 | K160: 926864.55 | L160: 7.17 | M160: 3372602.86 | N160: 26.09 | O160: 12928279 | P160: =MID(Receita_PMSP_Tabela5[[#This Row],[COD_FONT_REC]], 6, 3) -> 500 | Q160: =LEFT(Receita_PMSP_Tabela5[[#This Row],[COD_ORIG_RCTA_F]], 10) -> 1.1.1.4.51 | R160: =LEFT(Receita_PMSP_Tabela5[[#This Row],[COD_ORIG_RCTA_F]], 12) -> 1.1.1.4.51.1 | S160: =LEFT(Receita_PMSP_Tabela5[[#This Row],[COD_FONT_REC]], 2) -> 00
A161: 1.1.1.4.51.1.3.01.00.000.000.12.01.007 | B161: PIME - Imposto sobre Serviços de Qualquer Natureza - Dívida Ativa | C161: 00.1.500.9001 | D161: Recursos não vinculados de Impostos | I161: Analítica | J161: 25102684 | K161: 1865982.54 | L161: 7.43 | M161: 3713248.65 | N161: 14.79 | O161: 25102684 | P161: =MID(Receita_PMSP_Tabela5[[#This Row],[COD_FONT_REC]], 6, 3) -> 500 | Q161: =LEFT(Receita_PMSP_Tabela5[[#This Row],[COD_ORIG_RCTA_F]], 10) -> 1.1.1.4.51 | R161: =LEFT(Receita_PMSP_Tabela5[[#This Row],[COD_ORIG_RCTA_F]], 12) -> 1.1.1.4.51.1 | S161: =LEFT(Receita_PMSP_Tabela5[[#This Row],[COD_FONT_REC]], 2) -> 00
A162: 1.1.1.4.51.1.3.01.00.000.000.12.01.008 | B162: TDM - Imposto sobre Serviços de Qualquer Natureza - Dívida Ativa | C162: 00.1.500.9001 | D162: Recursos não vinculados de Impostos | I162: Analítica | J162: 43197228 | K162: 1916911.61 | L162: 4.44 | M162: 3930422.91 | N162: 9.1 | O162: 43197228 | P162: =MID(Receita_PMSP_Tabela5[[#This Row],[COD_FONT_REC]], 6, 3) -> 500 | Q162: =LEFT(Receita_PMSP_Tabela5[[#This Row],[COD_ORIG_RCTA_F]], 10) -> 1.1.1.4.51 | R162: =LEFT(Receita_PMSP_Tabela5[[#This Row],[COD_ORIG_RCTA_F]], 12) -> 1.1.1.4.51.1 | S162: =LEFT(Receita_PMSP_Tabela5[[#This Row],[COD_FONT_REC]], 2) -> 00
A163: 1.1.1.4.51.1.3.03.00.000.000.00.00.000 | B163: ISS - SIMPLES NACIONAL - DÍVIDA ATIVA | I163: Sintética | J163: 69272021 | K163: 7106276.69 | L163: 10.26 | M163: 18965522.13 | N163: 27.38 | O163: 69272021 | P163: =MID(Receita_PMSP_Tabela5[[#This Row],[COD_FONT_REC]], 6, 3) ->  | Q163: =LEFT(Receita_PMSP_Tabela5[[#This Row],[COD_ORIG_RCTA_F]], 10) -> 1.1.1.4.51 | R163: =LEFT(Receita_PMSP_Tabela5[[#This Row],[COD_ORIG_RCTA_F]], 12) -> 1.1.1.4.51.1 | S163: =LEFT(Receita_PMSP_Tabela5[[#This Row],[COD_FONT_REC]], 2) -> 
A164: 1.1.1.4.51.1.3.03.00.000.000.11.00.000 | B164: ISS - SIMPLES NACIONAL - DÍVIDA ATIVA | I164: Sintética | J164: 69272021 | K164: 7106276.69 | L164: 10.26 | M164: 18965522.13 | N164: 27.38 | O164: 69272021 | P164: =MID(Receita_PMSP_Tabela5[[#This Row],[COD_FONT_REC]], 6, 3) ->  | Q164: =LEFT(Receita_PMSP_Tabela5[[#This Row],[COD_ORIG_RCTA_F]], 10) -> 1.1.1.4.51 | R164: =LEFT(Receita_PMSP_Tabela5[[#This Row],[COD_ORIG_RCTA_F]], 12) -> 1.1.1.4.51.1 | S164: =LEFT(Receita_PMSP_Tabela5[[#This Row],[COD_FONT_REC]], 2) -> 
A165: 1.1.1.4.51.1.3.03.00.000.000.11.01.000 | B165: ISS - Simples Nacional - Dívida Ativa | C165: 00.1.500.9001 | D165: Recursos não vinculados de Impostos | I165: Analítica | J165: 69272021 | K165: 7115188.2 | L165: 10.27 | M165: 18974614.97 | N165: 27.39 | O165: 69272021 | P165: =MID(Receita_PMSP_Tabela5[[#This Row],[COD_FONT_REC]], 6, 3) -> 500 | Q165: =LEFT(Receita_PMSP_Tabela5[[#This Row],[COD_ORIG_RCTA_F]], 10) -> 1.1.1.4.51 | R165: =LEFT(Receita_PMSP_Tabela5[[#This Row],[COD_ORIG_RCTA_F]], 12) -> 1.1.1.4.51.1 | S165: =LEFT(Receita_PMSP_Tabela5[[#This Row],[COD_FONT_REC]], 2) -> 00
A166: 1.1.1.4.51.1.3.03.00.000.000.11.09.000 | B166: TOTAL DEDUÇÕES ISS - SIMPLES NACIONAL - DÍVIDA ATIVA | I166: Sintética | J166: 0 | K166: -8911.51 | L166: 0 | M166: -9092.84 | N166: 0 | O166: 0 | P166: =MID(Receita_PMSP_Tabela5[[#This Row],[COD_FONT_REC]], 6, 3) ->  | Q166: =LEFT(Receita_PMSP_Tabela5[[#This Row],[COD_ORIG_RCTA_F]], 10) -> 1.1.1.4.51 | R166: =LEFT(Receita_PMSP_Tabela5[[#This Row],[COD_ORIG_RCTA_F]], 12) -> 1.1.1.4.51.1 | S166: =LEFT(Receita_PMSP_Tabela5[[#This Row],[COD_FONT_REC]], 2) -> 
A167: 1.1.1.4.51.1.3.03.00.000.000.11.09.001 | B167: Deduções ISS - Simples Nacional - Dívida Ativa | C167: 00.1.500.9001 | D167: Recursos não vinculados de Impostos | I167: Analítica | J167: 0 | K167: -8911.51 | L167: 0 | M167: -9092.84 | N167: 0 | O167: 0 | P167: =MID(Receita_PMSP_Tabela5[[#This Row],[COD_FONT_REC]], 6, 3) -> 500 | Q167: =LEFT(Receita_PMSP_Tabela5[[#This Row],[COD_ORIG_RCTA_F]], 10) -> 1.1.1.4.51 | R167: =LEFT(Receita_PMSP_Tabela5[[#This Row],[COD_ORIG_RCTA_F]], 12) -> 1.1.1.4.51.1 | S167: =LEFT(Receita_PMSP_Tabela5[[#This Row],[COD_FONT_REC]], 2) -> 00
A168: 1.1.1.4.51.1.4.00.00.000.000.00.00.000 | B168: IMPOSTO SOBRE SERVIÇOS DE QUALQUER NATUREZA - DÍVIDA ATIVA - MULTAS E | I168: Sintética | J168: 193782256 | K168: 31323469.91 | L168: 16.16 | M168: 58323101.78 | N168: 30.1 | O168: 193782256 | P168: =MID(Receita_PMSP_Tabela5[[#This Row],[COD_FONT_REC]], 6, 3) ->  | Q168: =LEFT(Receita_PMSP_Tabela5[[#This Row],[COD_ORIG_RCTA_F]], 10) -> 1.1.1.4.51 | R168: =LEFT(Receita_PMSP_Tabela5[[#This Row],[COD_ORIG_RCTA_F]], 12) -> 1.1.1.4.51.1 | S168: =LEFT(Receita_PMSP_Tabela5[[#This Row],[COD_FONT_REC]], 2) -> 
A169: 1.1.1.4.51.1.4.01.00.000.000.00.00.000 | B169: IMPOSTO SOBRE SERVIÇOS DE QUALQUER NATUREZA - DÍVIDA ATIVA - MULTAS E | I169: Sintética | J169: 193782256 | K169: 31323469.91 | L169: 16.16 | M169: 58323101.78 | N169: 30.1 | O169: 193782256 | P169: =MID(Receita_PMSP_Tabela5[[#This Row],[COD_FONT_REC]], 6, 3) ->  | Q169: =LEFT(Receita_PMSP_Tabela5[[#This Row],[COD_ORIG_RCTA_F]], 10) -> 1.1.1.4.51 | R169: =LEFT(Receita_PMSP_Tabela5[[#This Row],[COD_ORIG_RCTA_F]], 12) -> 1.1.1.4.51.1 | S169: =LEFT(Receita_PMSP_Tabela5[[#This Row],[COD_FONT_REC]], 2) -> 
A170: 1.1.1.4.51.1.4.01.00.000.000.11.00.000 | B170: IMPOSTO SOBRE SERVIÇOS DE QUALQUER NATUREZA - DÍVIDA ATIVA - MULTAS E | I170: Sintética | J170: 32552378 | K170: 1169768.92 | L170: 3.59 | M170: 2338733.72 | N170: 7.18 | O170: 32552378 | P170: =MID(Receita_PMSP_Tabela5[[#This Row],[COD_FONT_REC]], 6, 3) ->  | Q170: =LEFT(Receita_PMSP_Tabela5[[#This Row],[COD_ORIG_RCTA_F]], 10) -> 1.1.1.4.51 | R170: =LEFT(Receita_PMSP_Tabela5[[#This Row],[COD_ORIG_RCTA_F]], 12) -> 1.1.1.4.51.1 | S170: =LEFT(Receita_PMSP_Tabela5[[#This Row],[COD_FONT_REC]], 2) -> 
A171: 1.1.1.4.51.1.4.01.00.000.000.11.01.000 | B171: Imposto sobre Serviços de Qualquer Natureza - Dívida Ativa - Multas e | C171: 00.1.500.9001 | D171: Recursos não vinculados de Impostos | I171: Analítica | J171: 32552378 | K171: 1169768.92 | L171: 3.59 | M171: 2338733.72 | N171: 7.18 | O171: 32552378 | P171: =MID(Receita_PMSP_Tabela5[[#This Row],[COD_FONT_REC]], 6, 3) -> 500 | Q171: =LEFT(Receita_PMSP_Tabela5[[#This Row],[COD_ORIG_RCTA_F]], 10) -> 1.1.1.4.51 | R171: =LEFT(Receita_PMSP_Tabela5[[#This Row],[COD_ORIG_RCTA_F]], 12) -> 1.1.1.4.51.1 | S171: =LEFT(Receita_PMSP_Tabela5[[#This Row],[COD_FONT_REC]], 2) -> 00
A172: 1.1.1.4.51.1.4.01.00.000.000.12.00.000 | B172: PARCELAMENTO IMPOSTO SOBRE SERVIÇOS DE QUALQUER NATUREZA - DÍVIDA ATIV | I172: Sintética | J172: 161229878 | K172: 30153700.99 | L172: 18.7 | M172: 55984368.06 | N172: 34.72 | O172: 161229878 | P172: =MID(Receita_PMSP_Tabela5[[#This Row],[COD_FONT_REC]], 6, 3) ->  | Q172: =LEFT(Receita_PMSP_Tabela5[[#This Row],[COD_ORIG_RCTA_F]], 10) -> 1.1.1.4.51 | R172: =LEFT(Receita_PMSP_Tabela5[[#This Row],[COD_ORIG_RCTA_F]], 12) -> 1.1.1.4.51.1 | S172: =LEFT(Receita_PMSP_Tabela5[[#This Row],[COD_FONT_REC]], 2) -> 
A173: 1.1.1.4.51.1.4.01.00.000.000.12.01.000 | B173: TOTAL PARCELAMENTO IMPOSTO SOBRE SERVIÇOS DE QUALQUER NATUREZA - DÍVID | I173: Sintética | J173: 161229878 | K173: 30153700.99 | L173: 18.7 | M173: 55984368.06 | N173: 34.72 | O173: 161229878 | P173: =MID(Receita_PMSP_Tabela5[[#This Row],[COD_FONT_REC]], 6, 3) ->  | Q173: =LEFT(Receita_PMSP_Tabela5[[#This Row],[COD_ORIG_RCTA_F]], 10) -> 1.1.1.4.51 | R173: =LEFT(Receita_PMSP_Tabela5[[#This Row],[COD_ORIG_RCTA_F]], 12) -> 1.1.1.4.51.1 | S173: =LEFT(Receita_PMSP_Tabela5[[#This Row],[COD_FONT_REC]], 2) -> 
A174: 1.1.1.4.51.1.4.01.00.000.000.12.01.001 | B174: PPI - Imposto sobre Serviços de Qualquer Natureza - Dívida Ativa - Mul | C174: 00.1.500.9001 | D174: Recursos não vinculados de Impostos | I174: Analítica | J174: 145476015 | K174: 28649299.28 | L174: 19.69 | M174: 52131408.83 | N174: 35.84 | O174: 145476015 | P174: =MID(Receita_PMSP_Tabela5[[#This Row],[COD_FONT_REC]], 6, 3) -> 500 | Q174: =LEFT(Receita_PMSP_Tabela5[[#This Row],[COD_ORIG_RCTA_F]], 10) -> 1.1.1.4.51 | R174: =LEFT(Receita_PMSP_Tabela5[[#This Row],[COD_ORIG_RCTA_F]], 12) -> 1.1.1.4.51.1 | S174: =LEFT(Receita_PMSP_Tabela5[[#This Row],[COD_FONT_REC]], 2) -> 00
A175: 1.1.1.4.51.1.4.01.00.000.000.12.01.002 | B175: PAT - Imposto sobre Serviços de Qualquer Natureza - Dívida Ativa - Mul | C175: 00.1.500.9001 | D175: Recursos não vinculados de Impostos | I175: Analítica | J175: 65494 | K175: 1925.21 | L175: 2.94 | M175: 12072.17 | N175: 18.43 | O175: 65494 | P175: =MID(Receita_PMSP_Tabela5[[#This Row],[COD_FONT_REC]], 6, 3) -> 500 | Q175: =LEFT(Receita_PMSP_Tabela5[[#This Row],[COD_ORIG_RCTA_F]], 10) -> 1.1.1.4.51 | R175: =LEFT(Receita_PMSP_Tabela5[[#This Row],[COD_ORIG_RCTA_F]], 12) -> 1.1.1.4.51.1 | S175: =LEFT(Receita_PMSP_Tabela5[[#This Row],[COD_FONT_REC]], 2) -> 00
A176: 1.1.1.4.51.1.4.01.00.000.000.12.01.004 | B176: PRD - Imposto sobre Serviços de Qualquer Natureza - Dívida Ativa - Mul | C176: 00.1.500.9001 | D176: Recursos não vinculados de Impostos | I176: Analítica | J176: 3771108 | K176: 278429.79 | L176: 7.38 | M176: 1361016.25 | N176: 36.09 | O176: 3771108 | P176: =MID(Receita_PMSP_Tabela5[[#This Row],[COD_FONT_REC]], 6, 3) -> 500 | Q176: =LEFT(Receita_PMSP_Tabela5[[#This Row],[COD_ORIG_RCTA_F]], 10) -> 1.1.1.4.51 | R176: =LEFT(Receita_PMSP_Tabela5[[#This Row],[COD_ORIG_RCTA_F]], 12) -> 1.1.1.4.51.1 | S176: =LEFT(Receita_PMSP_Tabela5[[#This Row],[COD_FONT_REC]], 2) -> 00
A177: 1.1.1.4.51.1.4.01.00.000.000.12.01.007 | B177: PIME - Imposto sobre Serviços de Qualquer Natureza - Dívida Ativa - Mu | C177: 00.1.500.9001 | D177: Recursos não vinculados de Impostos | I177: Analítica | J177: 8162065 | K177: 606718.48 | L177: 7.43 | M177: 1207351.31 | N177: 14.79 | O177: 8162065 | P177: =MID(Receita_PMSP_Tabela5[[#This Row],[COD_FONT_REC]], 6, 3) -> 500 | Q177: =LEFT(Receita_PMSP_Tabela5[[#This Row],[COD_ORIG_RCTA_F]], 10) -> 1.1.1.4.51 | R177: =LEFT(Receita_PMSP_Tabela5[[#This Row],[COD_ORIG_RCTA_F]], 12) -> 1.1.1.4.51.1 | S177: =LEFT(Receita_PMSP_Tabela5[[#This Row],[COD_FONT_REC]], 2) -> 00
A178: 1.1.1.4.51.1.4.01.00.000.000.12.01.008 | B178: TDM - ISS - Dívida Ativa - Multas e Juros | C178: 00.1.500.9001 | D178: Recursos não vinculados de Impostos | I178: Analítica | J178: 3755196 | K178: 617328.23 | L178: 16.44 | M178: 1272519.5 | N178: 33.89 | O178: 3755196 | P178: =MID(Receita_PMSP_Tabela5[[#This Row],[COD_FONT_REC]], 6, 3) -> 500 | Q178: =LEFT(Receita_PMSP_Tabela5[[#This Row],[COD_ORIG_RCTA_F]], 10) -> 1.1.1.4.51 | R178: =LEFT(Receita_PMSP_Tabela5[[#This Row],[COD_ORIG_RCTA_F]], 12) -> 1.1.1.4.51.1 | S178: =LEFT(Receita_PMSP_Tabela5[[#This Row],[COD_FONT_REC]], 2) -> 00
A179: 1.1.1.4.52.0.0.00.00.000.000.00.00.000 | B179: Imposto sobre Vendas a Varejo de Combustíveis Líquidos e Gasosos (IVVC | I179: Sintética | J179: 0 | K179: 766.35 | L179: 0 | M179: 1525.02 | N179: 0 | O179: 0 | P179: =MID(Receita_PMSP_Tabela5[[#This Row],[COD_FONT_REC]], 6, 3) ->  | Q179: =LEFT(Receita_PMSP_Tabela5[[#This Row],[COD_ORIG_RCTA_F]], 10) -> 1.1.1.4.52 | R179: =LEFT(Receita_PMSP_Tabela5[[#This Row],[COD_ORIG_RCTA_F]], 12) -> 1.1.1.4.52.0 | S179: =LEFT(Receita_PMSP_Tabela5[[#This Row],[COD_FONT_REC]], 2) -> 
A180: 1.1.1.4.52.0.3.00.00.000.000.00.00.000 | B180: IMPOSTO SOBRE A VENDA A VAREJO DE COMBUSTÍVEIS LÍQUIDOS E GASOSOS - IV | I180: Sintética | J180: 0 | K180: 244.79 | L180: 0 | M180: 487.13 | N180: 0 | O180: 0 | P180: =MID(Receita_PMSP_Tabela5[[#This Row],[COD_FONT_REC]], 6, 3) ->  | Q180: =LEFT(Receita_PMSP_Tabela5[[#This Row],[COD_ORIG_RCTA_F]], 10) -> 1.1.1.4.52 | R180: =LEFT(Receita_PMSP_Tabela5[[#This Row],[COD_ORIG_RCTA_F]], 12) -> 1.1.1.4.52.0 | S180: =LEFT(Receita_PMSP_Tabela5[[#This Row],[COD_FONT_REC]], 2) -> 
A181: 1.1.1.4.52.0.3.01.00.000.000.00.00.000 | B181: IMPOSTO SOBRE A VENDA A VAREJO DE COMBUSTÍVEIS LÍQUIDOS E GASOSOS - IV | I181: Sintética | J181: 0 | K181: 244.79 | L181: 0 | M181: 487.13 | N181: 0 | O181: 0 | P181: =MID(Receita_PMSP_Tabela5[[#This Row],[COD_FONT_REC]], 6, 3) ->  | Q181: =LEFT(Receita_PMSP_Tabela5[[#This Row],[COD_ORIG_RCTA_F]], 10) -> 1.1.1.4.52 | R181: =LEFT(Receita_PMSP_Tabela5[[#This Row],[COD_ORIG_RCTA_F]], 12) -> 1.1.1.4.52.0 | S181: =LEFT(Receita_PMSP_Tabela5[[#This Row],[COD_FONT_REC]], 2) -> 
A182: 1.1.1.4.52.0.3.01.00.000.000.12.00.000 | B182: PARCELAMENTO IMPOSTO SOBRE A VENDA A VAREJO DE COMBUSTÍVEIS LÍQUIDOS E | I182: Sintética | J182: 0 | K182: 244.79 | L182: 0 | M182: 487.13 | N182: 0 | O182: 0 | P182: =MID(Receita_PMSP_Tabela5[[#This Row],[COD_FONT_REC]], 6, 3) ->  | Q182: =LEFT(Receita_PMSP_Tabela5[[#This Row],[COD_ORIG_RCTA_F]], 10) -> 1.1.1.4.52 | R182: =LEFT(Receita_PMSP_Tabela5[[#This Row],[COD_ORIG_RCTA_F]], 12) -> 1.1.1.4.52.0 | S182: =LEFT(Receita_PMSP_Tabela5[[#This Row],[COD_FONT_REC]], 2) -> 
A183: 1.1.1.4.52.0.3.01.00.000.000.12.01.000 | B183: TOTAL PARCELAMENTO IMPOSTO SOBRE A VENDA A VAREJO DE COMBUSTÍVEIS LÍQU | I183: Sintética | J183: 0 | K183: 244.79 | L183: 0 | M183: 487.13 | N183: 0 | O183: 0 | P183: =MID(Receita_PMSP_Tabela5[[#This Row],[COD_FONT_REC]], 6, 3) ->  | Q183: =LEFT(Receita_PMSP_Tabela5[[#This Row],[COD_ORIG_RCTA_F]], 10) -> 1.1.1.4.52 | R183: =LEFT(Receita_PMSP_Tabela5[[#This Row],[COD_ORIG_RCTA_F]], 12) -> 1.1.1.4.52.0 | S183: =LEFT(Receita_PMSP_Tabela5[[#This Row],[COD_FONT_REC]], 2) -> 
A184: 1.1.1.4.52.0.3.01.00.000.000.12.01.001 | B184: PPI - Imposto sobre a Venda a Varejo de Combustíveis Líquidos e Gasoso | C184: 00.1.500.9001 | D184: Recursos não vinculados de Impostos | I184: Analítica | J184: 0 | K184: 244.79 | L184: 0 | M184: 487.13 | N184: 0 | O184: 0 | P184: =MID(Receita_PMSP_Tabela5[[#This Row],[COD_FONT_REC]], 6, 3) -> 500 | Q184: =LEFT(Receita_PMSP_Tabela5[[#This Row],[COD_ORIG_RCTA_F]], 10) -> 1.1.1.4.52 | R184: =LEFT(Receita_PMSP_Tabela5[[#This Row],[COD_ORIG_RCTA_F]], 12) -> 1.1.1.4.52.0 | S184: =LEFT(Receita_PMSP_Tabela5[[#This Row],[COD_FONT_REC]], 2) -> 00
A185: 1.1.1.4.52.0.4.00.00.000.000.00.00.000 | B185: IMPOSTO SOBRE A VENDA A VAREJO DE COMBUSTÍVEIS LÍQUIDOS E GASOSOS - IV | I185: Sintética | J185: 0 | K185: 521.56 | L185: 0 | M185: 1037.89 | N185: 0 | O185: 0 | P185: =MID(Receita_PMSP_Tabela5[[#This Row],[COD_FONT_REC]], 6, 3) ->  | Q185: =LEFT(Receita_PMSP_Tabela5[[#This Row],[COD_ORIG_RCTA_F]], 10) -> 1.1.1.4.52 | R185: =LEFT(Receita_PMSP_Tabela5[[#This Row],[COD_ORIG_RCTA_F]], 12) -> 1.1.1.4.52.0 | S185: =LEFT(Receita_PMSP_Tabela5[[#This Row],[COD_FONT_REC]], 2) -> 
A186: 1.1.1.4.52.0.4.01.00.000.000.00.00.000 | B186: IMPOSTO SOBRE A VENDA A VAREJO DE COMBUSTÍVEIS LÍQUIDOS E GASOSOS - IV | I186: Sintética | J186: 0 | K186: 521.56 | L186: 0 | M186: 1037.89 | N186: 0 | O186: 0 | P186: =MID(Receita_PMSP_Tabela5[[#This Row],[COD_FONT_REC]], 6, 3) ->  | Q186: =LEFT(Receita_PMSP_Tabela5[[#This Row],[COD_ORIG_RCTA_F]], 10) -> 1.1.1.4.52 | R186: =LEFT(Receita_PMSP_Tabela5[[#This Row],[COD_ORIG_RCTA_F]], 12) -> 1.1.1.4.52.0 | S186: =LEFT(Receita_PMSP_Tabela5[[#This Row],[COD_FONT_REC]], 2) -> 
A187: 1.1.1.4.52.0.4.01.00.000.000.12.00.000 | B187: PARCELAMENTO IMPOSTO SOBRE A VENDA A VAREJO DE COMBUSTÍVEIS LÍQUIDOS E | I187: Sintética | J187: 0 | K187: 521.56 | L187: 0 | M187: 1037.89 | N187: 0 | O187: 0 | P187: =MID(Receita_PMSP_Tabela5[[#This Row],[COD_FONT_REC]], 6, 3) ->  | Q187: =LEFT(Receita_PMSP_Tabela5[[#This Row],[COD_ORIG_RCTA_F]], 10) -> 1.1.1.4.52 | R187: =LEFT(Receita_PMSP_Tabela5[[#This Row],[COD_ORIG_RCTA_F]], 12) -> 1.1.1.4.52.0 | S187: =LEFT(Receita_PMSP_Tabela5[[#This Row],[COD_FONT_REC]], 2) -> 
A188: 1.1.1.4.52.0.4.01.00.000.000.12.01.000 | B188: TOTAL PARCELAMENTO IMPOSTO SOBRE A VENDA A VAREJO DE COMBUSTÍVEIS LÍQU | I188: Sintética | J188: 0 | K188: 521.56 | L188: 0 | M188: 1037.89 | N188: 0 | O188: 0 | P188: =MID(Receita_PMSP_Tabela5[[#This Row],[COD_FONT_REC]], 6, 3) ->  | Q188: =LEFT(Receita_PMSP_Tabela5[[#This Row],[COD_ORIG_RCTA_F]], 10) -> 1.1.1.4.52 | R188: =LEFT(Receita_PMSP_Tabela5[[#This Row],[COD_ORIG_RCTA_F]], 12) -> 1.1.1.4.52.0 | S188: =LEFT(Receita_PMSP_Tabela5[[#This Row],[COD_FONT_REC]], 2) -> 
A189: 1.1.1.4.52.0.4.01.00.000.000.12.01.001 | B189: PPI - Imposto sobre a Venda a Varejo de Combustíveis Líquidos e Gasoso | C189: 00.1.500.9001 | D189: Recursos não vinculados de Impostos | I189: Analítica | J189: 0 | K189: 521.56 | L189: 0 | M189: 1037.89 | N189: 0 | O189: 0 | P189: =MID(Receita_PMSP_Tabela5[[#This Row],[COD_FONT_REC]], 6, 3) -> 500 | Q189: =LEFT(Receita_PMSP_Tabela5[[#This Row],[COD_ORIG_RCTA_F]], 10) -> 1.1.1.4.52 | R189: =LEFT(Receita_PMSP_Tabela5[[#This Row],[COD_ORIG_RCTA_F]], 12) -> 1.1.1.4.52.0 | S189: =LEFT(Receita_PMSP_Tabela5[[#This Row],[COD_FONT_REC]], 2) -> 00
A190: 1.1.1.9.00.0.0.00.00.000.000.00.00.000 | B190: OUTROS IMPOSTOS | I190: Sintética | J190: 4576727 | K190: 507741.52 | L190: 11.09 | M190: 992868.96 | N190: 21.69 | O190: 4576727 | P190: =MID(Receita_PMSP_Tabela5[[#This Row],[COD_FONT_REC]], 6, 3) ->  | Q190: =LEFT(Receita_PMSP_Tabela5[[#This Row],[COD_ORIG_RCTA_F]], 10) -> 1.1.1.9.00 | R190: =LEFT(Receita_PMSP_Tabela5[[#This Row],[COD_ORIG_RCTA_F]], 12) -> 1.1.1.9.00.0 | S190: =LEFT(Receita_PMSP_Tabela5[[#This Row],[COD_FONT_REC]], 2) -> 
A191: 1.1.1.9.99.0.0.00.00.000.000.00.00.000 | B191: OUTROS IMPOSTOS | I191: Sintética | J191: 4576727 | K191: 507741.52 | L191: 11.09 | M191: 992868.96 | N191: 21.69 | O191: 4576727 | P191: =MID(Receita_PMSP_Tabela5[[#This Row],[COD_FONT_REC]], 6, 3) ->  | Q191: =LEFT(Receita_PMSP_Tabela5[[#This Row],[COD_ORIG_RCTA_F]], 10) -> 1.1.1.9.99 | R191: =LEFT(Receita_PMSP_Tabela5[[#This Row],[COD_ORIG_RCTA_F]], 12) -> 1.1.1.9.99.0 | S191: =LEFT(Receita_PMSP_Tabela5[[#This Row],[COD_FONT_REC]], 2) -> 
A192: 1.1.1.9.99.0.3.00.00.000.000.00.00.000 | B192: OUTROS IMPOSTOS - DÍVIDA ATIVA | I192: Sintética | J192: 3437951 | K192: 443101.22 | L192: 12.89 | M192: 862721.56 | N192: 25.09 | O192: 3437951 | P192: =MID(Receita_PMSP_Tabela5[[#This Row],[COD_FONT_REC]], 6, 3) ->  | Q192: =LEFT(Receita_PMSP_Tabela5[[#This Row],[COD_ORIG_RCTA_F]], 10) -> 1.1.1.9.99 | R192: =LEFT(Receita_PMSP_Tabela5[[#This Row],[COD_ORIG_RCTA_F]], 12) -> 1.1.1.9.99.0 | S192: =LEFT(Receita_PMSP_Tabela5[[#This Row],[COD_FONT_REC]], 2) -> 
A193: 1.1.1.9.99.0.3.03.00.000.000.00.00.000 | B193: OUTROS TRIBUTOS - PMSP - DÍVIDA ATIVA | I193: Sintética | J193: 3437951 | K193: 443101.22 | L193: 12.89 | M193: 862721.56 | N193: 25.09 | O193: 3437951 | P193: =MID(Receita_PMSP_Tabela5[[#This Row],[COD_FONT_REC]], 6, 3) ->  | Q193: =LEFT(Receita_PMSP_Tabela5[[#This Row],[COD_ORIG_RCTA_F]], 10) -> 1.1.1.9.99 | R193: =LEFT(Receita_PMSP_Tabela5[[#This Row],[COD_ORIG_RCTA_F]], 12) -> 1.1.1.9.99.0 | S193: =LEFT(Receita_PMSP_Tabela5[[#This Row],[COD_FONT_REC]], 2) -> 
A194: 1.1.1.9.99.0.3.03.00.000.000.11.00.000 | B194: OUTROS TRIBUTOS - PMSP - DÍVIDA ATIVA | I194: Sintética | J194: 3437951 | K194: 443101.22 | L194: 12.89 | M194: 862721.56 | N194: 25.09 | O194: 3437951 | P194: =MID(Receita_PMSP_Tabela5[[#This Row],[COD_FONT_REC]], 6, 3) ->  | Q194: =LEFT(Receita_PMSP_Tabela5[[#This Row],[COD_ORIG_RCTA_F]], 10) -> 1.1.1.9.99 | R194: =LEFT(Receita_PMSP_Tabela5[[#This Row],[COD_ORIG_RCTA_F]], 12) -> 1.1.1.9.99.0 | S194: =LEFT(Receita_PMSP_Tabela5[[#This Row],[COD_FONT_REC]], 2) -> 
A195: 1.1.1.9.99.0.3.03.00.000.000.11.01.000 | B195: Outros Tributos - PMSP - Dívida Ativa | C195: 00.1.500.9001 | D195: Recursos não vinculados de Impostos | I195: Analítica | J195: 3437951 | K195: 451960.48 | L195: 13.15 | M195: 872806.26 | N195: 25.39 | O195: 3437951 | P195: =MID(Receita_PMSP_Tabela5[[#This Row],[COD_FONT_REC]], 6, 3) -> 500 | Q195: =LEFT(Receita_PMSP_Tabela5[[#This Row],[COD_ORIG_RCTA_F]], 10) -> 1.1.1.9.99 | R195: =LEFT(Receita_PMSP_Tabela5[[#This Row],[COD_ORIG_RCTA_F]], 12) -> 1.1.1.9.99.0 | S195: =LEFT(Receita_PMSP_Tabela5[[#This Row],[COD_FONT_REC]], 2) -> 00
A196: 1.1.1.9.99.0.3.03.00.000.000.11.09.000 | B196: TOTAL DE DEDUÇÕES OUTROS TRIBUTOS - PMSP - DÍVIDA ATIVA | I196: Sintética | J196: 0 | K196: -8859.26 | L196: 0 | M196: -10084.7 | N196: 0 | O196: 0 | P196: =MID(Receita_PMSP_Tabela5[[#This Row],[COD_FONT_REC]], 6, 3) ->  | Q196: =LEFT(Receita_PMSP_Tabela5[[#This Row],[COD_ORIG_RCTA_F]], 10) -> 1.1.1.9.99 | R196: =LEFT(Receita_PMSP_Tabela5[[#This Row],[COD_ORIG_RCTA_F]], 12) -> 1.1.1.9.99.0 | S196: =LEFT(Receita_PMSP_Tabela5[[#This Row],[COD_FONT_REC]], 2) -> 
A197: 1.1.1.9.99.0.3.03.00.000.000.11.09.001 | B197: Deduções Outros Tributos - PMSP - Dívida Ativa | C197: 00.1.500.9001 | D197: Recursos não vinculados de Impostos | I197: Analítica | J197: 0 | K197: -8859.26 | L197: 0 | M197: -10084.7 | N197: 0 | O197: 0 | P197: =MID(Receita_PMSP_Tabela5[[#This Row],[COD_FONT_REC]], 6, 3) -> 500 | Q197: =LEFT(Receita_PMSP_Tabela5[[#This Row],[COD_ORIG_RCTA_F]], 10) -> 1.1.1.9.99 | R197: =LEFT(Receita_PMSP_Tabela5[[#This Row],[COD_ORIG_RCTA_F]], 12) -> 1.1.1.9.99.0 | S197: =LEFT(Receita_PMSP_Tabela5[[#This Row],[COD_FONT_REC]], 2) -> 00
A198: 1.1.1.9.99.0.4.00.00.000.000.00.00.000 | B198: OUTROS IMPOSTOS - MULTAS E JUROS DE DÍVIDA ATIVA | I198: Sintética | J198: 1138776 | K198: 64640.3 | L198: 5.68 | M198: 130147.4 | N198: 11.43 | O198: 1138776 | P198: =MID(Receita_PMSP_Tabela5[[#This Row],[COD_FONT_REC]], 6, 3) ->  | Q198: =LEFT(Receita_PMSP_Tabela5[[#This Row],[COD_ORIG_RCTA_F]], 10) -> 1.1.1.9.99 | R198: =LEFT(Receita_PMSP_Tabela5[[#This Row],[COD_ORIG_RCTA_F]], 12) -> 1.1.1.9.99.0 | S198: =LEFT(Receita_PMSP_Tabela5[[#This Row],[COD_FONT_REC]], 2) -> 
A199: 1.1.1.9.99.0.4.03.00.000.000.00.00.000 | B199: MULTAS E JUROS DE MORA DA DÍVIDA ATIVA DE OUTROS TRIBUTOS | I199: Sintética | J199: 1138776 | K199: 64640.3 | L199: 5.68 | M199: 130147.4 | N199: 11.43 | O199: 1138776 | P199: =MID(Receita_PMSP_Tabela5[[#This Row],[COD_FONT_REC]], 6, 3) ->  | Q199: =LEFT(Receita_PMSP_Tabela5[[#This Row],[COD_ORIG_RCTA_F]], 10) -> 1.1.1.9.99 | R199: =LEFT(Receita_PMSP_Tabela5[[#This Row],[COD_ORIG_RCTA_F]], 12) -> 1.1.1.9.99.0 | S199: =LEFT(Receita_PMSP_Tabela5[[#This Row],[COD_FONT_REC]], 2) -> 
A200: 1.1.1.9.99.0.4.03.00.000.000.11.00.000 | B200: MULTAS E JUROS DE MORA DA DÍVIDA ATIVA DE OUTROS TRIBUTOS | I200: Sintética | J200: 1138776 | K200: 64640.3 | L200: 5.68 | M200: 130147.4 | N200: 11.43 | O200: 1138776 | P200: =MID(Receita_PMSP_Tabela5[[#This Row],[COD_FONT_REC]], 6, 3) ->  | Q200: =LEFT(Receita_PMSP_Tabela5[[#This Row],[COD_ORIG_RCTA_F]], 10) -> 1.1.1.9.99 | R200: =LEFT(Receita_PMSP_Tabela5[[#This Row],[COD_ORIG_RCTA_F]], 12) -> 1.1.1.9.99.0 | S200: =LEFT(Receita_PMSP_Tabela5[[#This Row],[COD_FONT_REC]], 2) -> 
... 3263 more rows

Sheet BD_Receita_HSPM_1BIM
A1: COD_ORIG_RCTA_F | B1: TXT_COD_RCTA_RESU | C1: COD_FONT_REC | D1: TXT_FONT_REC | E1: COD_ORG_EMP | F1: TXT_ORG_EMP | G1: COD_UNID_ORCM_SOF | H1: TXT_UNID_ORCM | I1: COD_TIP_CTA_RCTA | J1: VAL_PRVI_RCTA_ATUL | K1: VAL_REAZ_MENS | L1: PERC_VAL_REAZ_MENS | M1: VAL_REAZ_ATE_MES | N1: PERC_VAL_REAZ_ATE_MES | O1: VAL_PRVI_RCTA_INI | P1: FONTE_PADRONIZADO | Q1: RECEITA_5 | R1: RECEITA_6 | S1: FONTE_PMSP
A2: 1.0.0.0.00.0.0.00.00.000.000.00.00.000 | B2: RECEITAS CORRENTES | I2: Sintética | J2: 19795136 | K2: 2062195.12 | L2: 10.42 | M2: 4532415.05 | N2: 22.9 | O2: 19795136 | P2: =MID(Receita_HSPM_Tabela6[[#This Row],[COD_FONT_REC]], 6, 3) ->  | Q2: =LEFT(Receita_HSPM_Tabela6[[#This Row],[COD_ORIG_RCTA_F]], 10) -> 1.0.0.0.00 | R2: =LEFT(Receita_HSPM_Tabela6[[#This Row],[COD_ORIG_RCTA_F]], 12) -> 1.0.0.0.00.0 | S2: =LEFT(Receita_HSPM_Tabela6[[#This Row],[COD_FONT_REC]], 2) -> 
A3: 1.3.0.0.00.0.0.00.00.000.000.00.00.000 | B3: RECEITA PATRIMONIAL | I3: Sintética | J3: 3991320 | K3: 364255.65 | L3: 9.13 | M3: 782324.16 | N3: 19.6 | O3: 3991320 | P3: =MID(Receita_HSPM_Tabela6[[#This Row],[COD_FONT_REC]], 6, 3) ->  | Q3: =LEFT(Receita_HSPM_Tabela6[[#This Row],[COD_ORIG_RCTA_F]], 10) -> 1.3.0.0.00 | R3: =LEFT(Receita_HSPM_Tabela6[[#This Row],[COD_ORIG_RCTA_F]], 12) -> 1.3.0.0.00.0 | S3: =LEFT(Receita_HSPM_Tabela6[[#This Row],[COD_FONT_REC]], 2) -> 
A4: 1.3.2.0.00.0.0.00.00.000.000.00.00.000 | B4: VALORES MOBILIÁRIOS | I4: Sintética | J4: 3991320 | K4: 364255.65 | L4: 9.13 | M4: 782324.16 | N4: 19.6 | O4: 3991320 | P4: =MID(Receita_HSPM_Tabela6[[#This Row],[COD_FONT_REC]], 6, 3) ->  | Q4: =LEFT(Receita_HSPM_Tabela6[[#This Row],[COD_ORIG_RCTA_F]], 10) -> 1.3.2.0.00 | R4: =LEFT(Receita_HSPM_Tabela6[[#This Row],[COD_ORIG_RCTA_F]], 12) -> 1.3.2.0.00.0 | S4: =LEFT(Receita_HSPM_Tabela6[[#This Row],[COD_FONT_REC]], 2) -> 
A5: 1.3.2.1.00.0.0.00.00.000.000.00.00.000 | B5: JUROS E CORREÇÕES MONETÁRIAS | I5: Sintética | J5: 3990120 | K5: 364255.65 | L5: 9.13 | M5: 782324.16 | N5: 19.61 | O5: 3990120 | P5: =MID(Receita_HSPM_Tabela6[[#This Row],[COD_FONT_REC]], 6, 3) ->  | Q5: =LEFT(Receita_HSPM_Tabela6[[#This Row],[COD_ORIG_RCTA_F]], 10) -> 1.3.2.1.00 | R5: =LEFT(Receita_HSPM_Tabela6[[#This Row],[COD_ORIG_RCTA_F]], 12) -> 1.3.2.1.00.0 | S5: =LEFT(Receita_HSPM_Tabela6[[#This Row],[COD_FONT_REC]], 2) -> 
A6: 1.3.2.1.05.0.0.00.00.000.000.00.00.000 | B6: JUROS DE TÍTULOS DE RENDA | I6: Sintética | J6: 3990120 | K6: 364255.65 | L6: 9.13 | M6: 782324.16 | N6: 19.61 | O6: 3990120 | P6: =MID(Receita_HSPM_Tabela6[[#This Row],[COD_FONT_REC]], 6, 3) ->  | Q6: =LEFT(Receita_HSPM_Tabela6[[#This Row],[COD_ORIG_RCTA_F]], 10) -> 1.3.2.1.05 | R6: =LEFT(Receita_HSPM_Tabela6[[#This Row],[COD_ORIG_RCTA_F]], 12) -> 1.3.2.1.05.0 | S6: =LEFT(Receita_HSPM_Tabela6[[#This Row],[COD_FONT_REC]], 2) -> 
A7: 1.3.2.1.05.0.1.00.00.000.000.00.00.000 | B7: JUROS DE TÍTULOS DE RENDA - PRINCIPAL | I7: Sintética | J7: 3990120 | K7: 364255.65 | L7: 9.13 | M7: 782324.16 | N7: 19.61 | O7: 3990120 | P7: =MID(Receita_HSPM_Tabela6[[#This Row],[COD_FONT_REC]], 6, 3) ->  | Q7: =LEFT(Receita_HSPM_Tabela6[[#This Row],[COD_ORIG_RCTA_F]], 10) -> 1.3.2.1.05 | R7: =LEFT(Receita_HSPM_Tabela6[[#This Row],[COD_ORIG_RCTA_F]], 12) -> 1.3.2.1.05.0 | S7: =LEFT(Receita_HSPM_Tabela6[[#This Row],[COD_FONT_REC]], 2) -> 
A8: 1.3.2.1.05.0.1.01.00.000.000.00.00.000 | B8: FUNDOS DE INVESTIMENTOS E APLICAÇÕES EM COTAS - RENDA FIXA | I8: Sintética | J8: 3990120 | K8: 364255.65 | L8: 9.13 | M8: 782324.16 | N8: 19.61 | O8: 3990120 | P8: =MID(Receita_HSPM_Tabela6[[#This Row],[COD_FONT_REC]], 6, 3) ->  | Q8: =LEFT(Receita_HSPM_Tabela6[[#This Row],[COD_ORIG_RCTA_F]], 10) -> 1.3.2.1.05 | R8: =LEFT(Receita_HSPM_Tabela6[[#This Row],[COD_ORIG_RCTA_F]], 12) -> 1.3.2.1.05.0 | S8: =LEFT(Receita_HSPM_Tabela6[[#This Row],[COD_FONT_REC]], 2) -> 
A9: 1.3.2.1.05.0.1.01.07.000.000.00.00.000 | B9: RECURSOS PRÓPRIOS DA ADMINISTRAÇÃO INDIRETA | I9: Sintética | J9: 3990120 | K9: 364255.65 | L9: 9.13 | M9: 782324.16 | N9: 19.61 | O9: 3990120 | P9: =MID(Receita_HSPM_Tabela6[[#This Row],[COD_FONT_REC]], 6, 3) ->  | Q9: =LEFT(Receita_HSPM_Tabela6[[#This Row],[COD_ORIG_RCTA_F]], 10) -> 1.3.2.1.05 | R9: =LEFT(Receita_HSPM_Tabela6[[#This Row],[COD_ORIG_RCTA_F]], 12) -> 1.3.2.1.05.0 | S9: =LEFT(Receita_HSPM_Tabela6[[#This Row],[COD_FONT_REC]], 2) -> 
A10: 1.3.2.1.05.0.1.01.07.081.000.00.00.000 | B10: HOSPITAL DO SERVIDOR PÚBLICO MUNICIPAL | I10: Sintética | J10: 3990120 | K10: 364255.65 | L10: 9.13 | M10: 782324.16 | N10: 19.61 | O10: 3990120 | P10: =MID(Receita_HSPM_Tabela6[[#This Row],[COD_FONT_REC]], 6, 3) ->  | Q10: =LEFT(Receita_HSPM_Tabela6[[#This Row],[COD_ORIG_RCTA_F]], 10) -> 1.3.2.1.05 | R10: =LEFT(Receita_HSPM_Tabela6[[#This Row],[COD_ORIG_RCTA_F]], 12) -> 1.3.2.1.05.0 | S10: =LEFT(Receita_HSPM_Tabela6[[#This Row],[COD_FONT_REC]], 2) -> 
A11: 1.3.2.1.05.0.1.01.07.081.001.00.00.000 | B11: HOSPITAL DO SERVIDOR PÚBLICO MUNICIPAL | I11: Sintética | J11: 3990120 | K11: 364255.65 | L11: 9.13 | M11: 782324.16 | N11: 19.61 | O11: 3990120 | P11: =MID(Receita_HSPM_Tabela6[[#This Row],[COD_FONT_REC]], 6, 3) ->  | Q11: =LEFT(Receita_HSPM_Tabela6[[#This Row],[COD_ORIG_RCTA_F]], 10) -> 1.3.2.1.05 | R11: =LEFT(Receita_HSPM_Tabela6[[#This Row],[COD_ORIG_RCTA_F]], 12) -> 1.3.2.1.05.0 | S11: =LEFT(Receita_HSPM_Tabela6[[#This Row],[COD_FONT_REC]], 2) -> 
A12: 1.3.2.1.05.0.1.01.07.081.001.11.00.000 | B12: HOSPITAL DO SERVIDOR PÚBLICO MUNICIPAL | I12: Sintética | J12: 3990120 | K12: 364255.65 | L12: 9.13 | M12: 782324.16 | N12: 19.61 | O12: 3990120 | P12: =MID(Receita_HSPM_Tabela6[[#This Row],[COD_FONT_REC]], 6, 3) ->  | Q12: =LEFT(Receita_HSPM_Tabela6[[#This Row],[COD_ORIG_RCTA_F]], 10) -> 1.3.2.1.05 | R12: =LEFT(Receita_HSPM_Tabela6[[#This Row],[COD_ORIG_RCTA_F]], 12) -> 1.3.2.1.05.0 | S12: =LEFT(Receita_HSPM_Tabela6[[#This Row],[COD_FONT_REC]], 2) -> 
A13: 1.3.2.1.05.0.1.01.07.081.001.11.01.000 | B13: Hospital do Servidor Público Municipal | C13: 06.1.501.9001 | D13: Outros Recursos não Vinculados | E13: 02 | F13: Hospital do Servidor Público Municipal | I13: Analítica | J13: 3990120 | K13: 364255.65 | L13: 9.13 | M13: 782324.16 | N13: 19.61 | O13: 3990120 | P13: =MID(Receita_HSPM_Tabela6[[#This Row],[COD_FONT_REC]], 6, 3) -> 501 | Q13: =LEFT(Receita_HSPM_Tabela6[[#This Row],[COD_ORIG_RCTA_F]], 10) -> 1.3.2.1.05 | R13: =LEFT(Receita_HSPM_Tabela6[[#This Row],[COD_ORIG_RCTA_F]], 12) -> 1.3.2.1.05.0 | S13: =LEFT(Receita_HSPM_Tabela6[[#This Row],[COD_FONT_REC]], 2) -> 06
A14: 1.3.2.2.00.0.0.00.00.000.000.00.00.000 | B14: DIVIDENDOS | I14: Sintética | J14: 1200 | K14: 0 | L14: 0 | M14: 0 | N14: 0 | O14: 1200 | P14: =MID(Receita_HSPM_Tabela6[[#This Row],[COD_FONT_REC]], 6, 3) ->  | Q14: =LEFT(Receita_HSPM_Tabela6[[#This Row],[COD_ORIG_RCTA_F]], 10) -> 1.3.2.2.00 | R14: =LEFT(Receita_HSPM_Tabela6[[#This Row],[COD_ORIG_RCTA_F]], 12) -> 1.3.2.2.00.0 | S14: =LEFT(Receita_HSPM_Tabela6[[#This Row],[COD_FONT_REC]], 2) -> 
A15: 1.3.2.2.01.0.0.00.00.000.000.00.00.000 | B15: DIVIDENDOS | I15: Sintética | J15: 1200 | K15: 0 | L15: 0 | M15: 0 | N15: 0 | O15: 1200 | P15: =MID(Receita_HSPM_Tabela6[[#This Row],[COD_FONT_REC]], 6, 3) ->  | Q15: =LEFT(Receita_HSPM_Tabela6[[#This Row],[COD_ORIG_RCTA_F]], 10) -> 1.3.2.2.01 | R15: =LEFT(Receita_HSPM_Tabela6[[#This Row],[COD_ORIG_RCTA_F]], 12) -> 1.3.2.2.01.0 | S15: =LEFT(Receita_HSPM_Tabela6[[#This Row],[COD_FONT_REC]], 2) -> 
A16: 1.3.2.2.01.0.1.00.00.000.000.00.00.000 | B16: DIVIDENDOS - PRINCIPAL | I16: Sintética | J16: 1200 | K16: 0 | L16: 0 | M16: 0 | N16: 0 | O16: 1200 | P16: =MID(Receita_HSPM_Tabela6[[#This Row],[COD_FONT_REC]], 6, 3) ->  | Q16: =LEFT(Receita_HSPM_Tabela6[[#This Row],[COD_ORIG_RCTA_F]], 10) -> 1.3.2.2.01 | R16: =LEFT(Receita_HSPM_Tabela6[[#This Row],[COD_ORIG_RCTA_F]], 12) -> 1.3.2.2.01.0 | S16: =LEFT(Receita_HSPM_Tabela6[[#This Row],[COD_FONT_REC]], 2) -> 
A17: 1.3.2.2.01.0.1.01.00.000.000.00.00.000 | B17: DIVIDENDOS | I17: Sintética | J17: 1200 | K17: 0 | L17: 0 | M17: 0 | N17: 0 | O17: 1200 | P17: =MID(Receita_HSPM_Tabela6[[#This Row],[COD_FONT_REC]], 6, 3) ->  | Q17: =LEFT(Receita_HSPM_Tabela6[[#This Row],[COD_ORIG_RCTA_F]], 10) -> 1.3.2.2.01 | R17: =LEFT(Receita_HSPM_Tabela6[[#This Row],[COD_ORIG_RCTA_F]], 12) -> 1.3.2.2.01.0 | S17: =LEFT(Receita_HSPM_Tabela6[[#This Row],[COD_FONT_REC]], 2) -> 
A18: 1.3.2.2.01.0.1.01.00.000.000.11.00.000 | B18: DIVIDENDOS | I18: Sintética | J18: 1200 | K18: 0 | L18: 0 | M18: 0 | N18: 0 | O18: 1200 | P18: =MID(Receita_HSPM_Tabela6[[#This Row],[COD_FONT_REC]], 6, 3) ->  | Q18: =LEFT(Receita_HSPM_Tabela6[[#This Row],[COD_ORIG_RCTA_F]], 10) -> 1.3.2.2.01 | R18: =LEFT(Receita_HSPM_Tabela6[[#This Row],[COD_ORIG_RCTA_F]], 12) -> 1.3.2.2.01.0 | S18: =LEFT(Receita_HSPM_Tabela6[[#This Row],[COD_FONT_REC]], 2) -> 
A19: 1.3.2.2.01.0.1.01.00.000.000.11.01.000 | B19: Dividendos | C19: 06.1.501.9001 | D19: Outros Recursos não Vinculados | E19: 02 | F19: Hospital do Servidor Público Municipal | I19: Analítica | J19: 1200 | K19: 0 | L19: 0 | M19: 0 | N19: 0 | O19: 1200 | P19: =MID(Receita_HSPM_Tabela6[[#This Row],[COD_FONT_REC]], 6, 3) -> 501 | Q19: =LEFT(Receita_HSPM_Tabela6[[#This Row],[COD_ORIG_RCTA_F]], 10) -> 1.3.2.2.01 | R19: =LEFT(Receita_HSPM_Tabela6[[#This Row],[COD_ORIG_RCTA_F]], 12) -> 1.3.2.2.01.0 | S19: =LEFT(Receita_HSPM_Tabela6[[#This Row],[COD_FONT_REC]], 2) -> 06
A20: 1.6.0.0.00.0.0.00.00.000.000.00.00.000 | B20: RECEITA DE SERVIÇOS | I20: Sintética | J20: 321204 | K20: 27810.7 | L20: 8.66 | M20: 55152.48 | N20: 17.17 | O20: 321204 | P20: =MID(Receita_HSPM_Tabela6[[#This Row],[COD_FONT_REC]], 6, 3) ->  | Q20: =LEFT(Receita_HSPM_Tabela6[[#This Row],[COD_ORIG_RCTA_F]], 10) -> 1.6.0.0.00 | R20: =LEFT(Receita_HSPM_Tabela6[[#This Row],[COD_ORIG_RCTA_F]], 12) -> 1.6.0.0.00.0 | S20: =LEFT(Receita_HSPM_Tabela6[[#This Row],[COD_FONT_REC]], 2) -> 
A21: 1.6.1.0.00.0.0.00.00.000.000.00.00.000 | B21: SERVIÇOS ADMINISTRATIVOS E COMERCIAIS GERAIS | I21: Sintética | J21: 321204 | K21: 27810.7 | L21: 8.66 | M21: 55152.48 | N21: 17.17 | O21: 321204 | P21: =MID(Receita_HSPM_Tabela6[[#This Row],[COD_FONT_REC]], 6, 3) ->  | Q21: =LEFT(Receita_HSPM_Tabela6[[#This Row],[COD_ORIG_RCTA_F]], 10) -> 1.6.1.0.00 | R21: =LEFT(Receita_HSPM_Tabela6[[#This Row],[COD_ORIG_RCTA_F]], 12) -> 1.6.1.0.00.0 | S21: =LEFT(Receita_HSPM_Tabela6[[#This Row],[COD_FONT_REC]], 2) -> 
A22: 1.6.1.1.00.0.0.00.00.000.000.00.00.000 | B22: SERVIÇOS ADMINISTRATIVOS E COMERCIAIS GERAIS | I22: Sintética | J22: 321204 | K22: 27810.7 | L22: 8.66 | M22: 55152.48 | N22: 17.17 | O22: 321204 | P22: =MID(Receita_HSPM_Tabela6[[#This Row],[COD_FONT_REC]], 6, 3) ->  | Q22: =LEFT(Receita_HSPM_Tabela6[[#This Row],[COD_ORIG_RCTA_F]], 10) -> 1.6.1.1.00 | R22: =LEFT(Receita_HSPM_Tabela6[[#This Row],[COD_ORIG_RCTA_F]], 12) -> 1.6.1.1.00.0 | S22: =LEFT(Receita_HSPM_Tabela6[[#This Row],[COD_FONT_REC]], 2) -> 
A23: 1.6.1.1.01.0.0.00.00.000.000.00.00.000 | B23: SERVIÇOS ADMINISTRATIVOS E COMERCIAIS GERAIS | I23: Sintética | J23: 321204 | K23: 27810.7 | L23: 8.66 | M23: 55152.48 | N23: 17.17 | O23: 321204 | P23: =MID(Receita_HSPM_Tabela6[[#This Row],[COD_FONT_REC]], 6, 3) ->  | Q23: =LEFT(Receita_HSPM_Tabela6[[#This Row],[COD_ORIG_RCTA_F]], 10) -> 1.6.1.1.01 | R23: =LEFT(Receita_HSPM_Tabela6[[#This Row],[COD_ORIG_RCTA_F]], 12) -> 1.6.1.1.01.0 | S23: =LEFT(Receita_HSPM_Tabela6[[#This Row],[COD_FONT_REC]], 2) -> 
A24: 1.6.1.1.01.0.1.00.00.000.000.00.00.000 | B24: SERVIÇOS ADMINISTRATIVOS E COMERCIAIS GERAIS - PRINCIPAL | I24: Sintética | J24: 321204 | K24: 27810.7 | L24: 8.66 | M24: 55152.48 | N24: 17.17 | O24: 321204 | P24: =MID(Receita_HSPM_Tabela6[[#This Row],[COD_FONT_REC]], 6, 3) ->  | Q24: =LEFT(Receita_HSPM_Tabela6[[#This Row],[COD_ORIG_RCTA_F]], 10) -> 1.6.1.1.01 | R24: =LEFT(Receita_HSPM_Tabela6[[#This Row],[COD_ORIG_RCTA_F]], 12) -> 1.6.1.1.01.0 | S24: =LEFT(Receita_HSPM_Tabela6[[#This Row],[COD_FONT_REC]], 2) -> 
A25: 1.6.1.1.01.0.1.04.00.000.000.00.00.000 | B25: SERVIÇOS DE FOTOCÓPIAS OU CÓPIAS HELIOGRÁFICAS | I25: Sintética | J25: 1200 | K25: 0 | L25: 0 | M25: 0 | N25: 0 | O25: 1200 | P25: =MID(Receita_HSPM_Tabela6[[#This Row],[COD_FONT_REC]], 6, 3) ->  | Q25: =LEFT(Receita_HSPM_Tabela6[[#This Row],[COD_ORIG_RCTA_F]], 10) -> 1.6.1.1.01 | R25: =LEFT(Receita_HSPM_Tabela6[[#This Row],[COD_ORIG_RCTA_F]], 12) -> 1.6.1.1.01.0 | S25: =LEFT(Receita_HSPM_Tabela6[[#This Row],[COD_FONT_REC]], 2) -> 
A26: 1.6.1.1.01.0.1.04.00.000.000.11.00.000 | B26: SERVIÇOS DE FOTOCÓPIAS OU CÓPIAS HELIOGRÁFICAS | I26: Sintética | J26: 1200 | K26: 0 | L26: 0 | M26: 0 | N26: 0 | O26: 1200 | P26: =MID(Receita_HSPM_Tabela6[[#This Row],[COD_FONT_REC]], 6, 3) ->  | Q26: =LEFT(Receita_HSPM_Tabela6[[#This Row],[COD_ORIG_RCTA_F]], 10) -> 1.6.1.1.01 | R26: =LEFT(Receita_HSPM_Tabela6[[#This Row],[COD_ORIG_RCTA_F]], 12) -> 1.6.1.1.01.0 | S26: =LEFT(Receita_HSPM_Tabela6[[#This Row],[COD_FONT_REC]], 2) -> 
A27: 1.6.1.1.01.0.1.04.00.000.000.11.01.000 | B27: Serviços de Fotocópias ou Cópias Heliográficas | C27: 06.1.501.9001 | D27: Outros Recursos não Vinculados | E27: 02 | F27: Hospital do Servidor Público Municipal | I27: Analítica | J27: 1200 | K27: 0 | L27: 0 | M27: 0 | N27: 0 | O27: 1200 | P27: =MID(Receita_HSPM_Tabela6[[#This Row],[COD_FONT_REC]], 6, 3) -> 501 | Q27: =LEFT(Receita_HSPM_Tabela6[[#This Row],[COD_ORIG_RCTA_F]], 10) -> 1.6.1.1.01 | R27: =LEFT(Receita_HSPM_Tabela6[[#This Row],[COD_ORIG_RCTA_F]], 12) -> 1.6.1.1.01.0 | S27: =LEFT(Receita_HSPM_Tabela6[[#This Row],[COD_FONT_REC]], 2) -> 06
A28: 1.6.1.1.01.0.1.05.00.000.000.00.00.000 | B28: OUTROS SERVIÇOS ADMINISTRATIVOS | I28: Sintética | J28: 320004 | K28: 27810.7 | L28: 8.69 | M28: 55152.48 | N28: 17.23 | O28: 320004 | P28: =MID(Receita_HSPM_Tabela6[[#This Row],[COD_FONT_REC]], 6, 3) ->  | Q28: =LEFT(Receita_HSPM_Tabela6[[#This Row],[COD_ORIG_RCTA_F]], 10) -> 1.6.1.1.01 | R28: =LEFT(Receita_HSPM_Tabela6[[#This Row],[COD_ORIG_RCTA_F]], 12) -> 1.6.1.1.01.0 | S28: =LEFT(Receita_HSPM_Tabela6[[#This Row],[COD_FONT_REC]], 2) -> 
A29: 1.6.1.1.01.0.1.05.00.000.000.11.00.000 | B29: OUTROS SERVIÇOS ADMINISTRATIVOS | I29: Sintética | J29: 320004 | K29: 27810.7 | L29: 8.69 | M29: 55152.48 | N29: 17.23 | O29: 320004 | P29: =MID(Receita_HSPM_Tabela6[[#This Row],[COD_FONT_REC]], 6, 3) ->  | Q29: =LEFT(Receita_HSPM_Tabela6[[#This Row],[COD_ORIG_RCTA_F]], 10) -> 1.6.1.1.01 | R29: =LEFT(Receita_HSPM_Tabela6[[#This Row],[COD_ORIG_RCTA_F]], 12) -> 1.6.1.1.01.0 | S29: =LEFT(Receita_HSPM_Tabela6[[#This Row],[COD_FONT_REC]], 2) -> 
A30: 1.6.1.1.01.0.1.05.00.000.000.11.01.000 | B30: Outros Serviços Administrativos | C30: 06.1.501.9001 | D30: Outros Recursos não Vinculados | E30: 02 | F30: Hospital do Servidor Público Municipal | I30: Analítica | J30: 320004 | K30: 27810.7 | L30: 8.69 | M30: 55152.48 | N30: 17.23 | O30: 320004 | P30: =MID(Receita_HSPM_Tabela6[[#This Row],[COD_FONT_REC]], 6, 3) -> 501 | Q30: =LEFT(Receita_HSPM_Tabela6[[#This Row],[COD_ORIG_RCTA_F]], 10) -> 1.6.1.1.01 | R30: =LEFT(Receita_HSPM_Tabela6[[#This Row],[COD_ORIG_RCTA_F]], 12) -> 1.6.1.1.01.0 | S30: =LEFT(Receita_HSPM_Tabela6[[#This Row],[COD_FONT_REC]], 2) -> 06
A31: 1.9.0.0.00.0.0.00.00.000.000.00.00.000 | B31: OUTRAS RECEITAS CORRENTES | I31: Sintética | J31: 15482612 | K31: 1670128.77 | L31: 10.79 | M31: 3694938.41 | N31: 23.87 | O31: 15482612 | P31: =MID(Receita_HSPM_Tabela6[[#This Row],[COD_FONT_REC]], 6, 3) ->  | Q31: =LEFT(Receita_HSPM_Tabela6[[#This Row],[COD_ORIG_RCTA_F]], 10) -> 1.9.0.0.00 | R31: =LEFT(Receita_HSPM_Tabela6[[#This Row],[COD_ORIG_RCTA_F]], 12) -> 1.9.0.0.00.0 | S31: =LEFT(Receita_HSPM_Tabela6[[#This Row],[COD_FONT_REC]], 2) -> 
A32: 1.9.1.0.00.0.0.00.00.000.000.00.00.000 | B32: MULTAS ADMINISTRATIVAS, CONTRATUAIS E JUDICIAIS | I32: Sintética | J32: 520512 | K32: 28040.31 | L32: 5.39 | M32: 42334.77 | N32: 8.13 | O32: 520512 | P32: =MID(Receita_HSPM_Tabela6[[#This Row],[COD_FONT_REC]], 6, 3) ->  | Q32: =LEFT(Receita_HSPM_Tabela6[[#This Row],[COD_ORIG_RCTA_F]], 10) -> 1.9.1.0.00 | R32: =LEFT(Receita_HSPM_Tabela6[[#This Row],[COD_ORIG_RCTA_F]], 12) -> 1.9.1.0.00.0 | S32: =LEFT(Receita_HSPM_Tabela6[[#This Row],[COD_FONT_REC]], 2) -> 
A33: 1.9.1.1.00.0.0.00.00.000.000.00.00.000 | B33: MULTAS ADMINISTRATIVAS, CONTRATUAIS E JUDICIAIS | I33: Sintética | J33: 520512 | K33: 28040.31 | L33: 5.39 | M33: 42334.77 | N33: 8.13 | O33: 520512 | P33: =MID(Receita_HSPM_Tabela6[[#This Row],[COD_FONT_REC]], 6, 3) ->  | Q33: =LEFT(Receita_HSPM_Tabela6[[#This Row],[COD_ORIG_RCTA_F]], 10) -> 1.9.1.1.00 | R33: =LEFT(Receita_HSPM_Tabela6[[#This Row],[COD_ORIG_RCTA_F]], 12) -> 1.9.1.1.00.0 | S33: =LEFT(Receita_HSPM_Tabela6[[#This Row],[COD_FONT_REC]], 2) -> 
A34: 1.9.1.1.09.0.0.00.00.000.000.00.00.000 | B34: MULTAS E JUROS PREVISTOS EM CONTRATOS | I34: Sintética | J34: 520512 | K34: 28040.31 | L34: 5.39 | M34: 42334.77 | N34: 8.13 | O34: 520512 | P34: =MID(Receita_HSPM_Tabela6[[#This Row],[COD_FONT_REC]], 6, 3) ->  | Q34: =LEFT(Receita_HSPM_Tabela6[[#This Row],[COD_ORIG_RCTA_F]], 10) -> 1.9.1.1.09 | R34: =LEFT(Receita_HSPM_Tabela6[[#This Row],[COD_ORIG_RCTA_F]], 12) -> 1.9.1.1.09.0 | S34: =LEFT(Receita_HSPM_Tabela6[[#This Row],[COD_FONT_REC]], 2) -> 
A35: 1.9.1.1.09.0.1.00.00.000.000.00.00.000 | B35: MULTAS E JUROS PREVISTOS EM CONTRATOS - PRINCIPAL | I35: Sintética | J35: 520512 | K35: 28040.31 | L35: 5.39 | M35: 42334.77 | N35: 8.13 | O35: 520512 | P35: =MID(Receita_HSPM_Tabela6[[#This Row],[COD_FONT_REC]], 6, 3) ->  | Q35: =LEFT(Receita_HSPM_Tabela6[[#This Row],[COD_ORIG_RCTA_F]], 10) -> 1.9.1.1.09 | R35: =LEFT(Receita_HSPM_Tabela6[[#This Row],[COD_ORIG_RCTA_F]], 12) -> 1.9.1.1.09.0 | S35: =LEFT(Receita_HSPM_Tabela6[[#This Row],[COD_FONT_REC]], 2) -> 
A36: 1.9.1.1.09.0.1.03.00.000.000.00.00.000 | B36: MULTAS E JUROS - CONTRATOS ADMINISTRAÇÃO INDIRETA | I36: Sintética | J36: 520512 | K36: 28040.31 | L36: 5.39 | M36: 42334.77 | N36: 8.13 | O36: 520512 | P36: =MID(Receita_HSPM_Tabela6[[#This Row],[COD_FONT_REC]], 6, 3) ->  | Q36: =LEFT(Receita_HSPM_Tabela6[[#This Row],[COD_ORIG_RCTA_F]], 10) -> 1.9.1.1.09 | R36: =LEFT(Receita_HSPM_Tabela6[[#This Row],[COD_ORIG_RCTA_F]], 12) -> 1.9.1.1.09.0 | S36: =LEFT(Receita_HSPM_Tabela6[[#This Row],[COD_FONT_REC]], 2) -> 
A37: 1.9.1.1.09.0.1.03.00.000.000.11.00.000 | B37: MULTAS E JUROS - CONTRATOS ADMINISTRAÇÃO INDIRETA | I37: Sintética | J37: 520512 | K37: 28040.31 | L37: 5.39 | M37: 42334.77 | N37: 8.13 | O37: 520512 | P37: =MID(Receita_HSPM_Tabela6[[#This Row],[COD_FONT_REC]], 6, 3) ->  | Q37: =LEFT(Receita_HSPM_Tabela6[[#This Row],[COD_ORIG_RCTA_F]], 10) -> 1.9.1.1.09 | R37: =LEFT(Receita_HSPM_Tabela6[[#This Row],[COD_ORIG_RCTA_F]], 12) -> 1.9.1.1.09.0 | S37: =LEFT(Receita_HSPM_Tabela6[[#This Row],[COD_FONT_REC]], 2) -> 
A38: 1.9.1.1.09.0.1.03.00.000.000.11.01.000 | B38: Multas e Juros - Contratos Administração Indireta | C38: 06.1.501.9001 | D38: Outros Recursos não Vinculados | E38: 02 | F38: Hospital do Servidor Público Municipal | I38: Analítica | J38: 520512 | K38: 28040.31 | L38: 5.39 | M38: 42334.77 | N38: 8.13 | O38: 520512 | P38: =MID(Receita_HSPM_Tabela6[[#This Row],[COD_FONT_REC]], 6, 3) -> 501 | Q38: =LEFT(Receita_HSPM_Tabela6[[#This Row],[COD_ORIG_RCTA_F]], 10) -> 1.9.1.1.09 | R38: =LEFT(Receita_HSPM_Tabela6[[#This Row],[COD_ORIG_RCTA_F]], 12) -> 1.9.1.1.09.0 | S38: =LEFT(Receita_HSPM_Tabela6[[#This Row],[COD_FONT_REC]], 2) -> 06
A39: 1.9.2.0.00.0.0.00.00.000.000.00.00.000 | B39: INDENIZAÇÕES, RESTITUIÇÕES E RESSARCIMENTOS | I39: Sintética | J39: 3800 | K39: 0 | L39: 0 | M39: 383.82 | N39: 10.1 | O39: 3800 | P39: =MID(Receita_HSPM_Tabela6[[#This Row],[COD_FONT_REC]], 6, 3) ->  | Q39: =LEFT(Receita_HSPM_Tabela6[[#This Row],[COD_ORIG_RCTA_F]], 10) -> 1.9.2.0.00 | R39: =LEFT(Receita_HSPM_Tabela6[[#This Row],[COD_ORIG_RCTA_F]], 12) -> 1.9.2.0.00.0 | S39: =LEFT(Receita_HSPM_Tabela6[[#This Row],[COD_FONT_REC]], 2) -> 
A40: 1.9.2.2.00.0.0.00.00.000.000.00.00.000 | B40: RESTITUIÇÕES | I40: Sintética | J40: 3800 | K40: 0 | L40: 0 | M40: 383.82 | N40: 10.1 | O40: 3800 | P40: =MID(Receita_HSPM_Tabela6[[#This Row],[COD_FONT_REC]], 6, 3) ->  | Q40: =LEFT(Receita_HSPM_Tabela6[[#This Row],[COD_ORIG_RCTA_F]], 10) -> 1.9.2.2.00 | R40: =LEFT(Receita_HSPM_Tabela6[[#This Row],[COD_ORIG_RCTA_F]], 12) -> 1.9.2.2.00.0 | S40: =LEFT(Receita_HSPM_Tabela6[[#This Row],[COD_FONT_REC]], 2) -> 
A41: 1.9.2.2.06.0.0.00.00.000.000.00.00.000 | B41: RESTITUIÇÃO DE DESPESAS DE EXERCÍCIOS ANTERIORES | I41: Sintética | J41: 2600 | K41: 0 | L41: 0 | M41: 383.82 | N41: 14.76 | O41: 2600 | P41: =MID(Receita_HSPM_Tabela6[[#This Row],[COD_FONT_REC]], 6, 3) ->  | Q41: =LEFT(Receita_HSPM_Tabela6[[#This Row],[COD_ORIG_RCTA_F]], 10) -> 1.9.2.2.06 | R41: =LEFT(Receita_HSPM_Tabela6[[#This Row],[COD_ORIG_RCTA_F]], 12) -> 1.9.2.2.06.0 | S41: =LEFT(Receita_HSPM_Tabela6[[#This Row],[COD_FONT_REC]], 2) -> 
A42: 1.9.2.2.06.1.0.00.00.000.000.00.00.000 | B42: RESTITUIÇÃO DE DESPESAS DE EXERCÍCIOS ANTERIORES | I42: Sintética | J42: 2600 | K42: 0 | L42: 0 | M42: 383.82 | N42: 14.76 | O42: 2600 | P42: =MID(Receita_HSPM_Tabela6[[#This Row],[COD_FONT_REC]], 6, 3) ->  | Q42: =LEFT(Receita_HSPM_Tabela6[[#This Row],[COD_ORIG_RCTA_F]], 10) -> 1.9.2.2.06 | R42: =LEFT(Receita_HSPM_Tabela6[[#This Row],[COD_ORIG_RCTA_F]], 12) -> 1.9.2.2.06.1 | S42: =LEFT(Receita_HSPM_Tabela6[[#This Row],[COD_FONT_REC]], 2) -> 
A43: 1.9.2.2.06.1.1.00.00.000.000.00.00.000 | B43: RESTITUIÇÃO DE DESPESAS DE EXERCÍCIOS ANTERIORES - PRINCIPAL | I43: Sintética | J43: 2600 | K43: 0 | L43: 0 | M43: 383.82 | N43: 14.76 | O43: 2600 | P43: =MID(Receita_HSPM_Tabela6[[#This Row],[COD_FONT_REC]], 6, 3) ->  | Q43: =LEFT(Receita_HSPM_Tabela6[[#This Row],[COD_ORIG_RCTA_F]], 10) -> 1.9.2.2.06 | R43: =LEFT(Receita_HSPM_Tabela6[[#This Row],[COD_ORIG_RCTA_F]], 12) -> 1.9.2.2.06.1 | S43: =LEFT(Receita_HSPM_Tabela6[[#This Row],[COD_FONT_REC]], 2) -> 
A44: 1.9.2.2.06.1.1.05.00.000.000.00.00.000 | B44: RESTITUIÇÃO DESP EXERC ANTERIORES - SALDO NÃO UTILIZADO ADIANTAMENTO | I44: Sintética | J44: 2600 | K44: 0 | L44: 0 | M44: 383.82 | N44: 14.76 | O44: 2600 | P44: =MID(Receita_HSPM_Tabela6[[#This Row],[COD_FONT_REC]], 6, 3) ->  | Q44: =LEFT(Receita_HSPM_Tabela6[[#This Row],[COD_ORIG_RCTA_F]], 10) -> 1.9.2.2.06 | R44: =LEFT(Receita_HSPM_Tabela6[[#This Row],[COD_ORIG_RCTA_F]], 12) -> 1.9.2.2.06.1 | S44: =LEFT(Receita_HSPM_Tabela6[[#This Row],[COD_FONT_REC]], 2) -> 
A45: 1.9.2.2.06.1.1.05.00.000.000.11.00.000 | B45: RESTITUIÇÃO DESP EXERC ANTERIORES - SALDO NÃO UTILIZADO ADIANTAMENTO | I45: Sintética | J45: 2600 | K45: 0 | L45: 0 | M45: 383.82 | N45: 14.76 | O45: 2600 | P45: =MID(Receita_HSPM_Tabela6[[#This Row],[COD_FONT_REC]], 6, 3) ->  | Q45: =LEFT(Receita_HSPM_Tabela6[[#This Row],[COD_ORIG_RCTA_F]], 10) -> 1.9.2.2.06 | R45: =LEFT(Receita_HSPM_Tabela6[[#This Row],[COD_ORIG_RCTA_F]], 12) -> 1.9.2.2.06.1 | S45: =LEFT(Receita_HSPM_Tabela6[[#This Row],[COD_FONT_REC]], 2) -> 
A46: 1.9.2.2.06.1.1.05.00.000.000.11.01.000 | B46: Restituição Desp Exerc Anteriores - Saldo Não Utilizado Adiantamento | C46: 06.1.501.9001 | D46: Outros Recursos não Vinculados | E46: 02 | F46: Hospital do Servidor Público Municipal | I46: Analítica | J46: 2600 | K46: 0 | L46: 0 | M46: 383.82 | N46: 14.76 | O46: 2600 | P46: =MID(Receita_HSPM_Tabela6[[#This Row],[COD_FONT_REC]], 6, 3) -> 501 | Q46: =LEFT(Receita_HSPM_Tabela6[[#This Row],[COD_ORIG_RCTA_F]], 10) -> 1.9.2.2.06 | R46: =LEFT(Receita_HSPM_Tabela6[[#This Row],[COD_ORIG_RCTA_F]], 12) -> 1.9.2.2.06.1 | S46: =LEFT(Receita_HSPM_Tabela6[[#This Row],[COD_FONT_REC]], 2) -> 06
A47: 1.9.2.2.99.0.0.00.00.000.000.00.00.000 | B47: OUTRAS RESTITUIÇÕES | I47: Sintética | J47: 1200 | K47: 0 | L47: 0 | M47: 0 | N47: 0 | O47: 1200 | P47: =MID(Receita_HSPM_Tabela6[[#This Row],[COD_FONT_REC]], 6, 3) ->  | Q47: =LEFT(Receita_HSPM_Tabela6[[#This Row],[COD_ORIG_RCTA_F]], 10) -> 1.9.2.2.99 | R47: =LEFT(Receita_HSPM_Tabela6[[#This Row],[COD_ORIG_RCTA_F]], 12) -> 1.9.2.2.99.0 | S47: =LEFT(Receita_HSPM_Tabela6[[#This Row],[COD_FONT_REC]], 2) -> 
A48: 1.9.2.2.99.0.1.00.00.000.000.00.00.000 | B48: OUTRAS RESTITUIÇÕES - PRINCIPAL | I48: Sintética | J48: 1200 | K48: 0 | L48: 0 | M48: 0 | N48: 0 | O48: 1200 | P48: =MID(Receita_HSPM_Tabela6[[#This Row],[COD_FONT_REC]], 6, 3) ->  | Q48: =LEFT(Receita_HSPM_Tabela6[[#This Row],[COD_ORIG_RCTA_F]], 10) -> 1.9.2.2.99 | R48: =LEFT(Receita_HSPM_Tabela6[[#This Row],[COD_ORIG_RCTA_F]], 12) -> 1.9.2.2.99.0 | S48: =LEFT(Receita_HSPM_Tabela6[[#This Row],[COD_FONT_REC]], 2) -> 
A49: 1.9.2.2.99.0.1.12.00.000.000.00.00.000 | B49: RESTITUIÇÕES DIVERSAS | I49: Sintética | J49: 1200 | K49: 0 | L49: 0 | M49: 0 | N49: 0 | O49: 1200 | P49: =MID(Receita_HSPM_Tabela6[[#This Row],[COD_FONT_REC]], 6, 3) ->  | Q49: =LEFT(Receita_HSPM_Tabela6[[#This Row],[COD_ORIG_RCTA_F]], 10) -> 1.9.2.2.99 | R49: =LEFT(Receita_HSPM_Tabela6[[#This Row],[COD_ORIG_RCTA_F]], 12) -> 1.9.2.2.99.0 | S49: =LEFT(Receita_HSPM_Tabela6[[#This Row],[COD_FONT_REC]], 2) -> 
A50: 1.9.2.2.99.0.1.12.00.000.000.11.00.000 | B50: RESTITUIÇÕES DIVERSAS | I50: Sintética | J50: 1200 | K50: 0 | L50: 0 | M50: 0 | N50: 0 | O50: 1200 | P50: =MID(Receita_HSPM_Tabela6[[#This Row],[COD_FONT_REC]], 6, 3) ->  | Q50: =LEFT(Receita_HSPM_Tabela6[[#This Row],[COD_ORIG_RCTA_F]], 10) -> 1.9.2.2.99 | R50: =LEFT(Receita_HSPM_Tabela6[[#This Row],[COD_ORIG_RCTA_F]], 12) -> 1.9.2.2.99.0 | S50: =LEFT(Receita_HSPM_Tabela6[[#This Row],[COD_FONT_REC]], 2) -> 
A51: 1.9.2.2.99.0.1.12.00.000.000.11.01.000 | B51: Restituições Diversas | C51: 06.1.501.9001 | D51: Outros Recursos não Vinculados | E51: 02 | F51: Hospital do Servidor Público Municipal | I51: Analítica | J51: 1200 | K51: 0 | L51: 0 | M51: 0 | N51: 0 | O51: 1200 | P51: =MID(Receita_HSPM_Tabela6[[#This Row],[COD_FONT_REC]], 6, 3) -> 501 | Q51: =LEFT(Receita_HSPM_Tabela6[[#This Row],[COD_ORIG_RCTA_F]], 10) -> 1.9.2.2.99 | R51: =LEFT(Receita_HSPM_Tabela6[[#This Row],[COD_ORIG_RCTA_F]], 12) -> 1.9.2.2.99.0 | S51: =LEFT(Receita_HSPM_Tabela6[[#This Row],[COD_FONT_REC]], 2) -> 06
A52: 1.9.9.0.00.0.0.00.00.000.000.00.00.000 | B52: DEMAIS RECEITAS CORRENTES | I52: Sintética | J52: 14958300 | K52: 1642088.46 | L52: 10.98 | M52: 3652219.82 | N52: 24.42 | O52: 14958300 | P52: =MID(Receita_HSPM_Tabela6[[#This Row],[COD_FONT_REC]], 6, 3) ->  | Q52: =LEFT(Receita_HSPM_Tabela6[[#This Row],[COD_ORIG_RCTA_F]], 10) -> 1.9.9.0.00 | R52: =LEFT(Receita_HSPM_Tabela6[[#This Row],[COD_ORIG_RCTA_F]], 12) -> 1.9.9.0.00.0 | S52: =LEFT(Receita_HSPM_Tabela6[[#This Row],[COD_FONT_REC]], 2) -> 
A53: 1.9.9.9.00.0.0.00.00.000.000.00.00.000 | B53: OUTRAS RECEITAS CORRENTES | I53: Sintética | J53: 14958300 | K53: 1642088.46 | L53: 10.98 | M53: 3652219.82 | N53: 24.42 | O53: 14958300 | P53: =MID(Receita_HSPM_Tabela6[[#This Row],[COD_FONT_REC]], 6, 3) ->  | Q53: =LEFT(Receita_HSPM_Tabela6[[#This Row],[COD_ORIG_RCTA_F]], 10) -> 1.9.9.9.00 | R53: =LEFT(Receita_HSPM_Tabela6[[#This Row],[COD_ORIG_RCTA_F]], 12) -> 1.9.9.9.00.0 | S53: =LEFT(Receita_HSPM_Tabela6[[#This Row],[COD_FONT_REC]], 2) -> 
A54: 1.9.9.9.99.0.0.00.00.000.000.00.00.000 | B54: OUTRAS RECEITAS | I54: Sintética | J54: 14958300 | K54: 1642088.46 | L54: 10.98 | M54: 3652219.82 | N54: 24.42 | O54: 14958300 | P54: =MID(Receita_HSPM_Tabela6[[#This Row],[COD_FONT_REC]], 6, 3) ->  | Q54: =LEFT(Receita_HSPM_Tabela6[[#This Row],[COD_ORIG_RCTA_F]], 10) -> 1.9.9.9.99 | R54: =LEFT(Receita_HSPM_Tabela6[[#This Row],[COD_ORIG_RCTA_F]], 12) -> 1.9.9.9.99.0 | S54: =LEFT(Receita_HSPM_Tabela6[[#This Row],[COD_FONT_REC]], 2) -> 
A55: 1.9.9.9.99.2.0.00.00.000.000.00.00.000 | B55: OUTRAS RECEITAS - PRIMÁRIAS | I55: Sintética | J55: 14958300 | K55: 1642088.46 | L55: 10.98 | M55: 3652219.82 | N55: 24.42 | O55: 14958300 | P55: =MID(Receita_HSPM_Tabela6[[#This Row],[COD_FONT_REC]], 6, 3) ->  | Q55: =LEFT(Receita_HSPM_Tabela6[[#This Row],[COD_ORIG_RCTA_F]], 10) -> 1.9.9.9.99 | R55: =LEFT(Receita_HSPM_Tabela6[[#This Row],[COD_ORIG_RCTA_F]], 12) -> 1.9.9.9.99.2 | S55: =LEFT(Receita_HSPM_Tabela6[[#This Row],[COD_FONT_REC]], 2) -> 
A56: 1.9.9.9.99.2.1.00.00.000.000.00.00.000 | B56: OUTRAS RECEITAS - PRIMÁRIAS - PRINCIPAL | I56: Sintética | J56: 14958300 | K56: 1642088.46 | L56: 10.98 | M56: 3652219.82 | N56: 24.42 | O56: 14958300 | P56: =MID(Receita_HSPM_Tabela6[[#This Row],[COD_FONT_REC]], 6, 3) ->  | Q56: =LEFT(Receita_HSPM_Tabela6[[#This Row],[COD_ORIG_RCTA_F]], 10) -> 1.9.9.9.99 | R56: =LEFT(Receita_HSPM_Tabela6[[#This Row],[COD_ORIG_RCTA_F]], 12) -> 1.9.9.9.99.2 | S56: =LEFT(Receita_HSPM_Tabela6[[#This Row],[COD_FONT_REC]], 2) -> 
A57: 1.9.9.9.99.2.1.12.00.000.000.00.00.000 | B57: OUTRAS RECEITAS | I57: Sintética | J57: 14958300 | K57: 1642088.46 | L57: 10.98 | M57: 3652219.82 | N57: 24.42 | O57: 14958300 | P57: =MID(Receita_HSPM_Tabela6[[#This Row],[COD_FONT_REC]], 6, 3) ->  | Q57: =LEFT(Receita_HSPM_Tabela6[[#This Row],[COD_ORIG_RCTA_F]], 10) -> 1.9.9.9.99 | R57: =LEFT(Receita_HSPM_Tabela6[[#This Row],[COD_ORIG_RCTA_F]], 12) -> 1.9.9.9.99.2 | S57: =LEFT(Receita_HSPM_Tabela6[[#This Row],[COD_FONT_REC]], 2) -> 
A58: 1.9.9.9.99.2.1.12.00.000.000.11.00.000 | B58: OUTRAS RECEITAS | I58: Sintética | J58: 14958300 | K58: 1642088.46 | L58: 10.98 | M58: 3652219.82 | N58: 24.42 | O58: 14958300 | P58: =MID(Receita_HSPM_Tabela6[[#This Row],[COD_FONT_REC]], 6, 3) ->  | Q58: =LEFT(Receita_HSPM_Tabela6[[#This Row],[COD_ORIG_RCTA_F]], 10) -> 1.9.9.9.99 | R58: =LEFT(Receita_HSPM_Tabela6[[#This Row],[COD_ORIG_RCTA_F]], 12) -> 1.9.9.9.99.2 | S58: =LEFT(Receita_HSPM_Tabela6[[#This Row],[COD_FONT_REC]], 2) -> 
A59: 1.9.9.9.99.2.1.12.00.000.000.11.01.000 | B59: Outras Receitas | C59: 06.1.501.9001 | D59: Outros Recursos não Vinculados | E59: 02 | F59: Hospital do Servidor Público Municipal | I59: Analítica | J59: 14958300 | K59: 1642088.46 | L59: 10.98 | M59: 3652219.82 | N59: 24.42 | O59: 14958300 | P59: =MID(Receita_HSPM_Tabela6[[#This Row],[COD_FONT_REC]], 6, 3) -> 501 | Q59: =LEFT(Receita_HSPM_Tabela6[[#This Row],[COD_ORIG_RCTA_F]], 10) -> 1.9.9.9.99 | R59: =LEFT(Receita_HSPM_Tabela6[[#This Row],[COD_ORIG_RCTA_F]], 12) -> 1.9.9.9.99.2 | S59: =LEFT(Receita_HSPM_Tabela6[[#This Row],[COD_FONT_REC]], 2) -> 06
A60: 7.0.0.0.00.0.0.00.00.000.000.00.00.000 | B60: RECEITAS CORRENTES INTRAORÇAMENTÁRIAS | I60: Sintética | J60: 80856 | K60: 6102.74 | L60: 7.55 | M60: 48542 | N60: 60.04 | O60: 80856 | P60: =MID(Receita_HSPM_Tabela6[[#This Row],[COD_FONT_REC]], 6, 3) ->  | Q60: =LEFT(Receita_HSPM_Tabela6[[#This Row],[COD_ORIG_RCTA_F]], 10) -> 7.0.0.0.00 | R60: =LEFT(Receita_HSPM_Tabela6[[#This Row],[COD_ORIG_RCTA_F]], 12) -> 7.0.0.0.00.0 | S60: =LEFT(Receita_HSPM_Tabela6[[#This Row],[COD_FONT_REC]], 2) -> 
A61: 7.9.0.0.00.0.0.00.00.000.000.00.00.000 | B61: OUTRAS RECEITAS CORRENTES INTRAORÇAMENTÁRIAS | I61: Sintética | J61: 80856 | K61: 6102.74 | L61: 7.55 | M61: 48542 | N61: 60.04 | O61: 80856 | P61: =MID(Receita_HSPM_Tabela6[[#This Row],[COD_FONT_REC]], 6, 3) ->  | Q61: =LEFT(Receita_HSPM_Tabela6[[#This Row],[COD_ORIG_RCTA_F]], 10) -> 7.9.0.0.00 | R61: =LEFT(Receita_HSPM_Tabela6[[#This Row],[COD_ORIG_RCTA_F]], 12) -> 7.9.0.0.00.0 | S61: =LEFT(Receita_HSPM_Tabela6[[#This Row],[COD_FONT_REC]], 2) -> 
A62: 7.9.2.0.00.0.0.00.00.000.000.00.00.000 | B62: INDENIZAÇÕES, RESTITUIÇÕES E RESSARCIMENTOS | I62: Sintética | J62: 80856 | K62: 6102.74 | L62: 7.55 | M62: 48542 | N62: 60.04 | O62: 80856 | P62: =MID(Receita_HSPM_Tabela6[[#This Row],[COD_FONT_REC]], 6, 3) ->  | Q62: =LEFT(Receita_HSPM_Tabela6[[#This Row],[COD_ORIG_RCTA_F]], 10) -> 7.9.2.0.00 | R62: =LEFT(Receita_HSPM_Tabela6[[#This Row],[COD_ORIG_RCTA_F]], 12) -> 7.9.2.0.00.0 | S62: =LEFT(Receita_HSPM_Tabela6[[#This Row],[COD_FONT_REC]], 2) -> 
A63: 7.9.2.2.00.0.0.00.00.000.000.00.00.000 | B63: RESTITUIÇÕES | I63: Sintética | J63: 1200 | K63: 0 | L63: 0 | M63: 0 | N63: 0 | O63: 1200 | P63: =MID(Receita_HSPM_Tabela6[[#This Row],[COD_FONT_REC]], 6, 3) ->  | Q63: =LEFT(Receita_HSPM_Tabela6[[#This Row],[COD_ORIG_RCTA_F]], 10) -> 7.9.2.2.00 | R63: =LEFT(Receita_HSPM_Tabela6[[#This Row],[COD_ORIG_RCTA_F]], 12) -> 7.9.2.2.00.0 | S63: =LEFT(Receita_HSPM_Tabela6[[#This Row],[COD_FONT_REC]], 2) -> 
A64: 7.9.2.2.99.0.0.00.00.000.000.00.00.000 | B64: OUTRAS RESTITUIÇÕES | I64: Sintética | J64: 1200 | K64: 0 | L64: 0 | M64: 0 | N64: 0 | O64: 1200 | P64: =MID(Receita_HSPM_Tabela6[[#This Row],[COD_FONT_REC]], 6, 3) ->  | Q64: =LEFT(Receita_HSPM_Tabela6[[#This Row],[COD_ORIG_RCTA_F]], 10) -> 7.9.2.2.99 | R64: =LEFT(Receita_HSPM_Tabela6[[#This Row],[COD_ORIG_RCTA_F]], 12) -> 7.9.2.2.99.0 | S64: =LEFT(Receita_HSPM_Tabela6[[#This Row],[COD_FONT_REC]], 2) -> 
A65: 7.9.2.2.99.0.1.00.00.000.000.00.00.000 | B65: OUTRAS RESTITUIÇÕES - PRINCIPAL | I65: Sintética | J65: 1200 | K65: 0 | L65: 0 | M65: 0 | N65: 0 | O65: 1200 | P65: =MID(Receita_HSPM_Tabela6[[#This Row],[COD_FONT_REC]], 6, 3) ->  | Q65: =LEFT(Receita_HSPM_Tabela6[[#This Row],[COD_ORIG_RCTA_F]], 10) -> 7.9.2.2.99 | R65: =LEFT(Receita_HSPM_Tabela6[[#This Row],[COD_ORIG_RCTA_F]], 12) -> 7.9.2.2.99.0 | S65: =LEFT(Receita_HSPM_Tabela6[[#This Row],[COD_FONT_REC]], 2) -> 
A66: 7.9.2.2.99.0.1.01.00.000.000.00.00.000 | B66: RESTITUIÇÕES INTRAORÇAMENTÁRIAS | I66: Sintética | J66: 1200 | K66: 0 | L66: 0 | M66: 0 | N66: 0 | O66: 1200 | P66: =MID(Receita_HSPM_Tabela6[[#This Row],[COD_FONT_REC]], 6, 3) ->  | Q66: =LEFT(Receita_HSPM_Tabela6[[#This Row],[COD_ORIG_RCTA_F]], 10) -> 7.9.2.2.99 | R66: =LEFT(Receita_HSPM_Tabela6[[#This Row],[COD_ORIG_RCTA_F]], 12) -> 7.9.2.2.99.0 | S66: =LEFT(Receita_HSPM_Tabela6[[#This Row],[COD_FONT_REC]], 2) -> 
A67: 7.9.2.2.99.0.1.01.01.000.000.00.00.000 | B67: RESTITUIÇÕES DIVERSAS - INTRA-ORÇAMENTÁRIA | I67: Sintética | J67: 1200 | K67: 0 | L67: 0 | M67: 0 | N67: 0 | O67: 1200 | P67: =MID(Receita_HSPM_Tabela6[[#This Row],[COD_FONT_REC]], 6, 3) ->  | Q67: =LEFT(Receita_HSPM_Tabela6[[#This Row],[COD_ORIG_RCTA_F]], 10) -> 7.9.2.2.99 | R67: =LEFT(Receita_HSPM_Tabela6[[#This Row],[COD_ORIG_RCTA_F]], 12) -> 7.9.2.2.99.0 | S67: =LEFT(Receita_HSPM_Tabela6[[#This Row],[COD_FONT_REC]], 2) -> 
A68: 7.9.2.2.99.0.1.01.01.000.000.11.00.000 | B68: RESTITUIÇÕES DIVERSAS - INTRA-ORÇAMENTÁRIA | I68: Sintética | J68: 1200 | K68: 0 | L68: 0 | M68: 0 | N68: 0 | O68: 1200 | P68: =MID(Receita_HSPM_Tabela6[[#This Row],[COD_FONT_REC]], 6, 3) ->  | Q68: =LEFT(Receita_HSPM_Tabela6[[#This Row],[COD_ORIG_RCTA_F]], 10) -> 7.9.2.2.99 | R68: =LEFT(Receita_HSPM_Tabela6[[#This Row],[COD_ORIG_RCTA_F]], 12) -> 7.9.2.2.99.0 | S68: =LEFT(Receita_HSPM_Tabela6[[#This Row],[COD_FONT_REC]], 2) -> 
A69: 7.9.2.2.99.0.1.01.01.000.000.11.01.000 | B69: Restituições Diversas - Intra-Orçamentária | C69: 06.1.501.9001 | D69: Outros Recursos não Vinculados | E69: 02 | F69: Hospital do Servidor Público Municipal | I69: Analítica | J69: 1200 | K69: 0 | L69: 0 | M69: 0 | N69: 0 | O69: 1200 | P69: =MID(Receita_HSPM_Tabela6[[#This Row],[COD_FONT_REC]], 6, 3) -> 501 | Q69: =LEFT(Receita_HSPM_Tabela6[[#This Row],[COD_ORIG_RCTA_F]], 10) -> 7.9.2.2.99 | R69: =LEFT(Receita_HSPM_Tabela6[[#This Row],[COD_ORIG_RCTA_F]], 12) -> 7.9.2.2.99.0 | S69: =LEFT(Receita_HSPM_Tabela6[[#This Row],[COD_FONT_REC]], 2) -> 06
A70: 7.9.2.3.00.0.0.00.00.000.000.00.00.000 | B70: RESSARCIMENTOS | I70: Sintética | J70: 79656 | K70: 6102.74 | L70: 7.66 | M70: 48542 | N70: 60.94 | O70: 79656 | P70: =MID(Receita_HSPM_Tabela6[[#This Row],[COD_FONT_REC]], 6, 3) ->  | Q70: =LEFT(Receita_HSPM_Tabela6[[#This Row],[COD_ORIG_RCTA_F]], 10) -> 7.9.2.3.00 | R70: =LEFT(Receita_HSPM_Tabela6[[#This Row],[COD_ORIG_RCTA_F]], 12) -> 7.9.2.3.00.0 | S70: =LEFT(Receita_HSPM_Tabela6[[#This Row],[COD_FONT_REC]], 2) -> 
A71: 7.9.2.3.02.0.0.00.00.000.000.00.00.000 | B71: RESSARCIMENTO DE CUSTOS | I71: Sintética | J71: 79656 | K71: 6102.74 | L71: 7.66 | M71: 48542 | N71: 60.94 | O71: 79656 | P71: =MID(Receita_HSPM_Tabela6[[#This Row],[COD_FONT_REC]], 6, 3) ->  | Q71: =LEFT(Receita_HSPM_Tabela6[[#This Row],[COD_ORIG_RCTA_F]], 10) -> 7.9.2.3.02 | R71: =LEFT(Receita_HSPM_Tabela6[[#This Row],[COD_ORIG_RCTA_F]], 12) -> 7.9.2.3.02.0 | S71: =LEFT(Receita_HSPM_Tabela6[[#This Row],[COD_FONT_REC]], 2) -> 
A72: 7.9.2.3.02.0.1.00.00.000.000.00.00.000 | B72: RESSARCIMENTO DE CUSTOS - PRINCIPAL | I72: Sintética | J72: 79656 | K72: 6102.74 | L72: 7.66 | M72: 48542 | N72: 60.94 | O72: 79656 | P72: =MID(Receita_HSPM_Tabela6[[#This Row],[COD_FONT_REC]], 6, 3) ->  | Q72: =LEFT(Receita_HSPM_Tabela6[[#This Row],[COD_ORIG_RCTA_F]], 10) -> 7.9.2.3.02 | R72: =LEFT(Receita_HSPM_Tabela6[[#This Row],[COD_ORIG_RCTA_F]], 12) -> 7.9.2.3.02.0 | S72: =LEFT(Receita_HSPM_Tabela6[[#This Row],[COD_FONT_REC]], 2) -> 
A73: 7.9.2.3.02.0.1.06.00.000.000.00.00.000 | B73: RESSARCIMENTO DE DESPESA DE PESSOAL CEDIDO - HSPM | I73: Sintética | J73: 79656 | K73: 6102.74 | L73: 7.66 | M73: 48542 | N73: 60.94 | O73: 79656 | P73: =MID(Receita_HSPM_Tabela6[[#This Row],[COD_FONT_REC]], 6, 3) ->  | Q73: =LEFT(Receita_HSPM_Tabela6[[#This Row],[COD_ORIG_RCTA_F]], 10) -> 7.9.2.3.02 | R73: =LEFT(Receita_HSPM_Tabela6[[#This Row],[COD_ORIG_RCTA_F]], 12) -> 7.9.2.3.02.0 | S73: =LEFT(Receita_HSPM_Tabela6[[#This Row],[COD_FONT_REC]], 2) -> 
A74: 7.9.2.3.02.0.1.06.00.000.000.11.00.000 | B74: RESSARCIMENTO DE DESPESA DE PESSOAL CEDIDO - HSPM | I74: Sintética | J74: 79656 | K74: 6102.74 | L74: 7.66 | M74: 48542 | N74: 60.94 | O74: 79656 | P74: =MID(Receita_HSPM_Tabela6[[#This Row],[COD_FONT_REC]], 6, 3) ->  | Q74: =LEFT(Receita_HSPM_Tabela6[[#This Row],[COD_ORIG_RCTA_F]], 10) -> 7.9.2.3.02 | R74: =LEFT(Receita_HSPM_Tabela6[[#This Row],[COD_ORIG_RCTA_F]], 12) -> 7.9.2.3.02.0 | S74: =LEFT(Receita_HSPM_Tabela6[[#This Row],[COD_FONT_REC]], 2) -> 
A75: 7.9.2.3.02.0.1.06.00.000.000.11.01.000 | B75: Ressarcimento de despesa de pessoal cedido - HSPM | C75: 00.1.500.9001 | D75: Recursos não vinculados de Impostos | I75: Analítica | J75: 79656 | K75: 6102.74 | L75: 7.66 | M75: 48542 | N75: 60.94 | O75: 79656 | P75: =MID(Receita_HSPM_Tabela6[[#This Row],[COD_FONT_REC]], 6, 3) -> 500 | Q75: =LEFT(Receita_HSPM_Tabela6[[#This Row],[COD_ORIG_RCTA_F]], 10) -> 7.9.2.3.02 | R75: =LEFT(Receita_HSPM_Tabela6[[#This Row],[COD_ORIG_RCTA_F]], 12) -> 7.9.2.3.02.0 | S75: =LEFT(Receita_HSPM_Tabela6[[#This Row],[COD_FONT_REC]], 2) -> 00

Sheet Receita_Consolidada
E2: RECEITAS REALIZADAS
A3: COD_ORIG_RCTA | B3: RECEITAS RESULTANTES DE IMPOSTOS E TRANSFERÊNCIAS CONSTITUCIONAIS E LEGAIS | C3: PREVISÃO INICIAL | D3: PREVISÃO ATUALIZADA (a) | E3: Até o Bimestre (b) | F3: % (b/a) x 100
B4: RECEITA DE IMPOSTOS (I) | C4: =C5+C12+C19+C26 -> 65,077,314,081 | D4: =D5+D12+D19+D26 -> 65,077,314,081 | E4: =E5+E12+E19+E26 -> 12,765,858,295 | F4: =IFERROR(E4/D4*100,0) -> 19.62
B5: Receita Resultante do Imposto Predial e Territorial Urbano - IPTU | C5: =C6+C8 -> 17,596,243,214 | D5: =D6+D8 -> 17,596,243,214 | E5: =E6+E8 -> 4,700,816,340 | F5: =IFERROR(E5/D5*100,0) -> 26.71
B6: IPTU | C6: =SUM(C7) -> 15,697,308,008 | D6: =SUM(D7) -> 15,697,308,008 | E6: =SUM(E7) -> 4,358,517,099 | F6: 27.77
A7: 1.1.1.2.50.0.1.00.00.000.000.00.00.000 | B7: =IFERROR(VLOOKUP(A7,BD_Receita_PMSP_1BIM!$A:$S,2,0),0) -> IMPOSTO SOBRE A PROPRIEDADE PREDIAL E TERRITORIAL URBANA - PRINCIPAL | C7: =IFERROR(VLOOKUP($A7,BD_Receita_PMSP_1BIM!$A:$S,15,0),0) -> 15,697,308,008 | D7: =IFERROR(VLOOKUP($A7,BD_Receita_PMSP_1BIM!$A:$S,10,0),0) -> 15,697,308,008 | E7: =IFERROR(VLOOKUP($A7,BD_Receita_PMSP_1BIM!$A:$S,13,0),0) -> 4,358,517,099 | F7: 27.77
B8: Multas, Juros de Mora, Divida Ativa e Outros Encargos do IPTU | C8: =SUM(C9:C11) -> 1,898,935,206 | D8: =SUM(D9:D11) -> 1,898,935,206 | E8: =SUM(E9:E11) -> 342,299,241 | F8: 18.03
A9: 1.1.1.2.50.0.2.00.00.000.000.00.00.000 | B9: =IFERROR(VLOOKUP(A9,BD_Receita_PMSP_1BIM!$A:$S,2,0),0) -> IMPOSTO SOBRE A PROPRIEDADE PREDIAL E TERRITORIAL URBANA - MULTAS E JU | C9: =IFERROR(VLOOKUP($A9,BD_Receita_PMSP_1BIM!$A:$S,15,0),0) -> 124,573,261 | D9: =IFERROR(VLOOKUP($A9,BD_Receita_PMSP_1BIM!$A:$S,10,0),0) -> 124,573,261 | E9: =IFERROR(VLOOKUP($A9,BD_Receita_PMSP_1BIM!$A:$S,13,0),0) -> 22,254,743 | F9: 17.86
A10: 1.1.1.2.50.0.3.00.00.000.000.00.00.000 | B10: =IFERROR(VLOOKUP(A10,BD_Receita_PMSP_1BIM!$A:$S,2,0),0) -> IMPOSTO SOBRE A PROPRIEDADE PREDIAL E TERRITORIAL URBANA - DÍVIDA ATIV | C10: =IFERROR(VLOOKUP($A10,BD_Receita_PMSP_1BIM!$A:$S,15,0),0) -> 1,307,317,200 | D10: =IFERROR(VLOOKUP($A10,BD_Receita_PMSP_1BIM!$A:$S,10,0),0) -> 1,307,317,200 | E10: =IFERROR(VLOOKUP($A10,BD_Receita_PMSP_1BIM!$A:$S,13,0),0) -> 263,588,854 | F10: 20.16
A11: 1.1.1.2.50.0.4.00.00.000.000.00.00.000 | B11: =IFERROR(VLOOKUP(A11,BD_Receita_PMSP_1BIM!$A:$S,2,0),0) -> IMPOSTO SOBRE A PROPRIEDADE PREDIAL E TERRITORIAL URBANA - DÍVIDA ATIV | C11: =IFERROR(VLOOKUP($A11,BD_Receita_PMSP_1BIM!$A:$S,15,0),0) -> 467,044,745 | D11: =IFERROR(VLOOKUP($A11,BD_Receita_PMSP_1BIM!$A:$S,10,0),0) -> 467,044,745 | E11: =IFERROR(VLOOKUP($A11,BD_Receita_PMSP_1BIM!$A:$S,13,0),0) -> 56,455,645 | F11: 12.09
B12: Receita Resultante do Imposto sobre Serviços de Qualquer Natureza - ITBI | C12: =C13+C15 -> 4,399,222,246 | D12: =D13+D15 -> 4,399,222,246 | E12: =E13+E15 -> 648,747,482 | F12: 14.75
B13: ITBI | C13: =SUM(C14:C14) -> 4,334,222,428 | D13: =SUM(D14:D14) -> 4,334,222,428 | E13: =SUM(E14:E14) -> 621,019,661 | F13: 14.33
A14: 1.1.1.2.53.0.1.00.00.000.000.00.00.000 | B14: =IFERROR(VLOOKUP(A14,BD_Receita_PMSP_1BIM!$A:$S,2,0),0) -> IMPOSTO SOBRE TRANSMISSÃO INTER VIVOS DE BENS IMÓVEIS E DE DIREITOS RE | C14: =IFERROR(VLOOKUP($A14,BD_Receita_PMSP_1BIM!$A:$S,15,0),0) -> 4,334,222,428 | D14: =IFERROR(VLOOKUP($A14,BD_Receita_PMSP_1BIM!$A:$S,10,0),0) -> 4,334,222,428 | E14: =IFERROR(VLOOKUP($A14,BD_Receita_PMSP_1BIM!$A:$S,13,0),0) -> 621,019,661 | F14: 14.33
B15: Multas, Juros de Mora, Dívida Ativa e Outros Encargos do ITBI | C15: =SUM(C16:C18) -> 64,999,818 | D15: =SUM(D16:D18) -> 64,999,818 | E15: =SUM(E16:E18) -> 27,727,821 | F15: 42.66
A16: 1.1.1.2.53.0.2.00.00.000.000.00.00.000 | B16: =IFERROR(VLOOKUP(A16,BD_Receita_PMSP_1BIM!$A:$S,2,0),0) -> IMPOSTO SOBRE TRANSMISSÃO INTER VIVOS DE BENS IMÓVEIS E DE DIREITOS RE | C16: =IFERROR(VLOOKUP($A16,BD_Receita_PMSP_1BIM!$A:$S,15,0),0) -> 35,682,966 | D16: =IFERROR(VLOOKUP($A16,BD_Receita_PMSP_1BIM!$A:$S,10,0),0) -> 35,682,966 | E16: =IFERROR(VLOOKUP($A16,BD_Receita_PMSP_1BIM!$A:$S,13,0),0) -> 5,671,533 | F16: 15.89
A17: 1.1.1.2.53.0.3.00.00.000.000.00.00.000 | B17: =IFERROR(VLOOKUP(A17,BD_Receita_PMSP_1BIM!$A:$S,2,0),0) -> IMPOSTO SOBRE TRANSMISSÃO INTER VIVOS DE BENS IMÓVEIS E DE DIREITOS RE | C17: =IFERROR(VLOOKUP($A17,BD_Receita_PMSP_1BIM!$A:$S,15,0),0) -> 17,740,817 | D17: =IFERROR(VLOOKUP($A17,BD_Receita_PMSP_1BIM!$A:$S,10,0),0) -> 17,740,817 | E17: =IFERROR(VLOOKUP($A17,BD_Receita_PMSP_1BIM!$A:$S,13,0),0) -> 18,909,473 | F17: 106.59
A18: 1.1.1.2.53.0.4.00.00.000.000.00.00.000 | B18: =IFERROR(VLOOKUP(A18,BD_Receita_PMSP_1BIM!$A:$S,2,0),0) -> IMPOSTO SOBRE TRANSMISSÃO INTER VIVOS DE BENS IMÓVEIS E DE DIREITOS RE | C18: =IFERROR(VLOOKUP($A18,BD_Receita_PMSP_1BIM!$A:$S,15,0),0) -> 11,576,035 | D18: =IFERROR(VLOOKUP($A18,BD_Receita_PMSP_1BIM!$A:$S,10,0),0) -> 11,576,035 | E18: =IFERROR(VLOOKUP($A18,BD_Receita_PMSP_1BIM!$A:$S,13,0),0) -> 3,146,815 | F18: 27.18
B19: Receita Resultante do Imposto sobre Serviços de Qualquer Natureza - ISS | C19: =C20+C22 -> 37,559,875,557 | D19: =D20+D22 -> 37,559,875,557 | E19: =E20+E22 -> 6,728,798,339 | F19: 17.91
B20: ISS | C20: =SUM(C21:C21) -> 36,466,235,277 | D20: =SUM(D21:D21) -> 36,466,235,277 | E20: =SUM(E21:E21) -> 6,352,395,639 | F20: 17.42
A21: 1.1.1.4.51.1.1.00.00.000.000.00.00.000 | B21: =IFERROR(VLOOKUP(A21,BD_Receita_PMSP_1BIM!$A:$S,2,0),0) -> IMPOSTO SOBRE SERVIÇOS DE QUALQUER NATUREZA - PRINCIPAL | C21: =IFERROR(VLOOKUP($A21,BD_Receita_PMSP_1BIM!$A:$S,15,0),0) -> 36,466,235,277 | D21: =IFERROR(VLOOKUP($A21,BD_Receita_PMSP_1BIM!$A:$S,10,0),0) -> 36,466,235,277 | E21: =IFERROR(VLOOKUP($A21,BD_Receita_PMSP_1BIM!$A:$S,13,0),0) -> 6,352,395,639 | F21: 17.42
B22: Multas, Juros de Mora, Dívida Ativa e Outros Encargos do ISS | C22: =SUM(C23:C25) -> 1,093,640,280 | D22: =SUM(D23:D25) -> 1,093,640,280 | E22: =SUM(E23:E25) -> 376,402,700 | F22: 34.42
A23: 1.1.1.4.51.1.2.00.00.000.000.00.00.000 | B23: =IFERROR(VLOOKUP(A23,BD_Receita_PMSP_1BIM!$A:$S,2,0),0) -> IMPOSTO SOBRE SERVIÇOS DE QUALQUER NATUREZA - MULTAS E JUROS | C23: =IFERROR(VLOOKUP($A23,BD_Receita_PMSP_1BIM!$A:$S,15,0),0) -> 325,813,375 | D23: =IFERROR(VLOOKUP($A23,BD_Receita_PMSP_1BIM!$A:$S,10,0),0) -> 325,813,375 | E23: =IFERROR(VLOOKUP($A23,BD_Receita_PMSP_1BIM!$A:$S,13,0),0) -> 63,518,567 | F23: 19.50
A24: 1.1.1.4.51.1.3.00.00.000.000.00.00.000 | B24: =IFERROR(VLOOKUP(A24,BD_Receita_PMSP_1BIM!$A:$S,2,0),0) -> IMPOSTO SOBRE SERVIÇOS DE QUALQUER NATUREZA - DÍVIDA ATIVA | C24: =IFERROR(VLOOKUP($A24,BD_Receita_PMSP_1BIM!$A:$S,15,0),0) -> 574,044,649 | D24: =IFERROR(VLOOKUP($A24,BD_Receita_PMSP_1BIM!$A:$S,10,0),0) -> 574,044,649 | E24: =IFERROR(VLOOKUP($A24,BD_Receita_PMSP_1BIM!$A:$S,13,0),0) -> 254,561,031 | F24: 44.35
A25: 1.1.1.4.51.1.4.00.00.000.000.00.00.000 | B25: =IFERROR(VLOOKUP(A25,BD_Receita_PMSP_1BIM!$A:$S,2,0),0) -> IMPOSTO SOBRE SERVIÇOS DE QUALQUER NATUREZA - DÍVIDA ATIVA - MULTAS E | C25: =IFERROR(VLOOKUP($A25,BD_Receita_PMSP_1BIM!$A:$S,15,0),0) -> 193,782,256 | D25: =IFERROR(VLOOKUP($A25,BD_Receita_PMSP_1BIM!$A:$S,10,0),0) -> 193,782,256 | E25: =IFERROR(VLOOKUP($A25,BD_Receita_PMSP_1BIM!$A:$S,13,0),0) -> 58,323,102 | F25: 30.10
B26: Receita Resultante do Imposto sobre a Renda e Proventos de Qualquer Natureza Retido na Fonte – IRRF | C26: =SUM(C27:C28) -> 5,521,973,064 | D26: =SUM(D27:D28) -> 5,521,973,064 | E26: =SUM(E27:E28) -> 687,496,134 | F26: 12.45
A27: 1.1.1.3.03.0.0.00.00.000.000.00.00.000 | B27: =IFERROR(VLOOKUP(A27,BD_Receita_PMSP_1BIM!$A:$S,2,0),0) -> IMPOSTO SOBRE A RENDA - RETIDO NA FONTE | C27: =IFERROR(VLOOKUP($A27,BD_Receita_PMSP_1BIM!$A:$S,15,0),0) -> 5,521,973,064 | D27: =IFERROR(VLOOKUP($A27,BD_Receita_PMSP_1BIM!$A:$S,10,0),0) -> 5,521,973,064 | E27: =IFERROR(VLOOKUP($A27,BD_Receita_PMSP_1BIM!$A:$S,13,0),0) -> 687,496,134 | F27: 12.45
F29: 0
B30: RECEITA DE TRANSFERÊNCIAS CONSTITUCIONAIS E LEGAIS (II) | C30: =SUM(C31,C33,C36,C39,C42,C45) -> 15,436,606,033 | D30: =SUM(D31,D33,D36,D39,D42,D45) -> 15,436,606,033 | E30: =SUM(E31,E33,E36,E39,E42,E45) -> 4,085,312,573 | F30: 26.47
B31: Cota-Parte FPM | C31: =SUM(C32:C32) -> 600,006,885 | D31: =SUM(D32:D32) -> 600,006,885 | E31: =SUM(E32:E32) -> 126,015,877 | F31: 21.00
A32: 1.7.1.1.51.1.1.01.00.000.000.11.01.000 | B32: =IFERROR(VLOOKUP(A32,BD_Receita_PMSP_1BIM!$A:$S,2,0),0) -> Cota-Parte do Fundo de Participação dos Municípios - Cota Mensal | C32: =IFERROR(VLOOKUP($A32,BD_Receita_PMSP_1BIM!$A:$S,15,0),0) -> 600,006,885 | D32: =IFERROR(VLOOKUP($A32,BD_Receita_PMSP_1BIM!$A:$S,10,0),0) -> 600,006,885 | E32: =IFERROR(VLOOKUP($A32,BD_Receita_PMSP_1BIM!$A:$S,13,0),0) -> 126,015,877 | F32: 21.00
B33: Cota-Parte ITR | C33: =C34+C35 -> 19,439,666 | D33: =D34+D35 -> 19,439,666 | E33: =E34+E35 -> 1,270,563 | F33: 6.54
A34: 1.7.1.1.52.0.1.01.00.000.000.11.01.000 | B34: =IFERROR(VLOOKUP(A34,BD_Receita_PMSP_1BIM!$A:$S,2,0),0) -> Cota-Parte do Imposto s/ a Propriedade Territorial Rural | C34: =IFERROR(VLOOKUP($A34,BD_Receita_PMSP_1BIM!$A:$S,15,0),0) -> 19,439,666 | D34: =IFERROR(VLOOKUP($A34,BD_Receita_PMSP_1BIM!$A:$S,10,0),0) -> 19,439,666 | E34: =IFERROR(VLOOKUP($A34,BD_Receita_PMSP_1BIM!$A:$S,13,0),0) -> 1,270,563 | F34: 6.54
B36: Cota-Parte IPVA | C36: =SUM(C37:C38) -> 4,553,894,634 | D36: =SUM(D37:D38) -> 4,553,894,634 | E36: =SUM(E37:E38) -> 2,434,180,228 | F36: 53.45
A37: 1.7.2.1.51.0.1.01.00.000.000.11.01.000 | B37: =IFERROR(VLOOKUP(A37,BD_Receita_PMSP_1BIM!$A:$S,2,0),0) -> Cota-Parte do IPVA | C37: =IFERROR(VLOOKUP($A37,BD_Receita_PMSP_1BIM!$A:$S,15,0),0) -> 4,553,894,634 | D37: =IFERROR(VLOOKUP($A37,BD_Receita_PMSP_1BIM!$A:$S,10,0),0) -> 4,553,894,634 | E37: =IFERROR(VLOOKUP($A37,BD_Receita_PMSP_1BIM!$A:$S,13,0),0) -> 2,435,974,177 | F37: 53.49
A38: 1.7.2.1.51.0.1.01.00.000.000.11.09.001 | B38: =IFERROR(VLOOKUP(A38,BD_Receita_PMSP_1BIM!$A:$S,2,0),0) -> Deduções Cota-Parte do IPVA | C38: =IFERROR(VLOOKUP($A38,BD_Receita_PMSP_1BIM!$A:$S,15,0),0) -> 0 | D38: =IFERROR(VLOOKUP($A38,BD_Receita_PMSP_1BIM!$A:$S,10,0),0) -> 0 | E38: =IFERROR(VLOOKUP($A38,BD_Receita_PMSP_1BIM!$A:$S,13,0),0) -> (1,793,949) | F38: 0
B39: Cota-Parte ICMS | C39: =C40+C41 -> 10,203,805,236 | D39: =D40+D41 -> 10,203,805,236 | E39: =E40+E41 -> 1,513,851,306 | F39: 14.84
A40: 1.7.2.1.50.0.1.01.00.000.000.11.01.000 | B40: =IFERROR(VLOOKUP(A40,BD_Receita_PMSP_1BIM!$A:$S,2,0),0) -> Cota-Parte do ICMS | C40: =IFERROR(VLOOKUP($A40,BD_Receita_PMSP_1BIM!$A:$S,15,0),0) -> 10,203,805,236 | D40: =IFERROR(VLOOKUP($A40,BD_Receita_PMSP_1BIM!$A:$S,10,0),0) -> 10,203,805,236 | E40: =IFERROR(VLOOKUP($A40,BD_Receita_PMSP_1BIM!$A:$S,13,0),0) -> 1,513,851,306 | F40: 14.84
B42: Cota-Parte IPI-Exportação | C42: =C43+C44 -> 59,459,612 | D42: =D43+D44 -> 59,459,612 | E42: 9,994,598 | F42: 16.81
A43: 1.7.2.1.52.0.1.01.00.000.000.11.01.000 | B43: =IFERROR(VLOOKUP(A43,BD_Receita_PMSP_1BIM!$A:$S,2,0),0) -> Cota-Parte do IPI sobre Exportação | C43: =IFERROR(VLOOKUP($A43,BD_Receita_PMSP_1BIM!$A:$S,15,0),0) -> 59,459,612 | D43: =IFERROR(VLOOKUP($A43,BD_Receita_PMSP_1BIM!$A:$S,10,0),0) -> 59,459,612 | E43: =IFERROR(VLOOKUP($A43,BD_Receita_PMSP_1BIM!$A:$S,13,0),0) -> 9,994,598 | F43: 16.81
B45: Outras Transferências ou Compensações Financeiras Provenientes de Impostos e Transferências Constitucionais | C45: =C46+C48 -> 0 | D45: =D46+D48 -> 0 | E45: =E46+E48 -> 0 | F45: 0
B46: Desoneração ICMS (LC 87/96) | C46: =C47 -> 0 | D46: =D47 -> 0 | E46: =E47 -> 0 | F46: 0
A47: 1.7.1.8.06.1.1.01.00.000.000.11.01.000 | B47: =IFERROR(VLOOKUP(A47,BD_Receita_PMSP_1BIM!$A:$S,2,0),0) -> 0 | C47: =IFERROR(VLOOKUP($A47,BD_Receita_PMSP_1BIM!$A:$S,15,0),0) -> 0 | D47: =IFERROR(VLOOKUP($A47,BD_Receita_PMSP_1BIM!$A:$S,10,0),0) -> 0 | E47: =IFERROR(VLOOKUP($A47,BD_Receita_PMSP_1BIM!$A:$S,13,0),0) -> 0 | F47: 0
B48: Outras | C48: =C49 -> 0 | D48: =D49 -> 0 | E48: =E49 -> 0 | F48: =F49 -> 0
A49: 1.7.2.9.53.0.0.00.00.000.000.00.00.000 | B49: =IFERROR(VLOOKUP(A49,BD_Receita_PMSP_1BIM!$A:$S,2,0),0) -> 0 | C49: =IFERROR(VLOOKUP($A49,BD_Receita_PMSP_1BIM!$A:$S,15,0),0) -> 0 | D49: =IFERROR(VLOOKUP($A49,BD_Receita_PMSP_1BIM!$A:$S,10,0),0) -> 0 | E49: =IFERROR(VLOOKUP($A49,BD_Receita_PMSP_1BIM!$A:$S,13,0),0) -> 0 | F49: =IFERROR(E49/D49*100,0) -> 0
B50: TOTAL DAS RECEITAS RESULTANTES DE IMPOSTOS E TRANFERÊNCIAS CONSTITUCIONAIS E LEGAIS - (III) = (I) + (II) | C50: =C4+C30 -> 80,513,920,114 | D50: =D4+D30 -> 80,513,920,114 | E50: =E4+E30 -> 16,851,170,868 | F50: 20.93
E54: RECEITAS REALIZADAS
A55: COD_ORIG_RCTA | B55: RECEITAS ADICIONAIS PARA O FINANCIAMENTO DA SAÚDE NÃO COMPUTADAS NO CÁLCULO DO MÍNIMO | C55: PREVISÃO INICIAL | D55: PREVISÃO ATUALIZADA (a) | E55: Até o Bimestre (b) | F55: % (b/a)x100
B56: RECEITAS DE TRANSFERÊNCIAS PARA A SAÚDE (XXVIII) | C56: =C57+C105+C141 -> 3,756,047,789 | D56: =D57+D105+D141 -> 3,756,046,589 | E56: =E57+E105+E141 -> 638,554,768 | F56: =IFERROR(E56/D56*100,0) -> 17.00
A57: Fontes PMSP 02, 21, 22, 24 | B57: Proveniente da União | C57: =SUM(C58:C99) -> 3,393,012,989 | D57: =SUM(D58:D99) -> 3,393,012,989 | E57: =SUM(E58:E99) -> 559,695,901 | F57: 16.50
A58: FILTROS: | F58: 0
A59: FONTE DE RECURSO ("AA") | F59: 0
A60: 02 | F60: 0
A61: 21 | F61: 0
A62: 22 | F62: 0
A63: 24 | F63: 0
A64: ÓRGÃO | F64: 0
A65: 84 | F65: 0
A66: =IFERROR( _xlfn._xlws.FILTER( BD_Receita_PMSP_1BIM!$A:$A,( ( ((LEFT(BD_Receita_PMSP_1BIM!$S:$S, LEN($A60)) = $A60)+(LEFT(BD_Receita_PMSP_1BIM!$S:$S, LEN($A61)) = $A61)+ (LEFT(BD_Receita_PMSP_1BIM!$S:$S, LEN($A62)) = $A62)+(LEFT(BD_Receita_PMSP_1BIM!$S:$S, LEN($A63)) = $A63))* (TEXT(BD_Receita_PMSP_1BIM!$E:$E, "00") = TEXT($A$65, "00")) ) )), "(vazio)") -> 1.3.2.1.01.0.1.01.04.004.054.11.01.000 | B66: =IFERROR(VLOOKUP(A66,BD_Receita_PMSP_1BIM!$A:$S,2,0),0) -> PMSP-SMS/CONVÊNIO 779947/2012-SICONV | C66: =IFERROR(VLOOKUP($A66,BD_Receita_PMSP_1BIM!$A:$S,15,0),0) -> 715,200 | D66: =IFERROR(VLOOKUP($A66,BD_Receita_PMSP_1BIM!$A:$S,10,0),0) -> 715,200 | E66: =IFERROR(VLOOKUP($A66,BD_Receita_PMSP_1BIM!$A:$S,13,0),0) -> 143,400 | F66: 20.05
A67: 1.3.2.1.05.0.1.01.03.020.010.11.01.000 | B67: =IFERROR(VLOOKUP(A67,BD_Receita_PMSP_1BIM!$A:$S,2,0),0) -> SMS - FMS/FNS - FMS CUSTEIO SUS | C67: =IFERROR(VLOOKUP($A67,BD_Receita_PMSP_1BIM!$A:$S,15,0),0) -> 79,800,000 | D67: =IFERROR(VLOOKUP($A67,BD_Receita_PMSP_1BIM!$A:$S,10,0),0) -> 79,800,000 | E67: =IFERROR(VLOOKUP($A67,BD_Receita_PMSP_1BIM!$A:$S,13,0),0) -> 14,259,505 | F67: 17.87
A68: 1.3.2.1.05.0.1.01.03.020.011.11.01.000 | B68: =IFERROR(VLOOKUP(A68,BD_Receita_PMSP_1BIM!$A:$S,2,0),0) -> SMS - FMS/FNS - FMS INVEST SUS | C68: =IFERROR(VLOOKUP($A68,BD_Receita_PMSP_1BIM!$A:$S,15,0),0) -> 5,400,000 | D68: =IFERROR(VLOOKUP($A68,BD_Receita_PMSP_1BIM!$A:$S,10,0),0) -> 5,400,000 | E68: =IFERROR(VLOOKUP($A68,BD_Receita_PMSP_1BIM!$A:$S,13,0),0) -> 1,402,759 | F68: 25.98
A69: 1.3.2.1.05.0.1.01.03.020.034.11.01.000 | B69: =IFERROR(VLOOKUP(A69,BD_Receita_PMSP_1BIM!$A:$S,2,0),0) -> Ass fin União destinada complem. pagto pisos salariais prof enfermagem | C69: =IFERROR(VLOOKUP($A69,BD_Receita_PMSP_1BIM!$A:$S,15,0),0) -> 360,000 | D69: =IFERROR(VLOOKUP($A69,BD_Receita_PMSP_1BIM!$A:$S,10,0),0) -> 360,000 | E69: =IFERROR(VLOOKUP($A69,BD_Receita_PMSP_1BIM!$A:$S,13,0),0) -> 99,694
A70: 1.3.2.1.05.0.1.01.03.020.035.11.01.000 | B70: =IFERROR(VLOOKUP(A70,BD_Receita_PMSP_1BIM!$A:$S,2,0),0) -> SMS/FMS/EP TRANSFER ESPECIAL 28180010 | C70: =IFERROR(VLOOKUP($A70,BD_Receita_PMSP_1BIM!$A:$S,15,0),0) -> 36,000 | D70: =IFERROR(VLOOKUP($A70,BD_Receita_PMSP_1BIM!$A:$S,10,0),0) -> 36,000 | E70: =IFERROR(VLOOKUP($A70,BD_Receita_PMSP_1BIM!$A:$S,13,0),0) -> 8,290
A71: 1.3.2.1.05.0.1.01.03.020.036.11.01.000 | B71: =IFERROR(VLOOKUP(A71,BD_Receita_PMSP_1BIM!$A:$S,2,0),0) -> SMS/FMS/EP TRANSFER ESPECIAL 90320007 | C71: =IFERROR(VLOOKUP($A71,BD_Receita_PMSP_1BIM!$A:$S,15,0),0) -> 180,000 | D71: =IFERROR(VLOOKUP($A71,BD_Receita_PMSP_1BIM!$A:$S,10,0),0) -> 180,000 | E71: =IFERROR(VLOOKUP($A71,BD_Receita_PMSP_1BIM!$A:$S,13,0),0) -> 0
A72: 1.3.2.1.05.0.1.01.03.020.040.11.01.000 | B72: =IFERROR(VLOOKUP(A72,BD_Receita_PMSP_1BIM!$A:$S,2,0),0) -> SMS/FMS/EP TRANSF. ESPECIAL Dep. Federal Alexandre Padilha - 21.510-4 | C72: =IFERROR(VLOOKUP($A72,BD_Receita_PMSP_1BIM!$A:$S,15,0),0) -> 0 | D72: =IFERROR(VLOOKUP($A72,BD_Receita_PMSP_1BIM!$A:$S,10,0),0) -> 0 | E72: =IFERROR(VLOOKUP($A72,BD_Receita_PMSP_1BIM!$A:$S,13,0),0) -> 10,455
A73: 1.3.2.1.05.0.1.01.03.020.041.11.01.000 | B73: =IFERROR(VLOOKUP(A73,BD_Receita_PMSP_1BIM!$A:$S,2,0),0) -> SMS/FMS/EP TRANSF. ESPECIAL Deputado Federal Rui Falcão | C73: =IFERROR(VLOOKUP($A73,BD_Receita_PMSP_1BIM!$A:$S,15,0),0) -> 0 | D73: =IFERROR(VLOOKUP($A73,BD_Receita_PMSP_1BIM!$A:$S,10,0),0) -> 0 | E73: =IFERROR(VLOOKUP($A73,BD_Receita_PMSP_1BIM!$A:$S,13,0),0) -> 32,647
A74: 1.7.1.3.50.1.1.16.00.001.000.11.01.000 | B74: =IFERROR(VLOOKUP(A74,BD_Receita_PMSP_1BIM!$A:$S,2,0),0) -> Transferências Advindas de Emenda Parlamentar - Incremento PAB/APS | C74: =IFERROR(VLOOKUP($A74,BD_Receita_PMSP_1BIM!$A:$S,15,0),0) -> 9,000,000 | D74: =IFERROR(VLOOKUP($A74,BD_Receita_PMSP_1BIM!$A:$S,10,0),0) -> 9,000,000 | E74: =IFERROR(VLOOKUP($A74,BD_Receita_PMSP_1BIM!$A:$S,13,0),0) -> 0
A75: 1.7.1.3.50.1.1.21.00.000.000.11.01.000 | B75: =IFERROR(VLOOKUP(A75,BD_Receita_PMSP_1BIM!$A:$S,2,0),0) -> Incentivo Financeiro da APS - Diversos APS | C75: =IFERROR(VLOOKUP($A75,BD_Receita_PMSP_1BIM!$A:$S,15,0),0) -> 594,647,213 | D75: =IFERROR(VLOOKUP($A75,BD_Receita_PMSP_1BIM!$A:$S,10,0),0) -> 594,647,213 | E75: =IFERROR(VLOOKUP($A75,BD_Receita_PMSP_1BIM!$A:$S,13,0),0) -> 111,438,202
A76: 1.7.1.3.50.1.1.23.00.000.000.11.01.000 | B76: =IFERROR(VLOOKUP(A76,BD_Receita_PMSP_1BIM!$A:$S,2,0),0) -> Transf destinadas ao vencimento dos Agentes Comunitários de Saúde-ACS | C76: =IFERROR(VLOOKUP($A76,BD_Receita_PMSP_1BIM!$A:$S,15,0),0) -> 370,500,000 | D76: =IFERROR(VLOOKUP($A76,BD_Receita_PMSP_1BIM!$A:$S,10,0),0) -> 370,500,000 | E76: =IFERROR(VLOOKUP($A76,BD_Receita_PMSP_1BIM!$A:$S,13,0),0) -> 57,665,784
A77: 1.7.1.3.50.1.1.24.00.000.000.11.01.000 | B77: =IFERROR(VLOOKUP(A77,BD_Receita_PMSP_1BIM!$A:$S,2,0),0) -> Incentivo Financeiro da APS - Atenção à Saúde Bucal | C77: =IFERROR(VLOOKUP($A77,BD_Receita_PMSP_1BIM!$A:$S,15,0),0) -> 77,708,576 | D77: =IFERROR(VLOOKUP($A77,BD_Receita_PMSP_1BIM!$A:$S,10,0),0) -> 77,708,576 | E77: =IFERROR(VLOOKUP($A77,BD_Receita_PMSP_1BIM!$A:$S,13,0),0) -> 11,857,204
A78: 1.7.1.3.50.2.1.01.00.000.000.11.01.000 | B78: =IFERROR(VLOOKUP(A78,BD_Receita_PMSP_1BIM!$A:$S,2,0),0) -> MAC Teto Financeiro - FMS | C78: =IFERROR(VLOOKUP($A78,BD_Receita_PMSP_1BIM!$A:$S,15,0),0) -> 1,267,200,000 | D78: =IFERROR(VLOOKUP($A78,BD_Receita_PMSP_1BIM!$A:$S,10,0),0) -> 1,267,200,000 | E78: =IFERROR(VLOOKUP($A78,BD_Receita_PMSP_1BIM!$A:$S,13,0),0) -> 231,509,920
A79: 1.7.1.3.50.2.1.02.00.000.000.11.01.000 | B79: =IFERROR(VLOOKUP(A79,BD_Receita_PMSP_1BIM!$A:$S,2,0),0) -> SAMU - Serviço de Atendimento Móvel de Urgência - FMS | C79: =IFERROR(VLOOKUP($A79,BD_Receita_PMSP_1BIM!$A:$S,15,0),0) -> 58,500,000 | D79: =IFERROR(VLOOKUP($A79,BD_Receita_PMSP_1BIM!$A:$S,10,0),0) -> 58,500,000 | E79: =IFERROR(VLOOKUP($A79,BD_Receita_PMSP_1BIM!$A:$S,13,0),0) -> 9,746,105
A80: 1.7.1.3.50.2.1.08.00.000.000.11.01.000 | B80: =IFERROR(VLOOKUP(A80,BD_Receita_PMSP_1BIM!$A:$S,2,0),0) -> FAEC Nefrologia - FMS | C80: =IFERROR(VLOOKUP($A80,BD_Receita_PMSP_1BIM!$A:$S,15,0),0) -> 331,200,000 | D80: =IFERROR(VLOOKUP($A80,BD_Receita_PMSP_1BIM!$A:$S,10,0),0) -> 331,200,000 | E80: =IFERROR(VLOOKUP($A80,BD_Receita_PMSP_1BIM!$A:$S,13,0),0) -> 47,477,653
A81: 1.7.1.3.50.2.1.09.00.000.000.11.01.000 | B81: =IFERROR(VLOOKUP(A81,BD_Receita_PMSP_1BIM!$A:$S,2,0),0) -> FAEC Transplantes - FMS | C81: =IFERROR(VLOOKUP($A81,BD_Receita_PMSP_1BIM!$A:$S,15,0),0) -> 186,960,000 | D81: =IFERROR(VLOOKUP($A81,BD_Receita_PMSP_1BIM!$A:$S,10,0),0) -> 186,960,000 | E81: =IFERROR(VLOOKUP($A81,BD_Receita_PMSP_1BIM!$A:$S,13,0),0) -> 15,442,695
A82: 1.7.1.3.50.2.1.10.00.000.000.11.01.000 | B82: =IFERROR(VLOOKUP(A82,BD_Receita_PMSP_1BIM!$A:$S,2,0),0) -> Outros FAEC | C82: =IFERROR(VLOOKUP($A82,BD_Receita_PMSP_1BIM!$A:$S,15,0),0) -> 73,440,000 | D82: =IFERROR(VLOOKUP($A82,BD_Receita_PMSP_1BIM!$A:$S,10,0),0) -> 73,440,000 | E82: =IFERROR(VLOOKUP($A82,BD_Receita_PMSP_1BIM!$A:$S,13,0),0) -> 26,231,423
A83: 1.7.1.3.50.2.1.11.00.001.000.11.01.000 | B83: =IFERROR(VLOOKUP(A83,BD_Receita_PMSP_1BIM!$A:$S,2,0),0) -> Transferências Advindas de Emenda Parlamentar -Incremento MAC (Assistê | C83: =IFERROR(VLOOKUP($A83,BD_Receita_PMSP_1BIM!$A:$S,15,0),0) -> 80,000,000 | D83: =IFERROR(VLOOKUP($A83,BD_Receita_PMSP_1BIM!$A:$S,10,0),0) -> 80,000,000 | E83: =IFERROR(VLOOKUP($A83,BD_Receita_PMSP_1BIM!$A:$S,13,0),0) -> 0
A84: 1.7.1.3.50.3.1.01.00.000.000.11.01.000 | B84: =IFERROR(VLOOKUP(A84,BD_Receita_PMSP_1BIM!$A:$S,2,0),0) -> Vigilância em Saúde Epidemiológica, Sanitária e Ambiental - FMS | C84: =IFERROR(VLOOKUP($A84,BD_Receita_PMSP_1BIM!$A:$S,15,0),0) -> 45,600,000 | D84: =IFERROR(VLOOKUP($A84,BD_Receita_PMSP_1BIM!$A:$S,10,0),0) -> 45,600,000 | E84: =IFERROR(VLOOKUP($A84,BD_Receita_PMSP_1BIM!$A:$S,13,0),0) -> 2,948,955
A85: 1.7.1.3.50.3.1.02.00.000.000.11.01.000 | B85: =IFERROR(VLOOKUP(A85,BD_Receita_PMSP_1BIM!$A:$S,2,0),0) -> Vigilância DST/AIDS - Hepatites Virais - FMS | C85: =IFERROR(VLOOKUP($A85,BD_Receita_PMSP_1BIM!$A:$S,15,0),0) -> 8,640,000 | D85: =IFERROR(VLOOKUP($A85,BD_Receita_PMSP_1BIM!$A:$S,10,0),0) -> 8,640,000 | E85: =IFERROR(VLOOKUP($A85,BD_Receita_PMSP_1BIM!$A:$S,13,0),0) -> 1,333,888
A86: 1.7.1.3.50.3.1.04.00.000.000.11.01.000 | B86: =IFERROR(VLOOKUP(A86,BD_Receita_PMSP_1BIM!$A:$S,2,0),0) -> Transf destinadas ao vencimento dos agentes de combate às endemias-ACE | C86: =IFERROR(VLOOKUP($A86,BD_Receita_PMSP_1BIM!$A:$S,15,0),0) -> 76,700,000 | D86: =IFERROR(VLOOKUP($A86,BD_Receita_PMSP_1BIM!$A:$S,10,0),0) -> 76,700,000 | E86: =IFERROR(VLOOKUP($A86,BD_Receita_PMSP_1BIM!$A:$S,13,0),0) -> 12,298,836
A87: 1.7.1.3.50.4.1.01.00.000.000.11.01.000 | B87: =IFERROR(VLOOKUP(A87,BD_Receita_PMSP_1BIM!$A:$S,2,0),0) -> Componente Básico da Assistência Farmacêutica - FMS | C87: =IFERROR(VLOOKUP($A87,BD_Receita_PMSP_1BIM!$A:$S,15,0),0) -> 72,000,000 | D87: =IFERROR(VLOOKUP($A87,BD_Receita_PMSP_1BIM!$A:$S,10,0),0) -> 72,000,000 | E87: =IFERROR(VLOOKUP($A87,BD_Receita_PMSP_1BIM!$A:$S,13,0),0) -> 13,742,399
A88: 1.7.1.3.50.5.1.01.00.000.000.11.01.000 | B88: =IFERROR(VLOOKUP(A88,BD_Receita_PMSP_1BIM!$A:$S,2,0),0) -> Gestão do SUS - Qualificação, Implantação e Implementação | C88: =IFERROR(VLOOKUP($A88,BD_Receita_PMSP_1BIM!$A:$S,15,0),0) -> 600,000 | D88: =IFERROR(VLOOKUP($A88,BD_Receita_PMSP_1BIM!$A:$S,10,0),0) -> 600,000 | E88: =IFERROR(VLOOKUP($A88,BD_Receita_PMSP_1BIM!$A:$S,13,0),0) -> 513,249
A89: 1.7.1.3.50.9.1.01.00.000.000.11.01.000 | B89: =IFERROR(VLOOKUP(A89,BD_Receita_PMSP_1BIM!$A:$S,2,0),0) -> Outros Programas Financiados por Transferências Fundo a Fundo | C89: =IFERROR(VLOOKUP($A89,BD_Receita_PMSP_1BIM!$A:$S,15,0),0) -> 120,000 | D89: =IFERROR(VLOOKUP($A89,BD_Receita_PMSP_1BIM!$A:$S,10,0),0) -> 120,000 | E89: =IFERROR(VLOOKUP($A89,BD_Receita_PMSP_1BIM!$A:$S,13,0),0) -> 0
A90: 1.7.1.3.50.9.1.08.00.000.000.11.01.000 | B90: =IFERROR(VLOOKUP(A90,BD_Receita_PMSP_1BIM!$A:$S,2,0),0) -> Ass fin União destinada complem. pagto pisos salariais prof enfermagem | C90: =IFERROR(VLOOKUP($A90,BD_Receita_PMSP_1BIM!$A:$S,15,0),0) -> 3,900,000 | D90: =IFERROR(VLOOKUP($A90,BD_Receita_PMSP_1BIM!$A:$S,10,0),0) -> 3,900,000 | E90: =IFERROR(VLOOKUP($A90,BD_Receita_PMSP_1BIM!$A:$S,13,0),0) -> 0
A91: 1.7.1.3.99.0.1.01.00.000.000.11.01.000 | B91: =IFERROR(VLOOKUP(A91,BD_Receita_PMSP_1BIM!$A:$S,2,0),0) -> Outras Transferências de Recursos do Sistema Único de Saúde - SUS - Pr | C91: =IFERROR(VLOOKUP($A91,BD_Receita_PMSP_1BIM!$A:$S,15,0),0) -> 2,400 | D91: =IFERROR(VLOOKUP($A91,BD_Receita_PMSP_1BIM!$A:$S,10,0),0) -> 2,400 | E91: =IFERROR(VLOOKUP($A91,BD_Receita_PMSP_1BIM!$A:$S,13,0),0) -> 0
A92: 1.7.1.7.50.0.1.01.00.000.000.11.01.000 | B92: =IFERROR(VLOOKUP(A92,BD_Receita_PMSP_1BIM!$A:$S,2,0),0) -> Outros convênios da União para a área da Saúde | C92: =IFERROR(VLOOKUP($A92,BD_Receita_PMSP_1BIM!$A:$S,15,0),0) -> 2,400 | D92: =IFERROR(VLOOKUP($A92,BD_Receita_PMSP_1BIM!$A:$S,10,0),0) -> 2,400 | E92: =IFERROR(VLOOKUP($A92,BD_Receita_PMSP_1BIM!$A:$S,13,0),0) -> 0
A93: 1.9.2.2.01.1.1.05.00.000.000.11.01.000 | B93: =IFERROR(VLOOKUP(A93,BD_Receita_PMSP_1BIM!$A:$S,2,0),0) -> Restituição Oriunda de Entidades Parceiras - Recursos União | C93: =IFERROR(VLOOKUP($A93,BD_Receita_PMSP_1BIM!$A:$S,15,0),0) -> 4,800,000 | D93: =IFERROR(VLOOKUP($A93,BD_Receita_PMSP_1BIM!$A:$S,10,0),0) -> 4,800,000 | E93: =IFERROR(VLOOKUP($A93,BD_Receita_PMSP_1BIM!$A:$S,13,0),0) -> 1,532,839
A94: 2.4.1.1.50.9.1.01.00.000.000.11.01.000 | B94: =IFERROR(VLOOKUP(A94,BD_Receita_PMSP_1BIM!$A:$S,2,0),0) -> Transferência De Recursos Do SUS - Outros Programas Financiados Por Tr | C94: =IFERROR(VLOOKUP($A94,BD_Receita_PMSP_1BIM!$A:$S,15,0),0) -> 3,000,000 | D94: =IFERROR(VLOOKUP($A94,BD_Receita_PMSP_1BIM!$A:$S,10,0),0) -> 3,000,000 | E94: =IFERROR(VLOOKUP($A94,BD_Receita_PMSP_1BIM!$A:$S,13,0),0) -> 0
A95: 2.4.1.1.51.2.1.01.00.000.000.11.01.000 | B95: =IFERROR(VLOOKUP(A95,BD_Receita_PMSP_1BIM!$A:$S,2,0),0) -> Transferência De Recursos Do Sistema Único De Saúde - SUS - Destinados | C95: =IFERROR(VLOOKUP($A95,BD_Receita_PMSP_1BIM!$A:$S,15,0),0) -> 3,000,000 | D95: =IFERROR(VLOOKUP($A95,BD_Receita_PMSP_1BIM!$A:$S,10,0),0) -> 3,000,000 | E95: =IFERROR(VLOOKUP($A95,BD_Receita_PMSP_1BIM!$A:$S,13,0),0) -> 0
A96: 2.4.1.4.50.0.1.07.00.000.000.11.01.000 | B96: =IFERROR(VLOOKUP(A96,BD_Receita_PMSP_1BIM!$A:$S,2,0),0) -> Convênios com o Ministério da Saúde -FMS | C96: =IFERROR(VLOOKUP($A96,BD_Receita_PMSP_1BIM!$A:$S,15,0),0) -> 28,000,000 | D96: =IFERROR(VLOOKUP($A96,BD_Receita_PMSP_1BIM!$A:$S,10,0),0) -> 28,000,000 | E96: =IFERROR(VLOOKUP($A96,BD_Receita_PMSP_1BIM!$A:$S,13,0),0) -> 0
A97: 2.4.1.4.50.0.1.14.00.000.000.11.01.000 | B97: =IFERROR(VLOOKUP(A97,BD_Receita_PMSP_1BIM!$A:$S,2,0),0) -> Convênios com o Ministério da Saúde -FMS - Convênio 929522/2022 | C97: =IFERROR(VLOOKUP($A97,BD_Receita_PMSP_1BIM!$A:$S,15,0),0) -> 1,200 | D97: =IFERROR(VLOOKUP($A97,BD_Receita_PMSP_1BIM!$A:$S,10,0),0) -> 1,200 | E97: =IFERROR(VLOOKUP($A97,BD_Receita_PMSP_1BIM!$A:$S,13,0),0) -> 0
A98: 2.4.1.9.99.0.1.04.00.001.000.11.01.000 | B98: =IFERROR(VLOOKUP(A98,BD_Receita_PMSP_1BIM!$A:$S,2,0),0) -> Transferências Advindas de Emendas Parlamentares - Fundo a Fundo - FMS | C98: =IFERROR(VLOOKUP($A98,BD_Receita_PMSP_1BIM!$A:$S,15,0),0) -> 11,000,000 | D98: =IFERROR(VLOOKUP($A98,BD_Receita_PMSP_1BIM!$A:$S,10,0),0) -> 11,000,000 | E98: =IFERROR(VLOOKUP($A98,BD_Receita_PMSP_1BIM!$A:$S,13,0),0) -> 0
F99: 0
F100: 0
F101: 0
F102: 0
F103: 0
F104: 0
A105: Fonte 03 | B105: Proveniente dos Estados | C105: =SUM(C106:C138) -> 363,034,800 | D105: =SUM(D106:D138) -> 363,033,600 | E105: =SUM(E106:E138) -> 78,858,866 | F105: =IFERROR(E105/D105*100,0) -> 21.72
A106: FILTROS:
A107: FONTE DE RECURSO ("AA")
A108: 03
A109: ÓRGÃO
A110: 84
A111: =IFERROR( _xlfn._xlws.FILTER( BD_Receita_PMSP_1BIM!$A:$A,( ( (LEFT(BD_Receita_PMSP_1BIM!$S:$S, LEN($A108)) = $A108)* (TEXT(BD_Receita_PMSP_1BIM!$E:$E, "00") = TEXT($A110, "00")) ) )), "(vazio)") -> 1.3.2.1.01.0.1.01.04.002.001.11.01.000 | B111: =IFERROR(VLOOKUP(A111,BD_Receita_PMSP_1BIM!$A:$S,2,0),0) -> Convênio 1307/2024-SMS/Reforma UBS Vila Renato-Maria das Graças Silva | C111: =IFERROR(VLOOKUP($A111,BD_Receita_PMSP_1BIM!$A:$S,15,0),0) -> 0 | D111: =IFERROR(VLOOKUP($A111,BD_Receita_PMSP_1BIM!$A:$S,10,0),0) -> 0 | E111: =IFERROR(VLOOKUP($A111,BD_Receita_PMSP_1BIM!$A:$S,13,0),0) -> 1,016
A112: 1.3.2.1.01.0.1.01.04.004.060.11.01.000 | B112: =IFERROR(VLOOKUP(A112,BD_Receita_PMSP_1BIM!$A:$S,2,0),0) -> SMS/Constr cobertura-UBS V Esperança-Or. Cassio Bittencourt Filho-Poup | C112: =IFERROR(VLOOKUP($A112,BD_Receita_PMSP_1BIM!$A:$S,15,0),0) -> 0 | D112: =IFERROR(VLOOKUP($A112,BD_Receita_PMSP_1BIM!$A:$S,10,0),0) -> 0 | E112: =IFERROR(VLOOKUP($A112,BD_Receita_PMSP_1BIM!$A:$S,13,0),0) -> 611
A113: 1.3.2.1.05.0.1.01.04.027.002.11.01.000 | B113: =IFERROR(VLOOKUP(A113,BD_Receita_PMSP_1BIM!$A:$S,2,0),0) -> Secretaria de Estado da Saúde - SMS/FMS - PMSPSMS-FUNDO A FUNDO SES | C113: =IFERROR(VLOOKUP($A113,BD_Receita_PMSP_1BIM!$A:$S,15,0),0) -> 14,400,000 | D113: =IFERROR(VLOOKUP($A113,BD_Receita_PMSP_1BIM!$A:$S,10,0),0) -> 14,400,000 | E113: =IFERROR(VLOOKUP($A113,BD_Receita_PMSP_1BIM!$A:$S,13,0),0) -> 4,117,725
A114: 1.3.2.1.05.0.1.01.04.027.011.11.01.000 | B114: =IFERROR(VLOOKUP(A114,BD_Receita_PMSP_1BIM!$A:$S,2,0),0) -> Secretaria de Estado da Saúde - SMS- Programa Meu Pet | C114: =IFERROR(VLOOKUP($A114,BD_Receita_PMSP_1BIM!$A:$S,15,0),0) -> 1,200 | D114: =IFERROR(VLOOKUP($A114,BD_Receita_PMSP_1BIM!$A:$S,10,0),0) -> 1,200 | E114: =IFERROR(VLOOKUP($A114,BD_Receita_PMSP_1BIM!$A:$S,13,0),0) -> 0
A115: 1.3.2.1.05.0.1.01.04.027.012.11.01.000 | B115: =IFERROR(VLOOKUP(A115,BD_Receita_PMSP_1BIM!$A:$S,2,0),0) -> Transferência Especial - SMS//FMS/EP ESTADUAL | C115: =IFERROR(VLOOKUP($A115,BD_Receita_PMSP_1BIM!$A:$S,15,0),0) -> 60,000 | D115: =IFERROR(VLOOKUP($A115,BD_Receita_PMSP_1BIM!$A:$S,10,0),0) -> 60,000 | E115: =IFERROR(VLOOKUP($A115,BD_Receita_PMSP_1BIM!$A:$S,13,0),0) -> 17,305
A116: 1.3.2.1.05.0.1.01.04.027.015.11.01.000 | B116: =IFERROR(VLOOKUP(A116,BD_Receita_PMSP_1BIM!$A:$S,2,0),0) -> SMS/Constução cobertura-UBS V Esperança-Or. Cassio Bittencourt Filho | C116: =IFERROR(VLOOKUP($A116,BD_Receita_PMSP_1BIM!$A:$S,15,0),0) -> 1,200 | D116: =IFERROR(VLOOKUP($A116,BD_Receita_PMSP_1BIM!$A:$S,10,0),0) -> 1,200 | E116: =IFERROR(VLOOKUP($A116,BD_Receita_PMSP_1BIM!$A:$S,13,0),0) -> 0
A117: 1.3.2.1.05.0.1.01.04.027.016.11.01.000 | B117: =IFERROR(VLOOKUP(A117,BD_Receita_PMSP_1BIM!$A:$S,2,0),0) -> PMSP-SMS/ Ampliação da UBS Fazenda da Juta 11 | C117: =IFERROR(VLOOKUP($A117,BD_Receita_PMSP_1BIM!$A:$S,15,0),0) -> 1,200 | D117: =IFERROR(VLOOKUP($A117,BD_Receita_PMSP_1BIM!$A:$S,10,0),0) -> 1,200 | E117: =IFERROR(VLOOKUP($A117,BD_Receita_PMSP_1BIM!$A:$S,13,0),0) -> 0
A118: 1.3.2.1.05.0.1.01.04.027.017.11.01.000 | B118: =IFERROR(VLOOKUP(A118,BD_Receita_PMSP_1BIM!$A:$S,2,0),0) -> PMSP-SMS/ Reforma da rede elétrica-UBS Jardim Jaraguá Kwaray Djekupé | C118: =IFERROR(VLOOKUP($A118,BD_Receita_PMSP_1BIM!$A:$S,15,0),0) -> 1,200 | D118: =IFERROR(VLOOKUP($A118,BD_Receita_PMSP_1BIM!$A:$S,10,0),0) -> 0 | E118: =IFERROR(VLOOKUP($A118,BD_Receita_PMSP_1BIM!$A:$S,13,0),0) -> 0
A119: 1.3.2.1.05.0.1.01.04.027.018.11.01.000 | B119: =IFERROR(VLOOKUP(A119,BD_Receita_PMSP_1BIM!$A:$S,2,0),0) -> PMSP-SMS/Reforma e manutenção da UBS Jardim Santa Fé | C119: =IFERROR(VLOOKUP($A119,BD_Receita_PMSP_1BIM!$A:$S,15,0),0) -> 1,200 | D119: =IFERROR(VLOOKUP($A119,BD_Receita_PMSP_1BIM!$A:$S,10,0),0) -> 1,200 | E119: =IFERROR(VLOOKUP($A119,BD_Receita_PMSP_1BIM!$A:$S,13,0),0) -> 0
A120: 1.3.2.1.05.0.1.01.04.027.020.11.01.000 | B120: =IFERROR(VLOOKUP(A120,BD_Receita_PMSP_1BIM!$A:$S,2,0),0) -> PMSP-SMS/Reforma da UBS Vila Renato-Maria das Graças da Silva | C120: =IFERROR(VLOOKUP($A120,BD_Receita_PMSP_1BIM!$A:$S,15,0),0) -> 1,200 | D120: =IFERROR(VLOOKUP($A120,BD_Receita_PMSP_1BIM!$A:$S,10,0),0) -> 1,200 | E120: =IFERROR(VLOOKUP($A120,BD_Receita_PMSP_1BIM!$A:$S,13,0),0) -> 425
A121: 1.3.2.1.05.0.1.01.04.027.021.11.01.000 | B121: =IFERROR(VLOOKUP(A121,BD_Receita_PMSP_1BIM!$A:$S,2,0),0) -> SMS/Ampliação/Construção sala e cobertura-UBS A Jaraguá Kwaray Djekupé | C121: =IFERROR(VLOOKUP($A121,BD_Receita_PMSP_1BIM!$A:$S,15,0),0) -> 1,200 | D121: =IFERROR(VLOOKUP($A121,BD_Receita_PMSP_1BIM!$A:$S,10,0),0) -> 0 | E121: =IFERROR(VLOOKUP($A121,BD_Receita_PMSP_1BIM!$A:$S,13,0),0) -> 0
A122: 1.3.2.1.05.0.1.01.04.027.024.11.01.000 | B122: =IFERROR(VLOOKUP(A122,BD_Receita_PMSP_1BIM!$A:$S,2,0),0) -> PMSP-SMS/CONVÊNIO SES/SP 070069 | C122: =IFERROR(VLOOKUP($A122,BD_Receita_PMSP_1BIM!$A:$S,15,0),0) -> 1,200 | D122: =IFERROR(VLOOKUP($A122,BD_Receita_PMSP_1BIM!$A:$S,10,0),0) -> 1,200 | E122: =IFERROR(VLOOKUP($A122,BD_Receita_PMSP_1BIM!$A:$S,13,0),0) -> 2,092
A123: 1.3.2.1.05.0.1.01.04.027.025.11.01.000 | B123: =IFERROR(VLOOKUP(A123,BD_Receita_PMSP_1BIM!$A:$S,2,0),0) -> PMSP-SMS/ CONVÊNIO SES/SP 069318 | C123: =IFERROR(VLOOKUP($A123,BD_Receita_PMSP_1BIM!$A:$S,15,0),0) -> 1,200 | D123: =IFERROR(VLOOKUP($A123,BD_Receita_PMSP_1BIM!$A:$S,10,0),0) -> 1,200 | E123: =IFERROR(VLOOKUP($A123,BD_Receita_PMSP_1BIM!$A:$S,13,0),0) -> 3,654 | F123: 304.50
A124: 1.3.2.1.05.0.1.01.04.027.026.11.01.000 | B124: =IFERROR(VLOOKUP(A124,BD_Receita_PMSP_1BIM!$A:$S,2,0),0) -> PMSP-SMS/CONVÊNIO SES/SP 070070 | C124: =IFERROR(VLOOKUP($A124,BD_Receita_PMSP_1BIM!$A:$S,15,0),0) -> 1,200 | D124: =IFERROR(VLOOKUP($A124,BD_Receita_PMSP_1BIM!$A:$S,10,0),0) -> 1,200 | E124: =IFERROR(VLOOKUP($A124,BD_Receita_PMSP_1BIM!$A:$S,13,0),0) -> 2,059 | F124: 171.61
A125: 1.3.2.1.05.0.1.01.04.027.027.11.01.000 | B125: =IFERROR(VLOOKUP(A125,BD_Receita_PMSP_1BIM!$A:$S,2,0),0) -> PMSP-SMS/ Reforma da rede elétrica-UBS Jardim Jaraguá Kwaray Djekupé | C125: =IFERROR(VLOOKUP($A125,BD_Receita_PMSP_1BIM!$A:$S,15,0),0) -> 0 | D125: =IFERROR(VLOOKUP($A125,BD_Receita_PMSP_1BIM!$A:$S,10,0),0) -> 1,200 | E125: =IFERROR(VLOOKUP($A125,BD_Receita_PMSP_1BIM!$A:$S,13,0),0) -> 1,145 | F125: 95.46
A126: 1.3.2.1.05.0.1.01.04.027.052.11.01.000 | B126: =IFERROR(VLOOKUP(A126,BD_Receita_PMSP_1BIM!$A:$S,2,0),0) -> PMSP-SMS/CONVÊNIO SES/SP 039472- UBS Jardim Guarani-Brasilândia | C126: =IFERROR(VLOOKUP($A126,BD_Receita_PMSP_1BIM!$A:$S,15,0),0) -> 6,000 | D126: =IFERROR(VLOOKUP($A126,BD_Receita_PMSP_1BIM!$A:$S,10,0),0) -> 6,000 | E126: =IFERROR(VLOOKUP($A126,BD_Receita_PMSP_1BIM!$A:$S,13,0),0) -> 0 | F126: 0
A127: 1.7.2.3.50.0.1.02.00.000.000.11.01.000 | B127: =IFERROR(VLOOKUP(A127,BD_Receita_PMSP_1BIM!$A:$S,2,0),0) -> PMSP-SMS/FUNDO A FUNDO/SES | C127: =IFERROR(VLOOKUP($A127,BD_Receita_PMSP_1BIM!$A:$S,15,0),0) -> 342,900,000 | D127: =IFERROR(VLOOKUP($A127,BD_Receita_PMSP_1BIM!$A:$S,10,0),0) -> 342,900,000 | E127: =IFERROR(VLOOKUP($A127,BD_Receita_PMSP_1BIM!$A:$S,13,0),0) -> 74,327,834 | F127: 21.68
A128: 1.7.2.4.50.0.1.01.03.001.000.11.01.000 | B128: =IFERROR(VLOOKUP(A128,BD_Receita_PMSP_1BIM!$A:$S,2,0),0) -> Transferências Advindas de Emendas Parlamentares - Convênio FMS X ESTA | C128: =IFERROR(VLOOKUP($A128,BD_Receita_PMSP_1BIM!$A:$S,15,0),0) -> 610,000 | D128: =IFERROR(VLOOKUP($A128,BD_Receita_PMSP_1BIM!$A:$S,10,0),0) -> 610,000 | E128: =IFERROR(VLOOKUP($A128,BD_Receita_PMSP_1BIM!$A:$S,13,0),0) -> 0 | F128: 0
A129: 1.7.2.4.50.0.1.01.07.000.000.11.01.000 | B129: =IFERROR(VLOOKUP(A129,BD_Receita_PMSP_1BIM!$A:$S,2,0),0) -> Transf. Advindas de Emendas Parlamentares - Convênio SES/SP 070070 | C129: =IFERROR(VLOOKUP($A129,BD_Receita_PMSP_1BIM!$A:$S,15,0),0) -> 0 | D129: =IFERROR(VLOOKUP($A129,BD_Receita_PMSP_1BIM!$A:$S,10,0),0) -> 0 | E129: =IFERROR(VLOOKUP($A129,BD_Receita_PMSP_1BIM!$A:$S,13,0),0) -> 150,000 | F129: 0
A130: 1.7.2.4.50.0.1.01.08.000.000.11.01.000 | B130: =IFERROR(VLOOKUP(A130,BD_Receita_PMSP_1BIM!$A:$S,2,0),0) -> Convênio SMS/ Reforma da rede elétrica-UBS Jd Jaraguá Kwaray Djekupé | C130: =IFERROR(VLOOKUP($A130,BD_Receita_PMSP_1BIM!$A:$S,15,0),0) -> 0 | D130: =IFERROR(VLOOKUP($A130,BD_Receita_PMSP_1BIM!$A:$S,10,0),0) -> 0 | E130: =IFERROR(VLOOKUP($A130,BD_Receita_PMSP_1BIM!$A:$S,13,0),0) -> 85,000 | F130: 0
A131: 1.7.2.9.99.0.1.01.00.000.000.11.01.000 | B131: =IFERROR(VLOOKUP(A131,BD_Receita_PMSP_1BIM!$A:$S,2,0),0) -> Transferência do Fundo Estadual de Saúde - FMS | C131: =IFERROR(VLOOKUP($A131,BD_Receita_PMSP_1BIM!$A:$S,15,0),0) -> 12,000 | D131: =IFERROR(VLOOKUP($A131,BD_Receita_PMSP_1BIM!$A:$S,10,0),0) -> 12,000 | E131: =IFERROR(VLOOKUP($A131,BD_Receita_PMSP_1BIM!$A:$S,13,0),0) -> 0 | F131: 0
A132: 1.9.2.2.01.1.1.06.00.000.000.11.01.000 | B132: =IFERROR(VLOOKUP(A132,BD_Receita_PMSP_1BIM!$A:$S,2,0),0) -> Restituição Oriunda de Entidades Parceiras - Recursos Estado | C132: =IFERROR(VLOOKUP($A132,BD_Receita_PMSP_1BIM!$A:$S,15,0),0) -> 2,400 | D132: =IFERROR(VLOOKUP($A132,BD_Receita_PMSP_1BIM!$A:$S,10,0),0) -> 2,400 | E132: =IFERROR(VLOOKUP($A132,BD_Receita_PMSP_1BIM!$A:$S,13,0),0) -> 0 | F132: 0
A133: 2.4.2.1.50.0.1.01.00.000.000.11.01.000 | B133: =IFERROR(VLOOKUP(A133,BD_Receita_PMSP_1BIM!$A:$S,2,0),0) -> Secretaria de Estado da Saúde - SMS/FMS | C133: =IFERROR(VLOOKUP($A133,BD_Receita_PMSP_1BIM!$A:$S,15,0),0) -> 30,000 | D133: =IFERROR(VLOOKUP($A133,BD_Receita_PMSP_1BIM!$A:$S,10,0),0) -> 30,000 | E133: =IFERROR(VLOOKUP($A133,BD_Receita_PMSP_1BIM!$A:$S,13,0),0) -> 0 | F133: 0
A134: 2.4.2.2.50.0.1.08.00.001.000.11.01.000 | B134: =IFERROR(VLOOKUP(A134,BD_Receita_PMSP_1BIM!$A:$S,2,0),0) -> Transferências Advindas de Emendas Parlamentares - Convênio FMS X ESTA | C134: =IFERROR(VLOOKUP($A134,BD_Receita_PMSP_1BIM!$A:$S,15,0),0) -> 1,200 | D134: =IFERROR(VLOOKUP($A134,BD_Receita_PMSP_1BIM!$A:$S,10,0),0) -> 1,200 | E134: =IFERROR(VLOOKUP($A134,BD_Receita_PMSP_1BIM!$A:$S,13,0),0) -> 0 | F134: 0
A135: 2.4.2.2.50.0.1.10.00.001.000.11.01.000 | B135: =IFERROR(VLOOKUP(A135,BD_Receita_PMSP_1BIM!$A:$S,2,0),0) -> Transferências Advindas de Emendas Parlamentares - Convênio FMS X ESTA | C135: =IFERROR(VLOOKUP($A135,BD_Receita_PMSP_1BIM!$A:$S,15,0),0) -> 1,200 | D135: =IFERROR(VLOOKUP($A135,BD_Receita_PMSP_1BIM!$A:$S,10,0),0) -> 1,200 | E135: =IFERROR(VLOOKUP($A135,BD_Receita_PMSP_1BIM!$A:$S,13,0),0) -> 0 | F135: 0
A136: 2.4.2.2.50.0.1.13.00.000.000.11.01.000 | B136: =IFERROR(VLOOKUP(A136,BD_Receita_PMSP_1BIM!$A:$S,2,0),0) -> Transf. Advindas de Emendas Parlamentares - Convênio SES/SP 070069 | C136: =IFERROR(VLOOKUP($A136,BD_Receita_PMSP_1BIM!$A:$S,15,0),0) -> 0 | D136: =IFERROR(VLOOKUP($A136,BD_Receita_PMSP_1BIM!$A:$S,10,0),0) -> 0 | E136: =IFERROR(VLOOKUP($A136,BD_Receita_PMSP_1BIM!$A:$S,13,0),0) -> 150,000 | F136: 0
A137: 2.4.2.9.99.0.1.02.00.001.000.11.01.000 | B137: =IFERROR(VLOOKUP(A137,BD_Receita_PMSP_1BIM!$A:$S,2,0),0) -> Transferências Advindas de Emendas Parlamentares - Fundo a Fundo/SES | C137: =IFERROR(VLOOKUP($A137,BD_Receita_PMSP_1BIM!$A:$S,15,0),0) -> 5,000,000 | D137: =IFERROR(VLOOKUP($A137,BD_Receita_PMSP_1BIM!$A:$S,10,0),0) -> 5,000,000 | E137: =IFERROR(VLOOKUP($A137,BD_Receita_PMSP_1BIM!$A:$S,13,0),0) -> 0 | F137: 0
F138: 0
F139: 0
B141: Proveniente de outros Municípios | C141: =C142 -> 0 | D141: =D142 -> 0 | E141: =E142 -> 0 | F141: 0
B142: 0 | F142: 0
F143: 0
A144: Fonte 01 | B144: RECEITA DE OPERAÇÕES DE CRÉDITO INTERNAS E EXTERNAS VINCULADAS A SAÚDE (XXIX) | C144: =SUM(C145:C151) -> 0 | D144: =SUM(D145:D151) -> 0 | E144: =SUM(E145:E151) -> 17,473 | F144: 0
A145: FILTROS:
A146: FONTE DE RECURSO ("AA") | F146: 0
A147: 01 | F147: 0
A148: ÓRGÃO
A149: 84
A150: =IFERROR( _xlfn._xlws.FILTER( BD_Receita_PMSP_1BIM!$A:$A,( ( (LEFT(BD_Receita_PMSP_1BIM!$S:$S, LEN($A147)) = $A147)* (TEXT(BD_Receita_PMSP_1BIM!$E:$E, "00") = TEXT($A149, "00")) ) )), "(vazio)") -> 1.3.2.1.05.0.1.01.02.001.001.11.01.000 | B150: =IFERROR(VLOOKUP(A150,BD_Receita_PMSP_1BIM!$A:$S,2,0),0) -> Contrato 4641/OC-BR - BID - Avança Saúde SP | C150: =IFERROR(VLOOKUP($A150,BD_Receita_PMSP_1BIM!$A:$S,15,0),0) -> 0 | D150: =IFERROR(VLOOKUP($A150,BD_Receita_PMSP_1BIM!$A:$S,10,0),0) -> 0 | E150: =IFERROR(VLOOKUP($A150,BD_Receita_PMSP_1BIM!$A:$S,13,0),0) -> 17,473 | F150: 0
A154: Demais Fontes - PMSP e HSPM | B154: OUTRAS RECEITAS (XXX) | C154: =SUM(C155, C188) -> 23,840,033 | D154: =SUM(D155, D188) -> 23,840,033 | E154: =SUM(E155, E188) -> 7,330,983 | F154: 30.75
A155: FILTROS: | B155: Outras Fontes - PMSP | C155: =SUM(C156:C186) -> 4,044,897 | D155: =SUM(D156:D186) -> 4,044,897 | E155: =SUM(E156:E186) -> 2,798,568 | F155: 69.19
A156: FONTE DE RECURSO ("AA")
A157: NÃO CONTÉM AS ANTERIORES
A158: ÓRGÃO
A159: 84
A160: =IFERROR( _xlfn._xlws.FILTER( BD_Receita_PMSP_1BIM!$A:$A,( (TEXT(BD_Receita_PMSP_1BIM!$E:$E, "00") = TEXT($A$159, "00")) * (BD_Receita_PMSP_1BIM!$S:$S <> "00") * (BD_Receita_PMSP_1BIM!$S:$S <> $A60) * (BD_Receita_PMSP_1BIM!$S:$S <> $A61) * (BD_Receita_PMSP_1BIM!$S:$S <> $A62) * (BD_Receita_PMSP_1BIM!$S:$S <> $A63) * (BD_Receita_PMSP_1BIM!$S:$S <> $A108) * (BD_Receita_PMSP_1BIM!$S:$S <> $A147) ) ), "(vazio)") -> 1.3.2.1.05.0.1.01.04.020.002.11.01.000 | B160: =IFERROR(VLOOKUP(A160,BD_Receita_PMSP_1BIM!$A:$S,2,0),0) -> PMSP-SMS/FMS/EQUIPOS/MPESP | C160: =IFERROR(VLOOKUP($A160,BD_Receita_PMSP_1BIM!$A:$S,15,0),0) -> 60,000 | D160: =IFERROR(VLOOKUP($A160,BD_Receita_PMSP_1BIM!$A:$S,10,0),0) -> 60,000 | E160: =IFERROR(VLOOKUP($A160,BD_Receita_PMSP_1BIM!$A:$S,13,0),0) -> 0 | F160: =IFERROR(E160/D160*100,0) -> 0
A161: 1.3.2.1.05.0.1.01.06.020.001.11.01.000 | B161: =IFERROR(VLOOKUP(A161,BD_Receita_PMSP_1BIM!$A:$S,2,0),0) -> Rendimentos Sobre Multas Previstas na Legislação Sanitária - FMS | C161: =IFERROR(VLOOKUP($A161,BD_Receita_PMSP_1BIM!$A:$S,15,0),0) -> 900,000 | D161: =IFERROR(VLOOKUP($A161,BD_Receita_PMSP_1BIM!$A:$S,10,0),0) -> 900,000 | E161: =IFERROR(VLOOKUP($A161,BD_Receita_PMSP_1BIM!$A:$S,13,0),0) -> 221,588 | F161: 24.62
A162: 1.3.2.1.05.0.1.01.06.020.004.11.01.000 | B162: =IFERROR(VLOOKUP(A162,BD_Receita_PMSP_1BIM!$A:$S,2,0),0) -> Acordo MP - UPA Pediatra Menino Jesus | C162: =IFERROR(VLOOKUP($A162,BD_Receita_PMSP_1BIM!$A:$S,15,0),0) -> 600,000 | D162: =IFERROR(VLOOKUP($A162,BD_Receita_PMSP_1BIM!$A:$S,10,0),0) -> 600,000 | E162: =IFERROR(VLOOKUP($A162,BD_Receita_PMSP_1BIM!$A:$S,13,0),0) -> 22,899 | F162: 3.82
A163: 1.3.2.1.05.0.1.01.06.020.005.11.01.000 | B163: =IFERROR(VLOOKUP(A163,BD_Receita_PMSP_1BIM!$A:$S,2,0),0) -> Combate à COVID-19 | C163: =IFERROR(VLOOKUP($A163,BD_Receita_PMSP_1BIM!$A:$S,15,0),0) -> 21,600 | D163: =IFERROR(VLOOKUP($A163,BD_Receita_PMSP_1BIM!$A:$S,10,0),0) -> 21,600 | E163: =IFERROR(VLOOKUP($A163,BD_Receita_PMSP_1BIM!$A:$S,13,0),0) -> 1,765 | F163: 8.17
A164: 1.3.2.1.05.0.1.01.06.020.006.11.01.000 | B164: =IFERROR(VLOOKUP(A164,BD_Receita_PMSP_1BIM!$A:$S,2,0),0) -> MPU/MPT - Combate à COVID-19 | C164: =IFERROR(VLOOKUP($A164,BD_Receita_PMSP_1BIM!$A:$S,15,0),0) -> 1,200 | D164: =IFERROR(VLOOKUP($A164,BD_Receita_PMSP_1BIM!$A:$S,10,0),0) -> 1,200 | E164: =IFERROR(VLOOKUP($A164,BD_Receita_PMSP_1BIM!$A:$S,13,0),0) -> 403 | F164: 33.60
A165: 1.3.2.1.05.0.1.01.06.020.008.11.01.000 | B165: =IFERROR(VLOOKUP(A165,BD_Receita_PMSP_1BIM!$A:$S,2,0),0) -> Rendimentos sobre Auto de Infração - VIG COVISA | C165: =IFERROR(VLOOKUP($A165,BD_Receita_PMSP_1BIM!$A:$S,15,0),0) -> 0 | D165: =IFERROR(VLOOKUP($A165,BD_Receita_PMSP_1BIM!$A:$S,10,0),0) -> 0 | E165: =IFERROR(VLOOKUP($A165,BD_Receita_PMSP_1BIM!$A:$S,13,0),0) -> 7,178 | F165: 0
A166: 1.3.2.1.05.0.1.01.06.027.010.11.01.000 | B166: =IFERROR(VLOOKUP(A166,BD_Receita_PMSP_1BIM!$A:$S,2,0),0) -> Instituições Privadas x SMS - PMSP-SMS FMS DOA SHELL V | C166: =IFERROR(VLOOKUP($A166,BD_Receita_PMSP_1BIM!$A:$S,15,0),0) -> 12,000 | D166: =IFERROR(VLOOKUP($A166,BD_Receita_PMSP_1BIM!$A:$S,10,0),0) -> 12,000 | E166: =IFERROR(VLOOKUP($A166,BD_Receita_PMSP_1BIM!$A:$S,13,0),0) -> 2,880 | F166: 24.00
A167: 1.3.2.1.05.0.1.01.09.020.001.11.01.000 | B167: =IFERROR(VLOOKUP(A167,BD_Receita_PMSP_1BIM!$A:$S,2,0),0) -> Combate à COVID-19 | C167: =IFERROR(VLOOKUP($A167,BD_Receita_PMSP_1BIM!$A:$S,15,0),0) -> 36,000 | D167: =IFERROR(VLOOKUP($A167,BD_Receita_PMSP_1BIM!$A:$S,10,0),0) -> 36,000 | E167: =IFERROR(VLOOKUP($A167,BD_Receita_PMSP_1BIM!$A:$S,13,0),0) -> 3,462 | F167: 9.62
A168: 1.3.2.1.05.0.1.01.09.020.002.11.01.000 | B168: =IFERROR(VLOOKUP(A168,BD_Receita_PMSP_1BIM!$A:$S,2,0),0) -> Fundo Municipal de Saúde - 8.730-0 | C168: =IFERROR(VLOOKUP($A168,BD_Receita_PMSP_1BIM!$A:$S,15,0),0) -> 0 | D168: =IFERROR(VLOOKUP($A168,BD_Receita_PMSP_1BIM!$A:$S,10,0),0) -> 0 | E168: =IFERROR(VLOOKUP($A168,BD_Receita_PMSP_1BIM!$A:$S,13,0),0) -> 821,967 | F168: 0
A169: 1.7.4.1.99.0.1.14.00.001.000.11.01.000 | B169: =IFERROR(VLOOKUP(A169,BD_Receita_PMSP_1BIM!$A:$S,2,0),0) -> Transferências Instituições Privadas COM Fins Lucrativos -Fms - Art. 1 | C169: =IFERROR(VLOOKUP($A169,BD_Receita_PMSP_1BIM!$A:$S,15,0),0) -> 494,400 | D169: =IFERROR(VLOOKUP($A169,BD_Receita_PMSP_1BIM!$A:$S,10,0),0) -> 494,400 | E169: =IFERROR(VLOOKUP($A169,BD_Receita_PMSP_1BIM!$A:$S,13,0),0) -> 83,132 | F169: 16.81
A170: 1.7.4.1.99.0.1.14.00.002.000.11.01.000 | B170: =IFERROR(VLOOKUP(A170,BD_Receita_PMSP_1BIM!$A:$S,2,0),0) -> Transferências Instituições Privadas SEM Fins Lucrativos -Fms - Art. 1 | C170: =IFERROR(VLOOKUP($A170,BD_Receita_PMSP_1BIM!$A:$S,15,0),0) -> 1,200 | D170: =IFERROR(VLOOKUP($A170,BD_Receita_PMSP_1BIM!$A:$S,10,0),0) -> 1,200 | E170: =IFERROR(VLOOKUP($A170,BD_Receita_PMSP_1BIM!$A:$S,13,0),0) -> 0
A171: 1.7.5.9.99.0.1.02.00.000.000.11.01.000 | B171: =IFERROR(VLOOKUP(A171,BD_Receita_PMSP_1BIM!$A:$S,2,0),0) -> Transferências de Outras Instituições Públicas - MPU/MPT X FMS - COVID | C171: =IFERROR(VLOOKUP($A171,BD_Receita_PMSP_1BIM!$A:$S,15,0),0) -> 4,080 | D171: =IFERROR(VLOOKUP($A171,BD_Receita_PMSP_1BIM!$A:$S,10,0),0) -> 4,080 | E171: =IFERROR(VLOOKUP($A171,BD_Receita_PMSP_1BIM!$A:$S,13,0),0) -> 3,500
A172: 1.7.5.9.99.0.1.03.00.000.000.11.01.000 | B172: =IFERROR(VLOOKUP(A172,BD_Receita_PMSP_1BIM!$A:$S,2,0),0) -> Transferências de Outras Instituições Públicas - MP-SP/TJESP X FMS - C | C172: =IFERROR(VLOOKUP($A172,BD_Receita_PMSP_1BIM!$A:$S,15,0),0) -> 336,000 | D172: =IFERROR(VLOOKUP($A172,BD_Receita_PMSP_1BIM!$A:$S,10,0),0) -> 336,000 | E172: =IFERROR(VLOOKUP($A172,BD_Receita_PMSP_1BIM!$A:$S,13,0),0) -> 53,763
A173: 1.9.1.1.01.0.1.02.02.000.000.11.01.000 | B173: =IFERROR(VLOOKUP(A173,BD_Receita_PMSP_1BIM!$A:$S,2,0),0) -> Multas Previstas na Legislação Sanitária - FMS | C173: =IFERROR(VLOOKUP($A173,BD_Receita_PMSP_1BIM!$A:$S,15,0),0) -> 900,000 | D173: =IFERROR(VLOOKUP($A173,BD_Receita_PMSP_1BIM!$A:$S,10,0),0) -> 900,000 | E173: =IFERROR(VLOOKUP($A173,BD_Receita_PMSP_1BIM!$A:$S,13,0),0) -> 225,671 | F173: =IFERROR(E173/D173*100,0) -> 25.07
A174: 1.9.1.1.01.0.1.02.02.000.000.12.01.001 | B174: =IFERROR(VLOOKUP(A174,BD_Receita_PMSP_1BIM!$A:$S,2,0),0) -> PPI - Multas Previstas na Legislação Sanitária - FMS | C174: =IFERROR(VLOOKUP($A174,BD_Receita_PMSP_1BIM!$A:$S,15,0),0) -> 7,200 | D174: =IFERROR(VLOOKUP($A174,BD_Receita_PMSP_1BIM!$A:$S,10,0),0) -> 7,200 | E174: =IFERROR(VLOOKUP($A174,BD_Receita_PMSP_1BIM!$A:$S,13,0),0) -> 6,376 | F174: 88.55
A175: 1.9.1.1.01.0.1.02.05.000.000.11.01.000 | B175: =IFERROR(VLOOKUP(A175,BD_Receita_PMSP_1BIM!$A:$S,2,0),0) -> Outras Multas - FMS | C175: =IFERROR(VLOOKUP($A175,BD_Receita_PMSP_1BIM!$A:$S,15,0),0) -> 1,200 | D175: =IFERROR(VLOOKUP($A175,BD_Receita_PMSP_1BIM!$A:$S,10,0),0) -> 1,200 | E175: =IFERROR(VLOOKUP($A175,BD_Receita_PMSP_1BIM!$A:$S,13,0),0) -> 0 | F175: 0
A176: 1.9.1.1.01.0.2.02.02.000.000.11.01.000 | B176: =IFERROR(VLOOKUP(A176,BD_Receita_PMSP_1BIM!$A:$S,2,0),0) -> Multas Previstas na Legislação Sanitária - FMS - Multas e Juros | C176: =IFERROR(VLOOKUP($A176,BD_Receita_PMSP_1BIM!$A:$S,15,0),0) -> 1,000 | D176: =IFERROR(VLOOKUP($A176,BD_Receita_PMSP_1BIM!$A:$S,10,0),0) -> 1,000 | E176: =IFERROR(VLOOKUP($A176,BD_Receita_PMSP_1BIM!$A:$S,13,0),0) -> 822 | F176: 82.18
A177: 1.9.1.1.01.0.2.02.02.000.000.12.01.001 | B177: =IFERROR(VLOOKUP(A177,BD_Receita_PMSP_1BIM!$A:$S,2,0),0) -> PPI - Multas Previstas na Legislação Sanitária - FMS - Multas e Juros | C177: =IFERROR(VLOOKUP($A177,BD_Receita_PMSP_1BIM!$A:$S,15,0),0) -> 1,000 | D177: =IFERROR(VLOOKUP($A177,BD_Receita_PMSP_1BIM!$A:$S,10,0),0) -> 1,000 | E177: =IFERROR(VLOOKUP($A177,BD_Receita_PMSP_1BIM!$A:$S,13,0),0) -> 102 | F177: 10.17
A178: 1.9.1.1.01.0.3.02.02.000.000.12.01.001 | B178: =IFERROR(VLOOKUP(A178,BD_Receita_PMSP_1BIM!$A:$S,2,0),0) -> PPI - Multas Previstas na Legislação Sanitária - FMS - Dívida Ativa | C178: =IFERROR(VLOOKUP($A178,BD_Receita_PMSP_1BIM!$A:$S,15,0),0) -> 126,000 | D178: =IFERROR(VLOOKUP($A178,BD_Receita_PMSP_1BIM!$A:$S,10,0),0) -> 126,000 | E178: =IFERROR(VLOOKUP($A178,BD_Receita_PMSP_1BIM!$A:$S,13,0),0) -> 97,143 | F178: 77.10
A179: 1.9.1.1.01.0.4.02.02.000.000.12.01.001 | B179: =IFERROR(VLOOKUP(A179,BD_Receita_PMSP_1BIM!$A:$S,2,0),0) -> PPI - Multas Previstas na Legislação Sanitária - FMS - Dívida Ativa - | C179: =IFERROR(VLOOKUP($A179,BD_Receita_PMSP_1BIM!$A:$S,15,0),0) -> 57,817 | D179: =IFERROR(VLOOKUP($A179,BD_Receita_PMSP_1BIM!$A:$S,10,0),0) -> 57,817 | E179: =IFERROR(VLOOKUP($A179,BD_Receita_PMSP_1BIM!$A:$S,13,0),0) -> 8,763 | F179: 15.16
A180: 1.9.2.2.01.1.1.09.00.000.000.11.01.000 | B180: =IFERROR(VLOOKUP(A180,BD_Receita_PMSP_1BIM!$A:$S,2,0),0) -> Restituições de valores não utilizados em convênios - FMS | C180: =IFERROR(VLOOKUP($A180,BD_Receita_PMSP_1BIM!$A:$S,15,0),0) -> 0 | D180: =IFERROR(VLOOKUP($A180,BD_Receita_PMSP_1BIM!$A:$S,10,0),0) -> 0 | E180: =IFERROR(VLOOKUP($A180,BD_Receita_PMSP_1BIM!$A:$S,13,0),0) -> 35,328 | F180: 0
A181: 1.9.2.2.01.1.1.12.00.000.000.11.01.000 | B181: =IFERROR(VLOOKUP(A181,BD_Receita_PMSP_1BIM!$A:$S,2,0),0) -> Restituição Oriunda de Entidades Parceiras - FMS - 19.561-8 | C181: =IFERROR(VLOOKUP($A181,BD_Receita_PMSP_1BIM!$A:$S,15,0),0) -> 0 | D181: =IFERROR(VLOOKUP($A181,BD_Receita_PMSP_1BIM!$A:$S,10,0),0) -> 0 | E181: =IFERROR(VLOOKUP($A181,BD_Receita_PMSP_1BIM!$A:$S,13,0),0) -> 1,187,951 | F181: 0
A182: 1.9.2.2.06.1.1.07.00.000.000.11.01.000 | B182: =IFERROR(VLOOKUP(A182,BD_Receita_PMSP_1BIM!$A:$S,2,0),0) -> Restituição Desp Exerc Anteriores - Saldo Não Utiliz Adiantamento -FMS | C182: =IFERROR(VLOOKUP($A182,BD_Receita_PMSP_1BIM!$A:$S,15,0),0) -> 3,000 | D182: =IFERROR(VLOOKUP($A182,BD_Receita_PMSP_1BIM!$A:$S,10,0),0) -> 3,000 | E182: =IFERROR(VLOOKUP($A182,BD_Receita_PMSP_1BIM!$A:$S,13,0),0) -> 9,980 | F182: 332.68
A183: 1.9.2.2.99.0.1.33.00.000.000.11.01.000 | B183: =IFERROR(VLOOKUP(A183,BD_Receita_PMSP_1BIM!$A:$S,2,0),0) -> Outras Restituições - FMS | C183: =IFERROR(VLOOKUP($A183,BD_Receita_PMSP_1BIM!$A:$S,15,0),0) -> 0 | D183: =IFERROR(VLOOKUP($A183,BD_Receita_PMSP_1BIM!$A:$S,10,0),0) -> 0 | E183: =IFERROR(VLOOKUP($A183,BD_Receita_PMSP_1BIM!$A:$S,13,0),0) -> 3,896 | F183: 0
A184: 2.4.4.1.99.0.1.01.01.000.000.11.01.000 | B184: =IFERROR(VLOOKUP(A184,BD_Receita_PMSP_1BIM!$A:$S,2,0),0) -> Instituições Privadas x SMS- Acordo MP- UPA Pediatra Menino Jesus | C184: =IFERROR(VLOOKUP($A184,BD_Receita_PMSP_1BIM!$A:$S,15,0),0) -> 480,000 | D184: =IFERROR(VLOOKUP($A184,BD_Receita_PMSP_1BIM!$A:$S,10,0),0) -> 480,000 | E184: =IFERROR(VLOOKUP($A184,BD_Receita_PMSP_1BIM!$A:$S,13,0),0) -> 0 | F184: 0
A185: 2.9.9.9.99.0.1.01.61.000.000.11.01.000 | B185: =IFERROR(VLOOKUP(A185,BD_Receita_PMSP_1BIM!$A:$S,2,0),0) -> Acordo Judicial - PMSP-SMS/FMS/EQUIPOS/MPESP | C185: =IFERROR(VLOOKUP($A185,BD_Receita_PMSP_1BIM!$A:$S,15,0),0) -> 1,200 | D185: =IFERROR(VLOOKUP($A185,BD_Receita_PMSP_1BIM!$A:$S,10,0),0) -> 1,200 | E185: =IFERROR(VLOOKUP($A185,BD_Receita_PMSP_1BIM!$A:$S,13,0),0) -> 0 | F185: 0
B186: =IFERROR(VLOOKUP(A186,BD_Receita_PMSP_1BIM!$A:$S,2,0),0) -> 0 | C186: =IFERROR(VLOOKUP($A186,BD_Receita_PMSP_1BIM!$A:$S,15,0),0) -> 0 | D186: =IFERROR(VLOOKUP($A186,BD_Receita_PMSP_1BIM!$A:$S,10,0),0) -> 0 | E186: =IFERROR(VLOOKUP($A186,BD_Receita_PMSP_1BIM!$A:$S,13,0),0) -> 0 | F186: 0
A188: Banco de receitas do HSPM | B188: HSPM | C188: =SUM(C192:C200) -> 19,795,136 | D188: =SUM(D192:D200) -> 19,795,136 | E188: =SUM(E192:E200) -> 4,532,415 | F188: =IFERROR(E188/D188*100,0) -> 22.90
A189: FONTE DE RECURSO ("AA") | F189: =IFERROR(E189/D189*100,0) -> 0
A190: 06 | F190: =IFERROR(E190/D190*100,0) -> 0
A191: EXCLUIR RECEITAS INTRA
A192: =IFERROR(_xlfn._xlws.FILTER( BD_Receita_HSPM_1BIM!$A:$A,( (TEXT(BD_Receita_HSPM_1BIM!$S:$S, "00") = TEXT($A$190, "00")) * (LEFT(BD_Receita_HSPM_1BIM!$A:$A, 1) <> "7") * (LEFT(BD_Receita_HSPM_1BIM!$A:$A, 1) <> "8") )), "(vazio)") -> 1.3.2.1.05.0.1.01.07.081.001.11.01.000 | B192: =IFERROR(VLOOKUP(A192,BD_Receita_HSPM_1BIM!$A:$S,2,0),0) -> Hospital do Servidor Público Municipal | C192: =IFERROR(VLOOKUP($A192,BD_Receita_HSPM_1BIM!$A:$S,15,0),0) -> 3,990,120 | D192: =IFERROR(VLOOKUP($A192,BD_Receita_HSPM_1BIM!$A:$S,10,0),0) -> 3,990,120 | E192: =IFERROR(VLOOKUP($A192,BD_Receita_HSPM_1BIM!$A:$S,13,0),0) -> 782,324
A193: 1.3.2.2.01.0.1.01.00.000.000.11.01.000 | B193: =IFERROR(VLOOKUP(A193,BD_Receita_HSPM_1BIM!$A:$S,2,0),0) -> Dividendos | C193: =IFERROR(VLOOKUP($A193,BD_Receita_HSPM_1BIM!$A:$S,15,0),0) -> 1,200 | D193: =IFERROR(VLOOKUP($A193,BD_Receita_HSPM_1BIM!$A:$S,10,0),0) -> 1,200 | E193: =IFERROR(VLOOKUP($A193,BD_Receita_HSPM_1BIM!$A:$S,13,0),0) -> 0
A194: 1.6.1.1.01.0.1.04.00.000.000.11.01.000 | B194: =IFERROR(VLOOKUP(A194,BD_Receita_HSPM_1BIM!$A:$S,2,0),0) -> Serviços de Fotocópias ou Cópias Heliográficas | C194: =IFERROR(VLOOKUP($A194,BD_Receita_HSPM_1BIM!$A:$S,15,0),0) -> 1,200 | D194: =IFERROR(VLOOKUP($A194,BD_Receita_HSPM_1BIM!$A:$S,10,0),0) -> 1,200 | E194: =IFERROR(VLOOKUP($A194,BD_Receita_HSPM_1BIM!$A:$S,13,0),0) -> 0
A195: 1.6.1.1.01.0.1.05.00.000.000.11.01.000 | B195: =IFERROR(VLOOKUP(A195,BD_Receita_HSPM_1BIM!$A:$S,2,0),0) -> Outros Serviços Administrativos | C195: =IFERROR(VLOOKUP($A195,BD_Receita_HSPM_1BIM!$A:$S,15,0),0) -> 320,004 | D195: =IFERROR(VLOOKUP($A195,BD_Receita_HSPM_1BIM!$A:$S,10,0),0) -> 320,004 | E195: =IFERROR(VLOOKUP($A195,BD_Receita_HSPM_1BIM!$A:$S,13,0),0) -> 55,152
A196: 1.9.1.1.09.0.1.03.00.000.000.11.01.000 | B196: =IFERROR(VLOOKUP(A196,BD_Receita_HSPM_1BIM!$A:$S,2,0),0) -> Multas e Juros - Contratos Administração Indireta | C196: =IFERROR(VLOOKUP($A196,BD_Receita_HSPM_1BIM!$A:$S,15,0),0) -> 520,512 | D196: =IFERROR(VLOOKUP($A196,BD_Receita_HSPM_1BIM!$A:$S,10,0),0) -> 520,512 | E196: =IFERROR(VLOOKUP($A196,BD_Receita_HSPM_1BIM!$A:$S,13,0),0) -> 42,335
A197: 1.9.2.2.06.1.1.05.00.000.000.11.01.000 | B197: =IFERROR(VLOOKUP(A197,BD_Receita_HSPM_1BIM!$A:$S,2,0),0) -> Restituição Desp Exerc Anteriores - Saldo Não Utilizado Adiantamento | C197: =IFERROR(VLOOKUP($A197,BD_Receita_HSPM_1BIM!$A:$S,15,0),0) -> 2,600 | D197: =IFERROR(VLOOKUP($A197,BD_Receita_HSPM_1BIM!$A:$S,10,0),0) -> 2,600 | E197: =IFERROR(VLOOKUP($A197,BD_Receita_HSPM_1BIM!$A:$S,13,0),0) -> 384
A198: 1.9.2.2.99.0.1.12.00.000.000.11.01.000 | B198: =IFERROR(VLOOKUP(A198,BD_Receita_HSPM_1BIM!$A:$S,2,0),0) -> Restituições Diversas | C198: =IFERROR(VLOOKUP($A198,BD_Receita_HSPM_1BIM!$A:$S,15,0),0) -> 1,200 | D198: =IFERROR(VLOOKUP($A198,BD_Receita_HSPM_1BIM!$A:$S,10,0),0) -> 1,200 | E198: =IFERROR(VLOOKUP($A198,BD_Receita_HSPM_1BIM!$A:$S,13,0),0) -> 0
A199: 1.9.9.9.99.2.1.12.00.000.000.11.01.000 | B199: =IFERROR(VLOOKUP(A199,BD_Receita_HSPM_1BIM!$A:$S,2,0),0) -> Outras Receitas | C199: =IFERROR(VLOOKUP($A199,BD_Receita_HSPM_1BIM!$A:$S,15,0),0) -> 14,958,300 | D199: =IFERROR(VLOOKUP($A199,BD_Receita_HSPM_1BIM!$A:$S,10,0),0) -> 14,958,300 | E199: =IFERROR(VLOOKUP($A199,BD_Receita_HSPM_1BIM!$A:$S,13,0),0) -> 3,652,220
B200: =IFERROR(VLOOKUP(A200,BD_Receita_HSPM_1BIM!$A:$S,2,0),0) -> 0 | C200: =IFERROR(VLOOKUP($A200,BD_Receita_HSPM_1BIM!$A:$S,15,0),0) -> 0 | D200: =IFERROR(VLOOKUP($A200,BD_Receita_HSPM_1BIM!$A:$S,10,0),0) -> 0 | E200: =IFERROR(VLOOKUP($A200,BD_Receita_HSPM_1BIM!$A:$S,13,0),0) -> 0 | F200: =IFERROR(E200/D200*100,0) -> 0
B201: TOTAL DE RECEITAS ADICIONAIS PARA FINANCIAMENTO DA SAÚDE (XXXI) = (XXVIII + XXVIV + XXX) | C201: =C56+C144+C154 -> 3,779,887,822 | D201: =D56+D144+D154 -> 3,779,886,622 | E201: =E56+E144+E154 -> 645,903,224 | F201: =IFERROR(E201/D201*100,0) -> 17.09

Sheet Despesas_ASPS
B1: Número Ano | C1: 2025 | O1: DESPESAS COM SAÚDE QUE COMPÕEM O CÁLCULO DO MÍNIMO
B2: Número Ano Execução | C2: 2025
B3: Número Mês | C3: (Vários itens) | D3: 01 a 02 | O3: DESPESAS COM AÇÕES E SERVIÇOS PÚBLICOS DE SAÚDE (ASPS) – POR SUBFUNÇÃO E CATEGORIA ECONÔMICA | P3: DOTAÇÃO INICIAL | Q3: DOTAÇÃO ATUALIZADA | R3: DESPESAS EMPENHADAS | S3: DESPESAS LIQUIDADAS | T3: DESPESAS PAGAS
B4: Código Órgão Empresa | C4: (Vários itens) | D4: 84 - FMS e 28 - EGM | N4: CÓD
B5: Código Função | C5: 10 | D5: Saúde | N5: 301 | O5: ATENÇÃO BÁSICA (XXX) | P5: =P6+P7 -> 7,953,763,446.00 | Q5: =Q6+Q7 -> 7,951,072,058.59 | R5: =R6+R7 -> 2,301,495,364.43 | S5: =S6+S7 -> 1,212,880,143.33 | T5: =T6+T7 -> 1,148,716,823.48
B6: Código Projeto Atividade | C6: (Vários itens) | D6: Excluídos 1530, 1531, 2501, 4121,>=8000; Despesas com veterinária, servidores comissionados do HSPM, emendas | N6: 301.3 | O6: Despesas Correntes | P6: =SUMIF($A:$A,$N6,D:D) -> 7,888,278,428.00 | Q6: =SUMIF($A:$A,$N6,E:E) -> 7,886,136,369.63 | R6: =SUMIF($A:$A,$N6,F:F)-SUMIF(Itens_Excluidos_Tabela!$A:$A,$N6,Itens_Excluidos_Tabela!C:C) -> 2,301,340,683.03 | S6: =SUMIF($A:$A,$N6,G:G)-SUMIF(Itens_Excluidos_Tabela!$A:$A,$N6,Itens_Excluidos_Tabela!D:D) -> 1,212,880,143.33 | T6: =SUMIF($A:$A,$N6,H:H)-SUMIF(Itens_Excluidos_Tabela!$A:$A,$N6,Itens_Excluidos_Tabela!E:E) -> 1,148,716,823.48
B7: Código Elemento Despesa | C7: (Vários itens) | D7: Excluídos 08, 82, 86, 97; Benefícios assistenciais do servidor, Aporte de recursos em favor de parceiro privado em PPP, Compensações em regime de previdência e Aporte para cobertura de déficit atuarial do RPPS | N7: 301.4 | O7: Despesas de Capital | P7: =SUMIF($A:$A,$N7,D:D) -> 65,485,018.00 | Q7: =SUMIF($A:$A,$N7,E:E) -> 64,935,688.96 | R7: =SUMIF($A:$A,$N7,F:F)-SUMIF(Itens_Excluidos_Tabela!$A:$A,$N7,Itens_Excluidos_Tabela!C:C) -> 154,681.40 | S7: =SUMIF($A:$A,$N7,G:G)-SUMIF(Itens_Excluidos_Tabela!$A:$A,$N7,Itens_Excluidos_Tabela!D:D) -> 0 | T7: =SUMIF($A:$A,$N7,H:H)-SUMIF(Itens_Excluidos_Tabela!$A:$A,$N7,Itens_Excluidos_Tabela!E:E) -> 0
B8: Código Fonte de Recurso | C8: 00 | D8: Tesouro Municipal - Receitas de Impostos Municipais | N8: 302 | O8: ASSISTÊNCIA HOSPITALAR E AMBULATORIAL (XXXI) | P8: =P9+P10 -> 6,137,512,971.00 | Q8: =Q9+Q10 -> 6,139,657,029.37 | R8: =R9+R10 -> 3,229,988,312.54 | S8: =S9+S10 -> 991,079,694.01 | T8: =T9+T10 -> 977,509,897.39
N9: 302.3 | O9: Despesas Correntes | P9: =SUMIF($A:$A,$N9,D:D) -> 6,129,055,780.00 | Q9: =SUMIF($A:$A,$N9,E:E) -> 6,131,197,838.37 | R9: =SUMIF($A:$A,$N9,F:F)-SUMIF(Itens_Excluidos_Tabela!$A:$A,$N9,Itens_Excluidos_Tabela!C:C) -> 3,227,133,482.09 | S9: =SUMIF($A:$A,$N9,G:G)-SUMIF(Itens_Excluidos_Tabela!$A:$A,$N9,Itens_Excluidos_Tabela!D:D) -> 988,485,293.83 | T9: =SUMIF($A:$A,$N9,H:H)-SUMIF(Itens_Excluidos_Tabela!$A:$A,$N9,Itens_Excluidos_Tabela!E:E) -> 974,915,497.21
D10: Valores | N10: 302.4 | O10: Despesas de Capital | P10: =SUMIF($A:$A,$N10,D:D) -> 8,457,191.00 | Q10: =SUMIF($A:$A,$N10,E:E) -> 8,459,191.00 | R10: =SUMIF($A:$A,$N10,F:F)-SUMIF(Itens_Excluidos_Tabela!$A:$A,$N10,Itens_Excluidos_Tabela!C:C) -> 2,854,830.45 | S10: =SUMIF($A:$A,$N10,G:G)-SUMIF(Itens_Excluidos_Tabela!$A:$A,$N10,Itens_Excluidos_Tabela!D:D) -> 2,594,400.18 | T10: =SUMIF($A:$A,$N10,H:H)-SUMIF(Itens_Excluidos_Tabela!$A:$A,$N10,Itens_Excluidos_Tabela!E:E) -> 2,594,400.18
A11: CÓD | B11: Descrição Sub Função | C11: Descrição Categoria Econômica | D11: Valor Orçado Anual | E11: Valor Orçado Atualizado | F11: Valor Empenhado | G11: Valor Liquidado | H11: Valor Pago | N11: 303 | O11: SUPORTE PROFILÁTICO E TERAPÊUTICO (XXXII) | P11: =P12+P13 -> 453,390,546.00 | Q11: =Q12+Q13 -> 453,390,546.00 | R11: =R12+R13 -> 169,689,992.49 | S11: =S12+S13 -> 15,302,957.06 | T11: =T12+T13 -> 795,179.46
A12: =CONCATENATE(LEFT(B12,3),".", LEFT(C12,1)) -> 122.3 | B12: 122 - ADMINISTRAÇÃO GERAL | C12: 3-DESPESAS CORRENTES | D12: 2,584,835,743.00 | E12: 2,584,868,617.00 | F12: 485,046,147.12 | G12: 361,139,326.34 | H12: 357,732,991.64 | N12: 303.3 | O12: Despesas Correntes | P12: =SUMIF($A:$A,$N12,D:D) -> 453,390,546.00 | Q12: =SUMIF($A:$A,$N12,E:E) -> 453,390,546.00 | R12: =SUMIF($A:$A,$N12,F:F)-SUMIF(Itens_Excluidos_Tabela!$A:$A,$N12,Itens_Excluidos_Tabela!C:C) -> 169,689,992.49 | S12: =SUMIF($A:$A,$N12,G:G)-SUMIF(Itens_Excluidos_Tabela!$A:$A,$N12,Itens_Excluidos_Tabela!D:D) -> 15,302,957.06 | T12: =SUMIF($A:$A,$N12,H:H)-SUMIF(Itens_Excluidos_Tabela!$A:$A,$N12,Itens_Excluidos_Tabela!E:E) -> 795,179.46
A13: =CONCATENATE(LEFT(B13,3),".", LEFT(C13,1)) -> 122.4 | B13: 122 - ADMINISTRAÇÃO GERAL | C13: 4-DESPESAS DE CAPITAL | D13: 1,844,089.00 | E13: 1,810,215.00 | F13: 26,638.98 | G13: 0 | H13: 0 | N13: 303.4 | O13: Despesas de Capital | P13: =SUMIF($A:$A,$N13,D:D) -> 0 | Q13: =SUMIF($A:$A,$N13,E:E) -> 0 | R13: =SUMIF($A:$A,$N13,F:F)-SUMIF(Itens_Excluidos_Tabela!$A:$A,$N13,Itens_Excluidos_Tabela!C:C) -> 0 | S13: =SUMIF($A:$A,$N13,G:G)-SUMIF(Itens_Excluidos_Tabela!$A:$A,$N13,Itens_Excluidos_Tabela!D:D) -> 0 | T13: =SUMIF($A:$A,$N13,H:H)-SUMIF(Itens_Excluidos_Tabela!$A:$A,$N13,Itens_Excluidos_Tabela!E:E) -> 0
A14: 126.3 | B14: 126 - TECNOLOGIA DA INFORMAÇÃO | C14: 3-DESPESAS CORRENTES | D14: 309,636,818.00 | E14: 309,636,818.00 | F14: 266,232,986.81 | G14: 23,146,695.20 | H14: 0 | N14: 304 | O14: VIGILÂNCIA SANITÁRIA (XXXIII) | P14: =P15+P16 -> 108,512,728.00 | Q14: =Q15+Q16 -> 108,512,728.00 | R14: =R15+R16 -> 51,731,428.82 | S14: =S15+S16 -> 416,327.00 | T14: =T15+T16 -> 130,047.43
A15: 126.4 | B15: 126 - TECNOLOGIA DA INFORMAÇÃO | C15: 4-DESPESAS DE CAPITAL | D15: 7,578,531.00 | E15: 7,577,531.00 | F15: 40,595.94 | G15: 0 | H15: 0 | N15: 304.3 | O15: Despesas Correntes | P15: =SUMIF($A:$A,$N15,D:D) -> 107,154,317.00 | Q15: =SUMIF($A:$A,$N15,E:E) -> 107,154,317.00 | R15: =SUMIF($A:$A,$N15,F:F)-SUMIF(Itens_Excluidos_Tabela!$A:$A,$N15,Itens_Excluidos_Tabela!C:C) -> 51,731,428.82 | S15: =SUMIF($A:$A,$N15,G:G)-SUMIF(Itens_Excluidos_Tabela!$A:$A,$N15,Itens_Excluidos_Tabela!D:D) -> 416,327.00 | T15: =SUMIF($A:$A,$N15,H:H)-SUMIF(Itens_Excluidos_Tabela!$A:$A,$N15,Itens_Excluidos_Tabela!E:E) -> 130,047.43
A16: 128.3 | B16: 128 - FORMAÇÃO DE RECURSOS HUMANOS | C16: 3-DESPESAS CORRENTES | D16: 172,625.00 | E16: 172,625.00 | F16: 0 | G16: 0 | H16: 0 | N16: 304.4 | O16: Despesas de Capital | P16: =SUMIF($A:$A,$N16,D:D) -> 1,358,411.00 | Q16: =SUMIF($A:$A,$N16,E:E) -> 1,358,411.00 | R16: =SUMIF($A:$A,$N16,F:F)-SUMIF(Itens_Excluidos_Tabela!$A:$A,$N16,Itens_Excluidos_Tabela!C:C) -> 0 | S16: =SUMIF($A:$A,$N16,G:G)-SUMIF(Itens_Excluidos_Tabela!$A:$A,$N16,Itens_Excluidos_Tabela!D:D) -> 0 | T16: =SUMIF($A:$A,$N16,H:H)-SUMIF(Itens_Excluidos_Tabela!$A:$A,$N16,Itens_Excluidos_Tabela!E:E) -> 0
A17: 128.4 | B17: 128 - FORMAÇÃO DE RECURSOS HUMANOS | C17: 4-DESPESAS DE CAPITAL | D17: 119,903.00 | E17: 119,903.00 | F17: 0 | G17: 0 | H17: 0 | N17: 305 | O17: VIGILÂNCIA EPIDEMIOLÓGICA (XXXIV) | P17: =P18+P19 -> 0 | Q17: =Q18+Q19 -> 0 | R17: =SUMIF($A:$A,$N17,F:F)-SUMIF(Itens_Excluidos_Tabela!$A:$A,$N17,Itens_Excluidos_Tabela!C:C) -> 0 | S17: =SUMIF($A:$A,$N17,G:G)-SUMIF(Itens_Excluidos_Tabela!$A:$A,$N17,Itens_Excluidos_Tabela!D:D) -> 0 | T17: =SUMIF($A:$A,$N17,H:H)-SUMIF(Itens_Excluidos_Tabela!$A:$A,$N17,Itens_Excluidos_Tabela!E:E) -> 0
A18: 131.3 | B18: 131 - COMUNICAÇÃO SOCIAL | C18: 3-DESPESAS CORRENTES | D18: 287,207.00 | E18: 287,207.00 | F18: 0 | G18: 0 | H18: 0 | N18: 305.3 | O18: Despesas Correntes | P18: =SUMIF($A:$A,$N18,D:D) -> 0 | Q18: =SUMIF($A:$A,$N18,E:E) -> 0 | R18: =SUMIF($A:$A,$N18,F:F)-SUMIF(Itens_Excluidos_Tabela!$A:$A,$N18,Itens_Excluidos_Tabela!C:C) -> 0 | S18: =SUMIF($A:$A,$N18,G:G)-SUMIF(Itens_Excluidos_Tabela!$A:$A,$N18,Itens_Excluidos_Tabela!D:D) -> 0 | T18: =SUMIF($A:$A,$N18,H:H)-SUMIF(Itens_Excluidos_Tabela!$A:$A,$N18,Itens_Excluidos_Tabela!E:E) -> 0
A19: 271.3 | B19: 271 - PREVIDÊNCIA BÁSICA | C19: 3-DESPESAS CORRENTES | D19: 809,944,963.00 | E19: 809,944,963.00 | F19: 809,944,963.00 | G19: 113,227,914.28 | H19: 113,227,914.28 | N19: 305.4 | O19: Despesas de Capital | P19: =SUMIF($A:$A,$N19,D:D) -> 0 | Q19: =SUMIF($A:$A,$N19,E:E) -> 0 | R19: =SUMIF($A:$A,$N19,F:F)-SUMIF(Itens_Excluidos_Tabela!$A:$A,$N19,Itens_Excluidos_Tabela!C:C) -> 0 | S19: =SUMIF($A:$A,$N19,G:G)-SUMIF(Itens_Excluidos_Tabela!$A:$A,$N19,Itens_Excluidos_Tabela!D:D) -> 0 | T19: =SUMIF($A:$A,$N19,H:H)-SUMIF(Itens_Excluidos_Tabela!$A:$A,$N19,Itens_Excluidos_Tabela!E:E) -> 0
A20: 301.3 | B20: 301 - ATENÇÃO BÁSICA | C20: 3-DESPESAS CORRENTES | D20: 7,888,278,428.00 | E20: 7,886,136,369.63 | F20: 2,309,347,682.30 | G20: 1,214,247,318.45 | H20: 1,149,779,058.82 | N20: 306 | O20: ALIMENTAÇÃO E NUTRIÇÃO (XXXV) | P20: =P21+P22 -> 0 | Q20: =Q21+Q22 -> 0 | R20: =R21+R22 -> 0 | S20: =S21+S22 -> 0 | T20: =T21+T22 -> 0
A21: 301.4 | B21: 301 - ATENÇÃO BÁSICA | C21: 4-DESPESAS DE CAPITAL | D21: 65,485,018.00 | E21: 64,935,688.96 | F21: 154,681.40 | G21: 0 | H21: 0 | N21: 306.3 | O21: Despesas Correntes | P21: =SUMIF($A:$A,$N21,D:D) -> 0 | Q21: =SUMIF($A:$A,$N21,E:E) -> 0 | R21: =SUMIF($A:$A,$N21,F:F)-SUMIF(Itens_Excluidos_Tabela!$A:$A,$N21,Itens_Excluidos_Tabela!C:C) -> 0 | S21: =SUMIF($A:$A,$N21,G:G)-SUMIF(Itens_Excluidos_Tabela!$A:$A,$N21,Itens_Excluidos_Tabela!D:D) -> 0 | T21: =SUMIF($A:$A,$N21,H:H)-SUMIF(Itens_Excluidos_Tabela!$A:$A,$N21,Itens_Excluidos_Tabela!E:E) -> 0
A22: 302.3 | B22: 302 - ASSISTÊNCIA HOSPITALAR E AMBULATORIAL | C22: 3-DESPESAS CORRENTES | D22: 6,129,055,780.00 | E22: 6,131,197,838.37 | F22: 3,227,144,991.72 | G22: 988,496,803.46 | H22: 974,927,006.84 | N22: 306.4 | O22: Despesas de Capital | P22: =SUMIF($A:$A,$N22,D:D) -> 0 | Q22: =SUMIF($A:$A,$N22,E:E) -> 0 | R22: =SUMIF($A:$A,$N22,F:F)-SUMIF(Itens_Excluidos_Tabela!$A:$A,$N22,Itens_Excluidos_Tabela!C:C) -> 0 | S22: =SUMIF($A:$A,$N22,G:G)-SUMIF(Itens_Excluidos_Tabela!$A:$A,$N22,Itens_Excluidos_Tabela!D:D) -> 0 | T22: =SUMIF($A:$A,$N22,H:H)-SUMIF(Itens_Excluidos_Tabela!$A:$A,$N22,Itens_Excluidos_Tabela!E:E) -> 0
A23: 302.4 | B23: 302 - ASSISTÊNCIA HOSPITALAR E AMBULATORIAL | C23: 4-DESPESAS DE CAPITAL | D23: 8,457,191.00 | E23: 8,459,191.00 | F23: 2,854,830.45 | G23: 2,594,400.18 | H23: 2,594,400.18 | N23: Outras | O23: OUTRAS SUBFUNÇÕES (XXXVI) | P23: =P24+P25 -> 3,714,476,217.00 | Q23: =Q24+Q25 -> 3,714,474,217.00 | R23: =R24+R25 -> 1,560,628,338.20 | S23: =S24+S25 -> 497,261,357.98 | T23: =T24+T25 -> 470,732,087.08
A24: 303.3 | B24: 303 - SUPORTE PROFILÁTICO E TERAPÊUTICO | C24: 3-DESPESAS CORRENTES | D24: 453,390,546.00 | E24: 453,390,546.00 | F24: 169,689,992.49 | G24: 15,302,957.06 | H24: 795,179.46 | N24: Outras.3 | O24: Despesas Correntes | P24: =SUM(P27+P30+P33+P36+P39+P42+P45+P48+P51) -> 3,704,933,694.00 | Q24: 3,704,966,568.00 | R24: 1,560,561,103.28 | S24: 497,261,357.98 | T24: 470,732,087.08
A25: 304.3 | B25: 304 - VIGILÂNCIA SANITÁRIA | C25: 3-DESPESAS CORRENTES | D25: 107,154,317.00 | E25: 107,154,317.00 | F25: 59,243,285.95 | G25: 1,079,603.66 | H25: 265,419.68 | N25: Outras.4 | O25: Despesas de Capital | P25: 9,542,523.00 | Q25: 9,507,649.00 | R25: 67,234.92 | S25: 0 | T25: 0
A26: 304.4 | B26: 304 - VIGILÂNCIA SANITÁRIA | C26: 4-DESPESAS DE CAPITAL | D26: 1,358,411.00 | E26: 1,358,411.00 | F26: 0 | G26: 0 | H26: 0 | N26: 122 | O26: ADMINISTRAÇÃO GERAL | P26: =P27+P28 -> 2,586,679,832.00 | Q26: =Q27+Q28 -> 2,586,678,832.00 | R26: =R27+R28 -> 484,409,792.45 | S26: =S27+S28 -> 360,886,748.50 | T26: =T27+T28 -> 357,504,172.80
A27: 422.3 | B27: 422 - DIREITOS INDIVIDUAIS, COLETIVOS E DIFUSOS | C27: 3-DESPESAS CORRENTES | D27: 56,338.00 | E27: 56,338.00 | F27: 0 | G27: 0 | H27: 0 | N27: 122.3 | O27: Despesas Correntes | P27: =SUMIF($A:$A,$N27,D:D) -> 2,584,835,743.00 | Q27: =SUMIF($A:$A,$N27,E:E) -> 2,584,868,617.00 | R27: =SUMIF($A:$A,$N27,F:F)-SUMIF(Itens_Excluidos_Tabela!$A:$A,$N27,Itens_Excluidos_Tabela!C:C) -> 484,383,153.47 | S27: =SUMIF($A:$A,$N27,G:G)-SUMIF(Itens_Excluidos_Tabela!$A:$A,$N27,Itens_Excluidos_Tabela!D:D) -> 360,886,748.50 | T27: =SUMIF($A:$A,$N27,H:H)-SUMIF(Itens_Excluidos_Tabela!$A:$A,$N27,Itens_Excluidos_Tabela!E:E) -> 357,504,172.80
B28: Total Geral | D28: 18,367,655,908.00 | E28: 18,367,106,578.96 | F28: 7,329,726,796.16 | G28: 2,719,235,018.63 | H28: 2,599,321,970.90 | N28: 122.4 | O28: Despesas de Capital | P28: =SUMIF($A:$A,$N28,D:D) -> 1,844,089.00 | Q28: =SUMIF($A:$A,$N28,E:E) -> 1,810,215.00 | R28: =SUMIF($A:$A,$N28,F:F)-SUMIF(Itens_Excluidos_Tabela!$A:$A,$N28,Itens_Excluidos_Tabela!C:C) -> 26,638.98 | S28: =SUMIF($A:$A,$N28,G:G)-SUMIF(Itens_Excluidos_Tabela!$A:$A,$N28,Itens_Excluidos_Tabela!D:D) -> 0 | T28: =SUMIF($A:$A,$N28,H:H)-SUMIF(Itens_Excluidos_Tabela!$A:$A,$N28,Itens_Excluidos_Tabela!E:E) -> 0
A29: . | N29: 126 | O29: TECNOLOGIA DA INFORMAÇÃO | P29: =P30+P31 -> 317,215,349.00 | Q29: =Q30+Q31 -> 317,214,349.00 | R29: =R30+R31 -> 266,273,582.75 | S29: =S30+S31 -> 23,146,695.20 | T29: =T30+T31 -> 0
N30: 126.3 | O30: Despesas Correntes | P30: =SUMIF($A:$A,$N30,D:D) -> 309,636,818.00 | Q30: =SUMIF($A:$A,$N30,E:E) -> 309,636,818.00 | R30: =SUMIF($A:$A,$N30,F:F)-SUMIF(Itens_Excluidos_Tabela!$A:$A,$N30,Itens_Excluidos_Tabela!C:C) -> 266,232,986.81 | S30: =SUMIF($A:$A,$N30,G:G)-SUMIF(Itens_Excluidos_Tabela!$A:$A,$N30,Itens_Excluidos_Tabela!D:D) -> 23,146,695.20 | T30: =SUMIF($A:$A,$N30,H:H)-SUMIF(Itens_Excluidos_Tabela!$A:$A,$N30,Itens_Excluidos_Tabela!E:E) -> 0
N31: 126.4 | O31: Despesas de Capital | P31: =SUMIF($A:$A,$N31,D:D) -> 7,578,531.00 | Q31: =SUMIF($A:$A,$N31,E:E) -> 7,577,531.00 | R31: =SUMIF($A:$A,$N31,F:F)-SUMIF(Itens_Excluidos_Tabela!$A:$A,$N31,Itens_Excluidos_Tabela!C:C) -> 40,595.94 | S31: =SUMIF($A:$A,$N31,G:G)-SUMIF(Itens_Excluidos_Tabela!$A:$A,$N31,Itens_Excluidos_Tabela!D:D) -> 0 | T31: =SUMIF($A:$A,$N31,H:H)-SUMIF(Itens_Excluidos_Tabela!$A:$A,$N31,Itens_Excluidos_Tabela!E:E) -> 0
N32: 128 | O32: FORMAÇÃO DE RECURSOS HUMANOS | P32: =P33+P34 -> 292,528.00 | Q32: =Q33+Q34 -> 292,528.00 | R32: =R33+R34 -> 0 | S32: =S33+S34 -> 0 | T32: =T33+T34 -> 0
N33: 128.3 | O33: Despesas Correntes | P33: =SUMIF($A:$A,$N33,D:D) -> 172,625.00 | Q33: =SUMIF($A:$A,$N33,E:E) -> 172,625.00 | R33: =SUMIF($A:$A,$N33,F:F)-SUMIF(Itens_Excluidos_Tabela!$A:$A,$N33,Itens_Excluidos_Tabela!C:C) -> 0 | S33: =SUMIF($A:$A,$N33,G:G)-SUMIF(Itens_Excluidos_Tabela!$A:$A,$N33,Itens_Excluidos_Tabela!D:D) -> 0 | T33: =SUMIF($A:$A,$N33,H:H)-SUMIF(Itens_Excluidos_Tabela!$A:$A,$N33,Itens_Excluidos_Tabela!E:E) -> 0
N34: 128.4 | O34: Despesas de Capital | P34: =SUMIF($A:$A,$N34,D:D) -> 119,903.00 | Q34: =SUMIF($A:$A,$N34,E:E) -> 119,903.00 | R34: =SUMIF($A:$A,$N34,F:F)-SUMIF(Itens_Excluidos_Tabela!$A:$A,$N34,Itens_Excluidos_Tabela!C:C) -> 0 | S34: =SUMIF($A:$A,$N34,G:G)-SUMIF(Itens_Excluidos_Tabela!$A:$A,$N34,Itens_Excluidos_Tabela!D:D) -> 0 | T34: =SUMIF($A:$A,$N34,H:H)-SUMIF(Itens_Excluidos_Tabela!$A:$A,$N34,Itens_Excluidos_Tabela!E:E) -> 0
N35: 131 | O35: COMUNICAÇÃO SOCIAL | P35: =P36+P37 -> 287,207.00 | Q35: =Q36+Q37 -> 287,207.00 | R35: =R36+R37 -> 0 | S35: =S36+S37 -> 0 | T35: =T36+T37 -> 0
N36: 131.3 | O36: Despesas Correntes | P36: =SUMIF($A:$A,$N36,D:D) -> 287,207.00 | Q36: =SUMIF($A:$A,$N36,E:E) -> 287,207.00 | R36: =SUMIF($A:$A,$N36,F:F)-SUMIF(Itens_Excluidos_Tabela!$A:$A,$N36,Itens_Excluidos_Tabela!C:C) -> 0 | S36: =SUMIF($A:$A,$N36,G:G)-SUMIF(Itens_Excluidos_Tabela!$A:$A,$N36,Itens_Excluidos_Tabela!D:D) -> 0 | T36: =SUMIF($A:$A,$N36,H:H)-SUMIF(Itens_Excluidos_Tabela!$A:$A,$N36,Itens_Excluidos_Tabela!E:E) -> 0
N37: 131.4 | O37: Despesas de Capital | P37: =SUMIF($A:$A,$N37,D:D) -> 0 | Q37: =SUMIF($A:$A,$N37,E:E) -> 0 | R37: =SUMIF($A:$A,$N37,F:F)-SUMIF(Itens_Excluidos_Tabela!$A:$A,$N37,Itens_Excluidos_Tabela!C:C) -> 0 | S37: =SUMIF($A:$A,$N37,G:G)-SUMIF(Itens_Excluidos_Tabela!$A:$A,$N37,Itens_Excluidos_Tabela!D:D) -> 0 | T37: =SUMIF($A:$A,$N37,H:H)-SUMIF(Itens_Excluidos_Tabela!$A:$A,$N37,Itens_Excluidos_Tabela!E:E) -> 0
N38: 241 | O38: ASSISTÊNCIA AO IDOSO | P38: =P39+P40 -> 0 | Q38: =Q39+Q40 -> 0 | R38: =R39+R40 -> 0 | S38: =S39+S40 -> 0 | T38: =T39+T40 -> 0
N39: 241.3 | O39: Despesas Correntes | P39: =SUMIF($A:$A,$N39,D:D) -> 0 | Q39: =SUMIF($A:$A,$N39,E:E) -> 0 | R39: =SUMIF($A:$A,$N39,F:F)-SUMIF(Itens_Excluidos_Tabela!$A:$A,$N39,Itens_Excluidos_Tabela!C:C) -> 0 | S39: =SUMIF($A:$A,$N39,G:G)-SUMIF(Itens_Excluidos_Tabela!$A:$A,$N39,Itens_Excluidos_Tabela!D:D) -> 0 | T39: =SUMIF($A:$A,$N39,H:H)-SUMIF(Itens_Excluidos_Tabela!$A:$A,$N39,Itens_Excluidos_Tabela!E:E) -> 0
N40: 241.4 | O40: Despesas de Capital | P40: =SUMIF($A:$A,$N40,D:D) -> 0 | Q40: =SUMIF($A:$A,$N40,E:E) -> 0 | R40: =SUMIF($A:$A,$N40,F:F)-SUMIF(Itens_Excluidos_Tabela!$A:$A,$N40,Itens_Excluidos_Tabela!C:C) -> 0 | S40: =SUMIF($A:$A,$N40,G:G)-SUMIF(Itens_Excluidos_Tabela!$A:$A,$N40,Itens_Excluidos_Tabela!D:D) -> 0 | T40: =SUMIF($A:$A,$N40,H:H)-SUMIF(Itens_Excluidos_Tabela!$A:$A,$N40,Itens_Excluidos_Tabela!E:E) -> 0
N41: 242 | O41: ASSISTÊNCIA AO PORTADOR DE DEFICIÊNCIA | P41: =P42+P43 -> 0 | Q41: =Q42+Q43 -> 0 | R41: =R42+R43 -> 0 | S41: =S42+S43 -> 0 | T41: =T42+T43 -> 0
N42: 242.3 | O42: Despesas Correntes | P42: =SUMIF($A:$A,$N42,D:D) -> 0 | Q42: =SUMIF($A:$A,$N42,E:E) -> 0 | R42: =SUMIF($A:$A,$N42,F:F)-SUMIF(Itens_Excluidos_Tabela!$A:$A,$N42,Itens_Excluidos_Tabela!C:C) -> 0 | S42: =SUMIF($A:$A,$N42,G:G)-SUMIF(Itens_Excluidos_Tabela!$A:$A,$N42,Itens_Excluidos_Tabela!D:D) -> 0 | T42: =SUMIF($A:$A,$N42,H:H)-SUMIF(Itens_Excluidos_Tabela!$A:$A,$N42,Itens_Excluidos_Tabela!E:E) -> 0
N43: 242.4 | O43: Despesas de Capital | P43: =SUMIF($A:$A,$N43,D:D) -> 0 | Q43: =SUMIF($A:$A,$N43,E:E) -> 0 | R43: =SUMIF($A:$A,$N43,F:F)-SUMIF(Itens_Excluidos_Tabela!$A:$A,$N43,Itens_Excluidos_Tabela!C:C) -> 0 | S43: =SUMIF($A:$A,$N43,G:G)-SUMIF(Itens_Excluidos_Tabela!$A:$A,$N43,Itens_Excluidos_Tabela!D:D) -> 0 | T43: =SUMIF($A:$A,$N43,H:H)-SUMIF(Itens_Excluidos_Tabela!$A:$A,$N43,Itens_Excluidos_Tabela!E:E) -> 0
N44: 422 | O44: DIREITOS INDIVIDUAIS, COLETIVOS E DIFUSOS | P44: =P45+P46 -> 56,338.00 | Q44: =Q45+Q46 -> 56,338.00 | R44: =R45+R46 -> 0 | S44: =S45+S46 -> 0 | T44: =T45+T46 -> 0
N45: 422.3 | O45: Despesas Correntes | P45: =SUMIF($A:$A,$N45,D:D) -> 56,338.00 | Q45: =SUMIF($A:$A,$N45,E:E) -> 56,338.00 | R45: =SUMIF($A:$A,$N45,F:F)-SUMIF(Itens_Excluidos_Tabela!$A:$A,$N45,Itens_Excluidos_Tabela!C:C) -> 0 | S45: =SUMIF($A:$A,$N45,G:G)-SUMIF(Itens_Excluidos_Tabela!$A:$A,$N45,Itens_Excluidos_Tabela!D:D) -> 0 | T45: =SUMIF($A:$A,$N45,H:H)-SUMIF(Itens_Excluidos_Tabela!$A:$A,$N45,Itens_Excluidos_Tabela!E:E) -> 0
N46: 422.4 | O46: Despesas de Capital | P46: =SUMIF($A:$A,$N46,D:D) -> 0 | Q46: =SUMIF($A:$A,$N46,E:E) -> 0 | R46: =SUMIF($A:$A,$N46,F:F)-SUMIF(Itens_Excluidos_Tabela!$A:$A,$N46,Itens_Excluidos_Tabela!C:C) -> 0 | S46: =SUMIF($A:$A,$N46,G:G)-SUMIF(Itens_Excluidos_Tabela!$A:$A,$N46,Itens_Excluidos_Tabela!D:D) -> 0 | T46: =SUMIF($A:$A,$N46,H:H)-SUMIF(Itens_Excluidos_Tabela!$A:$A,$N46,Itens_Excluidos_Tabela!E:E) -> 0
A47: Somatório Conferência | D47: =SUMIF(B2:B46, "Total Geral", D2:D46) -> 18,367,655,908.00 | E47: =SUMIF(B2:B46, "Total Geral", E2:E46) -> 18,367,106,578.96 | F47: =SUMIF(B2:B46,"Total Geral",F2:F46)-SUMIF(Itens_Excluidos_Tabela!$A:$A, "Total Geral", Itens_Excluidos_Tabela!C:C) -> 7,313,533,436.48 | G47: =SUMIF(B2:B46,"Total Geral",G2:G46)-SUMIF(Itens_Excluidos_Tabela!$A:$A, "Total Geral", Itens_Excluidos_Tabela!D:D) -> 2,716,940,479.38 | H47: =SUMIF(B2:B46,"Total Geral",H2:H46)-SUMIF(Itens_Excluidos_Tabela!$A:$A, "Total Geral", Itens_Excluidos_Tabela!E:E) -> 2,597,884,034.84 | N47: 271 | O47: PREVIDÊNCIA BÁSICA | P47: =P48+P49 -> 809,944,963.00 | Q47: =Q48+Q49 -> 809,944,963.00 | R47: =R48+R49 -> 809,944,963.00 | S47: =S48+S49 -> 113,227,914.28 | T47: =T48+T49 -> 113,227,914.28
A48: Variação | D48: =D47-P54 -> 0 | E48: =E47-Q54 -> 0 | F48: =F47-R54 -> 0 | G48: =G47-S54 -> 0 | H48: =H47-T54 -> 0 | N48: 271.3 | O48: Despesas Correntes | P48: =SUMIF($A:$A,$N48,D:D) -> 809,944,963.00 | Q48: =SUMIF($A:$A,$N48,E:E) -> 809,944,963.00 | R48: =SUMIF($A:$A,$N48,F:F)-SUMIF(Itens_Excluidos_Tabela!$A:$A,$N48,Itens_Excluidos_Tabela!C:C) -> 809,944,963.00 | S48: =SUMIF($A:$A,$N48,G:G)-SUMIF(Itens_Excluidos_Tabela!$A:$A,$N48,Itens_Excluidos_Tabela!D:D) -> 113,227,914.28 | T48: =SUMIF($A:$A,$N48,H:H)-SUMIF(Itens_Excluidos_Tabela!$A:$A,$N48,Itens_Excluidos_Tabela!E:E) -> 113,227,914.28
N49: 271.4 | O49: Despesas de Capital | P49: =SUMIF($A:$A,$N49,D:D) -> 0 | Q49: =SUMIF($A:$A,$N49,E:E) -> 0 | R49: =SUMIF($A:$A,$N49,F:F)-SUMIF(Itens_Excluidos_Tabela!$A:$A,$N49,Itens_Excluidos_Tabela!C:C) -> 0 | S49: =SUMIF($A:$A,$N49,G:G)-SUMIF(Itens_Excluidos_Tabela!$A:$A,$N49,Itens_Excluidos_Tabela!D:D) -> 0 | T49: =SUMIF($A:$A,$N49,H:H)-SUMIF(Itens_Excluidos_Tabela!$A:$A,$N49,Itens_Excluidos_Tabela!E:E) -> 0
N50: 331 | O50: PROTEÇÃO E BENEFÍCIOS AO TRABALHADOR | P50: =P51+P52 -> 0 | Q50: =Q51+Q52 -> 0 | R50: =R51+R52 -> 0 | S50: =S51+S52 -> 0 | T50: =T51+T52 -> 0
N51: 331.3 | O51: Despesas Correntes | P51: =SUMIF($A:$A,$N51,D:D) -> 0 | Q51: =SUMIF($A:$A,$N51,E:E) -> 0 | R51: =SUMIF($A:$A,$N51,F:F)-SUMIF(Itens_Excluidos_Tabela!$A:$A,$N51,Itens_Excluidos_Tabela!C:C) -> 0 | S51: =SUMIF($A:$A,$N51,G:G)-SUMIF(Itens_Excluidos_Tabela!$A:$A,$N51,Itens_Excluidos_Tabela!D:D) -> 0 | T51: =SUMIF($A:$A,$N51,H:H)-SUMIF(Itens_Excluidos_Tabela!$A:$A,$N51,Itens_Excluidos_Tabela!E:E) -> 0
O52: Despesas de Capital | P52: =SUMIF($A:$A,$N52,D:D) -> 0 | Q52: =SUMIF($A:$A,$N52,E:E) -> 0 | R52: =SUMIF($A:$A,$N52,F:F)-SUMIF(Itens_Excluidos_Tabela!$A:$A,$N52,Itens_Excluidos_Tabela!C:C) -> 0 | S52: =SUMIF($A:$A,$N52,G:G)-SUMIF(Itens_Excluidos_Tabela!$A:$A,$N52,Itens_Excluidos_Tabela!D:D) -> 0 | T52: =SUMIF($A:$A,$N52,H:H)-SUMIF(Itens_Excluidos_Tabela!$A:$A,$N52,Itens_Excluidos_Tabela!E:E) -> 0
O53: TOTAL (XI) = (IV + V + VI + VII + VIII + IX + X)
P54: =SUM(P5,P8,P11,P14,P17,P20,P23) -> 18,367,655,908.00 | Q54: =SUM(Q5,Q8,Q11,Q14,Q17,Q20,Q23) -> 18,367,106,578.96 | R54: =SUM(R5,R8,R11,R14,R17,R20,R23) -> 7,313,533,436.48 | S54: =SUM(S5,S8,S11,S14,S17,S20,S23) -> 2,716,940,479.38 | T54: =SUM(T5,T8,T11,T14,T17,T20,T23) -> 2,597,884,034.84
O55: Variação | P55: =P54-Anexo12_Saúde!H55 -> 0 | Q55: =Q54-Anexo12_Saúde!I55 -> 0 | R55: =R54-Anexo12_Saúde!J55 -> 0 | S55: =S54-Anexo12_Saúde!L55 -> 0 | T55: =T54-Anexo12_Saúde!N55 -> 0

Sheet OutrasDespesas
A1: Projeto Atividade: | B1: Apenas >=8000; Ações excluídas de despesas com ASPS | O1: DESPESAS COM SAÚDE NÃO COMPUTADAS NO CÁLCULO DO MÍNIMO
B2: Número Ano | C2: 2025
B3: Número Ano Execução | C3: 2025 | O3: DESPESAS COM SAUDE POR SUBFUNÇÕES E CATEGORIA ECONÔMICA NÃO COMPUTADAS NO CÁLCULO DO MÍNIMO | P3: DOTAÇÃO INICIAL | Q3: DOTAÇÃO ATUALIZADA | R3: DESPESAS EMPENHADAS | S3: DESPESAS LIQUIDADAS | T3: DESPESAS PAGAS
B4: Número Mês | C4: (Vários itens) | D4: 01 a 02 | N4: CÓD
B5: Código Órgão Empresa | C5: 84 | D5: FMS | N5: 301 | O5: ATENÇÃO BÁSICA (XXX) | P5: =P6+P7 -> 1,608,755,340.00 | Q5: =Q6+Q7 -> 1,562,197,766.66 | R5: =R6+R7 -> 252,995,557.66 | S5: =S6+S7 -> 162,624,179.43 | T5: =T6+T7 -> 160,482,947.59
B6: Código Função | C6: 10 | D6: Saúde | N6: 301.3 | O6: Despesas Correntes | P6: =SUMIF($A:$A,$N6,E:E) -> 1,371,704,400.00 | Q6: =SUMIF($A:$A,$N6,F:F) -> 1,422,728,558.26 | R6: =SUMIF($A:$A,$N6,G:G)+SUMIF(Itens_Excluidos_Tabela!$A:$A, $N6, Itens_Excluidos_Tabela!C:C) -> 252,995,557.66 | S6: =SUMIF($A:$A,$N6,H:H)+SUMIF(Itens_Excluidos_Tabela!$A:$A, $N6, Itens_Excluidos_Tabela!D:D) -> 162,624,179.43 | T6: =SUMIF($A:$A,$N6,I:I)+SUMIF(Itens_Excluidos_Tabela!$A:$A, $N6, Itens_Excluidos_Tabela!E:E) -> 160,482,947.59
B7: Código Elemento Despesa | C7: (Vários itens) | D7: Excluídos 08, 82, 86 e 97; Mantido filtro de elementos excluídos de despesas com ASPS | N7: 301.4 | O7: Despesas de Capital | P7: =SUMIF($A:$A,$N7,E:E) -> 237,050,940.00 | Q7: =SUMIF($A:$A,$N7,F:F) -> 139,469,208.40 | R7: =SUMIF($A:$A,$N7,G:G)+SUMIF(Itens_Excluidos_Tabela!$A:$A, $N7, Itens_Excluidos_Tabela!C:C) -> 0 | S7: =SUMIF($A:$A,$N7,H:H)+SUMIF(Itens_Excluidos_Tabela!$A:$A, $N7, Itens_Excluidos_Tabela!D:D) -> 0 | T7: =SUMIF($A:$A,$N7,I:I)+SUMIF(Itens_Excluidos_Tabela!$A:$A, $N7, Itens_Excluidos_Tabela!E:E) -> 0
B8: Código Fonte de Recurso | C8: 00 | D8: Tesouro Municipal - Receitas de Impostos Municipais | N8: 302 | O8: ASSISTÊNCIA HOSPITALAR E AMBULATORIAL (XXXI) | P8: =P9+P10 -> 2,250,408,867.00 | Q8: =Q9+Q10 -> 2,482,317,727.28 | R8: =R9+R10 -> 1,211,202,700.94 | S8: =S9+S10 -> 245,489,469.16 | T8: =T9+T10 -> 233,440,023.97
N9: 302.3 | O9: Despesas Correntes | P9: =SUMIF($A:$A,$N9,E:E) -> 2,198,935,187.00 | Q9: =SUMIF($A:$A,$N9,F:F) -> 2,314,901,486.31 | R9: =SUMIF($A:$A,$N9,G:G)+SUMIF(Itens_Excluidos_Tabela!$A:$A, $N9, Itens_Excluidos_Tabela!C:C) -> 1,210,840,218.94 | S9: =SUMIF($A:$A,$N9,H:H)+SUMIF(Itens_Excluidos_Tabela!$A:$A, $N9, Itens_Excluidos_Tabela!D:D) -> 245,489,469.16 | T9: =SUMIF($A:$A,$N9,I:I)+SUMIF(Itens_Excluidos_Tabela!$A:$A, $N9, Itens_Excluidos_Tabela!E:E) -> 233,440,023.97
E10: Valores | N10: 302.4 | O10: Despesas de Capital | P10: =SUMIF($A:$A,$N10,E:E) -> 51,473,680.00 | Q10: =SUMIF($A:$A,$N10,F:F) -> 167,416,240.97 | R10: =SUMIF($A:$A,$N10,G:G)+SUMIF(Itens_Excluidos_Tabela!$A:$A, $N10, Itens_Excluidos_Tabela!C:C) -> 362,482.00 | S10: =SUMIF($A:$A,$N10,H:H)+SUMIF(Itens_Excluidos_Tabela!$A:$A, $N10, Itens_Excluidos_Tabela!D:D) -> 0 | T10: =SUMIF($A:$A,$N10,I:I)+SUMIF(Itens_Excluidos_Tabela!$A:$A, $N10, Itens_Excluidos_Tabela!E:E) -> 0
A11: CÓD | B11: Descrição Sub Função | C11: Descrição Categoria Econômica | D11: Código Projeto Atividade | E11: Valor Orçado Anual | F11: Valor Orçado Atualizado | G11: Valor Empenhado | H11: Valor Liquidado | I11: Valor Pago | N11: 303 | O11: SUPORTE PROFILÁTICO E TERAPÊUTICO (XXXII) | P11: =P12+P13 -> 159,906,600.00 | Q11: =Q12+Q13 -> 171,708,107.36 | R11: =R12+R13 -> 59,965,720.92 | S11: =S12+S13 -> 6,506,783.78 | T11: =T12+T13 -> 1,640,541.58
A12: =CONCATENATE(LEFT(B12,3),".",LEFT(C12,1)) -> 128.3 | B12: 128 - FORMAÇÃO DE RECURSOS HUMANOS | C12: 3-DESPESAS CORRENTES | D12: 8003 | E12: 50,000.00 | F12: 50,000.00 | G12: 0 | H12: 0 | I12: 0 | N12: 303.3 | O12: Despesas Correntes | P12: =SUMIF($A:$A,$N12,E:E) -> 159,906,600.00 | Q12: =SUMIF($A:$A,$N12,F:F) -> 171,708,107.36 | R12: =SUMIF($A:$A,$N12,G:G)+SUMIF(Itens_Excluidos_Tabela!$A:$A, $N12, Itens_Excluidos_Tabela!C:C) -> 59,965,720.92 | S12: =SUMIF($A:$A,$N12,H:H)+SUMIF(Itens_Excluidos_Tabela!$A:$A, $N12, Itens_Excluidos_Tabela!D:D) -> 6,506,783.78 | T12: =SUMIF($A:$A,$N12,I:I)+SUMIF(Itens_Excluidos_Tabela!$A:$A, $N12, Itens_Excluidos_Tabela!E:E) -> 1,640,541.58
A13: =CONCATENATE(LEFT(B13,3),".",LEFT(C13,1)) -> 128.3 | B13: 128 - FORMAÇÃO DE RECURSOS HUMANOS | C13: 3-DESPESAS CORRENTES | D13: 8004 | E13: 80,000.00 | F13: 80,000.00 | G13: 0 | H13: 0 | I13: 0 | N13: 303.4 | O13: Despesas de Capital | P13: =SUMIF($A:$A,$N13,E:E) -> 0 | Q13: =SUMIF($A:$A,$N13,F:F) -> 0 | R13: =SUMIF($A:$A,$N13,G:G)+SUMIF(Itens_Excluidos_Tabela!$A:$A, $N13, Itens_Excluidos_Tabela!C:C) -> 0 | S13: =SUMIF($A:$A,$N13,H:H)+SUMIF(Itens_Excluidos_Tabela!$A:$A, $N13, Itens_Excluidos_Tabela!D:D) -> 0 | T13: =SUMIF($A:$A,$N13,I:I)+SUMIF(Itens_Excluidos_Tabela!$A:$A, $N13, Itens_Excluidos_Tabela!E:E) -> 0
A14: 301.3 | B14: 301 - ATENÇÃO BÁSICA | C14: 3-DESPESAS CORRENTES | D14: 8007 | E14: 2,000,000.00 | F14: 2,000,000.00 | G14: 0 | H14: 0 | I14: 0 | N14: 304 | O14: VIGILÂNCIA SANITÁRIA (XXXIII) | P14: =P15+P16 -> 194,560,792.00 | Q14: =Q15+Q16 -> 273,318,060.14 | R14: =R15+R16 -> 63,162,637.80 | S14: =S15+S16 -> 18,144,352.03 | T14: =T15+T16 -> 16,981,171.28
A15: 301.3 | B15: 301 - ATENÇÃO BÁSICA | C15: 3-DESPESAS CORRENTES | D15: 8008 | E15: 30,000.00 | F15: 30,000.00 | G15: 0 | H15: 0 | I15: 0 | N15: 304.3 | O15: Despesas Correntes | P15: =SUMIF($A:$A,$N15,E:E) -> 185,068,592.00 | Q15: =SUMIF($A:$A,$N15,F:F) -> 263,276,531.10 | R15: =SUMIF($A:$A,$N15,G:G)+SUMIF(Itens_Excluidos_Tabela!$A:$A, $N15, Itens_Excluidos_Tabela!C:C) -> 63,087,620.90 | S15: =SUMIF($A:$A,$N15,H:H)+SUMIF(Itens_Excluidos_Tabela!$A:$A, $N15, Itens_Excluidos_Tabela!D:D) -> 18,144,352.03 | T15: =SUMIF($A:$A,$N15,I:I)+SUMIF(Itens_Excluidos_Tabela!$A:$A, $N15, Itens_Excluidos_Tabela!E:E) -> 16,981,171.28
A16: 301.3 | B16: 301 - ATENÇÃO BÁSICA | C16: 3-DESPESAS CORRENTES | D16: 8009 | E16: 30,000.00 | F16: 30,000.00 | G16: 0 | H16: 0 | I16: 0 | N16: 304.4 | O16: Despesas de Capital | P16: =SUMIF($A:$A,$N16,E:E) -> 9,492,200.00 | Q16: =SUMIF($A:$A,$N16,F:F) -> 10,041,529.04 | R16: =SUMIF($A:$A,$N16,G:G)+SUMIF(Itens_Excluidos_Tabela!$A:$A, $N16, Itens_Excluidos_Tabela!C:C) -> 75,016.90 | S16: =SUMIF($A:$A,$N16,H:H)+SUMIF(Itens_Excluidos_Tabela!$A:$A, $N16, Itens_Excluidos_Tabela!D:D) -> 0 | T16: =SUMIF($A:$A,$N16,I:I)+SUMIF(Itens_Excluidos_Tabela!$A:$A, $N16, Itens_Excluidos_Tabela!E:E) -> 0
A17: 301.3 | B17: 301 - ATENÇÃO BÁSICA | C17: 3-DESPESAS CORRENTES | D17: 8011 | E17: 1,000.00 | F17: 1,000.00 | G17: 0 | H17: 0 | I17: 0 | N17: 305 | O17: VIGILÂNCIA EPIDEMIOLÓGICA (XXXIV) | P17: =P18+P19 -> 0 | Q17: =Q18+Q19 -> 0 | R17: =R18+R19 -> 0 | S17: =S18+S19 -> 0 | T17: =T18+T19 -> 0
A18: 301.3 | B18: 301 - ATENÇÃO BÁSICA | C18: 3-DESPESAS CORRENTES | D18: 8016 | E18: 1,000.00 | F18: 1,000.00 | G18: 0 | H18: 0 | I18: 0 | N18: 305.3 | O18: Despesas Correntes | P18: =SUMIF($A:$A,$N18,E:E) -> 0 | Q18: =SUMIF($A:$A,$N18,F:F) -> 0 | R18: =SUMIF($A:$A,$N18,G:G)+SUMIF(Itens_Excluidos_Tabela!$A:$A, $N18, Itens_Excluidos_Tabela!C:C) -> 0 | S18: =SUMIF($A:$A,$N18,H:H)+SUMIF(Itens_Excluidos_Tabela!$A:$A, $N18, Itens_Excluidos_Tabela!D:D) -> 0 | T18: =SUMIF($A:$A,$N18,I:I)+SUMIF(Itens_Excluidos_Tabela!$A:$A, $N18, Itens_Excluidos_Tabela!E:E) -> 0
A19: 301.3 | B19: 301 - ATENÇÃO BÁSICA | C19: 3-DESPESAS CORRENTES | D19: 8017 | E19: 1,000.00 | F19: 1,000.00 | G19: 0 | H19: 0 | I19: 0 | N19: 305.4 | O19: Despesas de Capital | P19: =SUMIF($A:$A,$N19,E:E) -> 0 | Q19: =SUMIF($A:$A,$N19,F:F) -> 0 | R19: =SUMIF($A:$A,$N19,G:G)+SUMIF(Itens_Excluidos_Tabela!$A:$A, $N19, Itens_Excluidos_Tabela!C:C) -> 0 | S19: =SUMIF($A:$A,$N19,H:H)+SUMIF(Itens_Excluidos_Tabela!$A:$A, $N19, Itens_Excluidos_Tabela!D:D) -> 0 | T19: =SUMIF($A:$A,$N19,I:I)+SUMIF(Itens_Excluidos_Tabela!$A:$A, $N19, Itens_Excluidos_Tabela!E:E) -> 0
A20: 301.3 | B20: 301 - ATENÇÃO BÁSICA | C20: 3-DESPESAS CORRENTES | D20: 8019 | E20: 1,000.00 | F20: 1,000.00 | G20: 0 | H20: 0 | I20: 0 | N20: 306 | O20: ALIMENTAÇÃO E NUTRIÇÃO (XXXV) | P20: =P21+P22 -> 0 | Q20: =Q21+Q22 -> 0 | R20: =R21+R22 -> 0 | S20: =S21+S22 -> 0 | T20: =T21+T22 -> 0
A21: 301.3 | B21: 301 - ATENÇÃO BÁSICA | C21: 3-DESPESAS CORRENTES | D21: 8020 | E21: 1,000.00 | F21: 1,000.00 | G21: 0 | H21: 0 | I21: 0 | N21: 306.3 | O21: Despesas Correntes | P21: =SUMIF($A:$A,$N21,E:E) -> 0 | Q21: =SUMIF($A:$A,$N21,F:F) -> 0 | R21: =SUMIF($A:$A,$N21,G:G)+SUMIF(Itens_Excluidos_Tabela!$A:$A, $N21, Itens_Excluidos_Tabela!C:C) -> 0 | S21: =SUMIF($A:$A,$N21,H:H)+SUMIF(Itens_Excluidos_Tabela!$A:$A, $N21, Itens_Excluidos_Tabela!D:D) -> 0 | T21: =SUMIF($A:$A,$N21,I:I)+SUMIF(Itens_Excluidos_Tabela!$A:$A, $N21, Itens_Excluidos_Tabela!E:E) -> 0
A22: 301.3 | B22: 301 - ATENÇÃO BÁSICA | C22: 3-DESPESAS CORRENTES | D22: 8021 | E22: 1,000.00 | F22: 1,000.00 | G22: 0 | H22: 0 | I22: 0 | N22: 306.4 | O22: Despesas de Capital | P22: =SUMIF($A:$A,$N22,E:E) -> 0 | Q22: =SUMIF($A:$A,$N22,F:F) -> 0 | R22: =SUMIF($A:$A,$N22,G:G)+SUMIF(Itens_Excluidos_Tabela!$A:$A, $N22, Itens_Excluidos_Tabela!C:C) -> 0 | S22: =SUMIF($A:$A,$N22,H:H)+SUMIF(Itens_Excluidos_Tabela!$A:$A, $N22, Itens_Excluidos_Tabela!D:D) -> 0 | T22: =SUMIF($A:$A,$N22,I:I)+SUMIF(Itens_Excluidos_Tabela!$A:$A, $N22, Itens_Excluidos_Tabela!E:E) -> 0
A23: 301.3 | B23: 301 - ATENÇÃO BÁSICA | C23: 3-DESPESAS CORRENTES | D23: 8022 | E23: 1,000.00 | F23: 1,000.00 | G23: 0 | H23: 0 | I23: 0 | N23: Outras | O23: OUTRAS SUBFUNÇÕES (XXXVI) | P23: =P24+P25 -> 371,161,914.00 | Q23: =Q24+Q25 -> 403,684,841.36 | R23: =R24+R25 -> 77,174,289.13 | S23: =S24+S25 -> 48,858,441.19 | T23: =T24+T25 -> 48,222,306.50
A24: 301.3 | B24: 301 - ATENÇÃO BÁSICA | C24: 3-DESPESAS CORRENTES | D24: 8024 | E24: 500,000.00 | F24: 500,000.00 | G24: 0 | H24: 0 | I24: 0 | N24: Outras.3 | O24: Despesas Correntes | P24: =SUM(P27+P30+P33+P36+P39+P42+P45) -> 366,660,914.00 | Q24: 385,424,666.34 | R24: 75,058,592.01 | S24: 48,680,709.68 | T24: =SUM(T27+T30+T33+T36+T39+T42+T45) -> 48,209,207.87
A25: 301.4 | B25: 301 - ATENÇÃO BÁSICA | C25: 4-DESPESAS DE CAPITAL | D25: 8015 | E25: 1,000.00 | F25: 1,000.00 | G25: 0 | H25: 0 | I25: 0 | N25: Outras.4 | O25: Despesas de Capital | P25: 4,501,000.00 | Q25: 18,260,175.02 | R25: 2,115,697.12 | S25: 177,731.51 | T25: =SUM(T28+T31+T34+T37+T40+T43+T46) -> 13,098.63
A26: 301.4 | B26: 301 - ATENÇÃO BÁSICA | C26: 4-DESPESAS DE CAPITAL | D26: 9000 | E26: 25,000,000.00 | F26: 25,000,000.00 | G26: 0 | H26: 0 | I26: 0 | N26: 122 | O26: ADMINISTRAÇÃO GERAL | P26: =P27+P28 -> 331,151,314.00 | Q26: =Q27+Q28 -> 335,989,408.02 | R26: =R27+R28 -> 64,500,188.98 | S26: =S27+S28 -> 48,449,201.24 | T26: =T27+T28 -> 48,208,601.00
A27: 301.4 | B27: 301 - ATENÇÃO BÁSICA | C27: 4-DESPESAS DE CAPITAL | D27: 9003 | E27: 38,000.00 | F27: 38,000.00 | G27: 0 | H27: 0 | I27: 0 | N27: 122.3 | O27: Despesas Correntes | P27: =SUMIF($A:$A,$N27,E:E) -> 331,151,314.00 | Q27: =SUMIF($A:$A,$N27,F:F) -> 331,151,314.00 | R27: =SUMIF($A:$A,$N27,G:G)+SUMIF(Itens_Excluidos_Tabela!$A:$A, $N27, Itens_Excluidos_Tabela!C:C) -> 64,166,615.50 | S27: =SUMIF($A:$A,$N27,H:H)+SUMIF(Itens_Excluidos_Tabela!$A:$A, $N27, Itens_Excluidos_Tabela!D:D) -> 48,425,850.95 | T27: =SUMIF($A:$A,$N27,I:I)+SUMIF(Itens_Excluidos_Tabela!$A:$A, $N27, Itens_Excluidos_Tabela!E:E) -> 48,208,601.00
A28: 301.4 | B28: 301 - ATENÇÃO BÁSICA | C28: 4-DESPESAS DE CAPITAL | D28: 9007 | E28: 100,000.00 | F28: 100,000.00 | G28: 0 | H28: 0 | I28: 0 | N28: 122.4 | O28: Despesas de Capital | P28: =SUMIF($A:$A,$N28,E:E) -> 0 | Q28: =SUMIF($A:$A,$N28,F:F) -> 4,838,094.02 | R28: =SUMIF($A:$A,$N28,G:G)+SUMIF(Itens_Excluidos_Tabela!$A:$A, $N28, Itens_Excluidos_Tabela!C:C) -> 333,573.48 | S28: =SUMIF($A:$A,$N28,H:H)+SUMIF(Itens_Excluidos_Tabela!$A:$A, $N28, Itens_Excluidos_Tabela!D:D) -> 23,350.29 | T28: =SUMIF($A:$A,$N28,I:I)+SUMIF(Itens_Excluidos_Tabela!$A:$A, $N28, Itens_Excluidos_Tabela!E:E) -> 0
A29: 301.4 | B29: 301 - ATENÇÃO BÁSICA | C29: 4-DESPESAS DE CAPITAL | D29: 9008 | E29: 300,000.00 | F29: 300,000.00 | G29: 0 | H29: 0 | I29: 0 | N29: 126 | O29: TECNOLOGIA DA INFORMAÇÃO | P29: =P30+P31 -> 38,663,000.00 | Q29: =Q30+Q31 -> 66,237,193.34 | R29: =R30+R31 -> 12,601,696.95 | S29: =S30+S31 -> 409,239.95 | T29: =T30+T31 -> 13,705.50
A30: 301.4 | B30: 301 - ATENÇÃO BÁSICA | C30: 4-DESPESAS DE CAPITAL | D30: 9009 | E30: 400,000.00 | F30: 400,000.00 | G30: 0 | H30: 0 | I30: 0 | N30: 126.3 | O30: Despesas Correntes | P30: =SUMIF($A:$A,$N30,E:E) -> 34,662,000.00 | Q30: =SUMIF($A:$A,$N30,F:F) -> 53,315,112.34 | R30: =SUMIF($A:$A,$N30,G:G)+SUMIF(Itens_Excluidos_Tabela!$A:$A, $N30, Itens_Excluidos_Tabela!C:C) -> 10,819,573.31 | S30: =SUMIF($A:$A,$N30,H:H)+SUMIF(Itens_Excluidos_Tabela!$A:$A, $N30, Itens_Excluidos_Tabela!D:D) -> 254,858.73 | T30: =SUMIF($A:$A,$N30,I:I)+SUMIF(Itens_Excluidos_Tabela!$A:$A, $N30, Itens_Excluidos_Tabela!E:E) -> 606.87
A31: 301.4 | B31: 301 - ATENÇÃO BÁSICA | C31: 4-DESPESAS DE CAPITAL | D31: 9010 | E31: 250,000.00 | F31: 250,000.00 | G31: 0 | H31: 0 | I31: 0 | N31: 126.4 | O31: Despesas de Capital | P31: =SUMIF($A:$A,$N31,E:E) -> 4,001,000.00 | Q31: =SUMIF($A:$A,$N31,F:F) -> 12,922,081.00 | R31: =SUMIF($A:$A,$N31,G:G)+SUMIF(Itens_Excluidos_Tabela!$A:$A, $N31, Itens_Excluidos_Tabela!C:C) -> 1,782,123.64 | S31: =SUMIF($A:$A,$N31,H:H)+SUMIF(Itens_Excluidos_Tabela!$A:$A, $N31, Itens_Excluidos_Tabela!D:D) -> 154,381.22 | T31: =SUMIF($A:$A,$N31,I:I)+SUMIF(Itens_Excluidos_Tabela!$A:$A, $N31, Itens_Excluidos_Tabela!E:E) -> 13,098.63
A32: 301.4 | B32: 301 - ATENÇÃO BÁSICA | C32: 4-DESPESAS DE CAPITAL | D32: 9011 | E32: 50,000.00 | F32: 50,000.00 | G32: 0 | H32: 0 | I32: 0 | N32: 128 | O32: FORMAÇÃO DE RECURSOS HUMANOS | P32: =P33+P34 -> 1,347,600.00 | Q32: =Q33+Q34 -> 1,458,240.00 | R32: =R33+R34 -> 72,403.20 | S32: =S33+S34 -> 0 | T32: =T33+T34 -> 0
A33: 301.4 | B33: 301 - ATENÇÃO BÁSICA | C33: 4-DESPESAS DE CAPITAL | D33: 9012 | E33: 250,000.00 | F33: 250,000.00 | G33: 0 | H33: 0 | I33: 0 | N33: 128.3 | O33: Despesas Correntes | P33: =SUMIF($A:$A,$N33,E:E) -> 847,600.00 | Q33: =SUMIF($A:$A,$N33,F:F) -> 958,240.00 | R33: =SUMIF($A:$A,$N33,G:G)+SUMIF(Itens_Excluidos_Tabela!$A:$A, $N33, Itens_Excluidos_Tabela!C:C) -> 72,403.20 | S33: =SUMIF($A:$A,$N33,H:H)+SUMIF(Itens_Excluidos_Tabela!$A:$A, $N33, Itens_Excluidos_Tabela!D:D) -> 0 | T33: =SUMIF($A:$A,$N33,I:I)+SUMIF(Itens_Excluidos_Tabela!$A:$A, $N33, Itens_Excluidos_Tabela!E:E) -> 0
A34: 301.4 | B34: 301 - ATENÇÃO BÁSICA | C34: 4-DESPESAS DE CAPITAL | D34: 9013 | E34: 100,000.00 | F34: 100,000.00 | G34: 0 | H34: 0 | I34: 0 | N34: 128.4 | O34: Despesas de Capital | P34: =SUMIF($A:$A,$N34,E:E) -> 500,000.00 | Q34: =SUMIF($A:$A,$N34,F:F) -> 500,000.00 | R34: =SUMIF($A:$A,$N34,G:G)+SUMIF(Itens_Excluidos_Tabela!$A:$A, $N34, Itens_Excluidos_Tabela!C:C) -> 0 | S34: =SUMIF($A:$A,$N34,H:H)+SUMIF(Itens_Excluidos_Tabela!$A:$A, $N34, Itens_Excluidos_Tabela!D:D) -> 0 | T34: =SUMIF($A:$A,$N34,I:I)+SUMIF(Itens_Excluidos_Tabela!$A:$A, $N34, Itens_Excluidos_Tabela!E:E) -> 0
A35: 301.4 | B35: 301 - ATENÇÃO BÁSICA | C35: 4-DESPESAS DE CAPITAL | D35: 9014 | E35: 250,000.00 | F35: 250,000.00 | G35: 0 | H35: 0 | I35: 0 | N35: 131 | O35: COMUNICAÇÃO SOCIAL | P35: =P36+P37 -> 0 | Q35: =Q36+Q37 -> 0 | R35: =R36+R37 -> 0 | S35: =S36+S37 -> 0 | T35: =T36+T37 -> 0
A36: 301.4 | B36: 301 - ATENÇÃO BÁSICA | C36: 4-DESPESAS DE CAPITAL | D36: 9015 | E36: 400,000.00 | F36: 400,000.00 | G36: 0 | H36: 0 | I36: 0 | N36: 131.3 | O36: Despesas Correntes | P36: =SUMIF($A:$A,$N36,E:E) -> 0 | Q36: =SUMIF($A:$A,$N36,F:F) -> 0 | R36: =SUMIF($A:$A,$N36,G:G)+SUMIF(Itens_Excluidos_Tabela!$A:$A, $N36, Itens_Excluidos_Tabela!C:C) -> 0 | S36: =SUMIF($A:$A,$N36,H:H)+SUMIF(Itens_Excluidos_Tabela!$A:$A, $N36, Itens_Excluidos_Tabela!D:D) -> 0 | T36: =SUMIF($A:$A,$N36,I:I)+SUMIF(Itens_Excluidos_Tabela!$A:$A, $N36, Itens_Excluidos_Tabela!E:E) -> 0
A37: 301.4 | B37: 301 - ATENÇÃO BÁSICA | C37: 4-DESPESAS DE CAPITAL | D37: 9016 | E37: 400,000.00 | F37: 400,000.00 | G37: 0 | H37: 0 | I37: 0 | N37: 131.4 | O37: Despesas de Capital | P37: =SUMIF($A:$A,$N37,E:E) -> 0 | Q37: =SUMIF($A:$A,$N37,F:F) -> 0 | R37: =SUMIF($A:$A,$N37,G:G)+SUMIF(Itens_Excluidos_Tabela!$A:$A, $N37, Itens_Excluidos_Tabela!C:C) -> 0 | S37: =SUMIF($A:$A,$N37,H:H)+SUMIF(Itens_Excluidos_Tabela!$A:$A, $N37, Itens_Excluidos_Tabela!D:D) -> 0 | T37: =SUMIF($A:$A,$N37,I:I)+SUMIF(Itens_Excluidos_Tabela!$A:$A, $N37, Itens_Excluidos_Tabela!E:E) -> 0
A38: 301.4 | B38: 301 - ATENÇÃO BÁSICA | C38: 4-DESPESAS DE CAPITAL | D38: 9017 | E38: 550,000.00 | F38: 550,000.00 | G38: 0 | H38: 0 | I38: 0 | N38: 241 | O38: ASSISTÊNCIA AO IDOSO | P38: =P39+P40 -> 0 | Q38: =Q39+Q40 -> 0 | R38: =R39+R40 -> 0 | S38: =S39+S40 -> 0 | T38: =T39+T40 -> 0
A39: 301.4 | B39: 301 - ATENÇÃO BÁSICA | C39: 4-DESPESAS DE CAPITAL | D39: 9018 | E39: 50,000.00 | F39: 50,000.00 | G39: 0 | H39: 0 | I39: 0 | N39: 241.3 | O39: Despesas Correntes | P39: =SUMIF($A:$A,$N39,E:E) -> 0 | Q39: =SUMIF($A:$A,$N39,F:F) -> 0 | R39: =SUMIF($A:$A,$N39,G:G)+SUMIF(Itens_Excluidos_Tabela!$A:$A, $N39, Itens_Excluidos_Tabela!C:C) -> 0 | S39: =SUMIF($A:$A,$N39,H:H)+SUMIF(Itens_Excluidos_Tabela!$A:$A, $N39, Itens_Excluidos_Tabela!D:D) -> 0 | T39: =SUMIF($A:$A,$N39,I:I)+SUMIF(Itens_Excluidos_Tabela!$A:$A, $N39, Itens_Excluidos_Tabela!E:E) -> 0
A40: 301.4 | B40: 301 - ATENÇÃO BÁSICA | C40: 4-DESPESAS DE CAPITAL | D40: 9019 | E40: 300,000.00 | F40: 300,000.00 | G40: 0 | H40: 0 | I40: 0 | N40: 241.4 | O40: Despesas de Capital | P40: =SUMIF($A:$A,$N40,E:E) -> 0 | Q40: =SUMIF($A:$A,$N40,F:F) -> 0 | R40: =SUMIF($A:$A,$N40,G:G)+SUMIF(Itens_Excluidos_Tabela!$A:$A, $N40, Itens_Excluidos_Tabela!C:C) -> 0 | S40: =SUMIF($A:$A,$N40,H:H)+SUMIF(Itens_Excluidos_Tabela!$A:$A, $N40, Itens_Excluidos_Tabela!D:D) -> 0 | T40: =SUMIF($A:$A,$N40,I:I)+SUMIF(Itens_Excluidos_Tabela!$A:$A, $N40, Itens_Excluidos_Tabela!E:E) -> 0
A41: 301.4 | B41: 301 - ATENÇÃO BÁSICA | C41: 4-DESPESAS DE CAPITAL | D41: 9020 | E41: 50,000.00 | F41: 50,000.00 | G41: 0 | H41: 0 | I41: 0 | N41: 242 | O41: ASSISTÊNCIA AO PORTADOR DE DEFICIÊNCIA | P41: =P42+P43 -> 0 | Q41: =Q42+Q43 -> 0 | R41: =R42+R43 -> 0 | S41: =S42+S43 -> 0 | T41: =T42+T43 -> 0
A42: 301.4 | B42: 301 - ATENÇÃO BÁSICA | C42: 4-DESPESAS DE CAPITAL | D42: 9021 | E42: 15,000.00 | F42: 15,000.00 | G42: 0 | H42: 0 | I42: 0 | N42: 242.3 | O42: Despesas Correntes | P42: =SUMIF($A:$A,$N42,E:E) -> 0 | Q42: =SUMIF($A:$A,$N42,F:F) -> 0 | R42: =SUMIF($A:$A,$N42,G:G)+SUMIF(Itens_Excluidos_Tabela!$A:$A, $N42, Itens_Excluidos_Tabela!C:C) -> 0 | S42: =SUMIF($A:$A,$N42,H:H)+SUMIF(Itens_Excluidos_Tabela!$A:$A, $N42, Itens_Excluidos_Tabela!D:D) -> 0 | T42: =SUMIF($A:$A,$N42,I:I)+SUMIF(Itens_Excluidos_Tabela!$A:$A, $N42, Itens_Excluidos_Tabela!E:E) -> 0
A43: 301.4 | B43: 301 - ATENÇÃO BÁSICA | C43: 4-DESPESAS DE CAPITAL | D43: 9022 | E43: 250,000.00 | F43: 250,000.00 | G43: 0 | H43: 0 | I43: 0 | N43: 242.4 | O43: Despesas de Capital | P43: =SUMIF($A:$A,$N43,E:E) -> 0 | Q43: =SUMIF($A:$A,$N43,F:F) -> 0 | R43: =SUMIF($A:$A,$N43,G:G)+SUMIF(Itens_Excluidos_Tabela!$A:$A, $N43, Itens_Excluidos_Tabela!C:C) -> 0 | S43: =SUMIF($A:$A,$N43,H:H)+SUMIF(Itens_Excluidos_Tabela!$A:$A, $N43, Itens_Excluidos_Tabela!D:D) -> 0 | T43: =SUMIF($A:$A,$N43,I:I)+SUMIF(Itens_Excluidos_Tabela!$A:$A, $N43, Itens_Excluidos_Tabela!E:E) -> 0
A44: 301.4 | B44: 301 - ATENÇÃO BÁSICA | C44: 4-DESPESAS DE CAPITAL | D44: 9025 | E44: 200,000.00 | F44: 200,000.00 | G44: 0 | H44: 0 | I44: 0 | N44: 422 | O44: DIREITOS INDIVIDUAIS, COLETIVOS E DIFUSOS | P44: =P45+P46 -> 0 | Q44: =Q45+Q46 -> 0 | R44: =R45+R46 -> 0 | S44: =S45+S46 -> 0 | T44: =T45+T46 -> 0
A45: 301.4 | B45: 301 - ATENÇÃO BÁSICA | C45: 4-DESPESAS DE CAPITAL | D45: 9026 | E45: 50,000.00 | F45: 50,000.00 | G45: 0 | H45: 0 | I45: 0 | N45: 422.3 | O45: Despesas Correntes | P45: =SUMIF($A:$A,$N45,E:E) -> 0 | Q45: =SUMIF($A:$A,$N45,F:F) -> 0 | R45: =SUMIF($A:$A,$N45,G:G)+SUMIF(Itens_Excluidos_Tabela!$A:$A, $N45, Itens_Excluidos_Tabela!C:C) -> 0 | S45: =SUMIF($A:$A,$N45,H:H)+SUMIF(Itens_Excluidos_Tabela!$A:$A, $N45, Itens_Excluidos_Tabela!D:D) -> 0 | T45: =SUMIF($A:$A,$N45,I:I)+SUMIF(Itens_Excluidos_Tabela!$A:$A, $N45, Itens_Excluidos_Tabela!E:E) -> 0
A46: 301.4 | B46: 301 - ATENÇÃO BÁSICA | C46: 4-DESPESAS DE CAPITAL | D46: 9027 | E46: 250,000.00 | F46: 250,000.00 | G46: 0 | H46: 0 | I46: 0 | N46: 422.4 | O46: Despesas de Capital | P46: =SUMIF($A:$A,$N46,E:E) -> 0 | Q46: =SUMIF($A:$A,$N46,F:F) -> 0 | R46: =SUMIF($A:$A,$N46,G:G)+SUMIF(Itens_Excluidos_Tabela!$A:$A, $N46, Itens_Excluidos_Tabela!C:C) -> 0 | S46: =SUMIF($A:$A,$N46,H:H)+SUMIF(Itens_Excluidos_Tabela!$A:$A, $N46, Itens_Excluidos_Tabela!D:D) -> 0 | T46: =SUMIF($A:$A,$N46,I:I)+SUMIF(Itens_Excluidos_Tabela!$A:$A, $N46, Itens_Excluidos_Tabela!E:E) -> 0
A47: 301.4 | B47: 301 - ATENÇÃO BÁSICA | C47: 4-DESPESAS DE CAPITAL | D47: 9030 | E47: 1,000.00 | F47: 1,000.00 | G47: 0 | H47: 0 | I47: 0 | O47: TOTAL DAS DESPESAS NÃO COMPUTADAS NO CÁLCULO DO MÍNIMO (XXXVII) = (XXXII + XXXIII + XXXIV + XXXV + XXXVI + XXXVII + XXXVIII)
A48: 301.4 | B48: 301 - ATENÇÃO BÁSICA | C48: 4-DESPESAS DE CAPITAL | D48: 9031 | E48: 1,000.00 | F48: 1,000.00 | G48: 0 | H48: 0 | I48: 0 | P48: =SUM(P5,P8,P11,P14,P17,P20,P23) -> 4,584,793,513.00 | Q48: =SUM(Q5,Q8,Q11,Q14,Q17,Q20,Q23) -> 4,893,226,502.80 | R48: =SUM(R5,R8,R11,R14,R17,R20,R23) -> 1,664,500,906.45 | S48: =SUM(S5,S8,S11,S14,S17,S20,S23) -> 481,623,225.59 | T48: =SUM(T5,T8,T11,T14,T17,T20,T23) -> 460,766,990.92
A49: 301.4 | B49: 301 - ATENÇÃO BÁSICA | C49: 4-DESPESAS DE CAPITAL | D49: 9034 | E49: 1,000.00 | F49: 1,000.00 | G49: 0 | H49: 0 | I49: 0 | O49: Variação | P49: =P48-Anexo12_Saúde!H132 -> 0 | Q49: =Q48-Anexo12_Saúde!I132 -> 0 | R49: =R48-Anexo12_Saúde!J132 -> 0 | S49: =S48-Anexo12_Saúde!L132 -> 0 | T49: =T48-Anexo12_Saúde!N132 -> 0
A50: 301.4 | B50: 301 - ATENÇÃO BÁSICA | C50: 4-DESPESAS DE CAPITAL | D50: 9035 | E50: 1,000.00 | F50: 1,000.00 | G50: 0 | H50: 0 | I50: 0
A51: 301.4 | B51: 301 - ATENÇÃO BÁSICA | C51: 4-DESPESAS DE CAPITAL | D51: 9036 | E51: 1,000.00 | F51: 1,000.00 | G51: 0 | H51: 0 | I51: 0
A52: 301.4 | B52: 301 - ATENÇÃO BÁSICA | C52: 4-DESPESAS DE CAPITAL | D52: 9037 | E52: 1,000.00 | F52: 1,000.00 | G52: 0 | H52: 0 | I52: 0
A53: 301.4 | B53: 301 - ATENÇÃO BÁSICA | C53: 4-DESPESAS DE CAPITAL | D53: 9038 | E53: 1,000.00 | F53: 1,000.00 | G53: 0 | H53: 0 | I53: 0
A54: 301.4 | B54: 301 - ATENÇÃO BÁSICA | C54: 4-DESPESAS DE CAPITAL | D54: 9040 | E54: 1,000.00 | F54: 1,000.00 | G54: 0 | H54: 0 | I54: 0
A55: 301.4 | B55: 301 - ATENÇÃO BÁSICA | C55: 4-DESPESAS DE CAPITAL | D55: 9041 | E55: 1,000.00 | F55: 1,000.00 | G55: 0 | H55: 0 | I55: 0
A56: 301.4 | B56: 301 - ATENÇÃO BÁSICA | C56: 4-DESPESAS DE CAPITAL | D56: 9042 | E56: 800,000.00 | F56: 800,000.00 | G56: 0 | H56: 0 | I56: 0
A57: 301.4 | B57: 301 - ATENÇÃO BÁSICA | C57: 4-DESPESAS DE CAPITAL | D57: 9046 | E57: 5,000,000.00 | F57: 5,000,000.00 | G57: 0 | H57: 0 | I57: 0
A58: 301.4 | B58: 301 - ATENÇÃO BÁSICA | C58: 4-DESPESAS DE CAPITAL | D58: 9047 | E58: 5,000,000.00 | F58: 5,000,000.00 | G58: 0 | H58: 0 | I58: 0
A59: 301.4 | B59: 301 - ATENÇÃO BÁSICA | C59: 4-DESPESAS DE CAPITAL | D59: 9050 | E59: 5,000,000.00 | F59: 5,000,000.00 | G59: 0 | H59: 0 | I59: 0
A60: 301.4 | B60: 301 - ATENÇÃO BÁSICA | C60: 4-DESPESAS DE CAPITAL | D60: 9051 | E60: 1,000,000.00 | F60: 1,000,000.00 | G60: 0 | H60: 0 | I60: 0
A61: 301.4 | B61: 301 - ATENÇÃO BÁSICA | C61: 4-DESPESAS DE CAPITAL | D61: 9052 | E61: 1,000,000.00 | F61: 1,000,000.00 | G61: 0 | H61: 0 | I61: 0
A62: 301.4 | B62: 301 - ATENÇÃO BÁSICA | C62: 4-DESPESAS DE CAPITAL | D62: 9053 | E62: 100,000.00 | F62: 100,000.00 | G62: 0 | H62: 0 | I62: 0
A63: 301.4 | B63: 301 - ATENÇÃO BÁSICA | C63: 4-DESPESAS DE CAPITAL | D63: 9259 | E63: 1,000,000.00 | F63: 1,000,000.00 | G63: 0 | H63: 0 | I63: 0
A64: 302.3 | B64: 302 - ASSISTÊNCIA HOSPITALAR E AMBULATORIAL | C64: 3-DESPESAS CORRENTES | D64: 8014 | E64: 1,000.00 | F64: 1,000.00 | G64: 0 | H64: 0 | I64: 0
A65: 302.3 | B65: 302 - ASSISTÊNCIA HOSPITALAR E AMBULATORIAL | C65: 3-DESPESAS CORRENTES | D65: 8018 | E65: 1,000.00 | F65: 1,000.00 | G65: 0 | H65: 0 | I65: 0
A66: 302.3 | B66: 302 - ASSISTÊNCIA HOSPITALAR E AMBULATORIAL | C66: 3-DESPESAS CORRENTES | D66: 8027 | E66: 100,000.00 | F66: 100,000.00 | G66: 0 | H66: 0 | I66: 0
A67: 302.3 | B67: 302 - ASSISTÊNCIA HOSPITALAR E AMBULATORIAL | C67: 3-DESPESAS CORRENTES | D67: 8028 | E67: 100,000.00 | F67: 100,000.00 | G67: 0 | H67: 0 | I67: 0
A68: 302.4 | B68: 302 - ASSISTÊNCIA HOSPITALAR E AMBULATORIAL | C68: 4-DESPESAS DE CAPITAL | D68: 9001 | E68: 80,000.00 | F68: 80,000.00 | G68: 0 | H68: 0 | I68: 0
A69: 302.4 | B69: 302 - ASSISTÊNCIA HOSPITALAR E AMBULATORIAL | C69: 4-DESPESAS DE CAPITAL | D69: 9002 | E69: 30,000.00 | F69: 30,000.00 | G69: 0 | H69: 0 | I69: 0
A70: 302.4 | B70: 302 - ASSISTÊNCIA HOSPITALAR E AMBULATORIAL | C70: 4-DESPESAS DE CAPITAL | D70: 9023 | E70: 200,000.00 | F70: 200,000.00 | G70: 0 | H70: 0 | I70: 0
A71: 302.4 | B71: 302 - ASSISTÊNCIA HOSPITALAR E AMBULATORIAL | C71: 4-DESPESAS DE CAPITAL | D71: 9024 | E71: 250,000.00 | F71: 250,000.00 | G71: 0 | H71: 0 | I71: 0
A72: 302.4 | B72: 302 - ASSISTÊNCIA HOSPITALAR E AMBULATORIAL | C72: 4-DESPESAS DE CAPITAL | D72: 9028 | E72: 1,000.00 | F72: 1,000.00 | G72: 0 | H72: 0 | I72: 0
A73: 302.4 | B73: 302 - ASSISTÊNCIA HOSPITALAR E AMBULATORIAL | C73: 4-DESPESAS DE CAPITAL | D73: 9029 | E73: 1,000.00 | F73: 1,000.00 | G73: 0 | H73: 0 | I73: 0
A74: 302.4 | B74: 302 - ASSISTÊNCIA HOSPITALAR E AMBULATORIAL | C74: 4-DESPESAS DE CAPITAL | D74: 9032 | E74: 1,000.00 | F74: 1,000.00 | G74: 0 | H74: 0 | I74: 0
A75: 302.4 | B75: 302 - ASSISTÊNCIA HOSPITALAR E AMBULATORIAL | C75: 4-DESPESAS DE CAPITAL | D75: 9033 | E75: 1,000.00 | F75: 1,000.00 | G75: 0 | H75: 0 | I75: 0
A76: 302.4 | B76: 302 - ASSISTÊNCIA HOSPITALAR E AMBULATORIAL | C76: 4-DESPESAS DE CAPITAL | D76: 9039 | E76: 1,000.00 | F76: 1,000.00 | G76: 0 | H76: 0 | I76: 0
A77: =CONCATENATE(LEFT(B77,3),".",LEFT(C77,1)) -> 302.4 | B77: 302 - ASSISTÊNCIA HOSPITALAR E AMBULATORIAL | C77: 4-DESPESAS DE CAPITAL | D77: 9043 | E77: 10,000,000.00 | F77: 10,000,000.00 | G77: 0 | H77: 0 | I77: 0
A78: 302.4 | B78: 302 - ASSISTÊNCIA HOSPITALAR E AMBULATORIAL | C78: 4-DESPESAS DE CAPITAL | D78: 9044 | E78: 300,000.00 | F78: 300,000.00 | G78: 0 | H78: 0 | I78: 0
A79: 302.4 | B79: 302 - ASSISTÊNCIA HOSPITALAR E AMBULATORIAL | C79: 4-DESPESAS DE CAPITAL | D79: 9048 | E79: 300,000.00 | F79: 300,000.00 | G79: 0 | H79: 0 | I79: 0
A80: 302.4 | B80: 302 - ASSISTÊNCIA HOSPITALAR E AMBULATORIAL | C80: 4-DESPESAS DE CAPITAL | D80: 9049 | E80: 30,000.00 | F80: 30,000.00 | G80: 0 | H80: 0 | I80: 0
A81: 302.4 | B81: 302 - ASSISTÊNCIA HOSPITALAR E AMBULATORIAL | C81: 4-DESPESAS DE CAPITAL | D81: 9133 | E81: 300,000.00 | F81: 300,000.00 | G81: 0 | H81: 0 | I81: 0
A82: 303.3 | B82: 303 - SUPORTE PROFILÁTICO E TERAPÊUTICO | C82: 3-DESPESAS CORRENTES | D82: 8010 | E82: 1,000.00 | F82: 1,000.00 | G82: 0 | H82: 0 | I82: 0
A83: 304.3 | B83: 304 - VIGILÂNCIA SANITÁRIA | C83: 3-DESPESAS CORRENTES | D83: 8001 | E83: 5,000,000.00 | F83: 5,000,000.00 | G83: 0 | H83: 0 | I83: 0
A84: 304.3 | B84: 304 - VIGILÂNCIA SANITÁRIA | C84: 3-DESPESAS CORRENTES | D84: 8002 | E84: 5,000,000.00 | F84: 5,000,000.00 | G84: 0 | H84: 0 | I84: 0
A85: 304.3 | B85: 304 - VIGILÂNCIA SANITÁRIA | C85: 3-DESPESAS CORRENTES | D85: 8012 | E85: 1,000.00 | F85: 1,000.00 | G85: 0 | H85: 0 | I85: 0
A86: 304.4 | B86: 304 - VIGILÂNCIA SANITÁRIA | C86: 4-DESPESAS DE CAPITAL | D86: 8013 | E86: 1,000.00 | F86: 1,000.00 | G86: 0 | H86: 0 | I86: 0
A87: 304.4 | B87: 304 - VIGILÂNCIA SANITÁRIA | C87: 4-DESPESAS DE CAPITAL | D87: 8025 | E87: 1,500,000.00 | F87: 1,500,000.00 | G87: 0 | H87: 0 | I87: 0
A88: 304.4 | B88: 304 - VIGILÂNCIA SANITÁRIA | C88: 4-DESPESAS DE CAPITAL | D88: 8026 | E88: 1,500,000.00 | F88: 1,500,000.00 | G88: 0 | H88: 0 | I88: 0
B89: Total Geral | E89: 75,560,000.00 | F89: 75,560,000.00 | G89: 0 | H89: 0 | I89: 0
A124: Projeto Atividade: | B124: Apenas 1530, 1531, 2501,4121; Ações excluídas de despesas com ASPS
B125: Número Ano | C125: 2025
B126: Número Ano Execução | C126: 2025
B127: Número Mês | C127: (Vários itens) | D127: 01 a 02
B128: Código Órgão Empresa | C128: 84 | D128: FMS
B129: Código Função | C129: 10 | D129: Saúde
B130: Código Elemento Despesa | C130: (Vários itens) | D130: Excluídos 08, 82, 86 e 97; Mantido filtro de elementos excluídos de despesas com ASPS
B131: Código Fonte de Recurso | C131: 00 | D131: Tesouro Municipal - Receitas de Impostos Municipais
E133: Valores
A134: CÓD | B134: Descrição Sub Função | C134: Descrição Categoria Econômica | D134: Código Projeto Atividade | E134: Valor Orçado Anual | F134: Valor Orçado Atualizado | G134: Valor Empenhado | H134: Valor Liquidado | I134: Valor Pago
A135: =CONCATENATE(LEFT(B135,3),".",LEFT(C135,1)) -> 302.3 | B135: 302 - ASSISTÊNCIA HOSPITALAR E AMBULATORIAL | C135: 3-DESPESAS CORRENTES | D135: 4121 | E135: 21,602,700.00 | F135: 21,602,700.00 | G135: 2,803,060.93 | H135: 2,803,060.93 | I135: 2,803,060.93
A136: =CONCATENATE(LEFT(B136,3),".",LEFT(C136,1)) -> 304.3 | B136: 304 - VIGILÂNCIA SANITÁRIA | C136: 3-DESPESAS CORRENTES | D136: 2501 | E136: 31,683,375.00 | F136: 31,683,375.00 | G136: 25,339,224.00 | H136: 6,343,338.00 | I136: 6,343,338.00
A137: 304.4 | B137: 304 - VIGILÂNCIA SANITÁRIA | C137: 4-DESPESAS DE CAPITAL | D137: 1530 | E137: 1,000.00 | F137: 1,000.00 | G137: 0 | H137: 0 | I137: 0
A138: 304.4 | B138: 304 - VIGILÂNCIA SANITÁRIA | C138: 4-DESPESAS DE CAPITAL | D138: 1531 | E138: 1,000.00 | F138: 1,000.00 | G138: 0 | H138: 0 | I138: 0
A139: 304.4 | B139: 304 - VIGILÂNCIA SANITÁRIA | C139: 4-DESPESAS DE CAPITAL | D139: 2501 | E139: 0 | F139: 549,329.04 | G139: 0 | H139: 0 | I139: 0
B140: Total Geral | E140: 53,288,075.00 | F140: 53,837,404.04 | G140: 28,142,284.93 | H140: 9,146,398.93 | I140: 9,146,398.93
A141: .
B142: Número Ano | C142: 2025
B143: Número Ano Execução | C143: 2025
B144: Número Mês | C144: (Vários itens) | D144: 01 a 02
B145: Código Órgão Empresa | C145: 84 | D145: FMS
B146: Código Função | C146: 10 | D146: Saúde
B147: Código Elemento Despesa | C147: (Vários itens) | D147: Apenas elementos excluídos das despesas com ASPS
B148: Código Fonte de Recurso | C148: 00 | D148: Tesouro Municipal - Receitas de Impostos Municipais
E150: Valores
A151: CÓD | B151: Descrição Sub Função | C151: Descrição Categoria Econômica | D151: Código Projeto Atividade | E151: Valor Orçado Anual | F151: Valor Orçado Atualizado | G151: Valor Empenhado | H151: Valor Liquidado | I151: Valor Pago
A152: =CONCATENATE(LEFT(B152,3),".",LEFT(C152,1)) -> 122.3 | B152: 122 - ADMINISTRAÇÃO GERAL | C152: 3-DESPESAS CORRENTES | D152: 2100 | E152: 7,314.00 | F152: 7,314.00 | G152: 520.00 | H152: 520.00 | I152: 520.00
B153: Total Geral | E153: 7,314.00 | F153: 7,314.00 | G153: 520.00 | H153: 520.00 | I153: 520.00
B158: Número Ano | C158: 2025
B159: Número Ano Execução | C159: 2025
B160: Número Mês | C160: (Vários itens) | D160: 01 a 02
B161: Código Órgão Empresa | C161: 84 | D161: FMS
B162: Código Função | C162: 10 | D162: Saúde
B163: Código Elemento Despesa | C163: Todos
B164: Código Fonte de Recurso | C164: (Vários itens) | D164: Excluída 00 - Apenas fontes vinculadas
E166: Valores
A167: CÓD | B167: Descrição Sub Função | C167: Descrição Categoria Econômica | D167: Código Projeto Atividade | E167: Valor Orçado Anual | F167: Valor Orçado Atualizado | G167: Valor Empenhado | H167: Valor Liquidado | I167: Valor Pago
A168: =CONCATENATE(LEFT(B168,3),".",LEFT(C168,1)) -> 122.4 | B168: 122 - ADMINISTRAÇÃO GERAL | C168: 4-DESPESAS DE CAPITAL | D168: 5204 | E168: 0 | F168: 758,094.02 | G168: 333,573.48 | H168: 23,350.29 | I168: 0
A169: =CONCATENATE(LEFT(B169,3),".",LEFT(C169,1)) -> 122.4 | B169: 122 - ADMINISTRAÇÃO GERAL | C169: 4-DESPESAS DE CAPITAL | D169: 5207 | E169: 0 | F169: 4,080,000.00 | G169: 0 | H169: 0 | I169: 0
A170: 126.3 | B170: 126 - TECNOLOGIA DA INFORMAÇÃO | C170: 3-DESPESAS CORRENTES | D170: 2171 | E170: 28,152,000.00 | F170: 46,726,193.34 | G170: 7,969,265.90 | H170: 0 | I170: 0
A171: 126.4 | B171: 126 - TECNOLOGIA DA INFORMAÇÃO | C171: 4-DESPESAS DE CAPITAL | D171: 5207 | E171: 0 | F171: 9,000,000.00 | G171: 0 | H171: 0 | I171: 0
A172: 128.3 | B172: 128 - FORMAÇÃO DE RECURSOS HUMANOS | C172: 3-DESPESAS CORRENTES | D172: 2180 | E172: 717,600.00 | F172: 828,240.00 | G172: 72,403.20 | H172: 0 | I172: 0
A173: 128.4 | B173: 128 - FORMAÇÃO DE RECURSOS HUMANOS | C173: 4-DESPESAS DE CAPITAL | D173: 2180 | E173: 500,000.00 | F173: 500,000.00 | G173: 0 | H173: 0 | I173: 0
A174: 301.3 | B174: 301 - ATENÇÃO BÁSICA | C174: 3-DESPESAS CORRENTES | D174: 2520 | E174: 1,259,037,400.00 | F174: 1,309,061,558.26 | G174: 195,684,089.59 | H174: 158,440,818.44 | I174: 157,364,864.00
